Workbook

Sheet INTRO
B2: Formulaire de demande commune de médicaments pour CP v.4.1
B4: Dans le cadre des efforts mondiaux entrepris pour accélérer l'expansion de la chimioprévention (CP) pour l'élimination de la filariose lymphatique et la lutte contre la schistosomiase et les géohelminthiases, l'Organisation mondiale de la Santé (OMS) facilite l'approvisionnement en albendazole, comprimés de 400 mg (GSK), pour les programmes nationaux d'élimination de la filariose lymphatique et programmes nationaux de lutte contre les géohelminthiases; en diethylcarbamazine, comprimés de 100 mg (Eisai), pour les programmes nationaux d'élimination de la filariose lymphatique; en mebendazole, comprimés de 500 mg (J&J) pour les programmes nationaux de lutte contre les géohelminthiases et en praziquantel, comprimés de 600 mg (Merck KGaA), destinés aux enfants d'âge scolaire, pour les programmes nationaux de lutte contre la schistosomiase. L'OMS contribue également à l'approvisionnement en ivermectine, comprimés de 3 mg (Merck), pour les programmes de donation pour l'onchocercose et la filariose lymphatique. Cet outil Excel est concu pour aider les pays à quantifier le nombre de comprimés nécessaires, selon le traitement de chimioprévention requis, pour atteindre les objectifs de couverture de traitement de populations et districts pour l'année de la demande de médicaments. Le résultat de cet outil est une demande commune de médicaments pour la chimioprévention des maladies tropicales négligées, qui peut être imprimée, signée et soumise à l'OMS pour la demande de ces médicaments.
B6: Structure de l'application (feuilles de travail) :
B8: INTRO | C8: Cette feuille contient des instructions pour compléter le formulaire de demande de médicaments pour la chimioprévention et des informations sur le statut de la chimioprévention pour les maladies d'endémie du pays.
B9: COUNTRY_INFO | C9: Cette feuille contient des informations sur la structure administrative du pays, la population par groupe d'âge, le statut d'endémicité pour chaque maladie, la population devant être traitée par chimioprévention et les interventions prévues.
B10: DEC, ALB_MBD, PZQ et IVM | C10: Ces feuilles contiennent des informations sur l'endémicité des districts ciblés pour le traitement aux médicaments spécifiques à la chimioprévention, les plans de traitement, et le nombre de comprimés requis et demandés.
B11: SUMMARY | C11: Cette feuille inclut un résumé du nombre de comprimés demandés, des informations concernant le stock et les dates de soumission de la demande de médicaments. Avant de générer le rapport (run macros), veuillez sélectionner le médicament pour lequel le rapport est nécessaire. Veuillez suivre la même règle pour voir le nombre de personnes à traiter pour les maladies spécifiques. Cette feuille doit être imprimée et soumise en tant que "Formulaire de demande commune de médicaments pour chimioprévention" (voir les instructions pour la soumission du formulaire sous la feuille SUMMARY).
B13: Instructions pour la saisie des données
B15: La plupart des cellules des feuilles de travail mentionnées ci-dessus contiennent des formules calculées automatiquement en fonction du protocole de traitement recommandé par l'OMS pour chaque maladie. Voir : https://www.who.int/publications/i/item/9789241599993.
B17: Veuillez entrer vos données dans les cellules en fonction de leur code de couleur :
C19: Blanc - la cellule n'est pas protégée. Veuillez entrer la valeur de l'indicateur demandé.
C21: Jaune - la cellule est protégée et inclut le nom de l'indicateur. Aucune entrée de données requise.
C23: Orange - la cellule n'est pas protégée et contient un menu déroulant. Veuillez sélectionner la valeur dans le menu déroulant.
C26: Vert - la cellule n'est pas protégée et contient des formules. Veuillez changer la valeur indiquée uniquement si vos données sont différentes de celles calculées automatiquement.
C29: Bleu - la cellule est protégée et contient des formules. Aucune entrée de données requise.
B31: Données pays
B33: PAYS | E33: TOGO | G33: TG | H33: TGO
E34: 5
B35: Année de la demande de médicaments | E35: 2024
B37: Le pays est-il endémique à la filariose lymphatique (FL) ? | E37: Endémique mais pas de CP
B39: Le pays est-il endémique à l'onchocercose (ONCHO) ? | E39: Endémique
B41: Le pays est-il endémique aux géohelminthiases (STH) ? | E41: Endémique
B43: Le pays est-il endémique à la schistosomiase (SCH) ? | E43: Endémique
B45: Combien d'unités administratives compte le pays ? | E45: 39
B47: Si les données démographiques par groupe d'âge ne sont pas disponibles au second niveau administratif, veuillez entrer la proportion (%) de population, par groupe d'âge, du pays. Si les données sont disponibles, veuillez laisser les cellules vierges.
B48: 1-4 ans | C48: Enfants d'âge pré-scolaire (EAPréS) | E48: 0.16
B49: 5-14 ans | C49: Enfants d'âge scolaire (EAS) | E49: 0.3
B50: 15 ans et plus | C50: Adultes | E50: 0.5
B51: 15-49 ans | C51: Femmes en âge de procréer (FAP) | E51: 0.227

Sheet COUNTRY_INFO
A1: INFORMATIONS PAYS
A2: Struture administrative, population par groupe d'âge, statut d'endémicité et interventions planifiées
A4: TOTAL | D4: =SUBTOTAL(9,D$10:D$1010) -> 8472175 | E4: =SUBTOTAL(9,E$10:E$1010) -> 1355548 | F4: 2541655 | G4: 4236099 | L4: =SUBTOTAL(9,L$10:L$1010) -> 0 | M4: 4196811 | N4: 1348810 | O4: 2529021 | P4: 311673 | Q4: 4189504 | R4: 964886.3522 | S4: 1807110.275 | T4: 739929.2054 | U4: 3511925.832
A6: Structure administrative du pays | D6: Population | H6: Endémicité | L6: Population nécessitant la CP | V6: Nombre de tournées de traitement prévues pour l'année | Z6: Criteria to apply for IVM+DEC+ALB therapy | AA6: Enquêtes épidémiologiques planifiées pour l’année
A7: Pays | B7: Région/Département | C7: District | D7: Total | E7: EAPréS | F7: EAS | G7: Adultes | H7: FL | I7: Oncho | J7: STH | K7: SCH | L7: FL | M7: ONCHO | N7: STH | R7: SCH | V7: FL | W7: Oncho | X7: STH | Y7: SCH | Z7: FL | AA7: FL | AB7: Oncho | AC7: STH | AD7: SCH
N8: EAPréS | O8: EAS | P8: FAP | Q8: TOTAL | R8: EAPréS | S8: EAS | T8: Adultes | U8: TOTAL | AH8: IU_ID | AI8: IU_Name
AE9: x | AF9: x | AH9: x | AI9: x
A10: =IF(INTRO!$E$33<>0,INTRO!$E$33, " ") -> TOGO | B10: CENTRALE | C10: BLITTA | D10: 170869 | E10: =IF(INTRO!$E$48="","",ROUND($D10*INTRO!$E$48,0)) -> 27339 | F10: =IF(INTRO!$E$49="","",ROUND($D10*INTRO!$E$49,0)) -> 51261 | G10: =IF(INTRO!$E$50="","",ROUND($D10*INTRO!$E$50,0)) -> 85435 | H10: 99 | I10: 19 | J10: 21 | K10: 11 | L10: =IF(INTRO!$E$37="Endémique",IF($H10>0,IF($H10=4,"Inconnu",IF($H10=99,"Interrompu",$D10)),0),"Non requis") -> Non requis | M10: 121713 | N10: =IF(INTRO!$E$41="Endémique", IF($J10>1, IF($J10=4, "Inconnu", IF($J10=99, "Surveillance", E10)), 0),"Non requis") -> 27339 | O10: =IF(INTRO!$E$41="Endémique", IF($J10>1, IF($J10=4, "Inconnu", IF($J10=99, "Surveillance", F10)), 0),"Non requis") -> 51261 | P10: 0 | Q10: =IF(INTRO!$E$41="Endémique", IF($J10>1, IF($J10=4, "Inconnu", IF($J10=99, "Surveillance", SUM($N10:$P10))), 0),"Non requis") -> 78600 | R10: 29210.50906 | S10: 54769.70448 | T10: 50714.12064 | U10: =+SUM(R10:T10) -> 134694.3342 | W10: 1 | X10: 1 | Y10: 2 | AC10: Oui | AD10: Oui | AH10: 48666 | AI10: BLITA
A11: =IF(INTRO!$E$33<>0,INTRO!$E$33, " ") -> TOGO | B11: CENTRALE | C11: MÔ | D11: 54888 | E11: =IF(INTRO!$E$48="","",ROUND($D11*INTRO!$E$48,0)) -> 8782 | F11: =IF(INTRO!$E$49="","",ROUND($D11*INTRO!$E$49,0)) -> 16466 | G11: =IF(INTRO!$E$50="","",ROUND($D11*INTRO!$E$50,0)) -> 27444 | H11: 99 | I11: 19 | J11: 21 | K11: 11 | L11: =IF(INTRO!$E$37="Endémique",IF($H11>0,IF($H11=4,"Inconnu",IF($H11=99,"Interrompu",$D11)),0),"Non requis") -> Non requis | M11: 50222 | N11: =IF(INTRO!$E$41="Endémique", IF($J11>1, IF($J11=4, "Inconnu", IF($J11=99, "Surveillance", E11)), 0),"Non requis") -> 8782 | O11: =IF(INTRO!$E$41="Endémique", IF($J11>1, IF($J11=4, "Inconnu", IF($J11=99, "Surveillance", F11)), 0),"Non requis") -> 16466 | P11: 0 | Q11: =IF(INTRO!$E$41="Endémique", IF($J11>1, IF($J11=4, "Inconnu", IF($J11=99, "Surveillance", SUM($N11:$P11))), 0),"Non requis") -> 25248 | R11: 5186.42688 | S11: 9724.5504 | T11: 0 | U11: =+SUM(R11:T11) -> 14910.97728 | W11: 2 | X11: 1 | Y11: 1 | AC11: Oui | AD11: Oui | AH11: 48706 | AI11: MÔ
A12: =IF(INTRO!$E$33<>0,INTRO!$E$33, " ") -> TOGO | B12: CENTRALE | C12: SOTOUBOUA | D12: 145325 | E12: =IF(INTRO!$E$48="","",ROUND($D12*INTRO!$E$48,0)) -> 23252 | F12: =IF(INTRO!$E$49="","",ROUND($D12*INTRO!$E$49,0)) -> 43598 | G12: =IF(INTRO!$E$50="","",ROUND($D12*INTRO!$E$50,0)) -> 72663 | H12: 99 | I12: 19 | J12: 21 | K12: 11 | L12: =IF(INTRO!$E$37="Endémique",IF($H12>0,IF($H12=4,"Inconnu",IF($H12=99,"Interrompu",$D12)),0),"Non requis") -> Non requis | M12: 75655 | N12: =IF(INTRO!$E$41="Endémique", IF($J12>1, IF($J12=4, "Inconnu", IF($J12=99, "Surveillance", E12)), 0),"Non requis") -> 23252 | O12: =IF(INTRO!$E$41="Endémique", IF($J12>1, IF($J12=4, "Inconnu", IF($J12=99, "Surveillance", F12)), 0),"Non requis") -> 43598 | P12: 0 | Q12: =IF(INTRO!$E$41="Endémique", IF($J12>1, IF($J12=4, "Inconnu", IF($J12=99, "Surveillance", SUM($N12:$P12))), 0),"Non requis") -> 66850 | R12: 16186.52237 | S12: 30349.72944 | T12: 1324.577143 | U12: 47860.82895 | W12: 1 | X12: 1 | Y12: 1 | AC12: Oui | AD12: Oui | AH12: 48707 | AI12: SOTOUBOUA
A13: =IF(INTRO!$E$33<>0,INTRO!$E$33, " ") -> TOGO | B13: CENTRALE | C13: TCHAMBA | D13: 209918 | E13: =IF(INTRO!$E$48="","",ROUND($D13*INTRO!$E$48,0)) -> 33587 | F13: =IF(INTRO!$E$49="","",ROUND($D13*INTRO!$E$49,0)) -> 62975 | G13: =IF(INTRO!$E$50="","",ROUND($D13*INTRO!$E$50,0)) -> 104959 | H13: 99 | I13: 19 | J13: 21 | K13: 99 | L13: =IF(INTRO!$E$37="Endémique",IF($H13>0,IF($H13=4,"Inconnu",IF($H13=99,"Interrompu",$D13)),0),"Non requis") -> Non requis | M13: 135776 | N13: =IF(INTRO!$E$41="Endémique", IF($J13>1, IF($J13=4, "Inconnu", IF($J13=99, "Surveillance", E13)), 0),"Non requis") -> 33587 | O13: =IF(INTRO!$E$41="Endémique", IF($J13>1, IF($J13=4, "Inconnu", IF($J13=99, "Surveillance", F13)), 0),"Non requis") -> 62975 | P13: 0 | Q13: =IF(INTRO!$E$41="Endémique", IF($J13>1, IF($J13=4, "Inconnu", IF($J13=99, "Surveillance", SUM($N13:$P13))), 0),"Non requis") -> 96562 | R13: 31842.71942 | S13: 59705.09892 | T13: 0 | U13: 91547.81834 | W13: 1 | X13: 1 | Y13: 1 | AC13: Oui | AD13: Oui | AH13: 48668 | AI13: TCHAMBA
A14: =IF(INTRO!$E$33<>0,INTRO!$E$33, " ") -> TOGO | B14: CENTRALE | C14: TCHAOUDJO | D14: 251543 | E14: =IF(INTRO!$E$48="","",ROUND($D14*INTRO!$E$48,0)) -> 40247 | F14: =IF(INTRO!$E$49="","",ROUND($D14*INTRO!$E$49,0)) -> 75463 | G14: =IF(INTRO!$E$50="","",ROUND($D14*INTRO!$E$50,0)) -> 125772 | H14: 99 | I14: 19 | J14: 21 | K14: 11 | L14: =IF(INTRO!$E$37="Endémique",IF($H14>0,IF($H14=4,"Inconnu",IF($H14=99,"Interrompu",$D14)),0),"Non requis") -> Non requis | M14: 129153 | N14: =IF(INTRO!$E$41="Endémique", IF($J14>1, IF($J14=4, "Inconnu", IF($J14=99, "Surveillance", E14)), 0),"Non requis") -> 40247 | O14: =IF(INTRO!$E$41="Endémique", IF($J14>1, IF($J14=4, "Inconnu", IF($J14=99, "Surveillance", F14)), 0),"Non requis") -> 75463 | P14: 0 | Q14: =IF(INTRO!$E$41="Endémique", IF($J14>1, IF($J14=4, "Inconnu", IF($J14=99, "Surveillance", SUM($N14:$P14))), 0),"Non requis") -> 115710 | R14: 28386.30816 | S14: 53224.3278 | T14: 11330.93177 | U14: 92941.56773 | W14: 2 | X14: 1 | Y14: 1 | AC14: Oui | AD14: Oui | AH14: 48669 | AI14: TCHAOUDJO
A15: =IF(INTRO!$E$33<>0,INTRO!$E$33, " ") -> TOGO | B15: GRAND LOME | C15: AGOE-NYIVE | D15: 923766 | E15: =IF(INTRO!$E$48="","",ROUND($D15*INTRO!$E$48,0)) -> 147803 | F15: =IF(INTRO!$E$49="","",ROUND($D15*INTRO!$E$49,0)) -> 277130 | G15: =IF(INTRO!$E$50="","",ROUND($D15*INTRO!$E$50,0)) -> 461883 | H15: 99 | I15: 19 | J15: 11 | K15: 11 | L15: =IF(INTRO!$E$37="Endémique",IF($H15>0,IF($H15=4,"Inconnu",IF($H15=99,"Interrompu",$D15)),0),"Non requis") -> Non requis | M15: 0 | N15: =IF(INTRO!$E$41="Endémique", IF($J15>1, IF($J15=4, "Inconnu", IF($J15=99, "Surveillance", E15)), 0),"Non requis") -> 147803 | O15: =IF(INTRO!$E$41="Endémique", IF($J15>1, IF($J15=4, "Inconnu", IF($J15=99, "Surveillance", F15)), 0),"Non requis") -> 277130 | P15: 0 | Q15: =IF(INTRO!$E$41="Endémique", IF($J15>1, IF($J15=4, "Inconnu", IF($J15=99, "Surveillance", SUM($N15:$P15))), 0),"Non requis") -> 424933 | R15: 79974.80122 | S15: 149952.7523 | T15: 167621.487 | U15: 397549.0405 | W15: 0 | X15: 1 | Y15: 2 | AH15: 48713 | AI15: AGOE-NYIVE
A16: =IF(INTRO!$E$33<>0,INTRO!$E$33, " ") -> TOGO | B16: GRAND LOME | C16: GOLFE | D16: 1366433 | E16: =IF(INTRO!$E$48="","",ROUND($D16*INTRO!$E$48,0)) -> 218629 | F16: =IF(INTRO!$E$49="","",ROUND($D16*INTRO!$E$49,0)) -> 409930 | G16: =IF(INTRO!$E$50="","",ROUND($D16*INTRO!$E$50,0)) -> 683217 | H16: 99 | I16: 0 | J16: 11 | K16: 99 | L16: =IF(INTRO!$E$37="Endémique",IF($H16>0,IF($H16=4,"Inconnu",IF($H16=99,"Interrompu",$D16)),0),"Non requis") -> Non requis | M16: 0 | N16: =IF(INTRO!$E$41="Endémique", IF($J16>1, IF($J16=4, "Inconnu", IF($J16=99, "Surveillance", E16)), 0),"Non requis") -> 218629 | O16: =IF(INTRO!$E$41="Endémique", IF($J16>1, IF($J16=4, "Inconnu", IF($J16=99, "Surveillance", F16)), 0),"Non requis") -> 409930 | P16: 0 | Q16: =IF(INTRO!$E$41="Endémique", IF($J16>1, IF($J16=4, "Inconnu", IF($J16=99, "Surveillance", SUM($N16:$P16))), 0),"Non requis") -> 628559 | R16: 28517.44973 | S16: 53470.21824 | T16: 0 | U16: 81987.66797 | W16: 0 | X16: 1 | Y16: 1 | AH16: 48684 | AI16: GOLFE (District 1, 2, 3,4 and most of 5)
A17: =IF(INTRO!$E$33<>0,INTRO!$E$33, " ") -> TOGO | B17: KARA | C17: ASSOLI | D17: 69483 | E17: =IF(INTRO!$E$48="","",ROUND($D17*INTRO!$E$48,0)) -> 11117 | F17: =IF(INTRO!$E$49="","",ROUND($D17*INTRO!$E$49,0)) -> 20845 | G17: =IF(INTRO!$E$50="","",ROUND($D17*INTRO!$E$50,0)) -> 34742 | H17: 99 | I17: 19 | J17: 11 | K17: 11 | L17: =IF(INTRO!$E$37="Endémique",IF($H17>0,IF($H17=4,"Inconnu",IF($H17=99,"Interrompu",$D17)),0),"Non requis") -> Non requis | M17: 49668 | N17: =IF(INTRO!$E$41="Endémique", IF($J17>1, IF($J17=4, "Inconnu", IF($J17=99, "Surveillance", E17)), 0),"Non requis") -> 11117 | O17: =IF(INTRO!$E$41="Endémique", IF($J17>1, IF($J17=4, "Inconnu", IF($J17=99, "Surveillance", F17)), 0),"Non requis") -> 20845 | P17: 0 | Q17: =IF(INTRO!$E$41="Endémique", IF($J17>1, IF($J17=4, "Inconnu", IF($J17=99, "Surveillance", SUM($N17:$P17))), 0),"Non requis") -> 31962 | R17: 7554.873216 | S17: 14165.38728 | T17: 4622.658 | U17: 26342.9185 | W17: 2 | X17: 1 | Y17: 2 | AB17: Oui | AH17: 48670 | AI17: ASSOLI
A18: =IF(INTRO!$E$33<>0,INTRO!$E$33, " ") -> TOGO | B18: KARA | C18: BASSAR | D18: 159140 | E18: =IF(INTRO!$E$48="","",ROUND($D18*INTRO!$E$48,0)) -> 25462 | F18: =IF(INTRO!$E$49="","",ROUND($D18*INTRO!$E$49,0)) -> 47742 | G18: =IF(INTRO!$E$50="","",ROUND($D18*INTRO!$E$50,0)) -> 79570 | H18: 99 | I18: 19 | J18: 21 | K18: 11 | L18: =IF(INTRO!$E$37="Endémique",IF($H18>0,IF($H18=4,"Inconnu",IF($H18=99,"Interrompu",$D18)),0),"Non requis") -> Non requis | M18: 115417 | N18: =IF(INTRO!$E$41="Endémique", IF($J18>1, IF($J18=4, "Inconnu", IF($J18=99, "Surveillance", E18)), 0),"Non requis") -> 25462 | O18: =IF(INTRO!$E$41="Endémique", IF($J18>1, IF($J18=4, "Inconnu", IF($J18=99, "Surveillance", F18)), 0),"Non requis") -> 47742 | P18: 0 | Q18: =IF(INTRO!$E$41="Endémique", IF($J18>1, IF($J18=4, "Inconnu", IF($J18=99, "Surveillance", SUM($N18:$P18))), 0),"Non requis") -> 73204 | R18: 21649.8768 | S18: 40593.519 | T18: 3388.0638 | U18: 65631.4596 | W18: 2 | X18: 1 | Y18: 1 | AB18: Oui | AC18: Oui | AD18: Oui | AH18: 48671 | AI18: BASSAR
A19: =IF(INTRO!$E$33<>0,INTRO!$E$33, " ") -> TOGO | B19: KARA | C19: BINAH | D19: 88117 | E19: =IF(INTRO!$E$48="","",ROUND($D19*INTRO!$E$48,0)) -> 14099 | F19: =IF(INTRO!$E$49="","",ROUND($D19*INTRO!$E$49,0)) -> 26435 | G19: =IF(INTRO!$E$50="","",ROUND($D19*INTRO!$E$50,0)) -> 44059 | H19: 99 | I19: 19 | J19: 21 | K19: 11 | L19: =IF(INTRO!$E$37="Endémique",IF($H19>0,IF($H19=4,"Inconnu",IF($H19=99,"Interrompu",$D19)),0),"Non requis") -> Non requis | M19: 56160 | N19: =IF(INTRO!$E$41="Endémique", IF($J19>1, IF($J19=4, "Inconnu", IF($J19=99, "Surveillance", E19)), 0),"Non requis") -> 14099 | O19: =IF(INTRO!$E$41="Endémique", IF($J19>1, IF($J19=4, "Inconnu", IF($J19=99, "Surveillance", F19)), 0),"Non requis") -> 26435 | P19: 0 | Q19: =IF(INTRO!$E$41="Endémique", IF($J19>1, IF($J19=4, "Inconnu", IF($J19=99, "Surveillance", SUM($N19:$P19))), 0),"Non requis") -> 40534 | R19: 12693.25325 | S19: 23799.84984 | T19: 16463.05193 | U19: 52956.15502 | W19: 2 | X19: 1 | Y19: 1 | AB19: Oui | AH19: 48672 | AI19: BINAH
A20: =IF(INTRO!$E$33<>0,INTRO!$E$33, " ") -> TOGO | B20: KARA | C20: DANKPEN | D20: 194300 | E20: =IF(INTRO!$E$48="","",ROUND($D20*INTRO!$E$48,0)) -> 31088 | F20: =IF(INTRO!$E$49="","",ROUND($D20*INTRO!$E$49,0)) -> 58290 | G20: =IF(INTRO!$E$50="","",ROUND($D20*INTRO!$E$50,0)) -> 97150 | H20: 99 | I20: 19 | J20: 21 | K20: 11 | L20: =IF(INTRO!$E$37="Endémique",IF($H20>0,IF($H20=4,"Inconnu",IF($H20=99,"Interrompu",$D20)),0),"Non requis") -> Non requis | M20: 167203 | N20: =IF(INTRO!$E$41="Endémique", IF($J20>1, IF($J20=4, "Inconnu", IF($J20=99, "Surveillance", E20)), 0),"Non requis") -> 31088 | O20: =IF(INTRO!$E$41="Endémique", IF($J20>1, IF($J20=4, "Inconnu", IF($J20=99, "Surveillance", F20)), 0),"Non requis") -> 58290 | P20: 0 | Q20: =IF(INTRO!$E$41="Endémique", IF($J20>1, IF($J20=4, "Inconnu", IF($J20=99, "Surveillance", SUM($N20:$P20))), 0),"Non requis") -> 89378 | R20: 10353.10848 | S20: 19412.0784 | T20: 0 | U20: 29765.18688 | W20: 2 | X20: 1 | Y20: 1 | AB20: Oui | AH20: 48673 | AI20: DANKPEN
A21: =IF(INTRO!$E$33<>0,INTRO!$E$33, " ") -> TOGO | B21: KARA | C21: DOUFELGOU | D21: 88711 | E21: =IF(INTRO!$E$48="","",ROUND($D21*INTRO!$E$48,0)) -> 14194 | F21: =IF(INTRO!$E$49="","",ROUND($D21*INTRO!$E$49,0)) -> 26613 | G21: =IF(INTRO!$E$50="","",ROUND($D21*INTRO!$E$50,0)) -> 44356 | H21: 99 | I21: 19 | J21: 21 | K21: 11 | L21: =IF(INTRO!$E$37="Endémique",IF($H21>0,IF($H21=4,"Inconnu",IF($H21=99,"Interrompu",$D21)),0),"Non requis") -> Non requis | M21: 81793 | N21: =IF(INTRO!$E$41="Endémique", IF($J21>1, IF($J21=4, "Inconnu", IF($J21=99, "Surveillance", E21)), 0),"Non requis") -> 14194 | O21: =IF(INTRO!$E$41="Endémique", IF($J21>1, IF($J21=4, "Inconnu", IF($J21=99, "Surveillance", F21)), 0),"Non requis") -> 26613 | P21: 0 | Q21: =IF(INTRO!$E$41="Endémique", IF($J21>1, IF($J21=4, "Inconnu", IF($J21=99, "Surveillance", SUM($N21:$P21))), 0),"Non requis") -> 40807 | R21: 14915.74906 | S21: 27967.02948 | T21: 14506.47259 | U21: 57389.25113 | W21: 2 | X21: 1 | Y21: 2 | AB21: Oui | AH21: 48674 | AI21: DOULFELGOU
A22: =IF(INTRO!$E$33<>0,INTRO!$E$33, " ") -> TOGO | B22: KARA | C22: KERAN | D22: 134675 | E22: =IF(INTRO!$E$48="","",ROUND($D22*INTRO!$E$48,0)) -> 21548 | F22: =IF(INTRO!$E$49="","",ROUND($D22*INTRO!$E$49,0)) -> 40403 | G22: =IF(INTRO!$E$50="","",ROUND($D22*INTRO!$E$50,0)) -> 67338 | H22: 99 | I22: 19 | J22: 11 | K22: 11 | L22: =IF(INTRO!$E$37="Endémique",IF($H22>0,IF($H22=4,"Inconnu",IF($H22=99,"Interrompu",$D22)),0),"Non requis") -> Non requis | M22: 126017 | N22: =IF(INTRO!$E$41="Endémique", IF($J22>1, IF($J22=4, "Inconnu", IF($J22=99, "Surveillance", E22)), 0),"Non requis") -> 21548 | O22: =IF(INTRO!$E$41="Endémique", IF($J22>1, IF($J22=4, "Inconnu", IF($J22=99, "Surveillance", F22)), 0),"Non requis") -> 40403 | P22: 0 | Q22: =IF(INTRO!$E$41="Endémique", IF($J22>1, IF($J22=4, "Inconnu", IF($J22=99, "Surveillance", SUM($N22:$P22))), 0),"Non requis") -> 61951 | R22: 21716.68166 | S22: 40718.77812 | T22: 18515.37222 | U22: 80950.832 | W22: 2 | X22: 1 | Y22: 1 | AB22: Oui | AH22: 48675 | AI22: KERAN
A23: =IF(INTRO!$E$33<>0,INTRO!$E$33, " ") -> TOGO | B23: KARA | C23: KOZAH | D23: 296940 | E23: =IF(INTRO!$E$48="","",ROUND($D23*INTRO!$E$48,0)) -> 47510 | F23: =IF(INTRO!$E$49="","",ROUND($D23*INTRO!$E$49,0)) -> 89082 | G23: =IF(INTRO!$E$50="","",ROUND($D23*INTRO!$E$50,0)) -> 148470 | H23: 99 | I23: 19 | J23: 11 | K23: 11 | L23: =IF(INTRO!$E$37="Endémique",IF($H23>0,IF($H23=4,"Inconnu",IF($H23=99,"Interrompu",$D23)),0),"Non requis") -> Non requis | M23: 174818 | N23: =IF(INTRO!$E$41="Endémique", IF($J23>1, IF($J23=4, "Inconnu", IF($J23=99, "Surveillance", E23)), 0),"Non requis") -> 47510 | O23: =IF(INTRO!$E$41="Endémique", IF($J23>1, IF($J23=4, "Inconnu", IF($J23=99, "Surveillance", F23)), 0),"Non requis") -> 89082 | P23: 0 | Q23: =IF(INTRO!$E$41="Endémique", IF($J23>1, IF($J23=4, "Inconnu", IF($J23=99, "Surveillance", SUM($N23:$P23))), 0),"Non requis") -> 136592 | R23: 48809.18035 | S23: 91517.21316 | T23: 47678.5358 | U23: 188004.9293 | W23: 2 | X23: 1 | Y23: 2 | AB23: Oui | AH23: 48676 | AI23: KOZAH
A24: =IF(INTRO!$E$33<>0,INTRO!$E$33, " ") -> TOGO | B24: MARITIME | C24: AVE | D24: 116389 | E24: =IF(INTRO!$E$48="","",ROUND($D24*INTRO!$E$48,0)) -> 18622 | F24: =IF(INTRO!$E$49="","",ROUND($D24*INTRO!$E$49,0)) -> 34917 | G24: =IF(INTRO!$E$50="","",ROUND($D24*INTRO!$E$50,0)) -> 58195 | H24: 99 | I24: 99 | J24: 11 | K24: 11 | L24: =IF(INTRO!$E$37="Endémique",IF($H24>0,IF($H24=4,"Inconnu",IF($H24=99,"Interrompu",$D24)),0),"Non requis") -> Non requis | M24: 106722 | N24: =IF(INTRO!$E$41="Endémique", IF($J24>1, IF($J24=4, "Inconnu", IF($J24=99, "Surveillance", E24)), 0),"Non requis") -> 18622 | O24: =IF(INTRO!$E$41="Endémique", IF($J24>1, IF($J24=4, "Inconnu", IF($J24=99, "Surveillance", F24)), 0),"Non requis") -> 34917 | P24: 0 | Q24: =IF(INTRO!$E$41="Endémique", IF($J24>1, IF($J24=4, "Inconnu", IF($J24=99, "Surveillance", SUM($N24:$P24))), 0),"Non requis") -> 53539 | R24: 21375.41741 | S24: 40078.90764 | T24: 6212.953135 | U24: 67667.27818 | W24: 0 | X24: 1 | Y24: 1 | AH24: 48677 | AI24: AVE
A25: =IF(INTRO!$E$33<>0,INTRO!$E$33, " ") -> TOGO | B25: MARITIME | C25: BAS MONO | D25: 99274 | E25: =IF(INTRO!$E$48="","",ROUND($D25*INTRO!$E$48,0)) -> 15884 | F25: =IF(INTRO!$E$49="","",ROUND($D25*INTRO!$E$49,0)) -> 29782 | G25: =IF(INTRO!$E$50="","",ROUND($D25*INTRO!$E$50,0)) -> 49637 | H25: 99 | I25: 99 | J25: 21 | K25: 11 | L25: =IF(INTRO!$E$37="Endémique",IF($H25>0,IF($H25=4,"Inconnu",IF($H25=99,"Interrompu",$D25)),0),"Non requis") -> Non requis | M25: 31284 | N25: =IF(INTRO!$E$41="Endémique", IF($J25>1, IF($J25=4, "Inconnu", IF($J25=99, "Surveillance", E25)), 0),"Non requis") -> 15884 | O25: =IF(INTRO!$E$41="Endémique", IF($J25>1, IF($J25=4, "Inconnu", IF($J25=99, "Surveillance", F25)), 0),"Non requis") -> 29782 | P25: 0 | Q25: =IF(INTRO!$E$41="Endémique", IF($J25>1, IF($J25=4, "Inconnu", IF($J25=99, "Surveillance", SUM($N25:$P25))), 0),"Non requis") -> 45666 | R25: 11727.21542 | S25: 21988.52892 | T25: 0 | U25: 33715.74434 | W25: 0 | X25: 1 | Y25: 1 | AH25: 48678 | AI25: BAS MONO
A26: =IF(INTRO!$E$33<>0,INTRO!$E$33, " ") -> TOGO | B26: MARITIME | C26: LACS | D26: 252472 | E26: =IF(INTRO!$E$48="","",ROUND($D26*INTRO!$E$48,0)) -> 40396 | F26: =IF(INTRO!$E$49="","",ROUND($D26*INTRO!$E$49,0)) -> 75742 | G26: =IF(INTRO!$E$50="","",ROUND($D26*INTRO!$E$50,0)) -> 126236 | H26: 99 | I26: 99 | J26: 21 | K26: 99 | L26: =IF(INTRO!$E$37="Endémique",IF($H26>0,IF($H26=4,"Inconnu",IF($H26=99,"Interrompu",$D26)),0),"Non requis") -> Non requis | M26: 0 | N26: =IF(INTRO!$E$41="Endémique", IF($J26>1, IF($J26=4, "Inconnu", IF($J26=99, "Surveillance", E26)), 0),"Non requis") -> 40396 | O26: =IF(INTRO!$E$41="Endémique", IF($J26>1, IF($J26=4, "Inconnu", IF($J26=99, "Surveillance", F26)), 0),"Non requis") -> 75742 | P26: 0 | Q26: =IF(INTRO!$E$41="Endémique", IF($J26>1, IF($J26=4, "Inconnu", IF($J26=99, "Surveillance", SUM($N26:$P26))), 0),"Non requis") -> 116138 | R26: 26502.60845 | S26: 49692.39084 | T26: 28630.1418 | U26: 104825.1411 | W26: 0 | X26: 1 | Y26: 2 | AH26: 48680 | AI26: LACS
A27: =IF(INTRO!$E$33<>0,INTRO!$E$33, " ") -> TOGO | B27: MARITIME | C27: VO | D27: 234852 | E27: =IF(INTRO!$E$48="","",ROUND($D27*INTRO!$E$48,0)) -> 37576 | F27: =IF(INTRO!$E$49="","",ROUND($D27*INTRO!$E$49,0)) -> 70456 | G27: =IF(INTRO!$E$50="","",ROUND($D27*INTRO!$E$50,0)) -> 117426 | H27: 99 | I27: 99 | J27: 22 | K27: 11 | L27: =IF(INTRO!$E$37="Endémique",IF($H27>0,IF($H27=4,"Inconnu",IF($H27=99,"Interrompu",$D27)),0),"Non requis") -> Non requis | M27: 0 | N27: =IF(INTRO!$E$41="Endémique", IF($J27>1, IF($J27=4, "Inconnu", IF($J27=99, "Surveillance", E27)), 0),"Non requis") -> 37576 | O27: =IF(INTRO!$E$41="Endémique", IF($J27>1, IF($J27=4, "Inconnu", IF($J27=99, "Surveillance", F27)), 0),"Non requis") -> 70456 | P27: 0 | Q27: =IF(INTRO!$E$41="Endémique", IF($J27>1, IF($J27=4, "Inconnu", IF($J27=99, "Surveillance", SUM($N27:$P27))), 0),"Non requis") -> 108032 | R27: 30137.38541 | S27: 56507.59764 | T27: 23431.0656 | U27: 110076.0486 | W27: 0 | X27: 1 | Y27: 2 | AH27: 48681 | AI27: VO
A28: =IF(INTRO!$E$33<>0,INTRO!$E$33, " ") -> TOGO | B28: MARITIME | C28: YOTO | D28: 182987 | E28: =IF(INTRO!$E$48="","",ROUND($D28*INTRO!$E$48,0)) -> 29278 | F28: =IF(INTRO!$E$49="","",ROUND($D28*INTRO!$E$49,0)) -> 54896 | G28: =IF(INTRO!$E$50="","",ROUND($D28*INTRO!$E$50,0)) -> 91494 | H28: 99 | I28: 19 | J28: 21 | K28: 11 | L28: =IF(INTRO!$E$37="Endémique",IF($H28>0,IF($H28=4,"Inconnu",IF($H28=99,"Interrompu",$D28)),0),"Non requis") -> Non requis | M28: 179780 | N28: =IF(INTRO!$E$41="Endémique", IF($J28>1, IF($J28=4, "Inconnu", IF($J28=99, "Surveillance", E28)), 0),"Non requis") -> 29278 | O28: =IF(INTRO!$E$41="Endémique", IF($J28>1, IF($J28=4, "Inconnu", IF($J28=99, "Surveillance", F28)), 0),"Non requis") -> 54896 | P28: =IF(INTRO!$E$41="Endémique", IF($J28>1, IF($J28=4, "Inconnu", IF($J28=99, "Surveillance", ROUND(D28*INTRO!$E$51,0))), 0),"Non requis") -> 41538 | Q28: =IF(INTRO!$E$41="Endémique", IF($J28>1, IF($J28=4, "Inconnu", IF($J28=99, "Surveillance", SUM($N28:$P28))), 0),"Non requis") -> 125712 | R28: 35020.06406 | S28: 65662.62012 | T28: 1020.162516 | U28: 101702.8467 | W28: 1 | X28: 2 | Y28: 1 | AH28: 48682 | AI28: YOTO
A29: =IF(INTRO!$E$33<>0,INTRO!$E$33, " ") -> TOGO | B29: MARITIME | C29: ZIO | D29: 523298 | E29: =IF(INTRO!$E$48="","",ROUND($D29*INTRO!$E$48,0)) -> 83728 | F29: =IF(INTRO!$E$49="","",ROUND($D29*INTRO!$E$49,0)) -> 156989 | G29: =IF(INTRO!$E$50="","",ROUND($D29*INTRO!$E$50,0)) -> 261649 | H29: 99 | I29: 99 | J29: 11 | K29: 11 | L29: =IF(INTRO!$E$37="Endémique",IF($H29>0,IF($H29=4,"Inconnu",IF($H29=99,"Interrompu",$D29)),0),"Non requis") -> Non requis | M29: 294458 | N29: =IF(INTRO!$E$41="Endémique", IF($J29>1, IF($J29=4, "Inconnu", IF($J29=99, "Surveillance", E29)), 0),"Non requis") -> 83728 | O29: =IF(INTRO!$E$41="Endémique", IF($J29>1, IF($J29=4, "Inconnu", IF($J29=99, "Surveillance", F29)), 0),"Non requis") -> 156989 | P29: 0 | Q29: =IF(INTRO!$E$41="Endémique", IF($J29>1, IF($J29=4, "Inconnu", IF($J29=99, "Surveillance", SUM($N29:$P29))), 0),"Non requis") -> 240717 | R29: 63435.33197 | S29: 118941.2474 | T29: 29773.7226 | U29: 212150.302 | W29: 0 | X29: 1 | Y29: 2 | AH29: 48683 | AI29: ZIO
A30: =IF(INTRO!$E$33<>0,INTRO!$E$33, " ") -> TOGO | B30: PLATEAUX | C30: AGOU | D30: 89785 | E30: =IF(INTRO!$E$48="","",ROUND($D30*INTRO!$E$48,0)) -> 14366 | F30: =IF(INTRO!$E$49="","",ROUND($D30*INTRO!$E$49,0)) -> 26936 | G30: =IF(INTRO!$E$50="","",ROUND($D30*INTRO!$E$50,0)) -> 44893 | H30: 99 | I30: 19 | J30: 11 | K30: 11 | L30: =IF(INTRO!$E$37="Endémique",IF($H30>0,IF($H30=4,"Inconnu",IF($H30=99,"Interrompu",$D30)),0),"Non requis") -> Non requis | M30: 88598 | N30: =IF(INTRO!$E$41="Endémique", IF($J30>1, IF($J30=4, "Inconnu", IF($J30=99, "Surveillance", E30)), 0),"Non requis") -> 14366 | O30: =IF(INTRO!$E$41="Endémique", IF($J30>1, IF($J30=4, "Inconnu", IF($J30=99, "Surveillance", F30)), 0),"Non requis") -> 26936 | P30: 0 | Q30: =IF(INTRO!$E$41="Endémique", IF($J30>1, IF($J30=4, "Inconnu", IF($J30=99, "Surveillance", SUM($N30:$P30))), 0),"Non requis") -> 41302 | R30: 11897.14646 | S30: 22307.14962 | T30: 10147.51775 | U30: 44351.81383 | W30: 1 | X30: 1 | Y30: 2 | AC30: Oui | AD30: Oui | AH30: 48689 | AI30: AGOU
A31: =IF(INTRO!$E$33<>0,INTRO!$E$33, " ") -> TOGO | B31: PLATEAUX | C31: AKEBOU | D31: 77265 | E31: =IF(INTRO!$E$48="","",ROUND($D31*INTRO!$E$48,0)) -> 12362 | F31: =IF(INTRO!$E$49="","",ROUND($D31*INTRO!$E$49,0)) -> 23180 | G31: =IF(INTRO!$E$50="","",ROUND($D31*INTRO!$E$50,0)) -> 38633 | H31: 99 | I31: 19 | J31: 11 | K31: 21 | L31: =IF(INTRO!$E$37="Endémique",IF($H31>0,IF($H31=4,"Inconnu",IF($H31=99,"Interrompu",$D31)),0),"Non requis") -> Non requis | M31: 76043 | N31: =IF(INTRO!$E$41="Endémique", IF($J31>1, IF($J31=4, "Inconnu", IF($J31=99, "Surveillance", E31)), 0),"Non requis") -> 12362 | O31: =IF(INTRO!$E$41="Endémique", IF($J31>1, IF($J31=4, "Inconnu", IF($J31=99, "Surveillance", F31)), 0),"Non requis") -> 23180 | P31: 0 | Q31: =IF(INTRO!$E$41="Endémique", IF($J31>1, IF($J31=4, "Inconnu", IF($J31=99, "Surveillance", SUM($N31:$P31))), 0),"Non requis") -> 35542 | R31: 10892.1433 | S31: 20422.76869 | T31: 12651.06746 | U31: 43965.97945 | W31: 1 | X31: 1 | Y31: 1 | AC31: Oui | AD31: Oui | AH31: 48691 | AI31: AKEBOU
A32: =IF(INTRO!$E$33<>0,INTRO!$E$33, " ") -> TOGO | B32: PLATEAUX | C32: AMOU | D32: 119484 | E32: =IF(INTRO!$E$48="","",ROUND($D32*INTRO!$E$48,0)) -> 19117 | F32: =IF(INTRO!$E$49="","",ROUND($D32*INTRO!$E$49,0)) -> 35845 | G32: =IF(INTRO!$E$50="","",ROUND($D32*INTRO!$E$50,0)) -> 59742 | H32: 99 | I32: 19 | J32: 21 | K32: 21 | L32: =IF(INTRO!$E$37="Endémique",IF($H32>0,IF($H32=4,"Inconnu",IF($H32=99,"Interrompu",$D32)),0),"Non requis") -> Non requis | M32: 132297 | N32: =IF(INTRO!$E$41="Endémique", IF($J32>1, IF($J32=4, "Inconnu", IF($J32=99, "Surveillance", E32)), 0),"Non requis") -> 19117 | O32: =IF(INTRO!$E$41="Endémique", IF($J32>1, IF($J32=4, "Inconnu", IF($J32=99, "Surveillance", F32)), 0),"Non requis") -> 35845 | P32: 0 | Q32: =IF(INTRO!$E$41="Endémique", IF($J32>1, IF($J32=4, "Inconnu", IF($J32=99, "Surveillance", SUM($N32:$P32))), 0),"Non requis") -> 54962 | R32: 19538.71159 | S32: 36635.08424 | T32: 22549.86378 | U32: 78723.65962 | W32: 2 | X32: 1 | Y32: 2 | AC32: Oui | AD32: Oui | AH32: 48690 | AI32: AMOU
A33: =IF(INTRO!$E$33<>0,INTRO!$E$33, " ") -> TOGO | B33: PLATEAUX | C33: ANIE | D33: 188541 | E33: =IF(INTRO!$E$48="","",ROUND($D33*INTRO!$E$48,0)) -> 30167 | F33: =IF(INTRO!$E$49="","",ROUND($D33*INTRO!$E$49,0)) -> 56562 | G33: =IF(INTRO!$E$50="","",ROUND($D33*INTRO!$E$50,0)) -> 94271 | H33: 99 | I33: 19 | J33: 22 | K33: 11 | L33: =IF(INTRO!$E$37="Endémique",IF($H33>0,IF($H33=4,"Inconnu",IF($H33=99,"Interrompu",$D33)),0),"Non requis") -> Non requis | M33: 130239 | N33: =IF(INTRO!$E$41="Endémique", IF($J33>1, IF($J33=4, "Inconnu", IF($J33=99, "Surveillance", E33)), 0),"Non requis") -> 30167 | O33: =IF(INTRO!$E$41="Endémique", IF($J33>1, IF($J33=4, "Inconnu", IF($J33=99, "Surveillance", F33)), 0),"Non requis") -> 56562 | P33: 0 | Q33: =IF(INTRO!$E$41="Endémique", IF($J33>1, IF($J33=4, "Inconnu", IF($J33=99, "Surveillance", SUM($N33:$P33))), 0),"Non requis") -> 86729 | R33: 28044.81552 | S33: 52584.02909 | T33: 26646.91683 | U33: 107275.7614 | W33: 1 | X33: 1 | Y33: 1 | AH33: 48692 | AI33: ANIE
A34: =IF(INTRO!$E$33<>0,INTRO!$E$33, " ") -> TOGO | B34: PLATEAUX | C34: DANYI | D34: 42113 | E34: =IF(INTRO!$E$48="","",ROUND($D34*INTRO!$E$48,0)) -> 6738 | F34: =IF(INTRO!$E$49="","",ROUND($D34*INTRO!$E$49,0)) -> 12634 | G34: =IF(INTRO!$E$50="","",ROUND($D34*INTRO!$E$50,0)) -> 21057 | H34: 99 | I34: 19 | J34: 11 | K34: 21 | L34: =IF(INTRO!$E$37="Endémique",IF($H34>0,IF($H34=4,"Inconnu",IF($H34=99,"Interrompu",$D34)),0),"Non requis") -> Non requis | M34: 40188 | N34: 0 | O34: 0 | P34: 0 | Q34: =IF(INTRO!$E$41="Endémique", IF($J34>1, IF($J34=4, "Inconnu", IF($J34=99, "Surveillance", SUM($N34:$P34))), 0),"Non requis") -> 0 | R34: 7766.010153 | S34: 14561.26904 | T34: 0 | U34: 22327.27919 | W34: 2 | X34: 0 | Y34: 0 | AC34: Oui | AD34: Oui | AH34: 48693 | AI34: DANYI
A35: =IF(INTRO!$E$33<>0,INTRO!$E$33, " ") -> TOGO | B35: PLATEAUX | C35: EST-MONO | D35: 172113 | E35: =IF(INTRO!$E$48="","",ROUND($D35*INTRO!$E$48,0)) -> 27538 | F35: =IF(INTRO!$E$49="","",ROUND($D35*INTRO!$E$49,0)) -> 51634 | G35: =IF(INTRO!$E$50="","",ROUND($D35*INTRO!$E$50,0)) -> 86057 | H35: 99 | I35: 19 | J35: 21 | K35: 99 | L35: =IF(INTRO!$E$37="Endémique",IF($H35>0,IF($H35=4,"Inconnu",IF($H35=99,"Interrompu",$D35)),0),"Non requis") -> Non requis | M35: 144393 | N35: =IF(INTRO!$E$41="Endémique", IF($J35>1, IF($J35=4, "Inconnu", IF($J35=99, "Surveillance", E35)), 0),"Non requis") -> 27538 | O35: =IF(INTRO!$E$41="Endémique", IF($J35>1, IF($J35=4, "Inconnu", IF($J35=99, "Surveillance", F35)), 0),"Non requis") -> 51634 | P35: =IF(INTRO!$E$41="Endémique", IF($J35>1, IF($J35=4, "Inconnu", IF($J35=99, "Surveillance", ROUND(D35*INTRO!$E$51,0))), 0),"Non requis") -> 39070 | Q35: =IF(INTRO!$E$41="Endémique", IF($J35>1, IF($J35=4, "Inconnu", IF($J35=99, "Surveillance", SUM($N35:$P35))), 0),"Non requis") -> 118242 | R35: 19957.74395 | S35: 35369.13437 | T35: 0 | U35: 55326.87832 | W35: 1 | X35: 2 | Y35: 1 | AH35: 48694 | AI35: EST MONO
A36: =IF(INTRO!$E$33<>0,INTRO!$E$33, " ") -> TOGO | B36: PLATEAUX | C36: HAHO | D36: 319292 | E36: =IF(INTRO!$E$48="","",ROUND($D36*INTRO!$E$48,0)) -> 51087 | F36: =IF(INTRO!$E$49="","",ROUND($D36*INTRO!$E$49,0)) -> 95788 | G36: =IF(INTRO!$E$50="","",ROUND($D36*INTRO!$E$50,0)) -> 159646 | H36: 99 | I36: 19 | J36: 22 | K36: 21 | L36: =IF(INTRO!$E$37="Endémique",IF($H36>0,IF($H36=4,"Inconnu",IF($H36=99,"Interrompu",$D36)),0),"Non requis") -> Non requis | M36: 259934 | N36: =IF(INTRO!$E$41="Endémique", IF($J36>1, IF($J36=4, "Inconnu", IF($J36=99, "Surveillance", E36)), 0),"Non requis") -> 51087 | O36: =IF(INTRO!$E$41="Endémique", IF($J36>1, IF($J36=4, "Inconnu", IF($J36=99, "Surveillance", F36)), 0),"Non requis") -> 95788 | P36: =IF(INTRO!$E$41="Endémique", IF($J36>1, IF($J36=4, "Inconnu", IF($J36=99, "Surveillance", ROUND(D36*INTRO!$E$51,0))), 0),"Non requis") -> 72479 | Q36: =IF(INTRO!$E$41="Endémique", IF($J36>1, IF($J36=4, "Inconnu", IF($J36=99, "Surveillance", SUM($N36:$P36))), 0),"Non requis") -> 219354 | R36: 44195.51982 | S36: 82866.59965 | T36: 56321.46364 | U36: 183383.5831 | W36: 2 | X36: 2 | Y36: 1 | AC36: Oui | AD36: Oui | AH36: 48695 | AI36: HAHO
A37: =IF(INTRO!$E$33<>0,INTRO!$E$33, " ") -> TOGO | B37: PLATEAUX | C37: KLOTO | D37: 152779 | E37: =IF(INTRO!$E$48="","",ROUND($D37*INTRO!$E$48,0)) -> 24445 | F37: =IF(INTRO!$E$49="","",ROUND($D37*INTRO!$E$49,0)) -> 45834 | G37: =IF(INTRO!$E$50="","",ROUND($D37*INTRO!$E$50,0)) -> 76390 | H37: 99 | I37: 19 | J37: 11 | K37: 21 | L37: =IF(INTRO!$E$37="Endémique",IF($H37>0,IF($H37=4,"Inconnu",IF($H37=99,"Interrompu",$D37)),0),"Non requis") -> Non requis | M37: 62911 | N37: =IF(INTRO!$E$41="Endémique", IF($J37>1, IF($J37=4, "Inconnu", IF($J37=99, "Surveillance", E37)), 0),"Non requis") -> 24445 | O37: =IF(INTRO!$E$41="Endémique", IF($J37>1, IF($J37=4, "Inconnu", IF($J37=99, "Surveillance", F37)), 0),"Non requis") -> 45834 | P37: 0 | Q37: =IF(INTRO!$E$41="Endémique", IF($J37>1, IF($J37=4, "Inconnu", IF($J37=99, "Surveillance", SUM($N37:$P37))), 0),"Non requis") -> 70279 | R37: 21627.80289 | S37: 40552.13042 | T37: 1946.743604 | U37: 64126.67692 | W37: 1 | X37: 1 | Y37: 1 | AC37: Oui | AD37: Oui | AH37: 48696 | AI37: KLOTO
A38: =IF(INTRO!$E$33<>0,INTRO!$E$33, " ") -> TOGO | B38: PLATEAUX | C38: KPELE | D38: 84705 | E38: =IF(INTRO!$E$48="","",ROUND($D38*INTRO!$E$48,0)) -> 13553 | F38: =IF(INTRO!$E$49="","",ROUND($D38*INTRO!$E$49,0)) -> 25412 | G38: =IF(INTRO!$E$50="","",ROUND($D38*INTRO!$E$50,0)) -> 42353 | H38: 99 | I38: 19 | J38: 21 | K38: 11 | L38: =IF(INTRO!$E$37="Endémique",IF($H38>0,IF($H38=4,"Inconnu",IF($H38=99,"Interrompu",$D38)),0),"Non requis") -> Non requis | M38: 70989 | N38: =IF(INTRO!$E$41="Endémique", IF($J38>1, IF($J38=4, "Inconnu", IF($J38=99, "Surveillance", E38)), 0),"Non requis") -> 13553 | O38: =IF(INTRO!$E$41="Endémique", IF($J38>1, IF($J38=4, "Inconnu", IF($J38=99, "Surveillance", F38)), 0),"Non requis") -> 25412 | P38: 0 | Q38: =IF(INTRO!$E$41="Endémique", IF($J38>1, IF($J38=4, "Inconnu", IF($J38=99, "Surveillance", SUM($N38:$P38))), 0),"Non requis") -> 38965 | R38: 10644.60226 | S38: 19958.62923 | T38: 4599.238452 | U38: 35202.46994 | W38: 1 | X38: 1 | Y38: 2 | AC38: Oui | AD38: Oui | AH38: 48697 | AI38: KPELE
A39: =IF(INTRO!$E$33<>0,INTRO!$E$33, " ") -> TOGO | B39: PLATEAUX | C39: MOYEN-MONO | D39: 94717 | E39: =IF(INTRO!$E$48="","",ROUND($D39*INTRO!$E$48,0)) -> 15155 | F39: =IF(INTRO!$E$49="","",ROUND($D39*INTRO!$E$49,0)) -> 28415 | G39: =IF(INTRO!$E$50="","",ROUND($D39*INTRO!$E$50,0)) -> 47359 | H39: 99 | I39: 19 | J39: 11 | K39: 11 | L39: =IF(INTRO!$E$37="Endémique",IF($H39>0,IF($H39=4,"Inconnu",IF($H39=99,"Interrompu",$D39)),0),"Non requis") -> Non requis | M39: 63487 | N39: =IF(INTRO!$E$41="Endémique", IF($J39>1, IF($J39=4, "Inconnu", IF($J39=99, "Surveillance", E39)), 0),"Non requis") -> 15155 | O39: =IF(INTRO!$E$41="Endémique", IF($J39>1, IF($J39=4, "Inconnu", IF($J39=99, "Surveillance", F39)), 0),"Non requis") -> 28415 | P39: 0 | Q39: =IF(INTRO!$E$41="Endémique", IF($J39>1, IF($J39=4, "Inconnu", IF($J39=99, "Surveillance", SUM($N39:$P39))), 0),"Non requis") -> 43570 | R39: 17123.16289 | S39: 32105.93042 | T39: 18102.38755 | U39: 67331.48087 | W39: 1 | X39: 1 | Y39: 2 | AC39: Oui | AD39: Oui | AH39: 48698 | AI39: MOYEN MONO
A40: =IF(INTRO!$E$33<>0,INTRO!$E$33, " ") -> TOGO | B40: PLATEAUX | C40: OGOU | D40: 265261 | E40: =IF(INTRO!$E$48="","",ROUND($D40*INTRO!$E$48,0)) -> 42442 | F40: =IF(INTRO!$E$49="","",ROUND($D40*INTRO!$E$49,0)) -> 79578 | G40: =IF(INTRO!$E$50="","",ROUND($D40*INTRO!$E$50,0)) -> 132631 | H40: 99 | I40: 19 | J40: 22 | K40: 11 | L40: =IF(INTRO!$E$37="Endémique",IF($H40>0,IF($H40=4,"Inconnu",IF($H40=99,"Interrompu",$D40)),0),"Non requis") -> Non requis | M40: 140103 | N40: =IF(INTRO!$E$41="Endémique", IF($J40>1, IF($J40=4, "Inconnu", IF($J40=99, "Surveillance", E40)), 0),"Non requis") -> 42442 | O40: =IF(INTRO!$E$41="Endémique", IF($J40>1, IF($J40=4, "Inconnu", IF($J40=99, "Surveillance", F40)), 0),"Non requis") -> 79578 | P40: =IF(INTRO!$E$41="Endémique", IF($J40>1, IF($J40=4, "Inconnu", IF($J40=99, "Surveillance", ROUND(D40*INTRO!$E$51,0))), 0),"Non requis") -> 60214 | Q40: =IF(INTRO!$E$41="Endémique", IF($J40>1, IF($J40=4, "Inconnu", IF($J40=99, "Surveillance", SUM($N40:$P40))), 0),"Non requis") -> 182234 | R40: 38001.26041 | S40: 71252.36327 | T40: 75443.74075 | U40: 184697.3644 | W40: 2 | X40: 2 | Y40: 2 | AH40: 48699 | AI40: OGOU
A41: =IF(INTRO!$E$33<>0,INTRO!$E$33, " ") -> TOGO | B41: PLATEAUX | C41: WAWA | D41: 106013 | E41: =IF(INTRO!$E$48="","",ROUND($D41*INTRO!$E$48,0)) -> 16962 | F41: =IF(INTRO!$E$49="","",ROUND($D41*INTRO!$E$49,0)) -> 31804 | G41: =IF(INTRO!$E$50="","",ROUND($D41*INTRO!$E$50,0)) -> 53007 | H41: 99 | I41: 19 | J41: 11 | K41: 21 | L41: =IF(INTRO!$E$37="Endémique",IF($H41>0,IF($H41=4,"Inconnu",IF($H41=99,"Interrompu",$D41)),0),"Non requis") -> Non requis | M41: 108755 | N41: =IF(INTRO!$E$41="Endémique", IF($J41>1, IF($J41=4, "Inconnu", IF($J41=99, "Surveillance", E41)), 0),"Non requis") -> 16962 | O41: =IF(INTRO!$E$41="Endémique", IF($J41>1, IF($J41=4, "Inconnu", IF($J41=99, "Surveillance", F41)), 0),"Non requis") -> 31804 | P41: 0 | Q41: =IF(INTRO!$E$41="Endémique", IF($J41>1, IF($J41=4, "Inconnu", IF($J41=99, "Surveillance", SUM($N41:$P41))), 0),"Non requis") -> 48766 | R41: 14321.8009 | S41: 26853.37668 | T41: 10647.06839 | U41: 51822.24597 | W41: 1 | X41: 1 | Y41: 1 | AC41: Oui | AD41: Oui | AH41: 48700 | AI41: WAWA
A42: =IF(INTRO!$E$33<>0,INTRO!$E$33, " ") -> TOGO | B42: SAVANES | C42: CINKASSE | D42: 134959 | E42: =IF(INTRO!$E$48="","",ROUND($D42*INTRO!$E$48,0)) -> 21593 | F42: =IF(INTRO!$E$49="","",ROUND($D42*INTRO!$E$49,0)) -> 40488 | G42: =IF(INTRO!$E$50="","",ROUND($D42*INTRO!$E$50,0)) -> 67480 | H42: 99 | I42: 19 | J42: 11 | K42: 11 | L42: =IF(INTRO!$E$37="Endémique",IF($H42>0,IF($H42=4,"Inconnu",IF($H42=99,"Interrompu",$D42)),0),"Non requis") -> Non requis | M42: 74611 | N42: =IF(INTRO!$E$41="Endémique", IF($J42>1, IF($J42=4, "Inconnu", IF($J42=99, "Surveillance", E42)), 0),"Non requis") -> 21593 | O42: =IF(INTRO!$E$41="Endémique", IF($J42>1, IF($J42=4, "Inconnu", IF($J42=99, "Surveillance", F42)), 0),"Non requis") -> 40488 | P42: 0 | Q42: =IF(INTRO!$E$41="Endémique", IF($J42>1, IF($J42=4, "Inconnu", IF($J42=99, "Surveillance", SUM($N42:$P42))), 0),"Non requis") -> 62081 | R42: 15953.78344 | S42: 29913.34394 | T42: 23698.31899 | U42: 69565.44637 | W42: 2 | X42: 1 | Y42: 1 | AH42: 48701 | AI42: CINKASSE
A43: =IF(INTRO!$E$33<>0,INTRO!$E$33, " ") -> TOGO | B43: SAVANES | C43: KPENDJAL | D43: 92476 | E43: =IF(INTRO!$E$48="","",ROUND($D43*INTRO!$E$48,0)) -> 14796 | F43: =IF(INTRO!$E$49="","",ROUND($D43*INTRO!$E$49,0)) -> 27743 | G43: =IF(INTRO!$E$50="","",ROUND($D43*INTRO!$E$50,0)) -> 46238 | H43: 99 | I43: 19 | J43: 11 | K43: 21 | L43: =IF(INTRO!$E$37="Endémique",IF($H43>0,IF($H43=4,"Inconnu",IF($H43=99,"Interrompu",$D43)),0),"Non requis") -> Non requis | M43: 87256 | N43: =IF(INTRO!$E$41="Endémique", IF($J43>1, IF($J43=4, "Inconnu", IF($J43=99, "Surveillance", E43)), 0),"Non requis") -> 14796 | O43: =IF(INTRO!$E$41="Endémique", IF($J43>1, IF($J43=4, "Inconnu", IF($J43=99, "Surveillance", F43)), 0),"Non requis") -> 27743 | P43: 0 | Q43: =IF(INTRO!$E$41="Endémique", IF($J43>1, IF($J43=4, "Inconnu", IF($J43=99, "Surveillance", SUM($N43:$P43))), 0),"Non requis") -> 42539 | R43: 11870.84101 | S43: 22257.8269 | T43: 0 | U43: 34128.66791 | W43: 2 | X43: 1 | Y43: 0 | AH43: 48708 | AI43: KPENDJAL
A44: =IF(INTRO!$E$33<>0,INTRO!$E$33, " ") -> TOGO | B44: SAVANES | C44: KPENDJAL-OUEST | D44: 129069 | E44: =IF(INTRO!$E$48="","",ROUND($D44*INTRO!$E$48,0)) -> 20651 | F44: =IF(INTRO!$E$49="","",ROUND($D44*INTRO!$E$49,0)) -> 38721 | G44: =IF(INTRO!$E$50="","",ROUND($D44*INTRO!$E$50,0)) -> 64535 | H44: 99 | I44: 19 | J44: 11 | K44: 21 | L44: =IF(INTRO!$E$37="Endémique",IF($H44>0,IF($H44=4,"Inconnu",IF($H44=99,"Interrompu",$D44)),0),"Non requis") -> Non requis | M44: 133846 | N44: =IF(INTRO!$E$41="Endémique", IF($J44>1, IF($J44=4, "Inconnu", IF($J44=99, "Surveillance", E44)), 0),"Non requis") -> 20651 | O44: =IF(INTRO!$E$41="Endémique", IF($J44>1, IF($J44=4, "Inconnu", IF($J44=99, "Surveillance", F44)), 0),"Non requis") -> 38721 | P44: 0 | Q44: =IF(INTRO!$E$41="Endémique", IF($J44>1, IF($J44=4, "Inconnu", IF($J44=99, "Surveillance", SUM($N44:$P44))), 0),"Non requis") -> 59372 | R44: 21324.27845 | S44: 39983.02209 | T44: 8747.932808 | U44: 70055.23335 | W44: 2 | X44: 1 | Y44: 2 | AH44: 48709 | AI44: KPENDJAL-OUEST
A45: =IF(INTRO!$E$33<>0,INTRO!$E$33, " ") -> TOGO | B45: SAVANES | C45: OTI | D45: 130658 | E45: =IF(INTRO!$E$48="","",ROUND($D45*INTRO!$E$48,0)) -> 20905 | F45: =IF(INTRO!$E$49="","",ROUND($D45*INTRO!$E$49,0)) -> 39197 | G45: =IF(INTRO!$E$50="","",ROUND($D45*INTRO!$E$50,0)) -> 65329 | H45: 99 | I45: 19 | J45: 11 | K45: 11 | L45: =IF(INTRO!$E$37="Endémique",IF($H45>0,IF($H45=4,"Inconnu",IF($H45=99,"Interrompu",$D45)),0),"Non requis") -> Non requis | M45: 85586 | N45: =IF(INTRO!$E$41="Endémique", IF($J45>1, IF($J45=4, "Inconnu", IF($J45=99, "Surveillance", E45)), 0),"Non requis") -> 20905 | O45: =IF(INTRO!$E$41="Endémique", IF($J45>1, IF($J45=4, "Inconnu", IF($J45=99, "Surveillance", F45)), 0),"Non requis") -> 39197 | P45: =IF(INTRO!$E$41="Endémique", IF($J45>1, IF($J45=4, "Inconnu", IF($J45=99, "Surveillance", ROUND(D45*INTRO!$E$51,0))), 0),"Non requis") -> 29659 | Q45: =IF(INTRO!$E$41="Endémique", IF($J45>1, IF($J45=4, "Inconnu", IF($J45=99, "Surveillance", SUM($N45:$P45))), 0),"Non requis") -> 89761 | R45: 23606.61364 | S45: 44262.40058 | T45: 4145.005691 | U45: 72014.01992 | W45: 2 | X45: 2 | Y45: 1 | AH45: 48710 | AI45: OTI
A46: =IF(INTRO!$E$33<>0,INTRO!$E$33, " ") -> TOGO | B46: SAVANES | C46: OTI-SUD | D46: 157373 | E46: =IF(INTRO!$E$48="","",ROUND($D46*INTRO!$E$48,0)) -> 25180 | F46: =IF(INTRO!$E$49="","",ROUND($D46*INTRO!$E$49,0)) -> 47212 | G46: =IF(INTRO!$E$50="","",ROUND($D46*INTRO!$E$50,0)) -> 78687 | H46: 99 | I46: 19 | J46: 11 | K46: 11 | L46: =IF(INTRO!$E$37="Endémique",IF($H46>0,IF($H46=4,"Inconnu",IF($H46=99,"Interrompu",$D46)),0),"Non requis") -> Non requis | M46: 128797 | N46: =IF(INTRO!$E$41="Endémique", IF($J46>1, IF($J46=4, "Inconnu", IF($J46=99, "Surveillance", E46)), 0),"Non requis") -> 25180 | O46: =IF(INTRO!$E$41="Endémique", IF($J46>1, IF($J46=4, "Inconnu", IF($J46=99, "Surveillance", F46)), 0),"Non requis") -> 47212 | P46: =IF(INTRO!$E$41="Endémique", IF($J46>1, IF($J46=4, "Inconnu", IF($J46=99, "Surveillance", ROUND(D46*INTRO!$E$51,0))), 0),"Non requis") -> 35724 | Q46: =IF(INTRO!$E$41="Endémique", IF($J46>1, IF($J46=4, "Inconnu", IF($J46=99, "Surveillance", SUM($N46:$P46))), 0),"Non requis") -> 108116 | R46: 23212.20049 | S46: 43522.87592 | T46: 24908.98118 | U46: 91644.05759 | W46: 2 | X46: 2 | Y46: 1 | AH46: 48711 | AI46: OTI-SUD
A47: =IF(INTRO!$E$33<>0,INTRO!$E$33, " ") -> TOGO | B47: SAVANES | C47: TANDJOUARE | D47: 145328 | E47: =IF(INTRO!$E$48="","",ROUND($D47*INTRO!$E$48,0)) -> 23252 | F47: =IF(INTRO!$E$49="","",ROUND($D47*INTRO!$E$49,0)) -> 43598 | G47: =IF(INTRO!$E$50="","",ROUND($D47*INTRO!$E$50,0)) -> 72664 | H47: 99 | I47: 19 | J47: 11 | K47: 11 | L47: =IF(INTRO!$E$37="Endémique",IF($H47>0,IF($H47=4,"Inconnu",IF($H47=99,"Interrompu",$D47)),0),"Non requis") -> Non requis | M47: 168188 | N47: =IF(INTRO!$E$41="Endémique", IF($J47>1, IF($J47=4, "Inconnu", IF($J47=99, "Surveillance", E47)), 0),"Non requis") -> 23252 | O47: =IF(INTRO!$E$41="Endémique", IF($J47>1, IF($J47=4, "Inconnu", IF($J47=99, "Surveillance", F47)), 0),"Non requis") -> 43598 | P47: =IF(INTRO!$E$41="Endémique", IF($J47>1, IF($J47=4, "Inconnu", IF($J47=99, "Surveillance", ROUND(D47*INTRO!$E$51,0))), 0),"Non requis") -> 32989 | Q47: =IF(INTRO!$E$41="Endémique", IF($J47>1, IF($J47=4, "Inconnu", IF($J47=99, "Surveillance", SUM($N47:$P47))), 0),"Non requis") -> 99839 | R47: 25851.34553 | S47: 48471.27288 | T47: 0 | U47: 74322.61841 | W47: 2 | X47: 2 | Y47: 1 | AH47: 48704 | AI47: TANDJOARE
A48: =IF(INTRO!$E$33<>0,INTRO!$E$33, " ") -> TOGO | B48: SAVANES | C48: TONE | D48: 406864 | E48: =IF(INTRO!$E$48="","",ROUND($D48*INTRO!$E$48,0)) -> 65098 | F48: =IF(INTRO!$E$49="","",ROUND($D48*INTRO!$E$49,0)) -> 122059 | G48: =IF(INTRO!$E$50="","",ROUND($D48*INTRO!$E$50,0)) -> 203432 | H48: 99 | I48: 19 | J48: 11 | K48: 99 | L48: =IF(INTRO!$E$37="Endémique",IF($H48>0,IF($H48=4,"Inconnu",IF($H48=99,"Interrompu",$D48)),0),"Non requis") -> Non requis | M48: 304751 | N48: =IF(INTRO!$E$41="Endémique", IF($J48>1, IF($J48=4, "Inconnu", IF($J48=99, "Surveillance", E48)), 0),"Non requis") -> 65098 | O48: =IF(INTRO!$E$41="Endémique", IF($J48>1, IF($J48=4, "Inconnu", IF($J48=99, "Surveillance", F48)), 0),"Non requis") -> 122059 | P48: 0 | Q48: =IF(INTRO!$E$41="Endémique", IF($J48>1, IF($J48=4, "Inconnu", IF($J48=99, "Surveillance", SUM($N48:$P48))), 0),"Non requis") -> 187157 | R48: 53861.08711 | S48: 100989.5383 | T48: 14139.64197 | U48: 168990.2674 | W48: 2 | X48: 1 | Y48: 1 | AH48: 48705 | AI48: TONE
K49: 11

Sheet DEC (hidden)
A1: Diethylcarbamazine (DEC)
A2: Structure administrative, population ciblée par groupe d'âge, plan de traitement et information sur les comprimés
A4: TOTAL | D4: =SUBTOTAL(9,D$10:D$1010) -> 0 | E4: 0 | F4: 0 | G4: 0 | I4: =SUBTOTAL(9,I$10:I$1010) -> 0 | J4: 0 | K4: 0 | L4: 0
A6: Structure administrative du pays | D6: Population nécessitant un traitement avec DEC | H6: Plan de traitement | I6: Population cible | J6: Diethylcarbamazine (DEC)
A7: Pays | B7: Région/Département | C7: District | D7: EAPréS | E7: EAS | F7: Adultes | G7: Total | H7: FL | I7: FL | J7: Total requis | K7: Reste en stock | L7: Comprimés devant être fournis
A10: =IF(INTRO!$E$39<>"Non endémique", " ", IF(INTRO!$E$37="Non endémique"," ", IF(COUNTRY_INFO!A10=0," ",COUNTRY_INFO!A10))) ->  | B10: =IF(INTRO!$E$39<>"Non endémique", " ", IF(INTRO!$E$37="Non endémique"," ", IF(COUNTRY_INFO!B10=0," ",COUNTRY_INFO!B10))) ->  | C10: =IF(INTRO!$E$39<>"Non endémique", " ", IF(INTRO!$E$37="Non endémique"," ", IF(COUNTRY_INFO!C10=0," ",COUNTRY_INFO!C10))) ->  | D10: =IF(INTRO!$E$39<>"Non endémique", 0, IF(INTRO!$E$37="Non endémique",0,IF(COUNTRY_INFO!$H10=1,COUNTRY_INFO!E10,0))) -> 0 | E10: =IF(INTRO!$E$39<>"Non endémique", 0, IF(INTRO!$E$37="Non endémique",0,IF(COUNTRY_INFO!$H10=1,COUNTRY_INFO!F10,0))) -> 0 | F10: =IF(INTRO!$E$39<>"Non endémique", 0, IF(INTRO!$E$37="Non endémique",0,IF(COUNTRY_INFO!$H10=1,COUNTRY_INFO!G10,0))) -> 0 | G10: =SUM(D10:F10) -> 0 | H10: =IF(INTRO!$E$39="Non endémique",IF(INTRO!$E$37="Non endémique","Non requis",COUNTRY_INFO!V10),"Traiter avec IVM") -> Traiter avec IVM | I10: =IF(H10=1,G10,0) -> 0 | J10: =IF(I10>0,I10*2.5,0) -> 0 | L10: =IF($J10>$K10,$J10-$K10,0) -> 0
A11: =IF(INTRO!$E$39<>"Non endémique", " ", IF(INTRO!$E$37="Non endémique"," ", IF(COUNTRY_INFO!A11=0," ",COUNTRY_INFO!A11))) ->  | B11: =IF(INTRO!$E$39<>"Non endémique", " ", IF(INTRO!$E$37="Non endémique"," ", IF(COUNTRY_INFO!B11=0," ",COUNTRY_INFO!B11))) ->  | C11: =IF(INTRO!$E$39<>"Non endémique", " ", IF(INTRO!$E$37="Non endémique"," ", IF(COUNTRY_INFO!C11=0," ",COUNTRY_INFO!C11))) ->  | D11: =IF(INTRO!$E$39<>"Non endémique", 0, IF(INTRO!$E$37="Non endémique",0,IF(COUNTRY_INFO!$H11=1,COUNTRY_INFO!E11,0))) -> 0 | E11: =IF(INTRO!$E$39<>"Non endémique", 0, IF(INTRO!$E$37="Non endémique",0,IF(COUNTRY_INFO!$H11=1,COUNTRY_INFO!F11,0))) -> 0 | F11: =IF(INTRO!$E$39<>"Non endémique", 0, IF(INTRO!$E$37="Non endémique",0,IF(COUNTRY_INFO!$H11=1,COUNTRY_INFO!G11,0))) -> 0 | G11: =SUM(D11:F11) -> 0 | H11: =IF(INTRO!$E$39="Non endémique",IF(INTRO!$E$37="Non endémique","Non requis",COUNTRY_INFO!V11),"Traiter avec IVM") -> Traiter avec IVM | I11: =IF(H11=1,G11,0) -> 0 | J11: =IF(I11>0,I11*2.5,0) -> 0 | L11: 0
A12: =IF(INTRO!$E$39<>"Non endémique", " ", IF(INTRO!$E$37="Non endémique"," ", IF(COUNTRY_INFO!A12=0," ",COUNTRY_INFO!A12))) ->  | B12: =IF(INTRO!$E$39<>"Non endémique", " ", IF(INTRO!$E$37="Non endémique"," ", IF(COUNTRY_INFO!B12=0," ",COUNTRY_INFO!B12))) ->  | C12: =IF(INTRO!$E$39<>"Non endémique", " ", IF(INTRO!$E$37="Non endémique"," ", IF(COUNTRY_INFO!C12=0," ",COUNTRY_INFO!C12))) ->  | D12: =IF(INTRO!$E$39<>"Non endémique", 0, IF(INTRO!$E$37="Non endémique",0,IF(COUNTRY_INFO!$H12=1,COUNTRY_INFO!E12,0))) -> 0 | E12: =IF(INTRO!$E$39<>"Non endémique", 0, IF(INTRO!$E$37="Non endémique",0,IF(COUNTRY_INFO!$H12=1,COUNTRY_INFO!F12,0))) -> 0 | F12: =IF(INTRO!$E$39<>"Non endémique", 0, IF(INTRO!$E$37="Non endémique",0,IF(COUNTRY_INFO!$H12=1,COUNTRY_INFO!G12,0))) -> 0 | G12: 0 | H12: =IF(INTRO!$E$39="Non endémique",IF(INTRO!$E$37="Non endémique","Non requis",COUNTRY_INFO!V12),"Traiter avec IVM") -> Traiter avec IVM | I12: 0 | J12: 0 | L12: 0
A13: =IF(INTRO!$E$39<>"Non endémique", " ", IF(INTRO!$E$37="Non endémique"," ", IF(COUNTRY_INFO!A13=0," ",COUNTRY_INFO!A13))) ->  | B13: =IF(INTRO!$E$39<>"Non endémique", " ", IF(INTRO!$E$37="Non endémique"," ", IF(COUNTRY_INFO!B13=0," ",COUNTRY_INFO!B13))) ->  | C13: =IF(INTRO!$E$39<>"Non endémique", " ", IF(INTRO!$E$37="Non endémique"," ", IF(COUNTRY_INFO!C13=0," ",COUNTRY_INFO!C13))) ->  | D13: =IF(INTRO!$E$39<>"Non endémique", 0, IF(INTRO!$E$37="Non endémique",0,IF(COUNTRY_INFO!$H13=1,COUNTRY_INFO!E13,0))) -> 0 | E13: =IF(INTRO!$E$39<>"Non endémique", 0, IF(INTRO!$E$37="Non endémique",0,IF(COUNTRY_INFO!$H13=1,COUNTRY_INFO!F13,0))) -> 0 | F13: =IF(INTRO!$E$39<>"Non endémique", 0, IF(INTRO!$E$37="Non endémique",0,IF(COUNTRY_INFO!$H13=1,COUNTRY_INFO!G13,0))) -> 0 | G13: 0 | H13: =IF(INTRO!$E$39="Non endémique",IF(INTRO!$E$37="Non endémique","Non requis",COUNTRY_INFO!V13),"Traiter avec IVM") -> Traiter avec IVM | I13: 0 | J13: 0 | L13: 0
A14: =IF(INTRO!$E$39<>"Non endémique", " ", IF(INTRO!$E$37="Non endémique"," ", IF(COUNTRY_INFO!A14=0," ",COUNTRY_INFO!A14))) ->  | B14: =IF(INTRO!$E$39<>"Non endémique", " ", IF(INTRO!$E$37="Non endémique"," ", IF(COUNTRY_INFO!B14=0," ",COUNTRY_INFO!B14))) ->  | C14: =IF(INTRO!$E$39<>"Non endémique", " ", IF(INTRO!$E$37="Non endémique"," ", IF(COUNTRY_INFO!C14=0," ",COUNTRY_INFO!C14))) ->  | D14: =IF(INTRO!$E$39<>"Non endémique", 0, IF(INTRO!$E$37="Non endémique",0,IF(COUNTRY_INFO!$H14=1,COUNTRY_INFO!E14,0))) -> 0 | E14: =IF(INTRO!$E$39<>"Non endémique", 0, IF(INTRO!$E$37="Non endémique",0,IF(COUNTRY_INFO!$H14=1,COUNTRY_INFO!F14,0))) -> 0 | F14: =IF(INTRO!$E$39<>"Non endémique", 0, IF(INTRO!$E$37="Non endémique",0,IF(COUNTRY_INFO!$H14=1,COUNTRY_INFO!G14,0))) -> 0 | G14: 0 | H14: =IF(INTRO!$E$39="Non endémique",IF(INTRO!$E$37="Non endémique","Non requis",COUNTRY_INFO!V14),"Traiter avec IVM") -> Traiter avec IVM | I14: 0 | J14: 0 | L14: 0
A15: =IF(INTRO!$E$39<>"Non endémique", " ", IF(INTRO!$E$37="Non endémique"," ", IF(COUNTRY_INFO!A15=0," ",COUNTRY_INFO!A15))) ->  | B15: =IF(INTRO!$E$39<>"Non endémique", " ", IF(INTRO!$E$37="Non endémique"," ", IF(COUNTRY_INFO!B15=0," ",COUNTRY_INFO!B15))) ->  | C15: =IF(INTRO!$E$39<>"Non endémique", " ", IF(INTRO!$E$37="Non endémique"," ", IF(COUNTRY_INFO!C15=0," ",COUNTRY_INFO!C15))) ->  | D15: =IF(INTRO!$E$39<>"Non endémique", 0, IF(INTRO!$E$37="Non endémique",0,IF(COUNTRY_INFO!$H15=1,COUNTRY_INFO!E15,0))) -> 0 | E15: =IF(INTRO!$E$39<>"Non endémique", 0, IF(INTRO!$E$37="Non endémique",0,IF(COUNTRY_INFO!$H15=1,COUNTRY_INFO!F15,0))) -> 0 | F15: =IF(INTRO!$E$39<>"Non endémique", 0, IF(INTRO!$E$37="Non endémique",0,IF(COUNTRY_INFO!$H15=1,COUNTRY_INFO!G15,0))) -> 0 | G15: 0 | H15: =IF(INTRO!$E$39="Non endémique",IF(INTRO!$E$37="Non endémique","Non requis",COUNTRY_INFO!V15),"Traiter avec IVM") -> Traiter avec IVM | I15: 0 | J15: 0 | L15: 0
A16: =IF(INTRO!$E$39<>"Non endémique", " ", IF(INTRO!$E$37="Non endémique"," ", IF(COUNTRY_INFO!A16=0," ",COUNTRY_INFO!A16))) ->  | B16: =IF(INTRO!$E$39<>"Non endémique", " ", IF(INTRO!$E$37="Non endémique"," ", IF(COUNTRY_INFO!B16=0," ",COUNTRY_INFO!B16))) ->  | C16: =IF(INTRO!$E$39<>"Non endémique", " ", IF(INTRO!$E$37="Non endémique"," ", IF(COUNTRY_INFO!C16=0," ",COUNTRY_INFO!C16))) ->  | D16: =IF(INTRO!$E$39<>"Non endémique", 0, IF(INTRO!$E$37="Non endémique",0,IF(COUNTRY_INFO!$H16=1,COUNTRY_INFO!E16,0))) -> 0 | E16: =IF(INTRO!$E$39<>"Non endémique", 0, IF(INTRO!$E$37="Non endémique",0,IF(COUNTRY_INFO!$H16=1,COUNTRY_INFO!F16,0))) -> 0 | F16: =IF(INTRO!$E$39<>"Non endémique", 0, IF(INTRO!$E$37="Non endémique",0,IF(COUNTRY_INFO!$H16=1,COUNTRY_INFO!G16,0))) -> 0 | G16: 0 | H16: =IF(INTRO!$E$39="Non endémique",IF(INTRO!$E$37="Non endémique","Non requis",COUNTRY_INFO!V16),"Traiter avec IVM") -> Traiter avec IVM | I16: 0 | J16: 0 | L16: 0
A17: =IF(INTRO!$E$39<>"Non endémique", " ", IF(INTRO!$E$37="Non endémique"," ", IF(COUNTRY_INFO!A17=0," ",COUNTRY_INFO!A17))) ->  | B17: =IF(INTRO!$E$39<>"Non endémique", " ", IF(INTRO!$E$37="Non endémique"," ", IF(COUNTRY_INFO!B17=0," ",COUNTRY_INFO!B17))) ->  | C17: =IF(INTRO!$E$39<>"Non endémique", " ", IF(INTRO!$E$37="Non endémique"," ", IF(COUNTRY_INFO!C17=0," ",COUNTRY_INFO!C17))) ->  | D17: =IF(INTRO!$E$39<>"Non endémique", 0, IF(INTRO!$E$37="Non endémique",0,IF(COUNTRY_INFO!$H17=1,COUNTRY_INFO!E17,0))) -> 0 | E17: =IF(INTRO!$E$39<>"Non endémique", 0, IF(INTRO!$E$37="Non endémique",0,IF(COUNTRY_INFO!$H17=1,COUNTRY_INFO!F17,0))) -> 0 | F17: =IF(INTRO!$E$39<>"Non endémique", 0, IF(INTRO!$E$37="Non endémique",0,IF(COUNTRY_INFO!$H17=1,COUNTRY_INFO!G17,0))) -> 0 | G17: 0 | H17: =IF(INTRO!$E$39="Non endémique",IF(INTRO!$E$37="Non endémique","Non requis",COUNTRY_INFO!V17),"Traiter avec IVM") -> Traiter avec IVM | I17: 0 | J17: 0 | L17: 0
A18: =IF(INTRO!$E$39<>"Non endémique", " ", IF(INTRO!$E$37="Non endémique"," ", IF(COUNTRY_INFO!A18=0," ",COUNTRY_INFO!A18))) ->  | B18: =IF(INTRO!$E$39<>"Non endémique", " ", IF(INTRO!$E$37="Non endémique"," ", IF(COUNTRY_INFO!B18=0," ",COUNTRY_INFO!B18))) ->  | C18: =IF(INTRO!$E$39<>"Non endémique", " ", IF(INTRO!$E$37="Non endémique"," ", IF(COUNTRY_INFO!C18=0," ",COUNTRY_INFO!C18))) ->  | D18: =IF(INTRO!$E$39<>"Non endémique", 0, IF(INTRO!$E$37="Non endémique",0,IF(COUNTRY_INFO!$H18=1,COUNTRY_INFO!E18,0))) -> 0 | E18: =IF(INTRO!$E$39<>"Non endémique", 0, IF(INTRO!$E$37="Non endémique",0,IF(COUNTRY_INFO!$H18=1,COUNTRY_INFO!F18,0))) -> 0 | F18: =IF(INTRO!$E$39<>"Non endémique", 0, IF(INTRO!$E$37="Non endémique",0,IF(COUNTRY_INFO!$H18=1,COUNTRY_INFO!G18,0))) -> 0 | G18: 0 | H18: =IF(INTRO!$E$39="Non endémique",IF(INTRO!$E$37="Non endémique","Non requis",COUNTRY_INFO!V18),"Traiter avec IVM") -> Traiter avec IVM | I18: 0 | J18: 0 | L18: 0
A19: =IF(INTRO!$E$39<>"Non endémique", " ", IF(INTRO!$E$37="Non endémique"," ", IF(COUNTRY_INFO!A19=0," ",COUNTRY_INFO!A19))) ->  | B19: =IF(INTRO!$E$39<>"Non endémique", " ", IF(INTRO!$E$37="Non endémique"," ", IF(COUNTRY_INFO!B19=0," ",COUNTRY_INFO!B19))) ->  | C19: =IF(INTRO!$E$39<>"Non endémique", " ", IF(INTRO!$E$37="Non endémique"," ", IF(COUNTRY_INFO!C19=0," ",COUNTRY_INFO!C19))) ->  | D19: =IF(INTRO!$E$39<>"Non endémique", 0, IF(INTRO!$E$37="Non endémique",0,IF(COUNTRY_INFO!$H19=1,COUNTRY_INFO!E19,0))) -> 0 | E19: =IF(INTRO!$E$39<>"Non endémique", 0, IF(INTRO!$E$37="Non endémique",0,IF(COUNTRY_INFO!$H19=1,COUNTRY_INFO!F19,0))) -> 0 | F19: =IF(INTRO!$E$39<>"Non endémique", 0, IF(INTRO!$E$37="Non endémique",0,IF(COUNTRY_INFO!$H19=1,COUNTRY_INFO!G19,0))) -> 0 | G19: 0 | H19: =IF(INTRO!$E$39="Non endémique",IF(INTRO!$E$37="Non endémique","Non requis",COUNTRY_INFO!V19),"Traiter avec IVM") -> Traiter avec IVM | I19: 0 | J19: 0 | L19: 0
A20: =IF(INTRO!$E$39<>"Non endémique", " ", IF(INTRO!$E$37="Non endémique"," ", IF(COUNTRY_INFO!A20=0," ",COUNTRY_INFO!A20))) ->  | B20: =IF(INTRO!$E$39<>"Non endémique", " ", IF(INTRO!$E$37="Non endémique"," ", IF(COUNTRY_INFO!B20=0," ",COUNTRY_INFO!B20))) ->  | C20: =IF(INTRO!$E$39<>"Non endémique", " ", IF(INTRO!$E$37="Non endémique"," ", IF(COUNTRY_INFO!C20=0," ",COUNTRY_INFO!C20))) ->  | D20: =IF(INTRO!$E$39<>"Non endémique", 0, IF(INTRO!$E$37="Non endémique",0,IF(COUNTRY_INFO!$H20=1,COUNTRY_INFO!E20,0))) -> 0 | E20: =IF(INTRO!$E$39<>"Non endémique", 0, IF(INTRO!$E$37="Non endémique",0,IF(COUNTRY_INFO!$H20=1,COUNTRY_INFO!F20,0))) -> 0 | F20: =IF(INTRO!$E$39<>"Non endémique", 0, IF(INTRO!$E$37="Non endémique",0,IF(COUNTRY_INFO!$H20=1,COUNTRY_INFO!G20,0))) -> 0 | G20: 0 | H20: =IF(INTRO!$E$39="Non endémique",IF(INTRO!$E$37="Non endémique","Non requis",COUNTRY_INFO!V20),"Traiter avec IVM") -> Traiter avec IVM | I20: 0 | J20: 0 | L20: 0
A21: =IF(INTRO!$E$39<>"Non endémique", " ", IF(INTRO!$E$37="Non endémique"," ", IF(COUNTRY_INFO!A21=0," ",COUNTRY_INFO!A21))) ->  | B21: =IF(INTRO!$E$39<>"Non endémique", " ", IF(INTRO!$E$37="Non endémique"," ", IF(COUNTRY_INFO!B21=0," ",COUNTRY_INFO!B21))) ->  | C21: =IF(INTRO!$E$39<>"Non endémique", " ", IF(INTRO!$E$37="Non endémique"," ", IF(COUNTRY_INFO!C21=0," ",COUNTRY_INFO!C21))) ->  | D21: =IF(INTRO!$E$39<>"Non endémique", 0, IF(INTRO!$E$37="Non endémique",0,IF(COUNTRY_INFO!$H21=1,COUNTRY_INFO!E21,0))) -> 0 | E21: =IF(INTRO!$E$39<>"Non endémique", 0, IF(INTRO!$E$37="Non endémique",0,IF(COUNTRY_INFO!$H21=1,COUNTRY_INFO!F21,0))) -> 0 | F21: =IF(INTRO!$E$39<>"Non endémique", 0, IF(INTRO!$E$37="Non endémique",0,IF(COUNTRY_INFO!$H21=1,COUNTRY_INFO!G21,0))) -> 0 | G21: 0 | H21: =IF(INTRO!$E$39="Non endémique",IF(INTRO!$E$37="Non endémique","Non requis",COUNTRY_INFO!V21),"Traiter avec IVM") -> Traiter avec IVM | I21: 0 | J21: 0 | L21: 0
A22: =IF(INTRO!$E$39<>"Non endémique", " ", IF(INTRO!$E$37="Non endémique"," ", IF(COUNTRY_INFO!A22=0," ",COUNTRY_INFO!A22))) ->  | B22: =IF(INTRO!$E$39<>"Non endémique", " ", IF(INTRO!$E$37="Non endémique"," ", IF(COUNTRY_INFO!B22=0," ",COUNTRY_INFO!B22))) ->  | C22: =IF(INTRO!$E$39<>"Non endémique", " ", IF(INTRO!$E$37="Non endémique"," ", IF(COUNTRY_INFO!C22=0," ",COUNTRY_INFO!C22))) ->  | D22: =IF(INTRO!$E$39<>"Non endémique", 0, IF(INTRO!$E$37="Non endémique",0,IF(COUNTRY_INFO!$H22=1,COUNTRY_INFO!E22,0))) -> 0 | E22: =IF(INTRO!$E$39<>"Non endémique", 0, IF(INTRO!$E$37="Non endémique",0,IF(COUNTRY_INFO!$H22=1,COUNTRY_INFO!F22,0))) -> 0 | F22: =IF(INTRO!$E$39<>"Non endémique", 0, IF(INTRO!$E$37="Non endémique",0,IF(COUNTRY_INFO!$H22=1,COUNTRY_INFO!G22,0))) -> 0 | G22: 0 | H22: =IF(INTRO!$E$39="Non endémique",IF(INTRO!$E$37="Non endémique","Non requis",COUNTRY_INFO!V22),"Traiter avec IVM") -> Traiter avec IVM | I22: 0 | J22: 0 | L22: 0
A23: =IF(INTRO!$E$39<>"Non endémique", " ", IF(INTRO!$E$37="Non endémique"," ", IF(COUNTRY_INFO!A23=0," ",COUNTRY_INFO!A23))) ->  | B23: =IF(INTRO!$E$39<>"Non endémique", " ", IF(INTRO!$E$37="Non endémique"," ", IF(COUNTRY_INFO!B23=0," ",COUNTRY_INFO!B23))) ->  | C23: =IF(INTRO!$E$39<>"Non endémique", " ", IF(INTRO!$E$37="Non endémique"," ", IF(COUNTRY_INFO!C23=0," ",COUNTRY_INFO!C23))) ->  | D23: =IF(INTRO!$E$39<>"Non endémique", 0, IF(INTRO!$E$37="Non endémique",0,IF(COUNTRY_INFO!$H23=1,COUNTRY_INFO!E23,0))) -> 0 | E23: =IF(INTRO!$E$39<>"Non endémique", 0, IF(INTRO!$E$37="Non endémique",0,IF(COUNTRY_INFO!$H23=1,COUNTRY_INFO!F23,0))) -> 0 | F23: =IF(INTRO!$E$39<>"Non endémique", 0, IF(INTRO!$E$37="Non endémique",0,IF(COUNTRY_INFO!$H23=1,COUNTRY_INFO!G23,0))) -> 0 | G23: 0 | H23: =IF(INTRO!$E$39="Non endémique",IF(INTRO!$E$37="Non endémique","Non requis",COUNTRY_INFO!V23),"Traiter avec IVM") -> Traiter avec IVM | I23: 0 | J23: 0 | L23: 0
A24: =IF(INTRO!$E$39<>"Non endémique", " ", IF(INTRO!$E$37="Non endémique"," ", IF(COUNTRY_INFO!A24=0," ",COUNTRY_INFO!A24))) ->  | B24: =IF(INTRO!$E$39<>"Non endémique", " ", IF(INTRO!$E$37="Non endémique"," ", IF(COUNTRY_INFO!B24=0," ",COUNTRY_INFO!B24))) ->  | C24: =IF(INTRO!$E$39<>"Non endémique", " ", IF(INTRO!$E$37="Non endémique"," ", IF(COUNTRY_INFO!C24=0," ",COUNTRY_INFO!C24))) ->  | D24: =IF(INTRO!$E$39<>"Non endémique", 0, IF(INTRO!$E$37="Non endémique",0,IF(COUNTRY_INFO!$H24=1,COUNTRY_INFO!E24,0))) -> 0 | E24: =IF(INTRO!$E$39<>"Non endémique", 0, IF(INTRO!$E$37="Non endémique",0,IF(COUNTRY_INFO!$H24=1,COUNTRY_INFO!F24,0))) -> 0 | F24: =IF(INTRO!$E$39<>"Non endémique", 0, IF(INTRO!$E$37="Non endémique",0,IF(COUNTRY_INFO!$H24=1,COUNTRY_INFO!G24,0))) -> 0 | G24: 0 | H24: =IF(INTRO!$E$39="Non endémique",IF(INTRO!$E$37="Non endémique","Non requis",COUNTRY_INFO!V24),"Traiter avec IVM") -> Traiter avec IVM | I24: 0 | J24: 0 | L24: 0
A25: =IF(INTRO!$E$39<>"Non endémique", " ", IF(INTRO!$E$37="Non endémique"," ", IF(COUNTRY_INFO!A25=0," ",COUNTRY_INFO!A25))) ->  | B25: =IF(INTRO!$E$39<>"Non endémique", " ", IF(INTRO!$E$37="Non endémique"," ", IF(COUNTRY_INFO!B25=0," ",COUNTRY_INFO!B25))) ->  | C25: =IF(INTRO!$E$39<>"Non endémique", " ", IF(INTRO!$E$37="Non endémique"," ", IF(COUNTRY_INFO!C25=0," ",COUNTRY_INFO!C25))) ->  | D25: =IF(INTRO!$E$39<>"Non endémique", 0, IF(INTRO!$E$37="Non endémique",0,IF(COUNTRY_INFO!$H25=1,COUNTRY_INFO!E25,0))) -> 0 | E25: =IF(INTRO!$E$39<>"Non endémique", 0, IF(INTRO!$E$37="Non endémique",0,IF(COUNTRY_INFO!$H25=1,COUNTRY_INFO!F25,0))) -> 0 | F25: =IF(INTRO!$E$39<>"Non endémique", 0, IF(INTRO!$E$37="Non endémique",0,IF(COUNTRY_INFO!$H25=1,COUNTRY_INFO!G25,0))) -> 0 | G25: 0 | H25: =IF(INTRO!$E$39="Non endémique",IF(INTRO!$E$37="Non endémique","Non requis",COUNTRY_INFO!V25),"Traiter avec IVM") -> Traiter avec IVM | I25: 0 | J25: 0 | L25: 0
A26: =IF(INTRO!$E$39<>"Non endémique", " ", IF(INTRO!$E$37="Non endémique"," ", IF(COUNTRY_INFO!A26=0," ",COUNTRY_INFO!A26))) ->  | B26: =IF(INTRO!$E$39<>"Non endémique", " ", IF(INTRO!$E$37="Non endémique"," ", IF(COUNTRY_INFO!B26=0," ",COUNTRY_INFO!B26))) ->  | C26: =IF(INTRO!$E$39<>"Non endémique", " ", IF(INTRO!$E$37="Non endémique"," ", IF(COUNTRY_INFO!C26=0," ",COUNTRY_INFO!C26))) ->  | D26: =IF(INTRO!$E$39<>"Non endémique", 0, IF(INTRO!$E$37="Non endémique",0,IF(COUNTRY_INFO!$H26=1,COUNTRY_INFO!E26,0))) -> 0 | E26: =IF(INTRO!$E$39<>"Non endémique", 0, IF(INTRO!$E$37="Non endémique",0,IF(COUNTRY_INFO!$H26=1,COUNTRY_INFO!F26,0))) -> 0 | F26: =IF(INTRO!$E$39<>"Non endémique", 0, IF(INTRO!$E$37="Non endémique",0,IF(COUNTRY_INFO!$H26=1,COUNTRY_INFO!G26,0))) -> 0 | G26: 0 | H26: =IF(INTRO!$E$39="Non endémique",IF(INTRO!$E$37="Non endémique","Non requis",COUNTRY_INFO!V26),"Traiter avec IVM") -> Traiter avec IVM | I26: 0 | J26: 0 | L26: 0
A27: =IF(INTRO!$E$39<>"Non endémique", " ", IF(INTRO!$E$37="Non endémique"," ", IF(COUNTRY_INFO!A27=0," ",COUNTRY_INFO!A27))) ->  | B27: =IF(INTRO!$E$39<>"Non endémique", " ", IF(INTRO!$E$37="Non endémique"," ", IF(COUNTRY_INFO!B27=0," ",COUNTRY_INFO!B27))) ->  | C27: =IF(INTRO!$E$39<>"Non endémique", " ", IF(INTRO!$E$37="Non endémique"," ", IF(COUNTRY_INFO!C27=0," ",COUNTRY_INFO!C27))) ->  | D27: =IF(INTRO!$E$39<>"Non endémique", 0, IF(INTRO!$E$37="Non endémique",0,IF(COUNTRY_INFO!$H27=1,COUNTRY_INFO!E27,0))) -> 0 | E27: =IF(INTRO!$E$39<>"Non endémique", 0, IF(INTRO!$E$37="Non endémique",0,IF(COUNTRY_INFO!$H27=1,COUNTRY_INFO!F27,0))) -> 0 | F27: =IF(INTRO!$E$39<>"Non endémique", 0, IF(INTRO!$E$37="Non endémique",0,IF(COUNTRY_INFO!$H27=1,COUNTRY_INFO!G27,0))) -> 0 | G27: 0 | H27: =IF(INTRO!$E$39="Non endémique",IF(INTRO!$E$37="Non endémique","Non requis",COUNTRY_INFO!V27),"Traiter avec IVM") -> Traiter avec IVM | I27: 0 | J27: 0 | L27: 0
A28: =IF(INTRO!$E$39<>"Non endémique", " ", IF(INTRO!$E$37="Non endémique"," ", IF(COUNTRY_INFO!A28=0," ",COUNTRY_INFO!A28))) ->  | B28: =IF(INTRO!$E$39<>"Non endémique", " ", IF(INTRO!$E$37="Non endémique"," ", IF(COUNTRY_INFO!B28=0," ",COUNTRY_INFO!B28))) ->  | C28: =IF(INTRO!$E$39<>"Non endémique", " ", IF(INTRO!$E$37="Non endémique"," ", IF(COUNTRY_INFO!C28=0," ",COUNTRY_INFO!C28))) ->  | D28: =IF(INTRO!$E$39<>"Non endémique", 0, IF(INTRO!$E$37="Non endémique",0,IF(COUNTRY_INFO!$H28=1,COUNTRY_INFO!E28,0))) -> 0 | E28: =IF(INTRO!$E$39<>"Non endémique", 0, IF(INTRO!$E$37="Non endémique",0,IF(COUNTRY_INFO!$H28=1,COUNTRY_INFO!F28,0))) -> 0 | F28: =IF(INTRO!$E$39<>"Non endémique", 0, IF(INTRO!$E$37="Non endémique",0,IF(COUNTRY_INFO!$H28=1,COUNTRY_INFO!G28,0))) -> 0 | G28: 0 | H28: =IF(INTRO!$E$39="Non endémique",IF(INTRO!$E$37="Non endémique","Non requis",COUNTRY_INFO!V28),"Traiter avec IVM") -> Traiter avec IVM | I28: 0 | J28: 0 | L28: 0
A29: =IF(INTRO!$E$39<>"Non endémique", " ", IF(INTRO!$E$37="Non endémique"," ", IF(COUNTRY_INFO!A29=0," ",COUNTRY_INFO!A29))) ->  | B29: =IF(INTRO!$E$39<>"Non endémique", " ", IF(INTRO!$E$37="Non endémique"," ", IF(COUNTRY_INFO!B29=0," ",COUNTRY_INFO!B29))) ->  | C29: =IF(INTRO!$E$39<>"Non endémique", " ", IF(INTRO!$E$37="Non endémique"," ", IF(COUNTRY_INFO!C29=0," ",COUNTRY_INFO!C29))) ->  | D29: =IF(INTRO!$E$39<>"Non endémique", 0, IF(INTRO!$E$37="Non endémique",0,IF(COUNTRY_INFO!$H29=1,COUNTRY_INFO!E29,0))) -> 0 | E29: =IF(INTRO!$E$39<>"Non endémique", 0, IF(INTRO!$E$37="Non endémique",0,IF(COUNTRY_INFO!$H29=1,COUNTRY_INFO!F29,0))) -> 0 | F29: =IF(INTRO!$E$39<>"Non endémique", 0, IF(INTRO!$E$37="Non endémique",0,IF(COUNTRY_INFO!$H29=1,COUNTRY_INFO!G29,0))) -> 0 | G29: 0 | H29: =IF(INTRO!$E$39="Non endémique",IF(INTRO!$E$37="Non endémique","Non requis",COUNTRY_INFO!V29),"Traiter avec IVM") -> Traiter avec IVM | I29: 0 | J29: 0 | L29: 0
A30: =IF(INTRO!$E$39<>"Non endémique", " ", IF(INTRO!$E$37="Non endémique"," ", IF(COUNTRY_INFO!A30=0," ",COUNTRY_INFO!A30))) ->  | B30: =IF(INTRO!$E$39<>"Non endémique", " ", IF(INTRO!$E$37="Non endémique"," ", IF(COUNTRY_INFO!B30=0," ",COUNTRY_INFO!B30))) ->  | C30: =IF(INTRO!$E$39<>"Non endémique", " ", IF(INTRO!$E$37="Non endémique"," ", IF(COUNTRY_INFO!C30=0," ",COUNTRY_INFO!C30))) ->  | D30: =IF(INTRO!$E$39<>"Non endémique", 0, IF(INTRO!$E$37="Non endémique",0,IF(COUNTRY_INFO!$H30=1,COUNTRY_INFO!E30,0))) -> 0 | E30: =IF(INTRO!$E$39<>"Non endémique", 0, IF(INTRO!$E$37="Non endémique",0,IF(COUNTRY_INFO!$H30=1,COUNTRY_INFO!F30,0))) -> 0 | F30: =IF(INTRO!$E$39<>"Non endémique", 0, IF(INTRO!$E$37="Non endémique",0,IF(COUNTRY_INFO!$H30=1,COUNTRY_INFO!G30,0))) -> 0 | G30: 0 | H30: =IF(INTRO!$E$39="Non endémique",IF(INTRO!$E$37="Non endémique","Non requis",COUNTRY_INFO!V30),"Traiter avec IVM") -> Traiter avec IVM | I30: 0 | J30: 0 | L30: 0
A31: =IF(INTRO!$E$39<>"Non endémique", " ", IF(INTRO!$E$37="Non endémique"," ", IF(COUNTRY_INFO!A31=0," ",COUNTRY_INFO!A31))) ->  | B31: =IF(INTRO!$E$39<>"Non endémique", " ", IF(INTRO!$E$37="Non endémique"," ", IF(COUNTRY_INFO!B31=0," ",COUNTRY_INFO!B31))) ->  | C31: =IF(INTRO!$E$39<>"Non endémique", " ", IF(INTRO!$E$37="Non endémique"," ", IF(COUNTRY_INFO!C31=0," ",COUNTRY_INFO!C31))) ->  | D31: =IF(INTRO!$E$39<>"Non endémique", 0, IF(INTRO!$E$37="Non endémique",0,IF(COUNTRY_INFO!$H31=1,COUNTRY_INFO!E31,0))) -> 0 | E31: =IF(INTRO!$E$39<>"Non endémique", 0, IF(INTRO!$E$37="Non endémique",0,IF(COUNTRY_INFO!$H31=1,COUNTRY_INFO!F31,0))) -> 0 | F31: =IF(INTRO!$E$39<>"Non endémique", 0, IF(INTRO!$E$37="Non endémique",0,IF(COUNTRY_INFO!$H31=1,COUNTRY_INFO!G31,0))) -> 0 | G31: 0 | H31: =IF(INTRO!$E$39="Non endémique",IF(INTRO!$E$37="Non endémique","Non requis",COUNTRY_INFO!V31),"Traiter avec IVM") -> Traiter avec IVM | I31: 0 | J31: 0 | L31: 0
A32: =IF(INTRO!$E$39<>"Non endémique", " ", IF(INTRO!$E$37="Non endémique"," ", IF(COUNTRY_INFO!A32=0," ",COUNTRY_INFO!A32))) ->  | B32: =IF(INTRO!$E$39<>"Non endémique", " ", IF(INTRO!$E$37="Non endémique"," ", IF(COUNTRY_INFO!B32=0," ",COUNTRY_INFO!B32))) ->  | C32: =IF(INTRO!$E$39<>"Non endémique", " ", IF(INTRO!$E$37="Non endémique"," ", IF(COUNTRY_INFO!C32=0," ",COUNTRY_INFO!C32))) ->  | D32: =IF(INTRO!$E$39<>"Non endémique", 0, IF(INTRO!$E$37="Non endémique",0,IF(COUNTRY_INFO!$H32=1,COUNTRY_INFO!E32,0))) -> 0 | E32: =IF(INTRO!$E$39<>"Non endémique", 0, IF(INTRO!$E$37="Non endémique",0,IF(COUNTRY_INFO!$H32=1,COUNTRY_INFO!F32,0))) -> 0 | F32: =IF(INTRO!$E$39<>"Non endémique", 0, IF(INTRO!$E$37="Non endémique",0,IF(COUNTRY_INFO!$H32=1,COUNTRY_INFO!G32,0))) -> 0 | G32: 0 | H32: =IF(INTRO!$E$39="Non endémique",IF(INTRO!$E$37="Non endémique","Non requis",COUNTRY_INFO!V32),"Traiter avec IVM") -> Traiter avec IVM | I32: 0 | J32: 0 | L32: 0
A33: =IF(INTRO!$E$39<>"Non endémique", " ", IF(INTRO!$E$37="Non endémique"," ", IF(COUNTRY_INFO!A33=0," ",COUNTRY_INFO!A33))) ->  | B33: =IF(INTRO!$E$39<>"Non endémique", " ", IF(INTRO!$E$37="Non endémique"," ", IF(COUNTRY_INFO!B33=0," ",COUNTRY_INFO!B33))) ->  | C33: =IF(INTRO!$E$39<>"Non endémique", " ", IF(INTRO!$E$37="Non endémique"," ", IF(COUNTRY_INFO!C33=0," ",COUNTRY_INFO!C33))) ->  | D33: =IF(INTRO!$E$39<>"Non endémique", 0, IF(INTRO!$E$37="Non endémique",0,IF(COUNTRY_INFO!$H33=1,COUNTRY_INFO!E33,0))) -> 0 | E33: =IF(INTRO!$E$39<>"Non endémique", 0, IF(INTRO!$E$37="Non endémique",0,IF(COUNTRY_INFO!$H33=1,COUNTRY_INFO!F33,0))) -> 0 | F33: =IF(INTRO!$E$39<>"Non endémique", 0, IF(INTRO!$E$37="Non endémique",0,IF(COUNTRY_INFO!$H33=1,COUNTRY_INFO!G33,0))) -> 0 | G33: 0 | H33: =IF(INTRO!$E$39="Non endémique",IF(INTRO!$E$37="Non endémique","Non requis",COUNTRY_INFO!V33),"Traiter avec IVM") -> Traiter avec IVM | I33: 0 | J33: 0 | L33: 0
A34: =IF(INTRO!$E$39<>"Non endémique", " ", IF(INTRO!$E$37="Non endémique"," ", IF(COUNTRY_INFO!A34=0," ",COUNTRY_INFO!A34))) ->  | B34: =IF(INTRO!$E$39<>"Non endémique", " ", IF(INTRO!$E$37="Non endémique"," ", IF(COUNTRY_INFO!B34=0," ",COUNTRY_INFO!B34))) ->  | C34: =IF(INTRO!$E$39<>"Non endémique", " ", IF(INTRO!$E$37="Non endémique"," ", IF(COUNTRY_INFO!C34=0," ",COUNTRY_INFO!C34))) ->  | D34: =IF(INTRO!$E$39<>"Non endémique", 0, IF(INTRO!$E$37="Non endémique",0,IF(COUNTRY_INFO!$H34=1,COUNTRY_INFO!E34,0))) -> 0 | E34: =IF(INTRO!$E$39<>"Non endémique", 0, IF(INTRO!$E$37="Non endémique",0,IF(COUNTRY_INFO!$H34=1,COUNTRY_INFO!F34,0))) -> 0 | F34: =IF(INTRO!$E$39<>"Non endémique", 0, IF(INTRO!$E$37="Non endémique",0,IF(COUNTRY_INFO!$H34=1,COUNTRY_INFO!G34,0))) -> 0 | G34: 0 | H34: =IF(INTRO!$E$39="Non endémique",IF(INTRO!$E$37="Non endémique","Non requis",COUNTRY_INFO!V34),"Traiter avec IVM") -> Traiter avec IVM | I34: 0 | J34: 0 | L34: 0
A35: =IF(INTRO!$E$39<>"Non endémique", " ", IF(INTRO!$E$37="Non endémique"," ", IF(COUNTRY_INFO!A35=0," ",COUNTRY_INFO!A35))) ->  | B35: =IF(INTRO!$E$39<>"Non endémique", " ", IF(INTRO!$E$37="Non endémique"," ", IF(COUNTRY_INFO!B35=0," ",COUNTRY_INFO!B35))) ->  | C35: =IF(INTRO!$E$39<>"Non endémique", " ", IF(INTRO!$E$37="Non endémique"," ", IF(COUNTRY_INFO!C35=0," ",COUNTRY_INFO!C35))) ->  | D35: =IF(INTRO!$E$39<>"Non endémique", 0, IF(INTRO!$E$37="Non endémique",0,IF(COUNTRY_INFO!$H35=1,COUNTRY_INFO!E35,0))) -> 0 | E35: =IF(INTRO!$E$39<>"Non endémique", 0, IF(INTRO!$E$37="Non endémique",0,IF(COUNTRY_INFO!$H35=1,COUNTRY_INFO!F35,0))) -> 0 | F35: =IF(INTRO!$E$39<>"Non endémique", 0, IF(INTRO!$E$37="Non endémique",0,IF(COUNTRY_INFO!$H35=1,COUNTRY_INFO!G35,0))) -> 0 | G35: 0 | H35: =IF(INTRO!$E$39="Non endémique",IF(INTRO!$E$37="Non endémique","Non requis",COUNTRY_INFO!V35),"Traiter avec IVM") -> Traiter avec IVM | I35: 0 | J35: 0 | L35: 0
A36: =IF(INTRO!$E$39<>"Non endémique", " ", IF(INTRO!$E$37="Non endémique"," ", IF(COUNTRY_INFO!A36=0," ",COUNTRY_INFO!A36))) ->  | B36: =IF(INTRO!$E$39<>"Non endémique", " ", IF(INTRO!$E$37="Non endémique"," ", IF(COUNTRY_INFO!B36=0," ",COUNTRY_INFO!B36))) ->  | C36: =IF(INTRO!$E$39<>"Non endémique", " ", IF(INTRO!$E$37="Non endémique"," ", IF(COUNTRY_INFO!C36=0," ",COUNTRY_INFO!C36))) ->  | D36: =IF(INTRO!$E$39<>"Non endémique", 0, IF(INTRO!$E$37="Non endémique",0,IF(COUNTRY_INFO!$H36=1,COUNTRY_INFO!E36,0))) -> 0 | E36: =IF(INTRO!$E$39<>"Non endémique", 0, IF(INTRO!$E$37="Non endémique",0,IF(COUNTRY_INFO!$H36=1,COUNTRY_INFO!F36,0))) -> 0 | F36: =IF(INTRO!$E$39<>"Non endémique", 0, IF(INTRO!$E$37="Non endémique",0,IF(COUNTRY_INFO!$H36=1,COUNTRY_INFO!G36,0))) -> 0 | G36: 0 | H36: =IF(INTRO!$E$39="Non endémique",IF(INTRO!$E$37="Non endémique","Non requis",COUNTRY_INFO!V36),"Traiter avec IVM") -> Traiter avec IVM | I36: 0 | J36: 0 | L36: 0
A37: =IF(INTRO!$E$39<>"Non endémique", " ", IF(INTRO!$E$37="Non endémique"," ", IF(COUNTRY_INFO!A37=0," ",COUNTRY_INFO!A37))) ->  | B37: =IF(INTRO!$E$39<>"Non endémique", " ", IF(INTRO!$E$37="Non endémique"," ", IF(COUNTRY_INFO!B37=0," ",COUNTRY_INFO!B37))) ->  | C37: =IF(INTRO!$E$39<>"Non endémique", " ", IF(INTRO!$E$37="Non endémique"," ", IF(COUNTRY_INFO!C37=0," ",COUNTRY_INFO!C37))) ->  | D37: =IF(INTRO!$E$39<>"Non endémique", 0, IF(INTRO!$E$37="Non endémique",0,IF(COUNTRY_INFO!$H37=1,COUNTRY_INFO!E37,0))) -> 0 | E37: =IF(INTRO!$E$39<>"Non endémique", 0, IF(INTRO!$E$37="Non endémique",0,IF(COUNTRY_INFO!$H37=1,COUNTRY_INFO!F37,0))) -> 0 | F37: =IF(INTRO!$E$39<>"Non endémique", 0, IF(INTRO!$E$37="Non endémique",0,IF(COUNTRY_INFO!$H37=1,COUNTRY_INFO!G37,0))) -> 0 | G37: 0 | H37: =IF(INTRO!$E$39="Non endémique",IF(INTRO!$E$37="Non endémique","Non requis",COUNTRY_INFO!V37),"Traiter avec IVM") -> Traiter avec IVM | I37: 0 | J37: 0 | L37: 0
A38: =IF(INTRO!$E$39<>"Non endémique", " ", IF(INTRO!$E$37="Non endémique"," ", IF(COUNTRY_INFO!A38=0," ",COUNTRY_INFO!A38))) ->  | B38: =IF(INTRO!$E$39<>"Non endémique", " ", IF(INTRO!$E$37="Non endémique"," ", IF(COUNTRY_INFO!B38=0," ",COUNTRY_INFO!B38))) ->  | C38: =IF(INTRO!$E$39<>"Non endémique", " ", IF(INTRO!$E$37="Non endémique"," ", IF(COUNTRY_INFO!C38=0," ",COUNTRY_INFO!C38))) ->  | D38: =IF(INTRO!$E$39<>"Non endémique", 0, IF(INTRO!$E$37="Non endémique",0,IF(COUNTRY_INFO!$H38=1,COUNTRY_INFO!E38,0))) -> 0 | E38: =IF(INTRO!$E$39<>"Non endémique", 0, IF(INTRO!$E$37="Non endémique",0,IF(COUNTRY_INFO!$H38=1,COUNTRY_INFO!F38,0))) -> 0 | F38: =IF(INTRO!$E$39<>"Non endémique", 0, IF(INTRO!$E$37="Non endémique",0,IF(COUNTRY_INFO!$H38=1,COUNTRY_INFO!G38,0))) -> 0 | G38: 0 | H38: =IF(INTRO!$E$39="Non endémique",IF(INTRO!$E$37="Non endémique","Non requis",COUNTRY_INFO!V38),"Traiter avec IVM") -> Traiter avec IVM | I38: 0 | J38: 0 | L38: 0
A39: =IF(INTRO!$E$39<>"Non endémique", " ", IF(INTRO!$E$37="Non endémique"," ", IF(COUNTRY_INFO!A39=0," ",COUNTRY_INFO!A39))) ->  | B39: =IF(INTRO!$E$39<>"Non endémique", " ", IF(INTRO!$E$37="Non endémique"," ", IF(COUNTRY_INFO!B39=0," ",COUNTRY_INFO!B39))) ->  | C39: =IF(INTRO!$E$39<>"Non endémique", " ", IF(INTRO!$E$37="Non endémique"," ", IF(COUNTRY_INFO!C39=0," ",COUNTRY_INFO!C39))) ->  | D39: =IF(INTRO!$E$39<>"Non endémique", 0, IF(INTRO!$E$37="Non endémique",0,IF(COUNTRY_INFO!$H39=1,COUNTRY_INFO!E39,0))) -> 0 | E39: =IF(INTRO!$E$39<>"Non endémique", 0, IF(INTRO!$E$37="Non endémique",0,IF(COUNTRY_INFO!$H39=1,COUNTRY_INFO!F39,0))) -> 0 | F39: =IF(INTRO!$E$39<>"Non endémique", 0, IF(INTRO!$E$37="Non endémique",0,IF(COUNTRY_INFO!$H39=1,COUNTRY_INFO!G39,0))) -> 0 | G39: 0 | H39: =IF(INTRO!$E$39="Non endémique",IF(INTRO!$E$37="Non endémique","Non requis",COUNTRY_INFO!V39),"Traiter avec IVM") -> Traiter avec IVM | I39: 0 | J39: 0 | L39: 0
A40: =IF(INTRO!$E$39<>"Non endémique", " ", IF(INTRO!$E$37="Non endémique"," ", IF(COUNTRY_INFO!A40=0," ",COUNTRY_INFO!A40))) ->  | B40: =IF(INTRO!$E$39<>"Non endémique", " ", IF(INTRO!$E$37="Non endémique"," ", IF(COUNTRY_INFO!B40=0," ",COUNTRY_INFO!B40))) ->  | C40: =IF(INTRO!$E$39<>"Non endémique", " ", IF(INTRO!$E$37="Non endémique"," ", IF(COUNTRY_INFO!C40=0," ",COUNTRY_INFO!C40))) ->  | D40: =IF(INTRO!$E$39<>"Non endémique", 0, IF(INTRO!$E$37="Non endémique",0,IF(COUNTRY_INFO!$H40=1,COUNTRY_INFO!E40,0))) -> 0 | E40: =IF(INTRO!$E$39<>"Non endémique", 0, IF(INTRO!$E$37="Non endémique",0,IF(COUNTRY_INFO!$H40=1,COUNTRY_INFO!F40,0))) -> 0 | F40: =IF(INTRO!$E$39<>"Non endémique", 0, IF(INTRO!$E$37="Non endémique",0,IF(COUNTRY_INFO!$H40=1,COUNTRY_INFO!G40,0))) -> 0 | G40: 0 | H40: =IF(INTRO!$E$39="Non endémique",IF(INTRO!$E$37="Non endémique","Non requis",COUNTRY_INFO!V40),"Traiter avec IVM") -> Traiter avec IVM | I40: 0 | J40: 0 | L40: 0
A41: =IF(INTRO!$E$39<>"Non endémique", " ", IF(INTRO!$E$37="Non endémique"," ", IF(COUNTRY_INFO!A41=0," ",COUNTRY_INFO!A41))) ->  | B41: =IF(INTRO!$E$39<>"Non endémique", " ", IF(INTRO!$E$37="Non endémique"," ", IF(COUNTRY_INFO!B41=0," ",COUNTRY_INFO!B41))) ->  | C41: =IF(INTRO!$E$39<>"Non endémique", " ", IF(INTRO!$E$37="Non endémique"," ", IF(COUNTRY_INFO!C41=0," ",COUNTRY_INFO!C41))) ->  | D41: =IF(INTRO!$E$39<>"Non endémique", 0, IF(INTRO!$E$37="Non endémique",0,IF(COUNTRY_INFO!$H41=1,COUNTRY_INFO!E41,0))) -> 0 | E41: =IF(INTRO!$E$39<>"Non endémique", 0, IF(INTRO!$E$37="Non endémique",0,IF(COUNTRY_INFO!$H41=1,COUNTRY_INFO!F41,0))) -> 0 | F41: =IF(INTRO!$E$39<>"Non endémique", 0, IF(INTRO!$E$37="Non endémique",0,IF(COUNTRY_INFO!$H41=1,COUNTRY_INFO!G41,0))) -> 0 | G41: 0 | H41: =IF(INTRO!$E$39="Non endémique",IF(INTRO!$E$37="Non endémique","Non requis",COUNTRY_INFO!V41),"Traiter avec IVM") -> Traiter avec IVM | I41: 0 | J41: 0 | L41: 0
A42: =IF(INTRO!$E$39<>"Non endémique", " ", IF(INTRO!$E$37="Non endémique"," ", IF(COUNTRY_INFO!A42=0," ",COUNTRY_INFO!A42))) ->  | B42: =IF(INTRO!$E$39<>"Non endémique", " ", IF(INTRO!$E$37="Non endémique"," ", IF(COUNTRY_INFO!B42=0," ",COUNTRY_INFO!B42))) ->  | C42: =IF(INTRO!$E$39<>"Non endémique", " ", IF(INTRO!$E$37="Non endémique"," ", IF(COUNTRY_INFO!C42=0," ",COUNTRY_INFO!C42))) ->  | D42: =IF(INTRO!$E$39<>"Non endémique", 0, IF(INTRO!$E$37="Non endémique",0,IF(COUNTRY_INFO!$H42=1,COUNTRY_INFO!E42,0))) -> 0 | E42: =IF(INTRO!$E$39<>"Non endémique", 0, IF(INTRO!$E$37="Non endémique",0,IF(COUNTRY_INFO!$H42=1,COUNTRY_INFO!F42,0))) -> 0 | F42: =IF(INTRO!$E$39<>"Non endémique", 0, IF(INTRO!$E$37="Non endémique",0,IF(COUNTRY_INFO!$H42=1,COUNTRY_INFO!G42,0))) -> 0 | G42: 0 | H42: =IF(INTRO!$E$39="Non endémique",IF(INTRO!$E$37="Non endémique","Non requis",COUNTRY_INFO!V42),"Traiter avec IVM") -> Traiter avec IVM | I42: 0 | J42: 0 | L42: 0
A43: =IF(INTRO!$E$39<>"Non endémique", " ", IF(INTRO!$E$37="Non endémique"," ", IF(COUNTRY_INFO!A43=0," ",COUNTRY_INFO!A43))) ->  | B43: =IF(INTRO!$E$39<>"Non endémique", " ", IF(INTRO!$E$37="Non endémique"," ", IF(COUNTRY_INFO!B43=0," ",COUNTRY_INFO!B43))) ->  | C43: =IF(INTRO!$E$39<>"Non endémique", " ", IF(INTRO!$E$37="Non endémique"," ", IF(COUNTRY_INFO!C43=0," ",COUNTRY_INFO!C43))) ->  | D43: =IF(INTRO!$E$39<>"Non endémique", 0, IF(INTRO!$E$37="Non endémique",0,IF(COUNTRY_INFO!$H43=1,COUNTRY_INFO!E43,0))) -> 0 | E43: =IF(INTRO!$E$39<>"Non endémique", 0, IF(INTRO!$E$37="Non endémique",0,IF(COUNTRY_INFO!$H43=1,COUNTRY_INFO!F43,0))) -> 0 | F43: =IF(INTRO!$E$39<>"Non endémique", 0, IF(INTRO!$E$37="Non endémique",0,IF(COUNTRY_INFO!$H43=1,COUNTRY_INFO!G43,0))) -> 0 | G43: 0 | H43: =IF(INTRO!$E$39="Non endémique",IF(INTRO!$E$37="Non endémique","Non requis",COUNTRY_INFO!V43),"Traiter avec IVM") -> Traiter avec IVM | I43: 0 | J43: 0 | L43: 0
A44: =IF(INTRO!$E$39<>"Non endémique", " ", IF(INTRO!$E$37="Non endémique"," ", IF(COUNTRY_INFO!A44=0," ",COUNTRY_INFO!A44))) ->  | B44: =IF(INTRO!$E$39<>"Non endémique", " ", IF(INTRO!$E$37="Non endémique"," ", IF(COUNTRY_INFO!B44=0," ",COUNTRY_INFO!B44))) ->  | C44: =IF(INTRO!$E$39<>"Non endémique", " ", IF(INTRO!$E$37="Non endémique"," ", IF(COUNTRY_INFO!C44=0," ",COUNTRY_INFO!C44))) ->  | D44: =IF(INTRO!$E$39<>"Non endémique", 0, IF(INTRO!$E$37="Non endémique",0,IF(COUNTRY_INFO!$H44=1,COUNTRY_INFO!E44,0))) -> 0 | E44: =IF(INTRO!$E$39<>"Non endémique", 0, IF(INTRO!$E$37="Non endémique",0,IF(COUNTRY_INFO!$H44=1,COUNTRY_INFO!F44,0))) -> 0 | F44: =IF(INTRO!$E$39<>"Non endémique", 0, IF(INTRO!$E$37="Non endémique",0,IF(COUNTRY_INFO!$H44=1,COUNTRY_INFO!G44,0))) -> 0 | G44: 0 | H44: =IF(INTRO!$E$39="Non endémique",IF(INTRO!$E$37="Non endémique","Non requis",COUNTRY_INFO!V44),"Traiter avec IVM") -> Traiter avec IVM | I44: 0 | J44: 0 | L44: 0
A45: =IF(INTRO!$E$39<>"Non endémique", " ", IF(INTRO!$E$37="Non endémique"," ", IF(COUNTRY_INFO!A45=0," ",COUNTRY_INFO!A45))) ->  | B45: =IF(INTRO!$E$39<>"Non endémique", " ", IF(INTRO!$E$37="Non endémique"," ", IF(COUNTRY_INFO!B45=0," ",COUNTRY_INFO!B45))) ->  | C45: =IF(INTRO!$E$39<>"Non endémique", " ", IF(INTRO!$E$37="Non endémique"," ", IF(COUNTRY_INFO!C45=0," ",COUNTRY_INFO!C45))) ->  | D45: =IF(INTRO!$E$39<>"Non endémique", 0, IF(INTRO!$E$37="Non endémique",0,IF(COUNTRY_INFO!$H45=1,COUNTRY_INFO!E45,0))) -> 0 | E45: =IF(INTRO!$E$39<>"Non endémique", 0, IF(INTRO!$E$37="Non endémique",0,IF(COUNTRY_INFO!$H45=1,COUNTRY_INFO!F45,0))) -> 0 | F45: =IF(INTRO!$E$39<>"Non endémique", 0, IF(INTRO!$E$37="Non endémique",0,IF(COUNTRY_INFO!$H45=1,COUNTRY_INFO!G45,0))) -> 0 | G45: 0 | H45: =IF(INTRO!$E$39="Non endémique",IF(INTRO!$E$37="Non endémique","Non requis",COUNTRY_INFO!V45),"Traiter avec IVM") -> Traiter avec IVM | I45: 0 | J45: 0 | L45: 0
A46: =IF(INTRO!$E$39<>"Non endémique", " ", IF(INTRO!$E$37="Non endémique"," ", IF(COUNTRY_INFO!A46=0," ",COUNTRY_INFO!A46))) ->  | B46: =IF(INTRO!$E$39<>"Non endémique", " ", IF(INTRO!$E$37="Non endémique"," ", IF(COUNTRY_INFO!B46=0," ",COUNTRY_INFO!B46))) ->  | C46: =IF(INTRO!$E$39<>"Non endémique", " ", IF(INTRO!$E$37="Non endémique"," ", IF(COUNTRY_INFO!C46=0," ",COUNTRY_INFO!C46))) ->  | D46: =IF(INTRO!$E$39<>"Non endémique", 0, IF(INTRO!$E$37="Non endémique",0,IF(COUNTRY_INFO!$H46=1,COUNTRY_INFO!E46,0))) -> 0 | E46: =IF(INTRO!$E$39<>"Non endémique", 0, IF(INTRO!$E$37="Non endémique",0,IF(COUNTRY_INFO!$H46=1,COUNTRY_INFO!F46,0))) -> 0 | F46: =IF(INTRO!$E$39<>"Non endémique", 0, IF(INTRO!$E$37="Non endémique",0,IF(COUNTRY_INFO!$H46=1,COUNTRY_INFO!G46,0))) -> 0 | G46: 0 | H46: =IF(INTRO!$E$39="Non endémique",IF(INTRO!$E$37="Non endémique","Non requis",COUNTRY_INFO!V46),"Traiter avec IVM") -> Traiter avec IVM | I46: 0 | J46: 0 | L46: 0
A47: =IF(INTRO!$E$39<>"Non endémique", " ", IF(INTRO!$E$37="Non endémique"," ", IF(COUNTRY_INFO!A47=0," ",COUNTRY_INFO!A47))) ->  | B47: =IF(INTRO!$E$39<>"Non endémique", " ", IF(INTRO!$E$37="Non endémique"," ", IF(COUNTRY_INFO!B47=0," ",COUNTRY_INFO!B47))) ->  | C47: =IF(INTRO!$E$39<>"Non endémique", " ", IF(INTRO!$E$37="Non endémique"," ", IF(COUNTRY_INFO!C47=0," ",COUNTRY_INFO!C47))) ->  | D47: =IF(INTRO!$E$39<>"Non endémique", 0, IF(INTRO!$E$37="Non endémique",0,IF(COUNTRY_INFO!$H47=1,COUNTRY_INFO!E47,0))) -> 0 | E47: =IF(INTRO!$E$39<>"Non endémique", 0, IF(INTRO!$E$37="Non endémique",0,IF(COUNTRY_INFO!$H47=1,COUNTRY_INFO!F47,0))) -> 0 | F47: =IF(INTRO!$E$39<>"Non endémique", 0, IF(INTRO!$E$37="Non endémique",0,IF(COUNTRY_INFO!$H47=1,COUNTRY_INFO!G47,0))) -> 0 | G47: 0 | H47: =IF(INTRO!$E$39="Non endémique",IF(INTRO!$E$37="Non endémique","Non requis",COUNTRY_INFO!V47),"Traiter avec IVM") -> Traiter avec IVM | I47: 0 | J47: 0 | L47: 0
A48: =IF(INTRO!$E$39<>"Non endémique", " ", IF(INTRO!$E$37="Non endémique"," ", IF(COUNTRY_INFO!A48=0," ",COUNTRY_INFO!A48))) ->  | B48: =IF(INTRO!$E$39<>"Non endémique", " ", IF(INTRO!$E$37="Non endémique"," ", IF(COUNTRY_INFO!B48=0," ",COUNTRY_INFO!B48))) ->  | C48: =IF(INTRO!$E$39<>"Non endémique", " ", IF(INTRO!$E$37="Non endémique"," ", IF(COUNTRY_INFO!C48=0," ",COUNTRY_INFO!C48))) ->  | D48: =IF(INTRO!$E$39<>"Non endémique", 0, IF(INTRO!$E$37="Non endémique",0,IF(COUNTRY_INFO!$H48=1,COUNTRY_INFO!E48,0))) -> 0 | E48: =IF(INTRO!$E$39<>"Non endémique", 0, IF(INTRO!$E$37="Non endémique",0,IF(COUNTRY_INFO!$H48=1,COUNTRY_INFO!F48,0))) -> 0 | F48: =IF(INTRO!$E$39<>"Non endémique", 0, IF(INTRO!$E$37="Non endémique",0,IF(COUNTRY_INFO!$H48=1,COUNTRY_INFO!G48,0))) -> 0 | G48: 0 | H48: =IF(INTRO!$E$39="Non endémique",IF(INTRO!$E$37="Non endémique","Non requis",COUNTRY_INFO!V48),"Traiter avec IVM") -> Traiter avec IVM | I48: 0 | J48: 0 | L48: 0

Sheet ALB_MBD
A1: Albendazole (ALB) et Mebendazole (MBD) | G1: Choisir le médicament pour le traitement de STH pour chaque groupe d'âge
A2: Structure administrative, population ciblée par groupe d'âge, plan de traitement et information sur les comprimés | G2: ALB | I2: ALB | J2: ALB
A4: TOTAL | F4: =SUBTOTAL(9,F$10:F$1010) -> 0 | H4: =SUBTOTAL(9,H$10:H$1010) -> 1568492 | I4: 2940924 | K4: 623346 | L4: 5132762 | M4: 0 | N4: 0 | O4: 0 | P4: 5132762 | Q4: 0 | R4: 5132762 | S4: 0 | T4: 0 | U4: 0
A6: Structure administrative du pays | D6: Plan de traitement | F6: Population couverte par le PEFL avec ALB | G6: Population cible pour STH | M6: Albendazole (ALB) | S6: Mebendazole (MBD)
A7: Pays | B7: Région/Département | C7: District | D7: FL | E7: STH | G7: EAPréS | I7: EAS | J7: FAP | L7: Total | M7: Total requis (FL) | N7: Reste en stock (FL) | O7: Comprimés devant être fournis (FL) | P7: Total requis (STH) | Q7: Reste en stock (STH) | R7: Comprimés devant être fournis (STH) | S7: Total requis | T7: Reste en stock | U7: Comprimés devant être fournis
G8: Tournées | H8: Personnes | I8: Personnes | J8: Tournées | K8: Personnes
A10: =IF(AND(INTRO!$E$37="Non endémique",INTRO!$E$41="Non endémique")," ",IF(COUNTRY_INFO!A10=0," ",COUNTRY_INFO!A10)) -> TOGO | B10: =IF(AND(INTRO!$E$37="Non endémique",INTRO!$E$41="Non endémique")," ",IF(COUNTRY_INFO!B10=0," ",COUNTRY_INFO!B10)) -> CENTRALE | C10: =IF(AND(INTRO!$E$37="Non endémique",INTRO!$E$41="Non endémique")," ",IF(COUNTRY_INFO!C10=0," ",COUNTRY_INFO!C10)) -> BLITTA | D10: =IF(AND(INTRO!$E$37="Non endémique",INTRO!$E$41="Non endémique"),0,COUNTRY_INFO!V10) -> 0 | E10: =IF(AND(INTRO!$E$37="Non endémique",INTRO!$E$41="Non endémique"),0,COUNTRY_INFO!X10) -> 1 | F10: =IF(INTRO!$E$39="Non endémique",IF($D10=1,DEC!I10,0),IF($D10=1,IVM!G10,0)) -> 0 | G10: 1 | H10: =IF(OR(COUNTRY_INFO!N10="Inconnu",COUNTRY_INFO!N10="Surveillance",COUNTRY_INFO!N10="Non requis",COUNTRY_INFO!N10=0),0,IF(INTRO!$E$39="Non endémique",IF(AND($E10<>0,$G10=""),IF($F10=0,COUNTRY_INFO!N10*$E10,COUNTRY_INFO!N10*($E10-$D10)),IF(AND($E10<>0,$G10<>0),IF($F10=0,COUNTRY_INFO!N10*$G10,COUNTRY_INFO!N10*($G10-$D10)),0)),IF($G10="",COUNTRY_INFO!N10*$E10,COUNTRY_INFO!N10*$G10))) -> 27339 | I10: =IF(OR(COUNTRY_INFO!O10="Inconnu",COUNTRY_INFO!O10="Surveillance",COUNTRY_INFO!O10="Non requis",COUNTRY_INFO!O10=0),0,IF($E10<>0, IF($F10=0,COUNTRY_INFO!O10*$E10,COUNTRY_INFO!O10*($E10-$D10)),COUNTRY_INFO!O10*$E10)) -> 51261 | J10: 0 | K10: =IF(OR(COUNTRY_INFO!P10="Inconnu",COUNTRY_INFO!P10="Surveillance",COUNTRY_INFO!P10="Non requis",COUNTRY_INFO!P10=0),0,IF(AND($E10<>0,$J10=""),IF($F10=0,COUNTRY_INFO!P10*$E10,COUNTRY_INFO!P10*($E10-$D10)), IF(AND($E10<>0,$J10<>0),IF($F10=0,COUNTRY_INFO!P10*$J10,COUNTRY_INFO!P10*($J10-$D10)), COUNTRY_INFO!P10*$J10))) -> 0 | L10: =ROUND($H10,0)+ROUND($I10,0)+ROUND($K10,0) -> 78600 | M10: =$F10 -> 0 | O10: =IF($M10>$N10, $M10-$N10,0) -> 0 | P10: =ROUND((IF($G$2="ALB",$H10,0)+IF($I$2="ALB",$I10,0)+IF($J$2="ALB",$K10,0)),0) -> 78600 | R10: =IF($P10>$Q10,$P10-$Q10,0) -> 78600 | S10: =ROUND((IF($G$2="MBD",$H10,0)+IF($I$2="MBD",$I10,0)+IF($J$2="MBD",$K10,0)),0) -> 0 | U10: =IF($S10>$T10,$S10-$T10,0) -> 0
A11: =IF(AND(INTRO!$E$37="Non endémique",INTRO!$E$41="Non endémique")," ",IF(COUNTRY_INFO!A11=0," ",COUNTRY_INFO!A11)) -> TOGO | B11: =IF(AND(INTRO!$E$37="Non endémique",INTRO!$E$41="Non endémique")," ",IF(COUNTRY_INFO!B11=0," ",COUNTRY_INFO!B11)) -> CENTRALE | C11: =IF(AND(INTRO!$E$37="Non endémique",INTRO!$E$41="Non endémique")," ",IF(COUNTRY_INFO!C11=0," ",COUNTRY_INFO!C11)) -> MÔ | D11: =IF(AND(INTRO!$E$37="Non endémique",INTRO!$E$41="Non endémique"),0,COUNTRY_INFO!V11) -> 0 | E11: =IF(AND(INTRO!$E$37="Non endémique",INTRO!$E$41="Non endémique"),0,COUNTRY_INFO!X11) -> 1 | F11: =IF(INTRO!$E$39="Non endémique",IF($D11=1,DEC!I11,0),IF($D11=1,IVM!G11,0)) -> 0 | G11: 1 | H11: =IF(OR(COUNTRY_INFO!N11="Inconnu",COUNTRY_INFO!N11="Surveillance",COUNTRY_INFO!N11="Non requis",COUNTRY_INFO!N11=0),0,IF(INTRO!$E$39="Non endémique",IF(AND($E11<>0,$G11=""),IF($F11=0,COUNTRY_INFO!N11*$E11,COUNTRY_INFO!N11*($E11-$D11)),IF(AND($E11<>0,$G11<>0),IF($F11=0,COUNTRY_INFO!N11*$G11,COUNTRY_INFO!N11*($G11-$D11)),0)),IF($G11="",COUNTRY_INFO!N11*$E11,COUNTRY_INFO!N11*$G11))) -> 8782 | I11: =IF(OR(COUNTRY_INFO!O11="Inconnu",COUNTRY_INFO!O11="Surveillance",COUNTRY_INFO!O11="Non requis",COUNTRY_INFO!O11=0),0,IF($E11<>0, IF($F11=0,COUNTRY_INFO!O11*$E11,COUNTRY_INFO!O11*($E11-$D11)),COUNTRY_INFO!O11*$E11)) -> 16466 | J11: 0 | K11: =IF(OR(COUNTRY_INFO!P11="Inconnu",COUNTRY_INFO!P11="Surveillance",COUNTRY_INFO!P11="Non requis",COUNTRY_INFO!P11=0),0,IF(AND($E11<>0,$J11=""),IF($F11=0,COUNTRY_INFO!P11*$E11,COUNTRY_INFO!P11*($E11-$D11)), IF(AND($E11<>0,$J11<>0),IF($F11=0,COUNTRY_INFO!P11*$J11,COUNTRY_INFO!P11*($J11-$D11)), COUNTRY_INFO!P11*$J11))) -> 0 | L11: 25248 | M11: 0 | O11: 0 | P11: 25248 | R11: 25248 | S11: 0 | U11: 0
A12: =IF(AND(INTRO!$E$37="Non endémique",INTRO!$E$41="Non endémique")," ",IF(COUNTRY_INFO!A12=0," ",COUNTRY_INFO!A12)) -> TOGO | B12: =IF(AND(INTRO!$E$37="Non endémique",INTRO!$E$41="Non endémique")," ",IF(COUNTRY_INFO!B12=0," ",COUNTRY_INFO!B12)) -> CENTRALE | C12: =IF(AND(INTRO!$E$37="Non endémique",INTRO!$E$41="Non endémique")," ",IF(COUNTRY_INFO!C12=0," ",COUNTRY_INFO!C12)) -> SOTOUBOUA | D12: =IF(AND(INTRO!$E$37="Non endémique",INTRO!$E$41="Non endémique"),0,COUNTRY_INFO!V12) -> 0 | E12: =IF(AND(INTRO!$E$37="Non endémique",INTRO!$E$41="Non endémique"),0,COUNTRY_INFO!X12) -> 1 | F12: =IF(INTRO!$E$39="Non endémique",IF($D12=1,DEC!I12,0),IF($D12=1,IVM!G12,0)) -> 0 | G12: 1 | H12: =IF(OR(COUNTRY_INFO!N12="Inconnu",COUNTRY_INFO!N12="Surveillance",COUNTRY_INFO!N12="Non requis",COUNTRY_INFO!N12=0),0,IF(INTRO!$E$39="Non endémique",IF(AND($E12<>0,$G12=""),IF($F12=0,COUNTRY_INFO!N12*$E12,COUNTRY_INFO!N12*($E12-$D12)),IF(AND($E12<>0,$G12<>0),IF($F12=0,COUNTRY_INFO!N12*$G12,COUNTRY_INFO!N12*($G12-$D12)),0)),IF($G12="",COUNTRY_INFO!N12*$E12,COUNTRY_INFO!N12*$G12))) -> 23252 | I12: =IF(OR(COUNTRY_INFO!O12="Inconnu",COUNTRY_INFO!O12="Surveillance",COUNTRY_INFO!O12="Non requis",COUNTRY_INFO!O12=0),0,IF($E12<>0, IF($F12=0,COUNTRY_INFO!O12*$E12,COUNTRY_INFO!O12*($E12-$D12)),COUNTRY_INFO!O12*$E12)) -> 43598 | J12: 0 | K12: =IF(OR(COUNTRY_INFO!P12="Inconnu",COUNTRY_INFO!P12="Surveillance",COUNTRY_INFO!P12="Non requis",COUNTRY_INFO!P12=0),0,IF(AND($E12<>0,$J12=""),IF($F12=0,COUNTRY_INFO!P12*$E12,COUNTRY_INFO!P12*($E12-$D12)), IF(AND($E12<>0,$J12<>0),IF($F12=0,COUNTRY_INFO!P12*$J12,COUNTRY_INFO!P12*($J12-$D12)), COUNTRY_INFO!P12*$J12))) -> 0 | L12: 66850 | M12: 0 | O12: 0 | P12: 66850 | R12: 66850 | S12: 0 | U12: 0
A13: =IF(AND(INTRO!$E$37="Non endémique",INTRO!$E$41="Non endémique")," ",IF(COUNTRY_INFO!A13=0," ",COUNTRY_INFO!A13)) -> TOGO | B13: =IF(AND(INTRO!$E$37="Non endémique",INTRO!$E$41="Non endémique")," ",IF(COUNTRY_INFO!B13=0," ",COUNTRY_INFO!B13)) -> CENTRALE | C13: =IF(AND(INTRO!$E$37="Non endémique",INTRO!$E$41="Non endémique")," ",IF(COUNTRY_INFO!C13=0," ",COUNTRY_INFO!C13)) -> TCHAMBA | D13: =IF(AND(INTRO!$E$37="Non endémique",INTRO!$E$41="Non endémique"),0,COUNTRY_INFO!V13) -> 0 | E13: =IF(AND(INTRO!$E$37="Non endémique",INTRO!$E$41="Non endémique"),0,COUNTRY_INFO!X13) -> 1 | F13: =IF(INTRO!$E$39="Non endémique",IF($D13=1,DEC!I13,0),IF($D13=1,IVM!G13,0)) -> 0 | G13: 1 | H13: =IF(OR(COUNTRY_INFO!N13="Inconnu",COUNTRY_INFO!N13="Surveillance",COUNTRY_INFO!N13="Non requis",COUNTRY_INFO!N13=0),0,IF(INTRO!$E$39="Non endémique",IF(AND($E13<>0,$G13=""),IF($F13=0,COUNTRY_INFO!N13*$E13,COUNTRY_INFO!N13*($E13-$D13)),IF(AND($E13<>0,$G13<>0),IF($F13=0,COUNTRY_INFO!N13*$G13,COUNTRY_INFO!N13*($G13-$D13)),0)),IF($G13="",COUNTRY_INFO!N13*$E13,COUNTRY_INFO!N13*$G13))) -> 33587 | I13: =IF(OR(COUNTRY_INFO!O13="Inconnu",COUNTRY_INFO!O13="Surveillance",COUNTRY_INFO!O13="Non requis",COUNTRY_INFO!O13=0),0,IF($E13<>0, IF($F13=0,COUNTRY_INFO!O13*$E13,COUNTRY_INFO!O13*($E13-$D13)),COUNTRY_INFO!O13*$E13)) -> 62975 | J13: 0 | K13: =IF(OR(COUNTRY_INFO!P13="Inconnu",COUNTRY_INFO!P13="Surveillance",COUNTRY_INFO!P13="Non requis",COUNTRY_INFO!P13=0),0,IF(AND($E13<>0,$J13=""),IF($F13=0,COUNTRY_INFO!P13*$E13,COUNTRY_INFO!P13*($E13-$D13)), IF(AND($E13<>0,$J13<>0),IF($F13=0,COUNTRY_INFO!P13*$J13,COUNTRY_INFO!P13*($J13-$D13)), COUNTRY_INFO!P13*$J13))) -> 0 | L13: 96562 | M13: 0 | O13: 0 | P13: 96562 | R13: 96562 | S13: 0 | U13: 0
A14: =IF(AND(INTRO!$E$37="Non endémique",INTRO!$E$41="Non endémique")," ",IF(COUNTRY_INFO!A14=0," ",COUNTRY_INFO!A14)) -> TOGO | B14: =IF(AND(INTRO!$E$37="Non endémique",INTRO!$E$41="Non endémique")," ",IF(COUNTRY_INFO!B14=0," ",COUNTRY_INFO!B14)) -> CENTRALE | C14: =IF(AND(INTRO!$E$37="Non endémique",INTRO!$E$41="Non endémique")," ",IF(COUNTRY_INFO!C14=0," ",COUNTRY_INFO!C14)) -> TCHAOUDJO | D14: =IF(AND(INTRO!$E$37="Non endémique",INTRO!$E$41="Non endémique"),0,COUNTRY_INFO!V14) -> 0 | E14: =IF(AND(INTRO!$E$37="Non endémique",INTRO!$E$41="Non endémique"),0,COUNTRY_INFO!X14) -> 1 | F14: =IF(INTRO!$E$39="Non endémique",IF($D14=1,DEC!I14,0),IF($D14=1,IVM!G14,0)) -> 0 | G14: 1 | H14: =IF(OR(COUNTRY_INFO!N14="Inconnu",COUNTRY_INFO!N14="Surveillance",COUNTRY_INFO!N14="Non requis",COUNTRY_INFO!N14=0),0,IF(INTRO!$E$39="Non endémique",IF(AND($E14<>0,$G14=""),IF($F14=0,COUNTRY_INFO!N14*$E14,COUNTRY_INFO!N14*($E14-$D14)),IF(AND($E14<>0,$G14<>0),IF($F14=0,COUNTRY_INFO!N14*$G14,COUNTRY_INFO!N14*($G14-$D14)),0)),IF($G14="",COUNTRY_INFO!N14*$E14,COUNTRY_INFO!N14*$G14))) -> 40247 | I14: =IF(OR(COUNTRY_INFO!O14="Inconnu",COUNTRY_INFO!O14="Surveillance",COUNTRY_INFO!O14="Non requis",COUNTRY_INFO!O14=0),0,IF($E14<>0, IF($F14=0,COUNTRY_INFO!O14*$E14,COUNTRY_INFO!O14*($E14-$D14)),COUNTRY_INFO!O14*$E14)) -> 75463 | J14: 0 | K14: =IF(OR(COUNTRY_INFO!P14="Inconnu",COUNTRY_INFO!P14="Surveillance",COUNTRY_INFO!P14="Non requis",COUNTRY_INFO!P14=0),0,IF(AND($E14<>0,$J14=""),IF($F14=0,COUNTRY_INFO!P14*$E14,COUNTRY_INFO!P14*($E14-$D14)), IF(AND($E14<>0,$J14<>0),IF($F14=0,COUNTRY_INFO!P14*$J14,COUNTRY_INFO!P14*($J14-$D14)), COUNTRY_INFO!P14*$J14))) -> 0 | L14: 115710 | M14: 0 | O14: 0 | P14: 115710 | R14: 115710 | S14: 0 | U14: 0
A15: =IF(AND(INTRO!$E$37="Non endémique",INTRO!$E$41="Non endémique")," ",IF(COUNTRY_INFO!A15=0," ",COUNTRY_INFO!A15)) -> TOGO | B15: =IF(AND(INTRO!$E$37="Non endémique",INTRO!$E$41="Non endémique")," ",IF(COUNTRY_INFO!B15=0," ",COUNTRY_INFO!B15)) -> GRAND LOME | C15: =IF(AND(INTRO!$E$37="Non endémique",INTRO!$E$41="Non endémique")," ",IF(COUNTRY_INFO!C15=0," ",COUNTRY_INFO!C15)) -> AGOE-NYIVE | D15: =IF(AND(INTRO!$E$37="Non endémique",INTRO!$E$41="Non endémique"),0,COUNTRY_INFO!V15) -> 0 | E15: =IF(AND(INTRO!$E$37="Non endémique",INTRO!$E$41="Non endémique"),0,COUNTRY_INFO!X15) -> 1 | F15: =IF(INTRO!$E$39="Non endémique",IF($D15=1,DEC!I15,0),IF($D15=1,IVM!G15,0)) -> 0 | G15: 1 | H15: =IF(OR(COUNTRY_INFO!N15="Inconnu",COUNTRY_INFO!N15="Surveillance",COUNTRY_INFO!N15="Non requis",COUNTRY_INFO!N15=0),0,IF(INTRO!$E$39="Non endémique",IF(AND($E15<>0,$G15=""),IF($F15=0,COUNTRY_INFO!N15*$E15,COUNTRY_INFO!N15*($E15-$D15)),IF(AND($E15<>0,$G15<>0),IF($F15=0,COUNTRY_INFO!N15*$G15,COUNTRY_INFO!N15*($G15-$D15)),0)),IF($G15="",COUNTRY_INFO!N15*$E15,COUNTRY_INFO!N15*$G15))) -> 147803 | I15: =IF(OR(COUNTRY_INFO!O15="Inconnu",COUNTRY_INFO!O15="Surveillance",COUNTRY_INFO!O15="Non requis",COUNTRY_INFO!O15=0),0,IF($E15<>0, IF($F15=0,COUNTRY_INFO!O15*$E15,COUNTRY_INFO!O15*($E15-$D15)),COUNTRY_INFO!O15*$E15)) -> 277130 | J15: 0 | K15: =IF(OR(COUNTRY_INFO!P15="Inconnu",COUNTRY_INFO!P15="Surveillance",COUNTRY_INFO!P15="Non requis",COUNTRY_INFO!P15=0),0,IF(AND($E15<>0,$J15=""),IF($F15=0,COUNTRY_INFO!P15*$E15,COUNTRY_INFO!P15*($E15-$D15)), IF(AND($E15<>0,$J15<>0),IF($F15=0,COUNTRY_INFO!P15*$J15,COUNTRY_INFO!P15*($J15-$D15)), COUNTRY_INFO!P15*$J15))) -> 0 | L15: 424933 | M15: 0 | O15: 0 | P15: 424933 | R15: 424933 | S15: 0 | U15: 0
A16: =IF(AND(INTRO!$E$37="Non endémique",INTRO!$E$41="Non endémique")," ",IF(COUNTRY_INFO!A16=0," ",COUNTRY_INFO!A16)) -> TOGO | B16: =IF(AND(INTRO!$E$37="Non endémique",INTRO!$E$41="Non endémique")," ",IF(COUNTRY_INFO!B16=0," ",COUNTRY_INFO!B16)) -> GRAND LOME | C16: =IF(AND(INTRO!$E$37="Non endémique",INTRO!$E$41="Non endémique")," ",IF(COUNTRY_INFO!C16=0," ",COUNTRY_INFO!C16)) -> GOLFE | D16: =IF(AND(INTRO!$E$37="Non endémique",INTRO!$E$41="Non endémique"),0,COUNTRY_INFO!V16) -> 0 | E16: =IF(AND(INTRO!$E$37="Non endémique",INTRO!$E$41="Non endémique"),0,COUNTRY_INFO!X16) -> 1 | F16: =IF(INTRO!$E$39="Non endémique",IF($D16=1,DEC!I16,0),IF($D16=1,IVM!G16,0)) -> 0 | G16: 1 | H16: =IF(OR(COUNTRY_INFO!N16="Inconnu",COUNTRY_INFO!N16="Surveillance",COUNTRY_INFO!N16="Non requis",COUNTRY_INFO!N16=0),0,IF(INTRO!$E$39="Non endémique",IF(AND($E16<>0,$G16=""),IF($F16=0,COUNTRY_INFO!N16*$E16,COUNTRY_INFO!N16*($E16-$D16)),IF(AND($E16<>0,$G16<>0),IF($F16=0,COUNTRY_INFO!N16*$G16,COUNTRY_INFO!N16*($G16-$D16)),0)),IF($G16="",COUNTRY_INFO!N16*$E16,COUNTRY_INFO!N16*$G16))) -> 218629 | I16: =IF(OR(COUNTRY_INFO!O16="Inconnu",COUNTRY_INFO!O16="Surveillance",COUNTRY_INFO!O16="Non requis",COUNTRY_INFO!O16=0),0,IF($E16<>0, IF($F16=0,COUNTRY_INFO!O16*$E16,COUNTRY_INFO!O16*($E16-$D16)),COUNTRY_INFO!O16*$E16)) -> 409930 | J16: 0 | K16: =IF(OR(COUNTRY_INFO!P16="Inconnu",COUNTRY_INFO!P16="Surveillance",COUNTRY_INFO!P16="Non requis",COUNTRY_INFO!P16=0),0,IF(AND($E16<>0,$J16=""),IF($F16=0,COUNTRY_INFO!P16*$E16,COUNTRY_INFO!P16*($E16-$D16)), IF(AND($E16<>0,$J16<>0),IF($F16=0,COUNTRY_INFO!P16*$J16,COUNTRY_INFO!P16*($J16-$D16)), COUNTRY_INFO!P16*$J16))) -> 0 | L16: 628559 | M16: 0 | O16: 0 | P16: 628559 | R16: 628559 | S16: 0 | U16: 0
A17: =IF(AND(INTRO!$E$37="Non endémique",INTRO!$E$41="Non endémique")," ",IF(COUNTRY_INFO!A17=0," ",COUNTRY_INFO!A17)) -> TOGO | B17: =IF(AND(INTRO!$E$37="Non endémique",INTRO!$E$41="Non endémique")," ",IF(COUNTRY_INFO!B17=0," ",COUNTRY_INFO!B17)) -> KARA | C17: =IF(AND(INTRO!$E$37="Non endémique",INTRO!$E$41="Non endémique")," ",IF(COUNTRY_INFO!C17=0," ",COUNTRY_INFO!C17)) -> ASSOLI | D17: =IF(AND(INTRO!$E$37="Non endémique",INTRO!$E$41="Non endémique"),0,COUNTRY_INFO!V17) -> 0 | E17: =IF(AND(INTRO!$E$37="Non endémique",INTRO!$E$41="Non endémique"),0,COUNTRY_INFO!X17) -> 1 | F17: =IF(INTRO!$E$39="Non endémique",IF($D17=1,DEC!I17,0),IF($D17=1,IVM!G17,0)) -> 0 | G17: 1 | H17: =IF(OR(COUNTRY_INFO!N17="Inconnu",COUNTRY_INFO!N17="Surveillance",COUNTRY_INFO!N17="Non requis",COUNTRY_INFO!N17=0),0,IF(INTRO!$E$39="Non endémique",IF(AND($E17<>0,$G17=""),IF($F17=0,COUNTRY_INFO!N17*$E17,COUNTRY_INFO!N17*($E17-$D17)),IF(AND($E17<>0,$G17<>0),IF($F17=0,COUNTRY_INFO!N17*$G17,COUNTRY_INFO!N17*($G17-$D17)),0)),IF($G17="",COUNTRY_INFO!N17*$E17,COUNTRY_INFO!N17*$G17))) -> 11117 | I17: =IF(OR(COUNTRY_INFO!O17="Inconnu",COUNTRY_INFO!O17="Surveillance",COUNTRY_INFO!O17="Non requis",COUNTRY_INFO!O17=0),0,IF($E17<>0, IF($F17=0,COUNTRY_INFO!O17*$E17,COUNTRY_INFO!O17*($E17-$D17)),COUNTRY_INFO!O17*$E17)) -> 20845 | J17: 0 | K17: =IF(OR(COUNTRY_INFO!P17="Inconnu",COUNTRY_INFO!P17="Surveillance",COUNTRY_INFO!P17="Non requis",COUNTRY_INFO!P17=0),0,IF(AND($E17<>0,$J17=""),IF($F17=0,COUNTRY_INFO!P17*$E17,COUNTRY_INFO!P17*($E17-$D17)), IF(AND($E17<>0,$J17<>0),IF($F17=0,COUNTRY_INFO!P17*$J17,COUNTRY_INFO!P17*($J17-$D17)), COUNTRY_INFO!P17*$J17))) -> 0 | L17: 31962 | M17: 0 | O17: 0 | P17: 31962 | R17: 31962 | S17: 0 | U17: 0
A18: =IF(AND(INTRO!$E$37="Non endémique",INTRO!$E$41="Non endémique")," ",IF(COUNTRY_INFO!A18=0," ",COUNTRY_INFO!A18)) -> TOGO | B18: =IF(AND(INTRO!$E$37="Non endémique",INTRO!$E$41="Non endémique")," ",IF(COUNTRY_INFO!B18=0," ",COUNTRY_INFO!B18)) -> KARA | C18: =IF(AND(INTRO!$E$37="Non endémique",INTRO!$E$41="Non endémique")," ",IF(COUNTRY_INFO!C18=0," ",COUNTRY_INFO!C18)) -> BASSAR | D18: =IF(AND(INTRO!$E$37="Non endémique",INTRO!$E$41="Non endémique"),0,COUNTRY_INFO!V18) -> 0 | E18: =IF(AND(INTRO!$E$37="Non endémique",INTRO!$E$41="Non endémique"),0,COUNTRY_INFO!X18) -> 1 | F18: =IF(INTRO!$E$39="Non endémique",IF($D18=1,DEC!I18,0),IF($D18=1,IVM!G18,0)) -> 0 | G18: 1 | H18: =IF(OR(COUNTRY_INFO!N18="Inconnu",COUNTRY_INFO!N18="Surveillance",COUNTRY_INFO!N18="Non requis",COUNTRY_INFO!N18=0),0,IF(INTRO!$E$39="Non endémique",IF(AND($E18<>0,$G18=""),IF($F18=0,COUNTRY_INFO!N18*$E18,COUNTRY_INFO!N18*($E18-$D18)),IF(AND($E18<>0,$G18<>0),IF($F18=0,COUNTRY_INFO!N18*$G18,COUNTRY_INFO!N18*($G18-$D18)),0)),IF($G18="",COUNTRY_INFO!N18*$E18,COUNTRY_INFO!N18*$G18))) -> 25462 | I18: =IF(OR(COUNTRY_INFO!O18="Inconnu",COUNTRY_INFO!O18="Surveillance",COUNTRY_INFO!O18="Non requis",COUNTRY_INFO!O18=0),0,IF($E18<>0, IF($F18=0,COUNTRY_INFO!O18*$E18,COUNTRY_INFO!O18*($E18-$D18)),COUNTRY_INFO!O18*$E18)) -> 47742 | J18: 0 | K18: =IF(OR(COUNTRY_INFO!P18="Inconnu",COUNTRY_INFO!P18="Surveillance",COUNTRY_INFO!P18="Non requis",COUNTRY_INFO!P18=0),0,IF(AND($E18<>0,$J18=""),IF($F18=0,COUNTRY_INFO!P18*$E18,COUNTRY_INFO!P18*($E18-$D18)), IF(AND($E18<>0,$J18<>0),IF($F18=0,COUNTRY_INFO!P18*$J18,COUNTRY_INFO!P18*($J18-$D18)), COUNTRY_INFO!P18*$J18))) -> 0 | L18: 73204 | M18: 0 | O18: 0 | P18: 73204 | R18: 73204 | S18: 0 | U18: 0
A19: =IF(AND(INTRO!$E$37="Non endémique",INTRO!$E$41="Non endémique")," ",IF(COUNTRY_INFO!A19=0," ",COUNTRY_INFO!A19)) -> TOGO | B19: =IF(AND(INTRO!$E$37="Non endémique",INTRO!$E$41="Non endémique")," ",IF(COUNTRY_INFO!B19=0," ",COUNTRY_INFO!B19)) -> KARA | C19: =IF(AND(INTRO!$E$37="Non endémique",INTRO!$E$41="Non endémique")," ",IF(COUNTRY_INFO!C19=0," ",COUNTRY_INFO!C19)) -> BINAH | D19: =IF(AND(INTRO!$E$37="Non endémique",INTRO!$E$41="Non endémique"),0,COUNTRY_INFO!V19) -> 0 | E19: =IF(AND(INTRO!$E$37="Non endémique",INTRO!$E$41="Non endémique"),0,COUNTRY_INFO!X19) -> 1 | F19: =IF(INTRO!$E$39="Non endémique",IF($D19=1,DEC!I19,0),IF($D19=1,IVM!G19,0)) -> 0 | G19: 1 | H19: =IF(OR(COUNTRY_INFO!N19="Inconnu",COUNTRY_INFO!N19="Surveillance",COUNTRY_INFO!N19="Non requis",COUNTRY_INFO!N19=0),0,IF(INTRO!$E$39="Non endémique",IF(AND($E19<>0,$G19=""),IF($F19=0,COUNTRY_INFO!N19*$E19,COUNTRY_INFO!N19*($E19-$D19)),IF(AND($E19<>0,$G19<>0),IF($F19=0,COUNTRY_INFO!N19*$G19,COUNTRY_INFO!N19*($G19-$D19)),0)),IF($G19="",COUNTRY_INFO!N19*$E19,COUNTRY_INFO!N19*$G19))) -> 14099 | I19: =IF(OR(COUNTRY_INFO!O19="Inconnu",COUNTRY_INFO!O19="Surveillance",COUNTRY_INFO!O19="Non requis",COUNTRY_INFO!O19=0),0,IF($E19<>0, IF($F19=0,COUNTRY_INFO!O19*$E19,COUNTRY_INFO!O19*($E19-$D19)),COUNTRY_INFO!O19*$E19)) -> 26435 | J19: 0 | K19: =IF(OR(COUNTRY_INFO!P19="Inconnu",COUNTRY_INFO!P19="Surveillance",COUNTRY_INFO!P19="Non requis",COUNTRY_INFO!P19=0),0,IF(AND($E19<>0,$J19=""),IF($F19=0,COUNTRY_INFO!P19*$E19,COUNTRY_INFO!P19*($E19-$D19)), IF(AND($E19<>0,$J19<>0),IF($F19=0,COUNTRY_INFO!P19*$J19,COUNTRY_INFO!P19*($J19-$D19)), COUNTRY_INFO!P19*$J19))) -> 0 | L19: 40534 | M19: 0 | O19: 0 | P19: 40534 | R19: 40534 | S19: 0 | U19: 0
A20: =IF(AND(INTRO!$E$37="Non endémique",INTRO!$E$41="Non endémique")," ",IF(COUNTRY_INFO!A20=0," ",COUNTRY_INFO!A20)) -> TOGO | B20: =IF(AND(INTRO!$E$37="Non endémique",INTRO!$E$41="Non endémique")," ",IF(COUNTRY_INFO!B20=0," ",COUNTRY_INFO!B20)) -> KARA | C20: =IF(AND(INTRO!$E$37="Non endémique",INTRO!$E$41="Non endémique")," ",IF(COUNTRY_INFO!C20=0," ",COUNTRY_INFO!C20)) -> DANKPEN | D20: =IF(AND(INTRO!$E$37="Non endémique",INTRO!$E$41="Non endémique"),0,COUNTRY_INFO!V20) -> 0 | E20: =IF(AND(INTRO!$E$37="Non endémique",INTRO!$E$41="Non endémique"),0,COUNTRY_INFO!X20) -> 1 | F20: =IF(INTRO!$E$39="Non endémique",IF($D20=1,DEC!I20,0),IF($D20=1,IVM!G20,0)) -> 0 | G20: 1 | H20: =IF(OR(COUNTRY_INFO!N20="Inconnu",COUNTRY_INFO!N20="Surveillance",COUNTRY_INFO!N20="Non requis",COUNTRY_INFO!N20=0),0,IF(INTRO!$E$39="Non endémique",IF(AND($E20<>0,$G20=""),IF($F20=0,COUNTRY_INFO!N20*$E20,COUNTRY_INFO!N20*($E20-$D20)),IF(AND($E20<>0,$G20<>0),IF($F20=0,COUNTRY_INFO!N20*$G20,COUNTRY_INFO!N20*($G20-$D20)),0)),IF($G20="",COUNTRY_INFO!N20*$E20,COUNTRY_INFO!N20*$G20))) -> 31088 | I20: =IF(OR(COUNTRY_INFO!O20="Inconnu",COUNTRY_INFO!O20="Surveillance",COUNTRY_INFO!O20="Non requis",COUNTRY_INFO!O20=0),0,IF($E20<>0, IF($F20=0,COUNTRY_INFO!O20*$E20,COUNTRY_INFO!O20*($E20-$D20)),COUNTRY_INFO!O20*$E20)) -> 58290 | J20: 0 | K20: =IF(OR(COUNTRY_INFO!P20="Inconnu",COUNTRY_INFO!P20="Surveillance",COUNTRY_INFO!P20="Non requis",COUNTRY_INFO!P20=0),0,IF(AND($E20<>0,$J20=""),IF($F20=0,COUNTRY_INFO!P20*$E20,COUNTRY_INFO!P20*($E20-$D20)), IF(AND($E20<>0,$J20<>0),IF($F20=0,COUNTRY_INFO!P20*$J20,COUNTRY_INFO!P20*($J20-$D20)), COUNTRY_INFO!P20*$J20))) -> 0 | L20: 89378 | M20: 0 | O20: 0 | P20: 89378 | R20: 89378 | S20: 0 | U20: 0
A21: =IF(AND(INTRO!$E$37="Non endémique",INTRO!$E$41="Non endémique")," ",IF(COUNTRY_INFO!A21=0," ",COUNTRY_INFO!A21)) -> TOGO | B21: =IF(AND(INTRO!$E$37="Non endémique",INTRO!$E$41="Non endémique")," ",IF(COUNTRY_INFO!B21=0," ",COUNTRY_INFO!B21)) -> KARA | C21: =IF(AND(INTRO!$E$37="Non endémique",INTRO!$E$41="Non endémique")," ",IF(COUNTRY_INFO!C21=0," ",COUNTRY_INFO!C21)) -> DOUFELGOU | D21: =IF(AND(INTRO!$E$37="Non endémique",INTRO!$E$41="Non endémique"),0,COUNTRY_INFO!V21) -> 0 | E21: =IF(AND(INTRO!$E$37="Non endémique",INTRO!$E$41="Non endémique"),0,COUNTRY_INFO!X21) -> 1 | F21: =IF(INTRO!$E$39="Non endémique",IF($D21=1,DEC!I21,0),IF($D21=1,IVM!G21,0)) -> 0 | G21: 1 | H21: =IF(OR(COUNTRY_INFO!N21="Inconnu",COUNTRY_INFO!N21="Surveillance",COUNTRY_INFO!N21="Non requis",COUNTRY_INFO!N21=0),0,IF(INTRO!$E$39="Non endémique",IF(AND($E21<>0,$G21=""),IF($F21=0,COUNTRY_INFO!N21*$E21,COUNTRY_INFO!N21*($E21-$D21)),IF(AND($E21<>0,$G21<>0),IF($F21=0,COUNTRY_INFO!N21*$G21,COUNTRY_INFO!N21*($G21-$D21)),0)),IF($G21="",COUNTRY_INFO!N21*$E21,COUNTRY_INFO!N21*$G21))) -> 14194 | I21: =IF(OR(COUNTRY_INFO!O21="Inconnu",COUNTRY_INFO!O21="Surveillance",COUNTRY_INFO!O21="Non requis",COUNTRY_INFO!O21=0),0,IF($E21<>0, IF($F21=0,COUNTRY_INFO!O21*$E21,COUNTRY_INFO!O21*($E21-$D21)),COUNTRY_INFO!O21*$E21)) -> 26613 | J21: 0 | K21: =IF(OR(COUNTRY_INFO!P21="Inconnu",COUNTRY_INFO!P21="Surveillance",COUNTRY_INFO!P21="Non requis",COUNTRY_INFO!P21=0),0,IF(AND($E21<>0,$J21=""),IF($F21=0,COUNTRY_INFO!P21*$E21,COUNTRY_INFO!P21*($E21-$D21)), IF(AND($E21<>0,$J21<>0),IF($F21=0,COUNTRY_INFO!P21*$J21,COUNTRY_INFO!P21*($J21-$D21)), COUNTRY_INFO!P21*$J21))) -> 0 | L21: 40807 | M21: 0 | O21: 0 | P21: 40807 | R21: 40807 | S21: 0 | U21: 0
A22: =IF(AND(INTRO!$E$37="Non endémique",INTRO!$E$41="Non endémique")," ",IF(COUNTRY_INFO!A22=0," ",COUNTRY_INFO!A22)) -> TOGO | B22: =IF(AND(INTRO!$E$37="Non endémique",INTRO!$E$41="Non endémique")," ",IF(COUNTRY_INFO!B22=0," ",COUNTRY_INFO!B22)) -> KARA | C22: =IF(AND(INTRO!$E$37="Non endémique",INTRO!$E$41="Non endémique")," ",IF(COUNTRY_INFO!C22=0," ",COUNTRY_INFO!C22)) -> KERAN | D22: =IF(AND(INTRO!$E$37="Non endémique",INTRO!$E$41="Non endémique"),0,COUNTRY_INFO!V22) -> 0 | E22: =IF(AND(INTRO!$E$37="Non endémique",INTRO!$E$41="Non endémique"),0,COUNTRY_INFO!X22) -> 1 | F22: =IF(INTRO!$E$39="Non endémique",IF($D22=1,DEC!I22,0),IF($D22=1,IVM!G22,0)) -> 0 | G22: 1 | H22: =IF(OR(COUNTRY_INFO!N22="Inconnu",COUNTRY_INFO!N22="Surveillance",COUNTRY_INFO!N22="Non requis",COUNTRY_INFO!N22=0),0,IF(INTRO!$E$39="Non endémique",IF(AND($E22<>0,$G22=""),IF($F22=0,COUNTRY_INFO!N22*$E22,COUNTRY_INFO!N22*($E22-$D22)),IF(AND($E22<>0,$G22<>0),IF($F22=0,COUNTRY_INFO!N22*$G22,COUNTRY_INFO!N22*($G22-$D22)),0)),IF($G22="",COUNTRY_INFO!N22*$E22,COUNTRY_INFO!N22*$G22))) -> 21548 | I22: =IF(OR(COUNTRY_INFO!O22="Inconnu",COUNTRY_INFO!O22="Surveillance",COUNTRY_INFO!O22="Non requis",COUNTRY_INFO!O22=0),0,IF($E22<>0, IF($F22=0,COUNTRY_INFO!O22*$E22,COUNTRY_INFO!O22*($E22-$D22)),COUNTRY_INFO!O22*$E22)) -> 40403 | J22: 0 | K22: =IF(OR(COUNTRY_INFO!P22="Inconnu",COUNTRY_INFO!P22="Surveillance",COUNTRY_INFO!P22="Non requis",COUNTRY_INFO!P22=0),0,IF(AND($E22<>0,$J22=""),IF($F22=0,COUNTRY_INFO!P22*$E22,COUNTRY_INFO!P22*($E22-$D22)), IF(AND($E22<>0,$J22<>0),IF($F22=0,COUNTRY_INFO!P22*$J22,COUNTRY_INFO!P22*($J22-$D22)), COUNTRY_INFO!P22*$J22))) -> 0 | L22: 61951 | M22: 0 | O22: 0 | P22: 61951 | R22: 61951 | S22: 0 | U22: 0
A23: =IF(AND(INTRO!$E$37="Non endémique",INTRO!$E$41="Non endémique")," ",IF(COUNTRY_INFO!A23=0," ",COUNTRY_INFO!A23)) -> TOGO | B23: =IF(AND(INTRO!$E$37="Non endémique",INTRO!$E$41="Non endémique")," ",IF(COUNTRY_INFO!B23=0," ",COUNTRY_INFO!B23)) -> KARA | C23: =IF(AND(INTRO!$E$37="Non endémique",INTRO!$E$41="Non endémique")," ",IF(COUNTRY_INFO!C23=0," ",COUNTRY_INFO!C23)) -> KOZAH | D23: =IF(AND(INTRO!$E$37="Non endémique",INTRO!$E$41="Non endémique"),0,COUNTRY_INFO!V23) -> 0 | E23: =IF(AND(INTRO!$E$37="Non endémique",INTRO!$E$41="Non endémique"),0,COUNTRY_INFO!X23) -> 1 | F23: =IF(INTRO!$E$39="Non endémique",IF($D23=1,DEC!I23,0),IF($D23=1,IVM!G23,0)) -> 0 | G23: 1 | H23: =IF(OR(COUNTRY_INFO!N23="Inconnu",COUNTRY_INFO!N23="Surveillance",COUNTRY_INFO!N23="Non requis",COUNTRY_INFO!N23=0),0,IF(INTRO!$E$39="Non endémique",IF(AND($E23<>0,$G23=""),IF($F23=0,COUNTRY_INFO!N23*$E23,COUNTRY_INFO!N23*($E23-$D23)),IF(AND($E23<>0,$G23<>0),IF($F23=0,COUNTRY_INFO!N23*$G23,COUNTRY_INFO!N23*($G23-$D23)),0)),IF($G23="",COUNTRY_INFO!N23*$E23,COUNTRY_INFO!N23*$G23))) -> 47510 | I23: =IF(OR(COUNTRY_INFO!O23="Inconnu",COUNTRY_INFO!O23="Surveillance",COUNTRY_INFO!O23="Non requis",COUNTRY_INFO!O23=0),0,IF($E23<>0, IF($F23=0,COUNTRY_INFO!O23*$E23,COUNTRY_INFO!O23*($E23-$D23)),COUNTRY_INFO!O23*$E23)) -> 89082 | J23: 0 | K23: =IF(OR(COUNTRY_INFO!P23="Inconnu",COUNTRY_INFO!P23="Surveillance",COUNTRY_INFO!P23="Non requis",COUNTRY_INFO!P23=0),0,IF(AND($E23<>0,$J23=""),IF($F23=0,COUNTRY_INFO!P23*$E23,COUNTRY_INFO!P23*($E23-$D23)), IF(AND($E23<>0,$J23<>0),IF($F23=0,COUNTRY_INFO!P23*$J23,COUNTRY_INFO!P23*($J23-$D23)), COUNTRY_INFO!P23*$J23))) -> 0 | L23: 136592 | M23: 0 | O23: 0 | P23: 136592 | R23: 136592 | S23: 0 | U23: 0
A24: =IF(AND(INTRO!$E$37="Non endémique",INTRO!$E$41="Non endémique")," ",IF(COUNTRY_INFO!A24=0," ",COUNTRY_INFO!A24)) -> TOGO | B24: =IF(AND(INTRO!$E$37="Non endémique",INTRO!$E$41="Non endémique")," ",IF(COUNTRY_INFO!B24=0," ",COUNTRY_INFO!B24)) -> MARITIME | C24: =IF(AND(INTRO!$E$37="Non endémique",INTRO!$E$41="Non endémique")," ",IF(COUNTRY_INFO!C24=0," ",COUNTRY_INFO!C24)) -> AVE | D24: =IF(AND(INTRO!$E$37="Non endémique",INTRO!$E$41="Non endémique"),0,COUNTRY_INFO!V24) -> 0 | E24: =IF(AND(INTRO!$E$37="Non endémique",INTRO!$E$41="Non endémique"),0,COUNTRY_INFO!X24) -> 1 | F24: =IF(INTRO!$E$39="Non endémique",IF($D24=1,DEC!I24,0),IF($D24=1,IVM!G24,0)) -> 0 | G24: 1 | H24: =IF(OR(COUNTRY_INFO!N24="Inconnu",COUNTRY_INFO!N24="Surveillance",COUNTRY_INFO!N24="Non requis",COUNTRY_INFO!N24=0),0,IF(INTRO!$E$39="Non endémique",IF(AND($E24<>0,$G24=""),IF($F24=0,COUNTRY_INFO!N24*$E24,COUNTRY_INFO!N24*($E24-$D24)),IF(AND($E24<>0,$G24<>0),IF($F24=0,COUNTRY_INFO!N24*$G24,COUNTRY_INFO!N24*($G24-$D24)),0)),IF($G24="",COUNTRY_INFO!N24*$E24,COUNTRY_INFO!N24*$G24))) -> 18622 | I24: =IF(OR(COUNTRY_INFO!O24="Inconnu",COUNTRY_INFO!O24="Surveillance",COUNTRY_INFO!O24="Non requis",COUNTRY_INFO!O24=0),0,IF($E24<>0, IF($F24=0,COUNTRY_INFO!O24*$E24,COUNTRY_INFO!O24*($E24-$D24)),COUNTRY_INFO!O24*$E24)) -> 34917 | J24: 0 | K24: =IF(OR(COUNTRY_INFO!P24="Inconnu",COUNTRY_INFO!P24="Surveillance",COUNTRY_INFO!P24="Non requis",COUNTRY_INFO!P24=0),0,IF(AND($E24<>0,$J24=""),IF($F24=0,COUNTRY_INFO!P24*$E24,COUNTRY_INFO!P24*($E24-$D24)), IF(AND($E24<>0,$J24<>0),IF($F24=0,COUNTRY_INFO!P24*$J24,COUNTRY_INFO!P24*($J24-$D24)), COUNTRY_INFO!P24*$J24))) -> 0 | L24: 53539 | M24: 0 | O24: 0 | P24: 53539 | R24: 53539 | S24: 0 | U24: 0
A25: =IF(AND(INTRO!$E$37="Non endémique",INTRO!$E$41="Non endémique")," ",IF(COUNTRY_INFO!A25=0," ",COUNTRY_INFO!A25)) -> TOGO | B25: =IF(AND(INTRO!$E$37="Non endémique",INTRO!$E$41="Non endémique")," ",IF(COUNTRY_INFO!B25=0," ",COUNTRY_INFO!B25)) -> MARITIME | C25: =IF(AND(INTRO!$E$37="Non endémique",INTRO!$E$41="Non endémique")," ",IF(COUNTRY_INFO!C25=0," ",COUNTRY_INFO!C25)) -> BAS MONO | D25: =IF(AND(INTRO!$E$37="Non endémique",INTRO!$E$41="Non endémique"),0,COUNTRY_INFO!V25) -> 0 | E25: =IF(AND(INTRO!$E$37="Non endémique",INTRO!$E$41="Non endémique"),0,COUNTRY_INFO!X25) -> 1 | F25: =IF(INTRO!$E$39="Non endémique",IF($D25=1,DEC!I25,0),IF($D25=1,IVM!G25,0)) -> 0 | G25: 1 | H25: =IF(OR(COUNTRY_INFO!N25="Inconnu",COUNTRY_INFO!N25="Surveillance",COUNTRY_INFO!N25="Non requis",COUNTRY_INFO!N25=0),0,IF(INTRO!$E$39="Non endémique",IF(AND($E25<>0,$G25=""),IF($F25=0,COUNTRY_INFO!N25*$E25,COUNTRY_INFO!N25*($E25-$D25)),IF(AND($E25<>0,$G25<>0),IF($F25=0,COUNTRY_INFO!N25*$G25,COUNTRY_INFO!N25*($G25-$D25)),0)),IF($G25="",COUNTRY_INFO!N25*$E25,COUNTRY_INFO!N25*$G25))) -> 15884 | I25: =IF(OR(COUNTRY_INFO!O25="Inconnu",COUNTRY_INFO!O25="Surveillance",COUNTRY_INFO!O25="Non requis",COUNTRY_INFO!O25=0),0,IF($E25<>0, IF($F25=0,COUNTRY_INFO!O25*$E25,COUNTRY_INFO!O25*($E25-$D25)),COUNTRY_INFO!O25*$E25)) -> 29782 | J25: 0 | K25: =IF(OR(COUNTRY_INFO!P25="Inconnu",COUNTRY_INFO!P25="Surveillance",COUNTRY_INFO!P25="Non requis",COUNTRY_INFO!P25=0),0,IF(AND($E25<>0,$J25=""),IF($F25=0,COUNTRY_INFO!P25*$E25,COUNTRY_INFO!P25*($E25-$D25)), IF(AND($E25<>0,$J25<>0),IF($F25=0,COUNTRY_INFO!P25*$J25,COUNTRY_INFO!P25*($J25-$D25)), COUNTRY_INFO!P25*$J25))) -> 0 | L25: 45666 | M25: 0 | O25: 0 | P25: 45666 | R25: 45666 | S25: 0 | U25: 0
A26: =IF(AND(INTRO!$E$37="Non endémique",INTRO!$E$41="Non endémique")," ",IF(COUNTRY_INFO!A26=0," ",COUNTRY_INFO!A26)) -> TOGO | B26: =IF(AND(INTRO!$E$37="Non endémique",INTRO!$E$41="Non endémique")," ",IF(COUNTRY_INFO!B26=0," ",COUNTRY_INFO!B26)) -> MARITIME | C26: =IF(AND(INTRO!$E$37="Non endémique",INTRO!$E$41="Non endémique")," ",IF(COUNTRY_INFO!C26=0," ",COUNTRY_INFO!C26)) -> LACS | D26: =IF(AND(INTRO!$E$37="Non endémique",INTRO!$E$41="Non endémique"),0,COUNTRY_INFO!V26) -> 0 | E26: =IF(AND(INTRO!$E$37="Non endémique",INTRO!$E$41="Non endémique"),0,COUNTRY_INFO!X26) -> 1 | F26: =IF(INTRO!$E$39="Non endémique",IF($D26=1,DEC!I26,0),IF($D26=1,IVM!G26,0)) -> 0 | G26: 1 | H26: =IF(OR(COUNTRY_INFO!N26="Inconnu",COUNTRY_INFO!N26="Surveillance",COUNTRY_INFO!N26="Non requis",COUNTRY_INFO!N26=0),0,IF(INTRO!$E$39="Non endémique",IF(AND($E26<>0,$G26=""),IF($F26=0,COUNTRY_INFO!N26*$E26,COUNTRY_INFO!N26*($E26-$D26)),IF(AND($E26<>0,$G26<>0),IF($F26=0,COUNTRY_INFO!N26*$G26,COUNTRY_INFO!N26*($G26-$D26)),0)),IF($G26="",COUNTRY_INFO!N26*$E26,COUNTRY_INFO!N26*$G26))) -> 40396 | I26: =IF(OR(COUNTRY_INFO!O26="Inconnu",COUNTRY_INFO!O26="Surveillance",COUNTRY_INFO!O26="Non requis",COUNTRY_INFO!O26=0),0,IF($E26<>0, IF($F26=0,COUNTRY_INFO!O26*$E26,COUNTRY_INFO!O26*($E26-$D26)),COUNTRY_INFO!O26*$E26)) -> 75742 | J26: 0 | K26: =IF(OR(COUNTRY_INFO!P26="Inconnu",COUNTRY_INFO!P26="Surveillance",COUNTRY_INFO!P26="Non requis",COUNTRY_INFO!P26=0),0,IF(AND($E26<>0,$J26=""),IF($F26=0,COUNTRY_INFO!P26*$E26,COUNTRY_INFO!P26*($E26-$D26)), IF(AND($E26<>0,$J26<>0),IF($F26=0,COUNTRY_INFO!P26*$J26,COUNTRY_INFO!P26*($J26-$D26)), COUNTRY_INFO!P26*$J26))) -> 0 | L26: 116138 | M26: 0 | O26: 0 | P26: 116138 | R26: 116138 | S26: 0 | U26: 0
A27: =IF(AND(INTRO!$E$37="Non endémique",INTRO!$E$41="Non endémique")," ",IF(COUNTRY_INFO!A27=0," ",COUNTRY_INFO!A27)) -> TOGO | B27: =IF(AND(INTRO!$E$37="Non endémique",INTRO!$E$41="Non endémique")," ",IF(COUNTRY_INFO!B27=0," ",COUNTRY_INFO!B27)) -> MARITIME | C27: =IF(AND(INTRO!$E$37="Non endémique",INTRO!$E$41="Non endémique")," ",IF(COUNTRY_INFO!C27=0," ",COUNTRY_INFO!C27)) -> VO | D27: =IF(AND(INTRO!$E$37="Non endémique",INTRO!$E$41="Non endémique"),0,COUNTRY_INFO!V27) -> 0 | E27: =IF(AND(INTRO!$E$37="Non endémique",INTRO!$E$41="Non endémique"),0,COUNTRY_INFO!X27) -> 1 | F27: =IF(INTRO!$E$39="Non endémique",IF($D27=1,DEC!I27,0),IF($D27=1,IVM!G27,0)) -> 0 | G27: 1 | H27: =IF(OR(COUNTRY_INFO!N27="Inconnu",COUNTRY_INFO!N27="Surveillance",COUNTRY_INFO!N27="Non requis",COUNTRY_INFO!N27=0),0,IF(INTRO!$E$39="Non endémique",IF(AND($E27<>0,$G27=""),IF($F27=0,COUNTRY_INFO!N27*$E27,COUNTRY_INFO!N27*($E27-$D27)),IF(AND($E27<>0,$G27<>0),IF($F27=0,COUNTRY_INFO!N27*$G27,COUNTRY_INFO!N27*($G27-$D27)),0)),IF($G27="",COUNTRY_INFO!N27*$E27,COUNTRY_INFO!N27*$G27))) -> 37576 | I27: =IF(OR(COUNTRY_INFO!O27="Inconnu",COUNTRY_INFO!O27="Surveillance",COUNTRY_INFO!O27="Non requis",COUNTRY_INFO!O27=0),0,IF($E27<>0, IF($F27=0,COUNTRY_INFO!O27*$E27,COUNTRY_INFO!O27*($E27-$D27)),COUNTRY_INFO!O27*$E27)) -> 70456 | J27: 0 | K27: =IF(OR(COUNTRY_INFO!P27="Inconnu",COUNTRY_INFO!P27="Surveillance",COUNTRY_INFO!P27="Non requis",COUNTRY_INFO!P27=0),0,IF(AND($E27<>0,$J27=""),IF($F27=0,COUNTRY_INFO!P27*$E27,COUNTRY_INFO!P27*($E27-$D27)), IF(AND($E27<>0,$J27<>0),IF($F27=0,COUNTRY_INFO!P27*$J27,COUNTRY_INFO!P27*($J27-$D27)), COUNTRY_INFO!P27*$J27))) -> 0 | L27: 108032 | M27: 0 | O27: 0 | P27: 108032 | R27: 108032 | S27: 0 | U27: 0
A28: =IF(AND(INTRO!$E$37="Non endémique",INTRO!$E$41="Non endémique")," ",IF(COUNTRY_INFO!A28=0," ",COUNTRY_INFO!A28)) -> TOGO | B28: =IF(AND(INTRO!$E$37="Non endémique",INTRO!$E$41="Non endémique")," ",IF(COUNTRY_INFO!B28=0," ",COUNTRY_INFO!B28)) -> MARITIME | C28: =IF(AND(INTRO!$E$37="Non endémique",INTRO!$E$41="Non endémique")," ",IF(COUNTRY_INFO!C28=0," ",COUNTRY_INFO!C28)) -> YOTO | D28: =IF(AND(INTRO!$E$37="Non endémique",INTRO!$E$41="Non endémique"),0,COUNTRY_INFO!V28) -> 0 | E28: =IF(AND(INTRO!$E$37="Non endémique",INTRO!$E$41="Non endémique"),0,COUNTRY_INFO!X28) -> 2 | F28: =IF(INTRO!$E$39="Non endémique",IF($D28=1,DEC!I28,0),IF($D28=1,IVM!G28,0)) -> 0 | G28: 2 | H28: =IF(OR(COUNTRY_INFO!N28="Inconnu",COUNTRY_INFO!N28="Surveillance",COUNTRY_INFO!N28="Non requis",COUNTRY_INFO!N28=0),0,IF(INTRO!$E$39="Non endémique",IF(AND($E28<>0,$G28=""),IF($F28=0,COUNTRY_INFO!N28*$E28,COUNTRY_INFO!N28*($E28-$D28)),IF(AND($E28<>0,$G28<>0),IF($F28=0,COUNTRY_INFO!N28*$G28,COUNTRY_INFO!N28*($G28-$D28)),0)),IF($G28="",COUNTRY_INFO!N28*$E28,COUNTRY_INFO!N28*$G28))) -> 58556 | I28: =IF(OR(COUNTRY_INFO!O28="Inconnu",COUNTRY_INFO!O28="Surveillance",COUNTRY_INFO!O28="Non requis",COUNTRY_INFO!O28=0),0,IF($E28<>0, IF($F28=0,COUNTRY_INFO!O28*$E28,COUNTRY_INFO!O28*($E28-$D28)),COUNTRY_INFO!O28*$E28)) -> 109792 | J28: 2 | K28: =IF(OR(COUNTRY_INFO!P28="Inconnu",COUNTRY_INFO!P28="Surveillance",COUNTRY_INFO!P28="Non requis",COUNTRY_INFO!P28=0),0,IF(AND($E28<>0,$J28=""),IF($F28=0,COUNTRY_INFO!P28*$E28,COUNTRY_INFO!P28*($E28-$D28)), IF(AND($E28<>0,$J28<>0),IF($F28=0,COUNTRY_INFO!P28*$J28,COUNTRY_INFO!P28*($J28-$D28)), COUNTRY_INFO!P28*$J28))) -> 83076 | L28: 251424 | M28: 0 | O28: 0 | P28: 251424 | R28: 251424 | S28: 0 | U28: 0
A29: =IF(AND(INTRO!$E$37="Non endémique",INTRO!$E$41="Non endémique")," ",IF(COUNTRY_INFO!A29=0," ",COUNTRY_INFO!A29)) -> TOGO | B29: =IF(AND(INTRO!$E$37="Non endémique",INTRO!$E$41="Non endémique")," ",IF(COUNTRY_INFO!B29=0," ",COUNTRY_INFO!B29)) -> MARITIME | C29: =IF(AND(INTRO!$E$37="Non endémique",INTRO!$E$41="Non endémique")," ",IF(COUNTRY_INFO!C29=0," ",COUNTRY_INFO!C29)) -> ZIO | D29: =IF(AND(INTRO!$E$37="Non endémique",INTRO!$E$41="Non endémique"),0,COUNTRY_INFO!V29) -> 0 | E29: =IF(AND(INTRO!$E$37="Non endémique",INTRO!$E$41="Non endémique"),0,COUNTRY_INFO!X29) -> 1 | F29: =IF(INTRO!$E$39="Non endémique",IF($D29=1,DEC!I29,0),IF($D29=1,IVM!G29,0)) -> 0 | G29: 1 | H29: =IF(OR(COUNTRY_INFO!N29="Inconnu",COUNTRY_INFO!N29="Surveillance",COUNTRY_INFO!N29="Non requis",COUNTRY_INFO!N29=0),0,IF(INTRO!$E$39="Non endémique",IF(AND($E29<>0,$G29=""),IF($F29=0,COUNTRY_INFO!N29*$E29,COUNTRY_INFO!N29*($E29-$D29)),IF(AND($E29<>0,$G29<>0),IF($F29=0,COUNTRY_INFO!N29*$G29,COUNTRY_INFO!N29*($G29-$D29)),0)),IF($G29="",COUNTRY_INFO!N29*$E29,COUNTRY_INFO!N29*$G29))) -> 83728 | I29: =IF(OR(COUNTRY_INFO!O29="Inconnu",COUNTRY_INFO!O29="Surveillance",COUNTRY_INFO!O29="Non requis",COUNTRY_INFO!O29=0),0,IF($E29<>0, IF($F29=0,COUNTRY_INFO!O29*$E29,COUNTRY_INFO!O29*($E29-$D29)),COUNTRY_INFO!O29*$E29)) -> 156989 | J29: 0 | K29: =IF(OR(COUNTRY_INFO!P29="Inconnu",COUNTRY_INFO!P29="Surveillance",COUNTRY_INFO!P29="Non requis",COUNTRY_INFO!P29=0),0,IF(AND($E29<>0,$J29=""),IF($F29=0,COUNTRY_INFO!P29*$E29,COUNTRY_INFO!P29*($E29-$D29)), IF(AND($E29<>0,$J29<>0),IF($F29=0,COUNTRY_INFO!P29*$J29,COUNTRY_INFO!P29*($J29-$D29)), COUNTRY_INFO!P29*$J29))) -> 0 | L29: 240717 | M29: 0 | O29: 0 | P29: 240717 | R29: 240717 | S29: 0 | U29: 0
A30: =IF(AND(INTRO!$E$37="Non endémique",INTRO!$E$41="Non endémique")," ",IF(COUNTRY_INFO!A30=0," ",COUNTRY_INFO!A30)) -> TOGO | B30: =IF(AND(INTRO!$E$37="Non endémique",INTRO!$E$41="Non endémique")," ",IF(COUNTRY_INFO!B30=0," ",COUNTRY_INFO!B30)) -> PLATEAUX | C30: =IF(AND(INTRO!$E$37="Non endémique",INTRO!$E$41="Non endémique")," ",IF(COUNTRY_INFO!C30=0," ",COUNTRY_INFO!C30)) -> AGOU | D30: =IF(AND(INTRO!$E$37="Non endémique",INTRO!$E$41="Non endémique"),0,COUNTRY_INFO!V30) -> 0 | E30: =IF(AND(INTRO!$E$37="Non endémique",INTRO!$E$41="Non endémique"),0,COUNTRY_INFO!X30) -> 1 | F30: =IF(INTRO!$E$39="Non endémique",IF($D30=1,DEC!I30,0),IF($D30=1,IVM!G30,0)) -> 0 | G30: 1 | H30: =IF(OR(COUNTRY_INFO!N30="Inconnu",COUNTRY_INFO!N30="Surveillance",COUNTRY_INFO!N30="Non requis",COUNTRY_INFO!N30=0),0,IF(INTRO!$E$39="Non endémique",IF(AND($E30<>0,$G30=""),IF($F30=0,COUNTRY_INFO!N30*$E30,COUNTRY_INFO!N30*($E30-$D30)),IF(AND($E30<>0,$G30<>0),IF($F30=0,COUNTRY_INFO!N30*$G30,COUNTRY_INFO!N30*($G30-$D30)),0)),IF($G30="",COUNTRY_INFO!N30*$E30,COUNTRY_INFO!N30*$G30))) -> 14366 | I30: =IF(OR(COUNTRY_INFO!O30="Inconnu",COUNTRY_INFO!O30="Surveillance",COUNTRY_INFO!O30="Non requis",COUNTRY_INFO!O30=0),0,IF($E30<>0, IF($F30=0,COUNTRY_INFO!O30*$E30,COUNTRY_INFO!O30*($E30-$D30)),COUNTRY_INFO!O30*$E30)) -> 26936 | J30: 0 | K30: =IF(OR(COUNTRY_INFO!P30="Inconnu",COUNTRY_INFO!P30="Surveillance",COUNTRY_INFO!P30="Non requis",COUNTRY_INFO!P30=0),0,IF(AND($E30<>0,$J30=""),IF($F30=0,COUNTRY_INFO!P30*$E30,COUNTRY_INFO!P30*($E30-$D30)), IF(AND($E30<>0,$J30<>0),IF($F30=0,COUNTRY_INFO!P30*$J30,COUNTRY_INFO!P30*($J30-$D30)), COUNTRY_INFO!P30*$J30))) -> 0 | L30: 41302 | M30: 0 | O30: 0 | P30: 41302 | R30: 41302 | S30: 0 | U30: 0
A31: =IF(AND(INTRO!$E$37="Non endémique",INTRO!$E$41="Non endémique")," ",IF(COUNTRY_INFO!A31=0," ",COUNTRY_INFO!A31)) -> TOGO | B31: =IF(AND(INTRO!$E$37="Non endémique",INTRO!$E$41="Non endémique")," ",IF(COUNTRY_INFO!B31=0," ",COUNTRY_INFO!B31)) -> PLATEAUX | C31: =IF(AND(INTRO!$E$37="Non endémique",INTRO!$E$41="Non endémique")," ",IF(COUNTRY_INFO!C31=0," ",COUNTRY_INFO!C31)) -> AKEBOU | D31: =IF(AND(INTRO!$E$37="Non endémique",INTRO!$E$41="Non endémique"),0,COUNTRY_INFO!V31) -> 0 | E31: =IF(AND(INTRO!$E$37="Non endémique",INTRO!$E$41="Non endémique"),0,COUNTRY_INFO!X31) -> 1 | F31: =IF(INTRO!$E$39="Non endémique",IF($D31=1,DEC!I31,0),IF($D31=1,IVM!G31,0)) -> 0 | G31: 1 | H31: =IF(OR(COUNTRY_INFO!N31="Inconnu",COUNTRY_INFO!N31="Surveillance",COUNTRY_INFO!N31="Non requis",COUNTRY_INFO!N31=0),0,IF(INTRO!$E$39="Non endémique",IF(AND($E31<>0,$G31=""),IF($F31=0,COUNTRY_INFO!N31*$E31,COUNTRY_INFO!N31*($E31-$D31)),IF(AND($E31<>0,$G31<>0),IF($F31=0,COUNTRY_INFO!N31*$G31,COUNTRY_INFO!N31*($G31-$D31)),0)),IF($G31="",COUNTRY_INFO!N31*$E31,COUNTRY_INFO!N31*$G31))) -> 12362 | I31: =IF(OR(COUNTRY_INFO!O31="Inconnu",COUNTRY_INFO!O31="Surveillance",COUNTRY_INFO!O31="Non requis",COUNTRY_INFO!O31=0),0,IF($E31<>0, IF($F31=0,COUNTRY_INFO!O31*$E31,COUNTRY_INFO!O31*($E31-$D31)),COUNTRY_INFO!O31*$E31)) -> 23180 | J31: 0 | K31: =IF(OR(COUNTRY_INFO!P31="Inconnu",COUNTRY_INFO!P31="Surveillance",COUNTRY_INFO!P31="Non requis",COUNTRY_INFO!P31=0),0,IF(AND($E31<>0,$J31=""),IF($F31=0,COUNTRY_INFO!P31*$E31,COUNTRY_INFO!P31*($E31-$D31)), IF(AND($E31<>0,$J31<>0),IF($F31=0,COUNTRY_INFO!P31*$J31,COUNTRY_INFO!P31*($J31-$D31)), COUNTRY_INFO!P31*$J31))) -> 0 | L31: 35542 | M31: 0 | O31: 0 | P31: 35542 | R31: 35542 | S31: 0 | U31: 0
A32: =IF(AND(INTRO!$E$37="Non endémique",INTRO!$E$41="Non endémique")," ",IF(COUNTRY_INFO!A32=0," ",COUNTRY_INFO!A32)) -> TOGO | B32: =IF(AND(INTRO!$E$37="Non endémique",INTRO!$E$41="Non endémique")," ",IF(COUNTRY_INFO!B32=0," ",COUNTRY_INFO!B32)) -> PLATEAUX | C32: =IF(AND(INTRO!$E$37="Non endémique",INTRO!$E$41="Non endémique")," ",IF(COUNTRY_INFO!C32=0," ",COUNTRY_INFO!C32)) -> AMOU | D32: =IF(AND(INTRO!$E$37="Non endémique",INTRO!$E$41="Non endémique"),0,COUNTRY_INFO!V32) -> 0 | E32: =IF(AND(INTRO!$E$37="Non endémique",INTRO!$E$41="Non endémique"),0,COUNTRY_INFO!X32) -> 1 | F32: =IF(INTRO!$E$39="Non endémique",IF($D32=1,DEC!I32,0),IF($D32=1,IVM!G32,0)) -> 0 | G32: 1 | H32: =IF(OR(COUNTRY_INFO!N32="Inconnu",COUNTRY_INFO!N32="Surveillance",COUNTRY_INFO!N32="Non requis",COUNTRY_INFO!N32=0),0,IF(INTRO!$E$39="Non endémique",IF(AND($E32<>0,$G32=""),IF($F32=0,COUNTRY_INFO!N32*$E32,COUNTRY_INFO!N32*($E32-$D32)),IF(AND($E32<>0,$G32<>0),IF($F32=0,COUNTRY_INFO!N32*$G32,COUNTRY_INFO!N32*($G32-$D32)),0)),IF($G32="",COUNTRY_INFO!N32*$E32,COUNTRY_INFO!N32*$G32))) -> 19117 | I32: =IF(OR(COUNTRY_INFO!O32="Inconnu",COUNTRY_INFO!O32="Surveillance",COUNTRY_INFO!O32="Non requis",COUNTRY_INFO!O32=0),0,IF($E32<>0, IF($F32=0,COUNTRY_INFO!O32*$E32,COUNTRY_INFO!O32*($E32-$D32)),COUNTRY_INFO!O32*$E32)) -> 35845 | J32: 0 | K32: =IF(OR(COUNTRY_INFO!P32="Inconnu",COUNTRY_INFO!P32="Surveillance",COUNTRY_INFO!P32="Non requis",COUNTRY_INFO!P32=0),0,IF(AND($E32<>0,$J32=""),IF($F32=0,COUNTRY_INFO!P32*$E32,COUNTRY_INFO!P32*($E32-$D32)), IF(AND($E32<>0,$J32<>0),IF($F32=0,COUNTRY_INFO!P32*$J32,COUNTRY_INFO!P32*($J32-$D32)), COUNTRY_INFO!P32*$J32))) -> 0 | L32: 54962 | M32: 0 | O32: 0 | P32: 54962 | R32: 54962 | S32: 0 | U32: 0
A33: =IF(AND(INTRO!$E$37="Non endémique",INTRO!$E$41="Non endémique")," ",IF(COUNTRY_INFO!A33=0," ",COUNTRY_INFO!A33)) -> TOGO | B33: =IF(AND(INTRO!$E$37="Non endémique",INTRO!$E$41="Non endémique")," ",IF(COUNTRY_INFO!B33=0," ",COUNTRY_INFO!B33)) -> PLATEAUX | C33: =IF(AND(INTRO!$E$37="Non endémique",INTRO!$E$41="Non endémique")," ",IF(COUNTRY_INFO!C33=0," ",COUNTRY_INFO!C33)) -> ANIE | D33: =IF(AND(INTRO!$E$37="Non endémique",INTRO!$E$41="Non endémique"),0,COUNTRY_INFO!V33) -> 0 | E33: =IF(AND(INTRO!$E$37="Non endémique",INTRO!$E$41="Non endémique"),0,COUNTRY_INFO!X33) -> 1 | F33: =IF(INTRO!$E$39="Non endémique",IF($D33=1,DEC!I33,0),IF($D33=1,IVM!G33,0)) -> 0 | G33: 1 | H33: =IF(OR(COUNTRY_INFO!N33="Inconnu",COUNTRY_INFO!N33="Surveillance",COUNTRY_INFO!N33="Non requis",COUNTRY_INFO!N33=0),0,IF(INTRO!$E$39="Non endémique",IF(AND($E33<>0,$G33=""),IF($F33=0,COUNTRY_INFO!N33*$E33,COUNTRY_INFO!N33*($E33-$D33)),IF(AND($E33<>0,$G33<>0),IF($F33=0,COUNTRY_INFO!N33*$G33,COUNTRY_INFO!N33*($G33-$D33)),0)),IF($G33="",COUNTRY_INFO!N33*$E33,COUNTRY_INFO!N33*$G33))) -> 30167 | I33: =IF(OR(COUNTRY_INFO!O33="Inconnu",COUNTRY_INFO!O33="Surveillance",COUNTRY_INFO!O33="Non requis",COUNTRY_INFO!O33=0),0,IF($E33<>0, IF($F33=0,COUNTRY_INFO!O33*$E33,COUNTRY_INFO!O33*($E33-$D33)),COUNTRY_INFO!O33*$E33)) -> 56562 | J33: 0 | K33: =IF(OR(COUNTRY_INFO!P33="Inconnu",COUNTRY_INFO!P33="Surveillance",COUNTRY_INFO!P33="Non requis",COUNTRY_INFO!P33=0),0,IF(AND($E33<>0,$J33=""),IF($F33=0,COUNTRY_INFO!P33*$E33,COUNTRY_INFO!P33*($E33-$D33)), IF(AND($E33<>0,$J33<>0),IF($F33=0,COUNTRY_INFO!P33*$J33,COUNTRY_INFO!P33*($J33-$D33)), COUNTRY_INFO!P33*$J33))) -> 0 | L33: 86729 | M33: 0 | O33: 0 | P33: 86729 | R33: 86729 | S33: 0 | U33: 0
A34: =IF(AND(INTRO!$E$37="Non endémique",INTRO!$E$41="Non endémique")," ",IF(COUNTRY_INFO!A34=0," ",COUNTRY_INFO!A34)) -> TOGO | B34: =IF(AND(INTRO!$E$37="Non endémique",INTRO!$E$41="Non endémique")," ",IF(COUNTRY_INFO!B34=0," ",COUNTRY_INFO!B34)) -> PLATEAUX | C34: =IF(AND(INTRO!$E$37="Non endémique",INTRO!$E$41="Non endémique")," ",IF(COUNTRY_INFO!C34=0," ",COUNTRY_INFO!C34)) -> DANYI | D34: =IF(AND(INTRO!$E$37="Non endémique",INTRO!$E$41="Non endémique"),0,COUNTRY_INFO!V34) -> 0 | E34: =IF(AND(INTRO!$E$37="Non endémique",INTRO!$E$41="Non endémique"),0,COUNTRY_INFO!X34) -> 0 | F34: =IF(INTRO!$E$39="Non endémique",IF($D34=1,DEC!I34,0),IF($D34=1,IVM!G34,0)) -> 0 | G34: 0 | H34: =IF(OR(COUNTRY_INFO!N34="Inconnu",COUNTRY_INFO!N34="Surveillance",COUNTRY_INFO!N34="Non requis",COUNTRY_INFO!N34=0),0,IF(INTRO!$E$39="Non endémique",IF(AND($E34<>0,$G34=""),IF($F34=0,COUNTRY_INFO!N34*$E34,COUNTRY_INFO!N34*($E34-$D34)),IF(AND($E34<>0,$G34<>0),IF($F34=0,COUNTRY_INFO!N34*$G34,COUNTRY_INFO!N34*($G34-$D34)),0)),IF($G34="",COUNTRY_INFO!N34*$E34,COUNTRY_INFO!N34*$G34))) -> 0 | I34: =IF(OR(COUNTRY_INFO!O34="Inconnu",COUNTRY_INFO!O34="Surveillance",COUNTRY_INFO!O34="Non requis",COUNTRY_INFO!O34=0),0,IF($E34<>0, IF($F34=0,COUNTRY_INFO!O34*$E34,COUNTRY_INFO!O34*($E34-$D34)),COUNTRY_INFO!O34*$E34)) -> 0 | J34: 0 | K34: =IF(OR(COUNTRY_INFO!P34="Inconnu",COUNTRY_INFO!P34="Surveillance",COUNTRY_INFO!P34="Non requis",COUNTRY_INFO!P34=0),0,IF(AND($E34<>0,$J34=""),IF($F34=0,COUNTRY_INFO!P34*$E34,COUNTRY_INFO!P34*($E34-$D34)), IF(AND($E34<>0,$J34<>0),IF($F34=0,COUNTRY_INFO!P34*$J34,COUNTRY_INFO!P34*($J34-$D34)), COUNTRY_INFO!P34*$J34))) -> 0 | L34: 0 | M34: 0 | O34: 0 | P34: 0 | R34: 0 | S34: 0 | U34: 0
A35: =IF(AND(INTRO!$E$37="Non endémique",INTRO!$E$41="Non endémique")," ",IF(COUNTRY_INFO!A35=0," ",COUNTRY_INFO!A35)) -> TOGO | B35: =IF(AND(INTRO!$E$37="Non endémique",INTRO!$E$41="Non endémique")," ",IF(COUNTRY_INFO!B35=0," ",COUNTRY_INFO!B35)) -> PLATEAUX | C35: =IF(AND(INTRO!$E$37="Non endémique",INTRO!$E$41="Non endémique")," ",IF(COUNTRY_INFO!C35=0," ",COUNTRY_INFO!C35)) -> EST-MONO | D35: =IF(AND(INTRO!$E$37="Non endémique",INTRO!$E$41="Non endémique"),0,COUNTRY_INFO!V35) -> 0 | E35: =IF(AND(INTRO!$E$37="Non endémique",INTRO!$E$41="Non endémique"),0,COUNTRY_INFO!X35) -> 2 | F35: =IF(INTRO!$E$39="Non endémique",IF($D35=1,DEC!I35,0),IF($D35=1,IVM!G35,0)) -> 0 | G35: 2 | H35: =IF(OR(COUNTRY_INFO!N35="Inconnu",COUNTRY_INFO!N35="Surveillance",COUNTRY_INFO!N35="Non requis",COUNTRY_INFO!N35=0),0,IF(INTRO!$E$39="Non endémique",IF(AND($E35<>0,$G35=""),IF($F35=0,COUNTRY_INFO!N35*$E35,COUNTRY_INFO!N35*($E35-$D35)),IF(AND($E35<>0,$G35<>0),IF($F35=0,COUNTRY_INFO!N35*$G35,COUNTRY_INFO!N35*($G35-$D35)),0)),IF($G35="",COUNTRY_INFO!N35*$E35,COUNTRY_INFO!N35*$G35))) -> 55076 | I35: =IF(OR(COUNTRY_INFO!O35="Inconnu",COUNTRY_INFO!O35="Surveillance",COUNTRY_INFO!O35="Non requis",COUNTRY_INFO!O35=0),0,IF($E35<>0, IF($F35=0,COUNTRY_INFO!O35*$E35,COUNTRY_INFO!O35*($E35-$D35)),COUNTRY_INFO!O35*$E35)) -> 103268 | J35: 2 | K35: =IF(OR(COUNTRY_INFO!P35="Inconnu",COUNTRY_INFO!P35="Surveillance",COUNTRY_INFO!P35="Non requis",COUNTRY_INFO!P35=0),0,IF(AND($E35<>0,$J35=""),IF($F35=0,COUNTRY_INFO!P35*$E35,COUNTRY_INFO!P35*($E35-$D35)), IF(AND($E35<>0,$J35<>0),IF($F35=0,COUNTRY_INFO!P35*$J35,COUNTRY_INFO!P35*($J35-$D35)), COUNTRY_INFO!P35*$J35))) -> 78140 | L35: 236484 | M35: 0 | O35: 0 | P35: 236484 | R35: 236484 | S35: 0 | U35: 0
A36: =IF(AND(INTRO!$E$37="Non endémique",INTRO!$E$41="Non endémique")," ",IF(COUNTRY_INFO!A36=0," ",COUNTRY_INFO!A36)) -> TOGO | B36: =IF(AND(INTRO!$E$37="Non endémique",INTRO!$E$41="Non endémique")," ",IF(COUNTRY_INFO!B36=0," ",COUNTRY_INFO!B36)) -> PLATEAUX | C36: =IF(AND(INTRO!$E$37="Non endémique",INTRO!$E$41="Non endémique")," ",IF(COUNTRY_INFO!C36=0," ",COUNTRY_INFO!C36)) -> HAHO | D36: =IF(AND(INTRO!$E$37="Non endémique",INTRO!$E$41="Non endémique"),0,COUNTRY_INFO!V36) -> 0 | E36: =IF(AND(INTRO!$E$37="Non endémique",INTRO!$E$41="Non endémique"),0,COUNTRY_INFO!X36) -> 2 | F36: =IF(INTRO!$E$39="Non endémique",IF($D36=1,DEC!I36,0),IF($D36=1,IVM!G36,0)) -> 0 | G36: 2 | H36: =IF(OR(COUNTRY_INFO!N36="Inconnu",COUNTRY_INFO!N36="Surveillance",COUNTRY_INFO!N36="Non requis",COUNTRY_INFO!N36=0),0,IF(INTRO!$E$39="Non endémique",IF(AND($E36<>0,$G36=""),IF($F36=0,COUNTRY_INFO!N36*$E36,COUNTRY_INFO!N36*($E36-$D36)),IF(AND($E36<>0,$G36<>0),IF($F36=0,COUNTRY_INFO!N36*$G36,COUNTRY_INFO!N36*($G36-$D36)),0)),IF($G36="",COUNTRY_INFO!N36*$E36,COUNTRY_INFO!N36*$G36))) -> 102174 | I36: =IF(OR(COUNTRY_INFO!O36="Inconnu",COUNTRY_INFO!O36="Surveillance",COUNTRY_INFO!O36="Non requis",COUNTRY_INFO!O36=0),0,IF($E36<>0, IF($F36=0,COUNTRY_INFO!O36*$E36,COUNTRY_INFO!O36*($E36-$D36)),COUNTRY_INFO!O36*$E36)) -> 191576 | J36: 2 | K36: =IF(OR(COUNTRY_INFO!P36="Inconnu",COUNTRY_INFO!P36="Surveillance",COUNTRY_INFO!P36="Non requis",COUNTRY_INFO!P36=0),0,IF(AND($E36<>0,$J36=""),IF($F36=0,COUNTRY_INFO!P36*$E36,COUNTRY_INFO!P36*($E36-$D36)), IF(AND($E36<>0,$J36<>0),IF($F36=0,COUNTRY_INFO!P36*$J36,COUNTRY_INFO!P36*($J36-$D36)), COUNTRY_INFO!P36*$J36))) -> 144958 | L36: 438708 | M36: 0 | O36: 0 | P36: 438708 | R36: 438708 | S36: 0 | U36: 0
A37: =IF(AND(INTRO!$E$37="Non endémique",INTRO!$E$41="Non endémique")," ",IF(COUNTRY_INFO!A37=0," ",COUNTRY_INFO!A37)) -> TOGO | B37: =IF(AND(INTRO!$E$37="Non endémique",INTRO!$E$41="Non endémique")," ",IF(COUNTRY_INFO!B37=0," ",COUNTRY_INFO!B37)) -> PLATEAUX | C37: =IF(AND(INTRO!$E$37="Non endémique",INTRO!$E$41="Non endémique")," ",IF(COUNTRY_INFO!C37=0," ",COUNTRY_INFO!C37)) -> KLOTO | D37: =IF(AND(INTRO!$E$37="Non endémique",INTRO!$E$41="Non endémique"),0,COUNTRY_INFO!V37) -> 0 | E37: =IF(AND(INTRO!$E$37="Non endémique",INTRO!$E$41="Non endémique"),0,COUNTRY_INFO!X37) -> 1 | F37: =IF(INTRO!$E$39="Non endémique",IF($D37=1,DEC!I37,0),IF($D37=1,IVM!G37,0)) -> 0 | G37: 1 | H37: =IF(OR(COUNTRY_INFO!N37="Inconnu",COUNTRY_INFO!N37="Surveillance",COUNTRY_INFO!N37="Non requis",COUNTRY_INFO!N37=0),0,IF(INTRO!$E$39="Non endémique",IF(AND($E37<>0,$G37=""),IF($F37=0,COUNTRY_INFO!N37*$E37,COUNTRY_INFO!N37*($E37-$D37)),IF(AND($E37<>0,$G37<>0),IF($F37=0,COUNTRY_INFO!N37*$G37,COUNTRY_INFO!N37*($G37-$D37)),0)),IF($G37="",COUNTRY_INFO!N37*$E37,COUNTRY_INFO!N37*$G37))) -> 24445 | I37: =IF(OR(COUNTRY_INFO!O37="Inconnu",COUNTRY_INFO!O37="Surveillance",COUNTRY_INFO!O37="Non requis",COUNTRY_INFO!O37=0),0,IF($E37<>0, IF($F37=0,COUNTRY_INFO!O37*$E37,COUNTRY_INFO!O37*($E37-$D37)),COUNTRY_INFO!O37*$E37)) -> 45834 | J37: 0 | K37: =IF(OR(COUNTRY_INFO!P37="Inconnu",COUNTRY_INFO!P37="Surveillance",COUNTRY_INFO!P37="Non requis",COUNTRY_INFO!P37=0),0,IF(AND($E37<>0,$J37=""),IF($F37=0,COUNTRY_INFO!P37*$E37,COUNTRY_INFO!P37*($E37-$D37)), IF(AND($E37<>0,$J37<>0),IF($F37=0,COUNTRY_INFO!P37*$J37,COUNTRY_INFO!P37*($J37-$D37)), COUNTRY_INFO!P37*$J37))) -> 0 | L37: 70279 | M37: 0 | O37: 0 | P37: 70279 | R37: 70279 | S37: 0 | U37: 0
A38: =IF(AND(INTRO!$E$37="Non endémique",INTRO!$E$41="Non endémique")," ",IF(COUNTRY_INFO!A38=0," ",COUNTRY_INFO!A38)) -> TOGO | B38: =IF(AND(INTRO!$E$37="Non endémique",INTRO!$E$41="Non endémique")," ",IF(COUNTRY_INFO!B38=0," ",COUNTRY_INFO!B38)) -> PLATEAUX | C38: =IF(AND(INTRO!$E$37="Non endémique",INTRO!$E$41="Non endémique")," ",IF(COUNTRY_INFO!C38=0," ",COUNTRY_INFO!C38)) -> KPELE | D38: =IF(AND(INTRO!$E$37="Non endémique",INTRO!$E$41="Non endémique"),0,COUNTRY_INFO!V38) -> 0 | E38: =IF(AND(INTRO!$E$37="Non endémique",INTRO!$E$41="Non endémique"),0,COUNTRY_INFO!X38) -> 1 | F38: =IF(INTRO!$E$39="Non endémique",IF($D38=1,DEC!I38,0),IF($D38=1,IVM!G38,0)) -> 0 | G38: 1 | H38: =IF(OR(COUNTRY_INFO!N38="Inconnu",COUNTRY_INFO!N38="Surveillance",COUNTRY_INFO!N38="Non requis",COUNTRY_INFO!N38=0),0,IF(INTRO!$E$39="Non endémique",IF(AND($E38<>0,$G38=""),IF($F38=0,COUNTRY_INFO!N38*$E38,COUNTRY_INFO!N38*($E38-$D38)),IF(AND($E38<>0,$G38<>0),IF($F38=0,COUNTRY_INFO!N38*$G38,COUNTRY_INFO!N38*($G38-$D38)),0)),IF($G38="",COUNTRY_INFO!N38*$E38,COUNTRY_INFO!N38*$G38))) -> 13553 | I38: =IF(OR(COUNTRY_INFO!O38="Inconnu",COUNTRY_INFO!O38="Surveillance",COUNTRY_INFO!O38="Non requis",COUNTRY_INFO!O38=0),0,IF($E38<>0, IF($F38=0,COUNTRY_INFO!O38*$E38,COUNTRY_INFO!O38*($E38-$D38)),COUNTRY_INFO!O38*$E38)) -> 25412 | J38: 0 | K38: =IF(OR(COUNTRY_INFO!P38="Inconnu",COUNTRY_INFO!P38="Surveillance",COUNTRY_INFO!P38="Non requis",COUNTRY_INFO!P38=0),0,IF(AND($E38<>0,$J38=""),IF($F38=0,COUNTRY_INFO!P38*$E38,COUNTRY_INFO!P38*($E38-$D38)), IF(AND($E38<>0,$J38<>0),IF($F38=0,COUNTRY_INFO!P38*$J38,COUNTRY_INFO!P38*($J38-$D38)), COUNTRY_INFO!P38*$J38))) -> 0 | L38: 38965 | M38: 0 | O38: 0 | P38: 38965 | R38: 38965 | S38: 0 | U38: 0
A39: =IF(AND(INTRO!$E$37="Non endémique",INTRO!$E$41="Non endémique")," ",IF(COUNTRY_INFO!A39=0," ",COUNTRY_INFO!A39)) -> TOGO | B39: =IF(AND(INTRO!$E$37="Non endémique",INTRO!$E$41="Non endémique")," ",IF(COUNTRY_INFO!B39=0," ",COUNTRY_INFO!B39)) -> PLATEAUX | C39: =IF(AND(INTRO!$E$37="Non endémique",INTRO!$E$41="Non endémique")," ",IF(COUNTRY_INFO!C39=0," ",COUNTRY_INFO!C39)) -> MOYEN-MONO | D39: =IF(AND(INTRO!$E$37="Non endémique",INTRO!$E$41="Non endémique"),0,COUNTRY_INFO!V39) -> 0 | E39: =IF(AND(INTRO!$E$37="Non endémique",INTRO!$E$41="Non endémique"),0,COUNTRY_INFO!X39) -> 1 | F39: =IF(INTRO!$E$39="Non endémique",IF($D39=1,DEC!I39,0),IF($D39=1,IVM!G39,0)) -> 0 | G39: 1 | H39: =IF(OR(COUNTRY_INFO!N39="Inconnu",COUNTRY_INFO!N39="Surveillance",COUNTRY_INFO!N39="Non requis",COUNTRY_INFO!N39=0),0,IF(INTRO!$E$39="Non endémique",IF(AND($E39<>0,$G39=""),IF($F39=0,COUNTRY_INFO!N39*$E39,COUNTRY_INFO!N39*($E39-$D39)),IF(AND($E39<>0,$G39<>0),IF($F39=0,COUNTRY_INFO!N39*$G39,COUNTRY_INFO!N39*($G39-$D39)),0)),IF($G39="",COUNTRY_INFO!N39*$E39,COUNTRY_INFO!N39*$G39))) -> 15155 | I39: =IF(OR(COUNTRY_INFO!O39="Inconnu",COUNTRY_INFO!O39="Surveillance",COUNTRY_INFO!O39="Non requis",COUNTRY_INFO!O39=0),0,IF($E39<>0, IF($F39=0,COUNTRY_INFO!O39*$E39,COUNTRY_INFO!O39*($E39-$D39)),COUNTRY_INFO!O39*$E39)) -> 28415 | J39: 0 | K39: =IF(OR(COUNTRY_INFO!P39="Inconnu",COUNTRY_INFO!P39="Surveillance",COUNTRY_INFO!P39="Non requis",COUNTRY_INFO!P39=0),0,IF(AND($E39<>0,$J39=""),IF($F39=0,COUNTRY_INFO!P39*$E39,COUNTRY_INFO!P39*($E39-$D39)), IF(AND($E39<>0,$J39<>0),IF($F39=0,COUNTRY_INFO!P39*$J39,COUNTRY_INFO!P39*($J39-$D39)), COUNTRY_INFO!P39*$J39))) -> 0 | L39: 43570 | M39: 0 | O39: 0 | P39: 43570 | R39: 43570 | S39: 0 | U39: 0
A40: =IF(AND(INTRO!$E$37="Non endémique",INTRO!$E$41="Non endémique")," ",IF(COUNTRY_INFO!A40=0," ",COUNTRY_INFO!A40)) -> TOGO | B40: =IF(AND(INTRO!$E$37="Non endémique",INTRO!$E$41="Non endémique")," ",IF(COUNTRY_INFO!B40=0," ",COUNTRY_INFO!B40)) -> PLATEAUX | C40: =IF(AND(INTRO!$E$37="Non endémique",INTRO!$E$41="Non endémique")," ",IF(COUNTRY_INFO!C40=0," ",COUNTRY_INFO!C40)) -> OGOU | D40: =IF(AND(INTRO!$E$37="Non endémique",INTRO!$E$41="Non endémique"),0,COUNTRY_INFO!V40) -> 0 | E40: =IF(AND(INTRO!$E$37="Non endémique",INTRO!$E$41="Non endémique"),0,COUNTRY_INFO!X40) -> 2 | F40: =IF(INTRO!$E$39="Non endémique",IF($D40=1,DEC!I40,0),IF($D40=1,IVM!G40,0)) -> 0 | G40: 2 | H40: =IF(OR(COUNTRY_INFO!N40="Inconnu",COUNTRY_INFO!N40="Surveillance",COUNTRY_INFO!N40="Non requis",COUNTRY_INFO!N40=0),0,IF(INTRO!$E$39="Non endémique",IF(AND($E40<>0,$G40=""),IF($F40=0,COUNTRY_INFO!N40*$E40,COUNTRY_INFO!N40*($E40-$D40)),IF(AND($E40<>0,$G40<>0),IF($F40=0,COUNTRY_INFO!N40*$G40,COUNTRY_INFO!N40*($G40-$D40)),0)),IF($G40="",COUNTRY_INFO!N40*$E40,COUNTRY_INFO!N40*$G40))) -> 84884 | I40: =IF(OR(COUNTRY_INFO!O40="Inconnu",COUNTRY_INFO!O40="Surveillance",COUNTRY_INFO!O40="Non requis",COUNTRY_INFO!O40=0),0,IF($E40<>0, IF($F40=0,COUNTRY_INFO!O40*$E40,COUNTRY_INFO!O40*($E40-$D40)),COUNTRY_INFO!O40*$E40)) -> 159156 | J40: 2 | K40: =IF(OR(COUNTRY_INFO!P40="Inconnu",COUNTRY_INFO!P40="Surveillance",COUNTRY_INFO!P40="Non requis",COUNTRY_INFO!P40=0),0,IF(AND($E40<>0,$J40=""),IF($F40=0,COUNTRY_INFO!P40*$E40,COUNTRY_INFO!P40*($E40-$D40)), IF(AND($E40<>0,$J40<>0),IF($F40=0,COUNTRY_INFO!P40*$J40,COUNTRY_INFO!P40*($J40-$D40)), COUNTRY_INFO!P40*$J40))) -> 120428 | L40: 364468 | M40: 0 | O40: 0 | P40: 364468 | R40: 364468 | S40: 0 | U40: 0
A41: =IF(AND(INTRO!$E$37="Non endémique",INTRO!$E$41="Non endémique")," ",IF(COUNTRY_INFO!A41=0," ",COUNTRY_INFO!A41)) -> TOGO | B41: =IF(AND(INTRO!$E$37="Non endémique",INTRO!$E$41="Non endémique")," ",IF(COUNTRY_INFO!B41=0," ",COUNTRY_INFO!B41)) -> PLATEAUX | C41: =IF(AND(INTRO!$E$37="Non endémique",INTRO!$E$41="Non endémique")," ",IF(COUNTRY_INFO!C41=0," ",COUNTRY_INFO!C41)) -> WAWA | D41: =IF(AND(INTRO!$E$37="Non endémique",INTRO!$E$41="Non endémique"),0,COUNTRY_INFO!V41) -> 0 | E41: =IF(AND(INTRO!$E$37="Non endémique",INTRO!$E$41="Non endémique"),0,COUNTRY_INFO!X41) -> 1 | F41: =IF(INTRO!$E$39="Non endémique",IF($D41=1,DEC!I41,0),IF($D41=1,IVM!G41,0)) -> 0 | G41: 1 | H41: =IF(OR(COUNTRY_INFO!N41="Inconnu",COUNTRY_INFO!N41="Surveillance",COUNTRY_INFO!N41="Non requis",COUNTRY_INFO!N41=0),0,IF(INTRO!$E$39="Non endémique",IF(AND($E41<>0,$G41=""),IF($F41=0,COUNTRY_INFO!N41*$E41,COUNTRY_INFO!N41*($E41-$D41)),IF(AND($E41<>0,$G41<>0),IF($F41=0,COUNTRY_INFO!N41*$G41,COUNTRY_INFO!N41*($G41-$D41)),0)),IF($G41="",COUNTRY_INFO!N41*$E41,COUNTRY_INFO!N41*$G41))) -> 16962 | I41: =IF(OR(COUNTRY_INFO!O41="Inconnu",COUNTRY_INFO!O41="Surveillance",COUNTRY_INFO!O41="Non requis",COUNTRY_INFO!O41=0),0,IF($E41<>0, IF($F41=0,COUNTRY_INFO!O41*$E41,COUNTRY_INFO!O41*($E41-$D41)),COUNTRY_INFO!O41*$E41)) -> 31804 | J41: 0 | K41: =IF(OR(COUNTRY_INFO!P41="Inconnu",COUNTRY_INFO!P41="Surveillance",COUNTRY_INFO!P41="Non requis",COUNTRY_INFO!P41=0),0,IF(AND($E41<>0,$J41=""),IF($F41=0,COUNTRY_INFO!P41*$E41,COUNTRY_INFO!P41*($E41-$D41)), IF(AND($E41<>0,$J41<>0),IF($F41=0,COUNTRY_INFO!P41*$J41,COUNTRY_INFO!P41*($J41-$D41)), COUNTRY_INFO!P41*$J41))) -> 0 | L41: 48766 | M41: 0 | O41: 0 | P41: 48766 | R41: 48766 | S41: 0 | U41: 0
A42: =IF(AND(INTRO!$E$37="Non endémique",INTRO!$E$41="Non endémique")," ",IF(COUNTRY_INFO!A42=0," ",COUNTRY_INFO!A42)) -> TOGO | B42: =IF(AND(INTRO!$E$37="Non endémique",INTRO!$E$41="Non endémique")," ",IF(COUNTRY_INFO!B42=0," ",COUNTRY_INFO!B42)) -> SAVANES | C42: =IF(AND(INTRO!$E$37="Non endémique",INTRO!$E$41="Non endémique")," ",IF(COUNTRY_INFO!C42=0," ",COUNTRY_INFO!C42)) -> CINKASSE | D42: =IF(AND(INTRO!$E$37="Non endémique",INTRO!$E$41="Non endémique"),0,COUNTRY_INFO!V42) -> 0 | E42: =IF(AND(INTRO!$E$37="Non endémique",INTRO!$E$41="Non endémique"),0,COUNTRY_INFO!X42) -> 1 | F42: =IF(INTRO!$E$39="Non endémique",IF($D42=1,DEC!I42,0),IF($D42=1,IVM!G42,0)) -> 0 | G42: 1 | H42: =IF(OR(COUNTRY_INFO!N42="Inconnu",COUNTRY_INFO!N42="Surveillance",COUNTRY_INFO!N42="Non requis",COUNTRY_INFO!N42=0),0,IF(INTRO!$E$39="Non endémique",IF(AND($E42<>0,$G42=""),IF($F42=0,COUNTRY_INFO!N42*$E42,COUNTRY_INFO!N42*($E42-$D42)),IF(AND($E42<>0,$G42<>0),IF($F42=0,COUNTRY_INFO!N42*$G42,COUNTRY_INFO!N42*($G42-$D42)),0)),IF($G42="",COUNTRY_INFO!N42*$E42,COUNTRY_INFO!N42*$G42))) -> 21593 | I42: =IF(OR(COUNTRY_INFO!O42="Inconnu",COUNTRY_INFO!O42="Surveillance",COUNTRY_INFO!O42="Non requis",COUNTRY_INFO!O42=0),0,IF($E42<>0, IF($F42=0,COUNTRY_INFO!O42*$E42,COUNTRY_INFO!O42*($E42-$D42)),COUNTRY_INFO!O42*$E42)) -> 40488 | J42: 0 | K42: =IF(OR(COUNTRY_INFO!P42="Inconnu",COUNTRY_INFO!P42="Surveillance",COUNTRY_INFO!P42="Non requis",COUNTRY_INFO!P42=0),0,IF(AND($E42<>0,$J42=""),IF($F42=0,COUNTRY_INFO!P42*$E42,COUNTRY_INFO!P42*($E42-$D42)), IF(AND($E42<>0,$J42<>0),IF($F42=0,COUNTRY_INFO!P42*$J42,COUNTRY_INFO!P42*($J42-$D42)), COUNTRY_INFO!P42*$J42))) -> 0 | L42: 62081 | M42: 0 | O42: 0 | P42: 62081 | R42: 62081 | S42: 0 | U42: 0
A43: =IF(AND(INTRO!$E$37="Non endémique",INTRO!$E$41="Non endémique")," ",IF(COUNTRY_INFO!A43=0," ",COUNTRY_INFO!A43)) -> TOGO | B43: =IF(AND(INTRO!$E$37="Non endémique",INTRO!$E$41="Non endémique")," ",IF(COUNTRY_INFO!B43=0," ",COUNTRY_INFO!B43)) -> SAVANES | C43: =IF(AND(INTRO!$E$37="Non endémique",INTRO!$E$41="Non endémique")," ",IF(COUNTRY_INFO!C43=0," ",COUNTRY_INFO!C43)) -> KPENDJAL | D43: =IF(AND(INTRO!$E$37="Non endémique",INTRO!$E$41="Non endémique"),0,COUNTRY_INFO!V43) -> 0 | E43: =IF(AND(INTRO!$E$37="Non endémique",INTRO!$E$41="Non endémique"),0,COUNTRY_INFO!X43) -> 1 | F43: =IF(INTRO!$E$39="Non endémique",IF($D43=1,DEC!I43,0),IF($D43=1,IVM!G43,0)) -> 0 | G43: 1 | H43: =IF(OR(COUNTRY_INFO!N43="Inconnu",COUNTRY_INFO!N43="Surveillance",COUNTRY_INFO!N43="Non requis",COUNTRY_INFO!N43=0),0,IF(INTRO!$E$39="Non endémique",IF(AND($E43<>0,$G43=""),IF($F43=0,COUNTRY_INFO!N43*$E43,COUNTRY_INFO!N43*($E43-$D43)),IF(AND($E43<>0,$G43<>0),IF($F43=0,COUNTRY_INFO!N43*$G43,COUNTRY_INFO!N43*($G43-$D43)),0)),IF($G43="",COUNTRY_INFO!N43*$E43,COUNTRY_INFO!N43*$G43))) -> 14796 | I43: =IF(OR(COUNTRY_INFO!O43="Inconnu",COUNTRY_INFO!O43="Surveillance",COUNTRY_INFO!O43="Non requis",COUNTRY_INFO!O43=0),0,IF($E43<>0, IF($F43=0,COUNTRY_INFO!O43*$E43,COUNTRY_INFO!O43*($E43-$D43)),COUNTRY_INFO!O43*$E43)) -> 27743 | J43: 0 | K43: =IF(OR(COUNTRY_INFO!P43="Inconnu",COUNTRY_INFO!P43="Surveillance",COUNTRY_INFO!P43="Non requis",COUNTRY_INFO!P43=0),0,IF(AND($E43<>0,$J43=""),IF($F43=0,COUNTRY_INFO!P43*$E43,COUNTRY_INFO!P43*($E43-$D43)), IF(AND($E43<>0,$J43<>0),IF($F43=0,COUNTRY_INFO!P43*$J43,COUNTRY_INFO!P43*($J43-$D43)), COUNTRY_INFO!P43*$J43))) -> 0 | L43: 42539 | M43: 0 | O43: 0 | P43: 42539 | R43: 42539 | S43: 0 | U43: 0
A44: =IF(AND(INTRO!$E$37="Non endémique",INTRO!$E$41="Non endémique")," ",IF(COUNTRY_INFO!A44=0," ",COUNTRY_INFO!A44)) -> TOGO | B44: =IF(AND(INTRO!$E$37="Non endémique",INTRO!$E$41="Non endémique")," ",IF(COUNTRY_INFO!B44=0," ",COUNTRY_INFO!B44)) -> SAVANES | C44: =IF(AND(INTRO!$E$37="Non endémique",INTRO!$E$41="Non endémique")," ",IF(COUNTRY_INFO!C44=0," ",COUNTRY_INFO!C44)) -> KPENDJAL-OUEST | D44: =IF(AND(INTRO!$E$37="Non endémique",INTRO!$E$41="Non endémique"),0,COUNTRY_INFO!V44) -> 0 | E44: =IF(AND(INTRO!$E$37="Non endémique",INTRO!$E$41="Non endémique"),0,COUNTRY_INFO!X44) -> 1 | F44: =IF(INTRO!$E$39="Non endémique",IF($D44=1,DEC!I44,0),IF($D44=1,IVM!G44,0)) -> 0 | G44: 1 | H44: =IF(OR(COUNTRY_INFO!N44="Inconnu",COUNTRY_INFO!N44="Surveillance",COUNTRY_INFO!N44="Non requis",COUNTRY_INFO!N44=0),0,IF(INTRO!$E$39="Non endémique",IF(AND($E44<>0,$G44=""),IF($F44=0,COUNTRY_INFO!N44*$E44,COUNTRY_INFO!N44*($E44-$D44)),IF(AND($E44<>0,$G44<>0),IF($F44=0,COUNTRY_INFO!N44*$G44,COUNTRY_INFO!N44*($G44-$D44)),0)),IF($G44="",COUNTRY_INFO!N44*$E44,COUNTRY_INFO!N44*$G44))) -> 20651 | I44: =IF(OR(COUNTRY_INFO!O44="Inconnu",COUNTRY_INFO!O44="Surveillance",COUNTRY_INFO!O44="Non requis",COUNTRY_INFO!O44=0),0,IF($E44<>0, IF($F44=0,COUNTRY_INFO!O44*$E44,COUNTRY_INFO!O44*($E44-$D44)),COUNTRY_INFO!O44*$E44)) -> 38721 | J44: 0 | K44: =IF(OR(COUNTRY_INFO!P44="Inconnu",COUNTRY_INFO!P44="Surveillance",COUNTRY_INFO!P44="Non requis",COUNTRY_INFO!P44=0),0,IF(AND($E44<>0,$J44=""),IF($F44=0,COUNTRY_INFO!P44*$E44,COUNTRY_INFO!P44*($E44-$D44)), IF(AND($E44<>0,$J44<>0),IF($F44=0,COUNTRY_INFO!P44*$J44,COUNTRY_INFO!P44*($J44-$D44)), COUNTRY_INFO!P44*$J44))) -> 0 | L44: 59372 | M44: 0 | O44: 0 | P44: 59372 | R44: 59372 | S44: 0 | U44: 0
A45: =IF(AND(INTRO!$E$37="Non endémique",INTRO!$E$41="Non endémique")," ",IF(COUNTRY_INFO!A45=0," ",COUNTRY_INFO!A45)) -> TOGO | B45: =IF(AND(INTRO!$E$37="Non endémique",INTRO!$E$41="Non endémique")," ",IF(COUNTRY_INFO!B45=0," ",COUNTRY_INFO!B45)) -> SAVANES | C45: =IF(AND(INTRO!$E$37="Non endémique",INTRO!$E$41="Non endémique")," ",IF(COUNTRY_INFO!C45=0," ",COUNTRY_INFO!C45)) -> OTI | D45: =IF(AND(INTRO!$E$37="Non endémique",INTRO!$E$41="Non endémique"),0,COUNTRY_INFO!V45) -> 0 | E45: =IF(AND(INTRO!$E$37="Non endémique",INTRO!$E$41="Non endémique"),0,COUNTRY_INFO!X45) -> 2 | F45: =IF(INTRO!$E$39="Non endémique",IF($D45=1,DEC!I45,0),IF($D45=1,IVM!G45,0)) -> 0 | G45: 2 | H45: =IF(OR(COUNTRY_INFO!N45="Inconnu",COUNTRY_INFO!N45="Surveillance",COUNTRY_INFO!N45="Non requis",COUNTRY_INFO!N45=0),0,IF(INTRO!$E$39="Non endémique",IF(AND($E45<>0,$G45=""),IF($F45=0,COUNTRY_INFO!N45*$E45,COUNTRY_INFO!N45*($E45-$D45)),IF(AND($E45<>0,$G45<>0),IF($F45=0,COUNTRY_INFO!N45*$G45,COUNTRY_INFO!N45*($G45-$D45)),0)),IF($G45="",COUNTRY_INFO!N45*$E45,COUNTRY_INFO!N45*$G45))) -> 41810 | I45: =IF(OR(COUNTRY_INFO!O45="Inconnu",COUNTRY_INFO!O45="Surveillance",COUNTRY_INFO!O45="Non requis",COUNTRY_INFO!O45=0),0,IF($E45<>0, IF($F45=0,COUNTRY_INFO!O45*$E45,COUNTRY_INFO!O45*($E45-$D45)),COUNTRY_INFO!O45*$E45)) -> 78394 | J45: 2 | K45: =IF(OR(COUNTRY_INFO!P45="Inconnu",COUNTRY_INFO!P45="Surveillance",COUNTRY_INFO!P45="Non requis",COUNTRY_INFO!P45=0),0,IF(AND($E45<>0,$J45=""),IF($F45=0,COUNTRY_INFO!P45*$E45,COUNTRY_INFO!P45*($E45-$D45)), IF(AND($E45<>0,$J45<>0),IF($F45=0,COUNTRY_INFO!P45*$J45,COUNTRY_INFO!P45*($J45-$D45)), COUNTRY_INFO!P45*$J45))) -> 59318 | L45: 179522 | M45: 0 | O45: 0 | P45: 179522 | R45: 179522 | S45: 0 | U45: 0
A46: =IF(AND(INTRO!$E$37="Non endémique",INTRO!$E$41="Non endémique")," ",IF(COUNTRY_INFO!A46=0," ",COUNTRY_INFO!A46)) -> TOGO | B46: =IF(AND(INTRO!$E$37="Non endémique",INTRO!$E$41="Non endémique")," ",IF(COUNTRY_INFO!B46=0," ",COUNTRY_INFO!B46)) -> SAVANES | C46: =IF(AND(INTRO!$E$37="Non endémique",INTRO!$E$41="Non endémique")," ",IF(COUNTRY_INFO!C46=0," ",COUNTRY_INFO!C46)) -> OTI-SUD | D46: =IF(AND(INTRO!$E$37="Non endémique",INTRO!$E$41="Non endémique"),0,COUNTRY_INFO!V46) -> 0 | E46: =IF(AND(INTRO!$E$37="Non endémique",INTRO!$E$41="Non endémique"),0,COUNTRY_INFO!X46) -> 2 | F46: =IF(INTRO!$E$39="Non endémique",IF($D46=1,DEC!I46,0),IF($D46=1,IVM!G46,0)) -> 0 | G46: 2 | H46: =IF(OR(COUNTRY_INFO!N46="Inconnu",COUNTRY_INFO!N46="Surveillance",COUNTRY_INFO!N46="Non requis",COUNTRY_INFO!N46=0),0,IF(INTRO!$E$39="Non endémique",IF(AND($E46<>0,$G46=""),IF($F46=0,COUNTRY_INFO!N46*$E46,COUNTRY_INFO!N46*($E46-$D46)),IF(AND($E46<>0,$G46<>0),IF($F46=0,COUNTRY_INFO!N46*$G46,COUNTRY_INFO!N46*($G46-$D46)),0)),IF($G46="",COUNTRY_INFO!N46*$E46,COUNTRY_INFO!N46*$G46))) -> 50360 | I46: =IF(OR(COUNTRY_INFO!O46="Inconnu",COUNTRY_INFO!O46="Surveillance",COUNTRY_INFO!O46="Non requis",COUNTRY_INFO!O46=0),0,IF($E46<>0, IF($F46=0,COUNTRY_INFO!O46*$E46,COUNTRY_INFO!O46*($E46-$D46)),COUNTRY_INFO!O46*$E46)) -> 94424 | J46: 2 | K46: =IF(OR(COUNTRY_INFO!P46="Inconnu",COUNTRY_INFO!P46="Surveillance",COUNTRY_INFO!P46="Non requis",COUNTRY_INFO!P46=0),0,IF(AND($E46<>0,$J46=""),IF($F46=0,COUNTRY_INFO!P46*$E46,COUNTRY_INFO!P46*($E46-$D46)), IF(AND($E46<>0,$J46<>0),IF($F46=0,COUNTRY_INFO!P46*$J46,COUNTRY_INFO!P46*($J46-$D46)), COUNTRY_INFO!P46*$J46))) -> 71448 | L46: 216232 | M46: 0 | O46: 0 | P46: 216232 | R46: 216232 | S46: 0 | U46: 0
A47: =IF(AND(INTRO!$E$37="Non endémique",INTRO!$E$41="Non endémique")," ",IF(COUNTRY_INFO!A47=0," ",COUNTRY_INFO!A47)) -> TOGO | B47: =IF(AND(INTRO!$E$37="Non endémique",INTRO!$E$41="Non endémique")," ",IF(COUNTRY_INFO!B47=0," ",COUNTRY_INFO!B47)) -> SAVANES | C47: =IF(AND(INTRO!$E$37="Non endémique",INTRO!$E$41="Non endémique")," ",IF(COUNTRY_INFO!C47=0," ",COUNTRY_INFO!C47)) -> TANDJOUARE | D47: =IF(AND(INTRO!$E$37="Non endémique",INTRO!$E$41="Non endémique"),0,COUNTRY_INFO!V47) -> 0 | E47: =IF(AND(INTRO!$E$37="Non endémique",INTRO!$E$41="Non endémique"),0,COUNTRY_INFO!X47) -> 2 | F47: =IF(INTRO!$E$39="Non endémique",IF($D47=1,DEC!I47,0),IF($D47=1,IVM!G47,0)) -> 0 | G47: 2 | H47: =IF(OR(COUNTRY_INFO!N47="Inconnu",COUNTRY_INFO!N47="Surveillance",COUNTRY_INFO!N47="Non requis",COUNTRY_INFO!N47=0),0,IF(INTRO!$E$39="Non endémique",IF(AND($E47<>0,$G47=""),IF($F47=0,COUNTRY_INFO!N47*$E47,COUNTRY_INFO!N47*($E47-$D47)),IF(AND($E47<>0,$G47<>0),IF($F47=0,COUNTRY_INFO!N47*$G47,COUNTRY_INFO!N47*($G47-$D47)),0)),IF($G47="",COUNTRY_INFO!N47*$E47,COUNTRY_INFO!N47*$G47))) -> 46504 | I47: =IF(OR(COUNTRY_INFO!O47="Inconnu",COUNTRY_INFO!O47="Surveillance",COUNTRY_INFO!O47="Non requis",COUNTRY_INFO!O47=0),0,IF($E47<>0, IF($F47=0,COUNTRY_INFO!O47*$E47,COUNTRY_INFO!O47*($E47-$D47)),COUNTRY_INFO!O47*$E47)) -> 87196 | J47: 2 | K47: =IF(OR(COUNTRY_INFO!P47="Inconnu",COUNTRY_INFO!P47="Surveillance",COUNTRY_INFO!P47="Non requis",COUNTRY_INFO!P47=0),0,IF(AND($E47<>0,$J47=""),IF($F47=0,COUNTRY_INFO!P47*$E47,COUNTRY_INFO!P47*($E47-$D47)), IF(AND($E47<>0,$J47<>0),IF($F47=0,COUNTRY_INFO!P47*$J47,COUNTRY_INFO!P47*($J47-$D47)), COUNTRY_INFO!P47*$J47))) -> 65978 | L47: 199678 | M47: 0 | O47: 0 | P47: 199678 | R47: 199678 | S47: 0 | U47: 0
A48: =IF(AND(INTRO!$E$37="Non endémique",INTRO!$E$41="Non endémique")," ",IF(COUNTRY_INFO!A48=0," ",COUNTRY_INFO!A48)) -> TOGO | B48: =IF(AND(INTRO!$E$37="Non endémique",INTRO!$E$41="Non endémique")," ",IF(COUNTRY_INFO!B48=0," ",COUNTRY_INFO!B48)) -> SAVANES | C48: =IF(AND(INTRO!$E$37="Non endémique",INTRO!$E$41="Non endémique")," ",IF(COUNTRY_INFO!C48=0," ",COUNTRY_INFO!C48)) -> TONE | D48: =IF(AND(INTRO!$E$37="Non endémique",INTRO!$E$41="Non endémique"),0,COUNTRY_INFO!V48) -> 0 | E48: =IF(AND(INTRO!$E$37="Non endémique",INTRO!$E$41="Non endémique"),0,COUNTRY_INFO!X48) -> 1 | F48: =IF(INTRO!$E$39="Non endémique",IF($D48=1,DEC!I48,0),IF($D48=1,IVM!G48,0)) -> 0 | G48: 1 | H48: =IF(OR(COUNTRY_INFO!N48="Inconnu",COUNTRY_INFO!N48="Surveillance",COUNTRY_INFO!N48="Non requis",COUNTRY_INFO!N48=0),0,IF(INTRO!$E$39="Non endémique",IF(AND($E48<>0,$G48=""),IF($F48=0,COUNTRY_INFO!N48*$E48,COUNTRY_INFO!N48*($E48-$D48)),IF(AND($E48<>0,$G48<>0),IF($F48=0,COUNTRY_INFO!N48*$G48,COUNTRY_INFO!N48*($G48-$D48)),0)),IF($G48="",COUNTRY_INFO!N48*$E48,COUNTRY_INFO!N48*$G48))) -> 65098 | I48: =IF(OR(COUNTRY_INFO!O48="Inconnu",COUNTRY_INFO!O48="Surveillance",COUNTRY_INFO!O48="Non requis",COUNTRY_INFO!O48=0),0,IF($E48<>0, IF($F48=0,COUNTRY_INFO!O48*$E48,COUNTRY_INFO!O48*($E48-$D48)),COUNTRY_INFO!O48*$E48)) -> 122059 | J48: 0 | K48: =IF(OR(COUNTRY_INFO!P48="Inconnu",COUNTRY_INFO!P48="Surveillance",COUNTRY_INFO!P48="Non requis",COUNTRY_INFO!P48=0),0,IF(AND($E48<>0,$J48=""),IF($F48=0,COUNTRY_INFO!P48*$E48,COUNTRY_INFO!P48*($E48-$D48)), IF(AND($E48<>0,$J48<>0),IF($F48=0,COUNTRY_INFO!P48*$J48,COUNTRY_INFO!P48*($J48-$D48)), COUNTRY_INFO!P48*$J48))) -> 0 | L48: 187157 | M48: 0 | O48: 0 | P48: 187157 | R48: 187157 | S48: 0 | U48: 0

Sheet PZQ
A1: Praziquantel (PZQ)
A2: Structure administrative, population ciblée par groupe d'âge, plan de traitement et information sur les comprimés
A4: TOTAL | E4: =SUBTOTAL(9,E$10:E$1010) -> 945249.501 | F4: 1770291.179 | G4: 739929.2054 | H4: 3455469.885 | J4: 690984.5651 | M4: =SUBTOTAL(9,M$10:M$1010) -> 0 | N4: 3851872.358 | O4: 2600097.616 | P4: 6451969.974 | Q4: 0 | R4: 6451969.974
A6: Structure administrative du pays | D6: Plan de traitement SCH | E6: Population cible pour SCH | I6: Hotspots | K6: Année précédent l’AMM | M6: Praziquantel (PZQ)
A7: Pays | B7: Région/Département | C7: District | E7: EAPréS | F7: EAS | G7: Adultes | H7: Total | I7: Prévue | J7: Population | K7: Tournées | L7: Groupes d'âge | M7: EAPréS | N7: EAS | O7: Adultes | P7: Total requis | Q7: Reste en stock | R7: Comprimés devant être fournis
A10: =IF(INTRO!$E$43="Non endémique"," ", IF(COUNTRY_INFO!A10=0," ",COUNTRY_INFO!A10)) -> TOGO | B10: =IF(INTRO!$E$43="Non endémique"," ", IF(COUNTRY_INFO!B10=0," ",COUNTRY_INFO!B10)) -> CENTRALE | C10: =IF(INTRO!$E$43="Non endémique"," ", IF(COUNTRY_INFO!C10=0," ",COUNTRY_INFO!C10)) -> BLITTA | D10: =IF(INTRO!$E$43="Non endémique", "Non requis", COUNTRY_INFO!Y10) -> 2 | E10: =IF(OR(COUNTRY_INFO!R10="Inconnu",COUNTRY_INFO!R10="Surveillance",COUNTRY_INFO!R10="Non requis",COUNTRY_INFO!R10=0),0,IF($D10<>0, COUNTRY_INFO!R10,0)) -> 29210.50906 | F10: =IF(OR(COUNTRY_INFO!S10="Inconnu",COUNTRY_INFO!S10="Surveillance",COUNTRY_INFO!S10="Non requis",COUNTRY_INFO!S10=0),0,IF($D10<>0, COUNTRY_INFO!S10,0)) -> 54769.70448 | G10: =IF(OR(COUNTRY_INFO!T10="Inconnu",COUNTRY_INFO!T10="Surveillance",COUNTRY_INFO!T10="Non requis",COUNTRY_INFO!T10=0),0,IF($D10<>0, COUNTRY_INFO!T10,0)) -> 50714.12064 | H10: =SUM(E10:G10) -> 134694.3342 | I10: Oui | J10: 25937.39981 | K10: 2 | L10: EAS et Adultes | N10: =IF($I10<>"Oui",$F10*2,($F10+ROUND(J10*$F10/SUM(COUNTRY_INFO!$E10:$G10),0))*2) -> 126859.409 | O10: =IF($I10<>"Oui",$G10*3,($G10+ROUND(J10*$G10/SUM(COUNTRY_INFO!$E10:$G10),0))*3) -> 176199.3619 | P10: =SUM(M10:O10) -> 303058.7709 | R10: =IF($P10>$Q10,P10-Q10,0) -> 303058.7709
A11: =IF(INTRO!$E$43="Non endémique"," ", IF(COUNTRY_INFO!A11=0," ",COUNTRY_INFO!A11)) -> TOGO | B11: =IF(INTRO!$E$43="Non endémique"," ", IF(COUNTRY_INFO!B11=0," ",COUNTRY_INFO!B11)) -> CENTRALE | C11: =IF(INTRO!$E$43="Non endémique"," ", IF(COUNTRY_INFO!C11=0," ",COUNTRY_INFO!C11)) -> MÔ | D11: =IF(INTRO!$E$43="Non endémique", "Non requis", COUNTRY_INFO!Y11) -> 1 | E11: =IF(OR(COUNTRY_INFO!R11="Inconnu",COUNTRY_INFO!R11="Surveillance",COUNTRY_INFO!R11="Non requis",COUNTRY_INFO!R11=0),0,IF($D11<>0, COUNTRY_INFO!R11,0)) -> 5186.42688 | F11: =IF(OR(COUNTRY_INFO!S11="Inconnu",COUNTRY_INFO!S11="Surveillance",COUNTRY_INFO!S11="Non requis",COUNTRY_INFO!S11=0),0,IF($D11<>0, COUNTRY_INFO!S11,0)) -> 9724.5504 | G11: =IF(OR(COUNTRY_INFO!T11="Inconnu",COUNTRY_INFO!T11="Surveillance",COUNTRY_INFO!T11="Non requis",COUNTRY_INFO!T11=0),0,IF($D11<>0, COUNTRY_INFO!T11,0)) -> 0 | H11: =SUM(E11:G11) -> 14910.97728 | N11: =IF($I11<>"Oui",$F11*2,($F11+ROUND(J11*$F11/SUM(COUNTRY_INFO!$E11:$G11),0))*2) -> 19449.1008 | O11: =IF($I11<>"Oui",$G11*3,($G11+ROUND(J11*$G11/SUM(COUNTRY_INFO!$E11:$G11),0))*3) -> 0 | P11: =SUM(M11:O11) -> 19449.1008 | R11: =IF($P11>$Q11,P11-Q11,0) -> 19449.1008
A12: =IF(INTRO!$E$43="Non endémique"," ", IF(COUNTRY_INFO!A12=0," ",COUNTRY_INFO!A12)) -> TOGO | B12: =IF(INTRO!$E$43="Non endémique"," ", IF(COUNTRY_INFO!B12=0," ",COUNTRY_INFO!B12)) -> CENTRALE | C12: =IF(INTRO!$E$43="Non endémique"," ", IF(COUNTRY_INFO!C12=0," ",COUNTRY_INFO!C12)) -> SOTOUBOUA | D12: =IF(INTRO!$E$43="Non endémique", "Non requis", COUNTRY_INFO!Y12) -> 1 | E12: =IF(OR(COUNTRY_INFO!R12="Inconnu",COUNTRY_INFO!R12="Surveillance",COUNTRY_INFO!R12="Non requis",COUNTRY_INFO!R12=0),0,IF($D12<>0, COUNTRY_INFO!R12,0)) -> 16186.52237 | F12: =IF(OR(COUNTRY_INFO!S12="Inconnu",COUNTRY_INFO!S12="Surveillance",COUNTRY_INFO!S12="Non requis",COUNTRY_INFO!S12=0),0,IF($D12<>0, COUNTRY_INFO!S12,0)) -> 30349.72944 | G12: =IF(OR(COUNTRY_INFO!T12="Inconnu",COUNTRY_INFO!T12="Surveillance",COUNTRY_INFO!T12="Non requis",COUNTRY_INFO!T12=0),0,IF($D12<>0, COUNTRY_INFO!T12,0)) -> 1324.577143 | H12: 47860.82895 | N12: =IF($I12<>"Oui",$F12*2,($F12+ROUND(J12*$F12/SUM(COUNTRY_INFO!$E12:$G12),0))*2) -> 60699.45888 | O12: =IF($I12<>"Oui",$G12*3,($G12+ROUND(J12*$G12/SUM(COUNTRY_INFO!$E12:$G12),0))*3) -> 3973.73143 | P12: 64673.19031 | R12: 64673.19031
A13: =IF(INTRO!$E$43="Non endémique"," ", IF(COUNTRY_INFO!A13=0," ",COUNTRY_INFO!A13)) -> TOGO | B13: =IF(INTRO!$E$43="Non endémique"," ", IF(COUNTRY_INFO!B13=0," ",COUNTRY_INFO!B13)) -> CENTRALE | C13: =IF(INTRO!$E$43="Non endémique"," ", IF(COUNTRY_INFO!C13=0," ",COUNTRY_INFO!C13)) -> TCHAMBA | D13: =IF(INTRO!$E$43="Non endémique", "Non requis", COUNTRY_INFO!Y13) -> 1 | E13: =IF(OR(COUNTRY_INFO!R13="Inconnu",COUNTRY_INFO!R13="Surveillance",COUNTRY_INFO!R13="Non requis",COUNTRY_INFO!R13=0),0,IF($D13<>0, COUNTRY_INFO!R13,0)) -> 31842.71942 | F13: =IF(OR(COUNTRY_INFO!S13="Inconnu",COUNTRY_INFO!S13="Surveillance",COUNTRY_INFO!S13="Non requis",COUNTRY_INFO!S13=0),0,IF($D13<>0, COUNTRY_INFO!S13,0)) -> 59705.09892 | G13: =IF(OR(COUNTRY_INFO!T13="Inconnu",COUNTRY_INFO!T13="Surveillance",COUNTRY_INFO!T13="Non requis",COUNTRY_INFO!T13=0),0,IF($D13<>0, COUNTRY_INFO!T13,0)) -> 0 | H13: 91547.81834 | N13: =IF($I13<>"Oui",$F13*2,($F13+ROUND(J13*$F13/SUM(COUNTRY_INFO!$E13:$G13),0))*2) -> 119410.1978 | O13: =IF($I13<>"Oui",$G13*3,($G13+ROUND(J13*$G13/SUM(COUNTRY_INFO!$E13:$G13),0))*3) -> 0 | P13: 119410.1978 | R13: 119410.1978
A14: =IF(INTRO!$E$43="Non endémique"," ", IF(COUNTRY_INFO!A14=0," ",COUNTRY_INFO!A14)) -> TOGO | B14: =IF(INTRO!$E$43="Non endémique"," ", IF(COUNTRY_INFO!B14=0," ",COUNTRY_INFO!B14)) -> CENTRALE | C14: =IF(INTRO!$E$43="Non endémique"," ", IF(COUNTRY_INFO!C14=0," ",COUNTRY_INFO!C14)) -> TCHAOUDJO | D14: =IF(INTRO!$E$43="Non endémique", "Non requis", COUNTRY_INFO!Y14) -> 1 | E14: =IF(OR(COUNTRY_INFO!R14="Inconnu",COUNTRY_INFO!R14="Surveillance",COUNTRY_INFO!R14="Non requis",COUNTRY_INFO!R14=0),0,IF($D14<>0, COUNTRY_INFO!R14,0)) -> 28386.30816 | F14: =IF(OR(COUNTRY_INFO!S14="Inconnu",COUNTRY_INFO!S14="Surveillance",COUNTRY_INFO!S14="Non requis",COUNTRY_INFO!S14=0),0,IF($D14<>0, COUNTRY_INFO!S14,0)) -> 53224.3278 | G14: =IF(OR(COUNTRY_INFO!T14="Inconnu",COUNTRY_INFO!T14="Surveillance",COUNTRY_INFO!T14="Non requis",COUNTRY_INFO!T14=0),0,IF($D14<>0, COUNTRY_INFO!T14,0)) -> 11330.93177 | H14: 92941.56773 | N14: =IF($I14<>"Oui",$F14*2,($F14+ROUND(J14*$F14/SUM(COUNTRY_INFO!$E14:$G14),0))*2) -> 106448.6556 | O14: =IF($I14<>"Oui",$G14*3,($G14+ROUND(J14*$G14/SUM(COUNTRY_INFO!$E14:$G14),0))*3) -> 33992.7953 | P14: 140441.4509 | R14: 140441.4509
A15: =IF(INTRO!$E$43="Non endémique"," ", IF(COUNTRY_INFO!A15=0," ",COUNTRY_INFO!A15)) -> TOGO | B15: =IF(INTRO!$E$43="Non endémique"," ", IF(COUNTRY_INFO!B15=0," ",COUNTRY_INFO!B15)) -> GRAND LOME | C15: =IF(INTRO!$E$43="Non endémique"," ", IF(COUNTRY_INFO!C15=0," ",COUNTRY_INFO!C15)) -> AGOE-NYIVE | D15: =IF(INTRO!$E$43="Non endémique", "Non requis", COUNTRY_INFO!Y15) -> 2 | E15: =IF(OR(COUNTRY_INFO!R15="Inconnu",COUNTRY_INFO!R15="Surveillance",COUNTRY_INFO!R15="Non requis",COUNTRY_INFO!R15=0),0,IF($D15<>0, COUNTRY_INFO!R15,0)) -> 79974.80122 | F15: =IF(OR(COUNTRY_INFO!S15="Inconnu",COUNTRY_INFO!S15="Surveillance",COUNTRY_INFO!S15="Non requis",COUNTRY_INFO!S15=0),0,IF($D15<>0, COUNTRY_INFO!S15,0)) -> 149952.7523 | G15: =IF(OR(COUNTRY_INFO!T15="Inconnu",COUNTRY_INFO!T15="Surveillance",COUNTRY_INFO!T15="Non requis",COUNTRY_INFO!T15=0),0,IF($D15<>0, COUNTRY_INFO!T15,0)) -> 167621.487 | H15: 397549.0405 | I15: Oui | J15: 321833.255 | K15: 2 | L15: EAS et Adultes | N15: =IF($I15<>"Oui",$F15*2,($F15+ROUND(J15*$F15/SUM(COUNTRY_INFO!$E15:$G15),0))*2) -> 408743.5046 | O15: =IF($I15<>"Oui",$G15*3,($G15+ROUND(J15*$G15/SUM(COUNTRY_INFO!$E15:$G15),0))*3) -> 685357.461 | P15: 1094100.966 | R15: 1094100.966
A16: =IF(INTRO!$E$43="Non endémique"," ", IF(COUNTRY_INFO!A16=0," ",COUNTRY_INFO!A16)) -> TOGO | B16: =IF(INTRO!$E$43="Non endémique"," ", IF(COUNTRY_INFO!B16=0," ",COUNTRY_INFO!B16)) -> GRAND LOME | C16: =IF(INTRO!$E$43="Non endémique"," ", IF(COUNTRY_INFO!C16=0," ",COUNTRY_INFO!C16)) -> GOLFE | D16: =IF(INTRO!$E$43="Non endémique", "Non requis", COUNTRY_INFO!Y16) -> 1 | E16: =IF(OR(COUNTRY_INFO!R16="Inconnu",COUNTRY_INFO!R16="Surveillance",COUNTRY_INFO!R16="Non requis",COUNTRY_INFO!R16=0),0,IF($D16<>0, COUNTRY_INFO!R16,0)) -> 28517.44973 | F16: =IF(OR(COUNTRY_INFO!S16="Inconnu",COUNTRY_INFO!S16="Surveillance",COUNTRY_INFO!S16="Non requis",COUNTRY_INFO!S16=0),0,IF($D16<>0, COUNTRY_INFO!S16,0)) -> 53470.21824 | G16: =IF(OR(COUNTRY_INFO!T16="Inconnu",COUNTRY_INFO!T16="Surveillance",COUNTRY_INFO!T16="Non requis",COUNTRY_INFO!T16=0),0,IF($D16<>0, COUNTRY_INFO!T16,0)) -> 0 | H16: 81987.66797 | N16: =IF($I16<>"Oui",$F16*2,($F16+ROUND(J16*$F16/SUM(COUNTRY_INFO!$E16:$G16),0))*2) -> 106940.4365 | O16: =IF($I16<>"Oui",$G16*3,($G16+ROUND(J16*$G16/SUM(COUNTRY_INFO!$E16:$G16),0))*3) -> 0 | P16: 106940.4365 | R16: 106940.4365
A17: =IF(INTRO!$E$43="Non endémique"," ", IF(COUNTRY_INFO!A17=0," ",COUNTRY_INFO!A17)) -> TOGO | B17: =IF(INTRO!$E$43="Non endémique"," ", IF(COUNTRY_INFO!B17=0," ",COUNTRY_INFO!B17)) -> KARA | C17: =IF(INTRO!$E$43="Non endémique"," ", IF(COUNTRY_INFO!C17=0," ",COUNTRY_INFO!C17)) -> ASSOLI | D17: =IF(INTRO!$E$43="Non endémique", "Non requis", COUNTRY_INFO!Y17) -> 2 | E17: =IF(OR(COUNTRY_INFO!R17="Inconnu",COUNTRY_INFO!R17="Surveillance",COUNTRY_INFO!R17="Non requis",COUNTRY_INFO!R17=0),0,IF($D17<>0, COUNTRY_INFO!R17,0)) -> 7554.873216 | F17: =IF(OR(COUNTRY_INFO!S17="Inconnu",COUNTRY_INFO!S17="Surveillance",COUNTRY_INFO!S17="Non requis",COUNTRY_INFO!S17=0),0,IF($D17<>0, COUNTRY_INFO!S17,0)) -> 14165.38728 | G17: =IF(OR(COUNTRY_INFO!T17="Inconnu",COUNTRY_INFO!T17="Surveillance",COUNTRY_INFO!T17="Non requis",COUNTRY_INFO!T17=0),0,IF($D17<>0, COUNTRY_INFO!T17,0)) -> 4622.658 | H17: 26342.9185 | I17: Oui | J17: 8875.50336 | K17: 2 | L17: EAS et Adultes | N17: =IF($I17<>"Oui",$F17*2,($F17+ROUND(J17*$F17/SUM(COUNTRY_INFO!$E17:$G17),0))*2) -> 32100.77456 | O17: =IF($I17<>"Oui",$G17*3,($G17+ROUND(J17*$G17/SUM(COUNTRY_INFO!$E17:$G17),0))*3) -> 15712.974 | P17: 47813.74856 | R17: 47813.74856
A18: =IF(INTRO!$E$43="Non endémique"," ", IF(COUNTRY_INFO!A18=0," ",COUNTRY_INFO!A18)) -> TOGO | B18: =IF(INTRO!$E$43="Non endémique"," ", IF(COUNTRY_INFO!B18=0," ",COUNTRY_INFO!B18)) -> KARA | C18: =IF(INTRO!$E$43="Non endémique"," ", IF(COUNTRY_INFO!C18=0," ",COUNTRY_INFO!C18)) -> BASSAR | D18: =IF(INTRO!$E$43="Non endémique", "Non requis", COUNTRY_INFO!Y18) -> 1 | E18: =IF(OR(COUNTRY_INFO!R18="Inconnu",COUNTRY_INFO!R18="Surveillance",COUNTRY_INFO!R18="Non requis",COUNTRY_INFO!R18=0),0,IF($D18<>0, COUNTRY_INFO!R18,0)) -> 21649.8768 | F18: =IF(OR(COUNTRY_INFO!S18="Inconnu",COUNTRY_INFO!S18="Surveillance",COUNTRY_INFO!S18="Non requis",COUNTRY_INFO!S18=0),0,IF($D18<>0, COUNTRY_INFO!S18,0)) -> 40593.519 | G18: =IF(OR(COUNTRY_INFO!T18="Inconnu",COUNTRY_INFO!T18="Surveillance",COUNTRY_INFO!T18="Non requis",COUNTRY_INFO!T18=0),0,IF($D18<>0, COUNTRY_INFO!T18,0)) -> 3388.0638 | H18: 65631.4596 | N18: =IF($I18<>"Oui",$F18*2,($F18+ROUND(J18*$F18/SUM(COUNTRY_INFO!$E18:$G18),0))*2) -> 81187.038 | O18: =IF($I18<>"Oui",$G18*3,($G18+ROUND(J18*$G18/SUM(COUNTRY_INFO!$E18:$G18),0))*3) -> 10164.1914 | P18: 91351.2294 | R18: 91351.2294
A19: =IF(INTRO!$E$43="Non endémique"," ", IF(COUNTRY_INFO!A19=0," ",COUNTRY_INFO!A19)) -> TOGO | B19: =IF(INTRO!$E$43="Non endémique"," ", IF(COUNTRY_INFO!B19=0," ",COUNTRY_INFO!B19)) -> KARA | C19: =IF(INTRO!$E$43="Non endémique"," ", IF(COUNTRY_INFO!C19=0," ",COUNTRY_INFO!C19)) -> BINAH | D19: =IF(INTRO!$E$43="Non endémique", "Non requis", COUNTRY_INFO!Y19) -> 1 | E19: =IF(OR(COUNTRY_INFO!R19="Inconnu",COUNTRY_INFO!R19="Surveillance",COUNTRY_INFO!R19="Non requis",COUNTRY_INFO!R19=0),0,IF($D19<>0, COUNTRY_INFO!R19,0)) -> 12693.25325 | F19: =IF(OR(COUNTRY_INFO!S19="Inconnu",COUNTRY_INFO!S19="Surveillance",COUNTRY_INFO!S19="Non requis",COUNTRY_INFO!S19=0),0,IF($D19<>0, COUNTRY_INFO!S19,0)) -> 23799.84984 | G19: =IF(OR(COUNTRY_INFO!T19="Inconnu",COUNTRY_INFO!T19="Surveillance",COUNTRY_INFO!T19="Non requis",COUNTRY_INFO!T19=0),0,IF($D19<>0, COUNTRY_INFO!T19,0)) -> 16463.05193 | H19: 52956.15502 | N19: =IF($I19<>"Oui",$F19*2,($F19+ROUND(J19*$F19/SUM(COUNTRY_INFO!$E19:$G19),0))*2) -> 47599.69968 | O19: =IF($I19<>"Oui",$G19*3,($G19+ROUND(J19*$G19/SUM(COUNTRY_INFO!$E19:$G19),0))*3) -> 49389.15579 | P19: 96988.85547 | R19: 96988.85547
A20: =IF(INTRO!$E$43="Non endémique"," ", IF(COUNTRY_INFO!A20=0," ",COUNTRY_INFO!A20)) -> TOGO | B20: =IF(INTRO!$E$43="Non endémique"," ", IF(COUNTRY_INFO!B20=0," ",COUNTRY_INFO!B20)) -> KARA | C20: =IF(INTRO!$E$43="Non endémique"," ", IF(COUNTRY_INFO!C20=0," ",COUNTRY_INFO!C20)) -> DANKPEN | D20: =IF(INTRO!$E$43="Non endémique", "Non requis", COUNTRY_INFO!Y20) -> 1 | E20: =IF(OR(COUNTRY_INFO!R20="Inconnu",COUNTRY_INFO!R20="Surveillance",COUNTRY_INFO!R20="Non requis",COUNTRY_INFO!R20=0),0,IF($D20<>0, COUNTRY_INFO!R20,0)) -> 10353.10848 | F20: =IF(OR(COUNTRY_INFO!S20="Inconnu",COUNTRY_INFO!S20="Surveillance",COUNTRY_INFO!S20="Non requis",COUNTRY_INFO!S20=0),0,IF($D20<>0, COUNTRY_INFO!S20,0)) -> 19412.0784 | G20: =IF(OR(COUNTRY_INFO!T20="Inconnu",COUNTRY_INFO!T20="Surveillance",COUNTRY_INFO!T20="Non requis",COUNTRY_INFO!T20=0),0,IF($D20<>0, COUNTRY_INFO!T20,0)) -> 0 | H20: 29765.18688 | N20: =IF($I20<>"Oui",$F20*2,($F20+ROUND(J20*$F20/SUM(COUNTRY_INFO!$E20:$G20),0))*2) -> 38824.1568 | O20: =IF($I20<>"Oui",$G20*3,($G20+ROUND(J20*$G20/SUM(COUNTRY_INFO!$E20:$G20),0))*3) -> 0 | P20: 38824.1568 | R20: 38824.1568
A21: =IF(INTRO!$E$43="Non endémique"," ", IF(COUNTRY_INFO!A21=0," ",COUNTRY_INFO!A21)) -> TOGO | B21: =IF(INTRO!$E$43="Non endémique"," ", IF(COUNTRY_INFO!B21=0," ",COUNTRY_INFO!B21)) -> KARA | C21: =IF(INTRO!$E$43="Non endémique"," ", IF(COUNTRY_INFO!C21=0," ",COUNTRY_INFO!C21)) -> DOUFELGOU | D21: =IF(INTRO!$E$43="Non endémique", "Non requis", COUNTRY_INFO!Y21) -> 2 | E21: =IF(OR(COUNTRY_INFO!R21="Inconnu",COUNTRY_INFO!R21="Surveillance",COUNTRY_INFO!R21="Non requis",COUNTRY_INFO!R21=0),0,IF($D21<>0, COUNTRY_INFO!R21,0)) -> 14915.74906 | F21: =IF(OR(COUNTRY_INFO!S21="Inconnu",COUNTRY_INFO!S21="Surveillance",COUNTRY_INFO!S21="Non requis",COUNTRY_INFO!S21=0),0,IF($D21<>0, COUNTRY_INFO!S21,0)) -> 27967.02948 | G21: =IF(OR(COUNTRY_INFO!T21="Inconnu",COUNTRY_INFO!T21="Surveillance",COUNTRY_INFO!T21="Non requis",COUNTRY_INFO!T21=0),0,IF($D21<>0, COUNTRY_INFO!T21,0)) -> 14506.47259 | H21: 57389.25113 | I21: Oui | J21: 21434.4887 | K21: 2 | L21: EAS et Adultes | N21: =IF($I21<>"Oui",$F21*2,($F21+ROUND(J21*$F21/SUM(COUNTRY_INFO!$E21:$G21),0))*2) -> 70012.05896 | O21: =IF($I21<>"Oui",$G21*3,($G21+ROUND(J21*$G21/SUM(COUNTRY_INFO!$E21:$G21),0))*3) -> 54472.41778 | P21: 124484.4767 | R21: 124484.4767
A22: =IF(INTRO!$E$43="Non endémique"," ", IF(COUNTRY_INFO!A22=0," ",COUNTRY_INFO!A22)) -> TOGO | B22: =IF(INTRO!$E$43="Non endémique"," ", IF(COUNTRY_INFO!B22=0," ",COUNTRY_INFO!B22)) -> KARA | C22: =IF(INTRO!$E$43="Non endémique"," ", IF(COUNTRY_INFO!C22=0," ",COUNTRY_INFO!C22)) -> KERAN | D22: =IF(INTRO!$E$43="Non endémique", "Non requis", COUNTRY_INFO!Y22) -> 1 | E22: =IF(OR(COUNTRY_INFO!R22="Inconnu",COUNTRY_INFO!R22="Surveillance",COUNTRY_INFO!R22="Non requis",COUNTRY_INFO!R22=0),0,IF($D22<>0, COUNTRY_INFO!R22,0)) -> 21716.68166 | F22: =IF(OR(COUNTRY_INFO!S22="Inconnu",COUNTRY_INFO!S22="Surveillance",COUNTRY_INFO!S22="Non requis",COUNTRY_INFO!S22=0),0,IF($D22<>0, COUNTRY_INFO!S22,0)) -> 40718.77812 | G22: =IF(OR(COUNTRY_INFO!T22="Inconnu",COUNTRY_INFO!T22="Surveillance",COUNTRY_INFO!T22="Non requis",COUNTRY_INFO!T22=0),0,IF($D22<>0, COUNTRY_INFO!T22,0)) -> 18515.37222 | H22: 80950.832 | N22: =IF($I22<>"Oui",$F22*2,($F22+ROUND(J22*$F22/SUM(COUNTRY_INFO!$E22:$G22),0))*2) -> 81437.55624 | O22: =IF($I22<>"Oui",$G22*3,($G22+ROUND(J22*$G22/SUM(COUNTRY_INFO!$E22:$G22),0))*3) -> 55546.11666 | P22: 136983.6729 | R22: 136983.6729
A23: =IF(INTRO!$E$43="Non endémique"," ", IF(COUNTRY_INFO!A23=0," ",COUNTRY_INFO!A23)) -> TOGO | B23: =IF(INTRO!$E$43="Non endémique"," ", IF(COUNTRY_INFO!B23=0," ",COUNTRY_INFO!B23)) -> KARA | C23: =IF(INTRO!$E$43="Non endémique"," ", IF(COUNTRY_INFO!C23=0," ",COUNTRY_INFO!C23)) -> KOZAH | D23: =IF(INTRO!$E$43="Non endémique", "Non requis", COUNTRY_INFO!Y23) -> 2 | E23: =IF(OR(COUNTRY_INFO!R23="Inconnu",COUNTRY_INFO!R23="Surveillance",COUNTRY_INFO!R23="Non requis",COUNTRY_INFO!R23=0),0,IF($D23<>0, COUNTRY_INFO!R23,0)) -> 48809.18035 | F23: =IF(OR(COUNTRY_INFO!S23="Inconnu",COUNTRY_INFO!S23="Surveillance",COUNTRY_INFO!S23="Non requis",COUNTRY_INFO!S23=0),0,IF($D23<>0, COUNTRY_INFO!S23,0)) -> 91517.21316 | G23: =IF(OR(COUNTRY_INFO!T23="Inconnu",COUNTRY_INFO!T23="Surveillance",COUNTRY_INFO!T23="Non requis",COUNTRY_INFO!T23=0),0,IF($D23<>0, COUNTRY_INFO!T23,0)) -> 47678.5358 | H23: 188004.9293 | I23: Oui | J23: 38603.99693 | K23: 2 | L23: EAS et Adultes | N23: =IF($I23<>"Oui",$F23*2,($F23+ROUND(J23*$F23/SUM(COUNTRY_INFO!$E23:$G23),0))*2) -> 207822.4263 | O23: =IF($I23<>"Oui",$G23*3,($G23+ROUND(J23*$G23/SUM(COUNTRY_INFO!$E23:$G23),0))*3) -> 162406.6074 | P23: 370229.0337 | R23: 370229.0337
A24: =IF(INTRO!$E$43="Non endémique"," ", IF(COUNTRY_INFO!A24=0," ",COUNTRY_INFO!A24)) -> TOGO | B24: =IF(INTRO!$E$43="Non endémique"," ", IF(COUNTRY_INFO!B24=0," ",COUNTRY_INFO!B24)) -> MARITIME | C24: =IF(INTRO!$E$43="Non endémique"," ", IF(COUNTRY_INFO!C24=0," ",COUNTRY_INFO!C24)) -> AVE | D24: =IF(INTRO!$E$43="Non endémique", "Non requis", COUNTRY_INFO!Y24) -> 1 | E24: =IF(OR(COUNTRY_INFO!R24="Inconnu",COUNTRY_INFO!R24="Surveillance",COUNTRY_INFO!R24="Non requis",COUNTRY_INFO!R24=0),0,IF($D24<>0, COUNTRY_INFO!R24,0)) -> 21375.41741 | F24: =IF(OR(COUNTRY_INFO!S24="Inconnu",COUNTRY_INFO!S24="Surveillance",COUNTRY_INFO!S24="Non requis",COUNTRY_INFO!S24=0),0,IF($D24<>0, COUNTRY_INFO!S24,0)) -> 40078.90764 | G24: =IF(OR(COUNTRY_INFO!T24="Inconnu",COUNTRY_INFO!T24="Surveillance",COUNTRY_INFO!T24="Non requis",COUNTRY_INFO!T24=0),0,IF($D24<>0, COUNTRY_INFO!T24,0)) -> 6212.953135 | H24: 67667.27818 | N24: =IF($I24<>"Oui",$F24*2,($F24+ROUND(J24*$F24/SUM(COUNTRY_INFO!$E24:$G24),0))*2) -> 80157.81528 | O24: =IF($I24<>"Oui",$G24*3,($G24+ROUND(J24*$G24/SUM(COUNTRY_INFO!$E24:$G24),0))*3) -> 18638.85941 | P24: 98796.67469 | R24: 98796.67469
A25: =IF(INTRO!$E$43="Non endémique"," ", IF(COUNTRY_INFO!A25=0," ",COUNTRY_INFO!A25)) -> TOGO | B25: =IF(INTRO!$E$43="Non endémique"," ", IF(COUNTRY_INFO!B25=0," ",COUNTRY_INFO!B25)) -> MARITIME | C25: =IF(INTRO!$E$43="Non endémique"," ", IF(COUNTRY_INFO!C25=0," ",COUNTRY_INFO!C25)) -> BAS MONO | D25: =IF(INTRO!$E$43="Non endémique", "Non requis", COUNTRY_INFO!Y25) -> 1 | E25: =IF(OR(COUNTRY_INFO!R25="Inconnu",COUNTRY_INFO!R25="Surveillance",COUNTRY_INFO!R25="Non requis",COUNTRY_INFO!R25=0),0,IF($D25<>0, COUNTRY_INFO!R25,0)) -> 11727.21542 | F25: =IF(OR(COUNTRY_INFO!S25="Inconnu",COUNTRY_INFO!S25="Surveillance",COUNTRY_INFO!S25="Non requis",COUNTRY_INFO!S25=0),0,IF($D25<>0, COUNTRY_INFO!S25,0)) -> 21988.52892 | G25: =IF(OR(COUNTRY_INFO!T25="Inconnu",COUNTRY_INFO!T25="Surveillance",COUNTRY_INFO!T25="Non requis",COUNTRY_INFO!T25=0),0,IF($D25<>0, COUNTRY_INFO!T25,0)) -> 0 | H25: 33715.74434 | N25: =IF($I25<>"Oui",$F25*2,($F25+ROUND(J25*$F25/SUM(COUNTRY_INFO!$E25:$G25),0))*2) -> 43977.05784 | O25: =IF($I25<>"Oui",$G25*3,($G25+ROUND(J25*$G25/SUM(COUNTRY_INFO!$E25:$G25),0))*3) -> 0 | P25: 43977.05784 | R25: 43977.05784
A26: =IF(INTRO!$E$43="Non endémique"," ", IF(COUNTRY_INFO!A26=0," ",COUNTRY_INFO!A26)) -> TOGO | B26: =IF(INTRO!$E$43="Non endémique"," ", IF(COUNTRY_INFO!B26=0," ",COUNTRY_INFO!B26)) -> MARITIME | C26: =IF(INTRO!$E$43="Non endémique"," ", IF(COUNTRY_INFO!C26=0," ",COUNTRY_INFO!C26)) -> LACS | D26: =IF(INTRO!$E$43="Non endémique", "Non requis", COUNTRY_INFO!Y26) -> 2 | E26: =IF(OR(COUNTRY_INFO!R26="Inconnu",COUNTRY_INFO!R26="Surveillance",COUNTRY_INFO!R26="Non requis",COUNTRY_INFO!R26=0),0,IF($D26<>0, COUNTRY_INFO!R26,0)) -> 26502.60845 | F26: =IF(OR(COUNTRY_INFO!S26="Inconnu",COUNTRY_INFO!S26="Surveillance",COUNTRY_INFO!S26="Non requis",COUNTRY_INFO!S26=0),0,IF($D26<>0, COUNTRY_INFO!S26,0)) -> 49692.39084 | G26: =IF(OR(COUNTRY_INFO!T26="Inconnu",COUNTRY_INFO!T26="Surveillance",COUNTRY_INFO!T26="Non requis",COUNTRY_INFO!T26=0),0,IF($D26<>0, COUNTRY_INFO!T26,0)) -> 28630.1418 | H26: 104825.1411 | I26: Oui | J26: 54969.87226 | K26: 2 | L26: EAS et Adultes | N26: =IF($I26<>"Oui",$F26*2,($F26+ROUND(J26*$F26/SUM(COUNTRY_INFO!$E26:$G26),0))*2) -> 121924.7817 | O26: =IF($I26<>"Oui",$G26*3,($G26+ROUND(J26*$G26/SUM(COUNTRY_INFO!$E26:$G26),0))*3) -> 105369.4254 | P26: 227294.2071 | R26: 227294.2071
A27: =IF(INTRO!$E$43="Non endémique"," ", IF(COUNTRY_INFO!A27=0," ",COUNTRY_INFO!A27)) -> TOGO | B27: =IF(INTRO!$E$43="Non endémique"," ", IF(COUNTRY_INFO!B27=0," ",COUNTRY_INFO!B27)) -> MARITIME | C27: =IF(INTRO!$E$43="Non endémique"," ", IF(COUNTRY_INFO!C27=0," ",COUNTRY_INFO!C27)) -> VO | D27: =IF(INTRO!$E$43="Non endémique", "Non requis", COUNTRY_INFO!Y27) -> 2 | E27: =IF(OR(COUNTRY_INFO!R27="Inconnu",COUNTRY_INFO!R27="Surveillance",COUNTRY_INFO!R27="Non requis",COUNTRY_INFO!R27=0),0,IF($D27<>0, COUNTRY_INFO!R27,0)) -> 30137.38541 | F27: =IF(OR(COUNTRY_INFO!S27="Inconnu",COUNTRY_INFO!S27="Surveillance",COUNTRY_INFO!S27="Non requis",COUNTRY_INFO!S27=0),0,IF($D27<>0, COUNTRY_INFO!S27,0)) -> 56507.59764 | G27: =IF(OR(COUNTRY_INFO!T27="Inconnu",COUNTRY_INFO!T27="Surveillance",COUNTRY_INFO!T27="Non requis",COUNTRY_INFO!T27=0),0,IF($D27<>0, COUNTRY_INFO!T27,0)) -> 23431.0656 | H27: 110076.0486 | I27: Oui | J27: 44987.64595 | K27: 2 | L27: EAS et Adultes | N27: =IF($I27<>"Oui",$F27*2,($F27+ROUND(J27*$F27/SUM(COUNTRY_INFO!$E27:$G27),0))*2) -> 135565.1953 | O27: =IF($I27<>"Oui",$G27*3,($G27+ROUND(J27*$G27/SUM(COUNTRY_INFO!$E27:$G27),0))*3) -> 84318.1968 | P27: 219883.3921 | R27: 219883.3921
A28: =IF(INTRO!$E$43="Non endémique"," ", IF(COUNTRY_INFO!A28=0," ",COUNTRY_INFO!A28)) -> TOGO | B28: =IF(INTRO!$E$43="Non endémique"," ", IF(COUNTRY_INFO!B28=0," ",COUNTRY_INFO!B28)) -> MARITIME | C28: =IF(INTRO!$E$43="Non endémique"," ", IF(COUNTRY_INFO!C28=0," ",COUNTRY_INFO!C28)) -> YOTO | D28: =IF(INTRO!$E$43="Non endémique", "Non requis", COUNTRY_INFO!Y28) -> 1 | E28: =IF(OR(COUNTRY_INFO!R28="Inconnu",COUNTRY_INFO!R28="Surveillance",COUNTRY_INFO!R28="Non requis",COUNTRY_INFO!R28=0),0,IF($D28<>0, COUNTRY_INFO!R28,0)) -> 35020.06406 | F28: =IF(OR(COUNTRY_INFO!S28="Inconnu",COUNTRY_INFO!S28="Surveillance",COUNTRY_INFO!S28="Non requis",COUNTRY_INFO!S28=0),0,IF($D28<>0, COUNTRY_INFO!S28,0)) -> 65662.62012 | G28: =IF(OR(COUNTRY_INFO!T28="Inconnu",COUNTRY_INFO!T28="Surveillance",COUNTRY_INFO!T28="Non requis",COUNTRY_INFO!T28=0),0,IF($D28<>0, COUNTRY_INFO!T28,0)) -> 1020.162516 | H28: 101702.8467 | N28: =IF($I28<>"Oui",$F28*2,($F28+ROUND(J28*$F28/SUM(COUNTRY_INFO!$E28:$G28),0))*2) -> 131325.2402 | O28: =IF($I28<>"Oui",$G28*3,($G28+ROUND(J28*$G28/SUM(COUNTRY_INFO!$E28:$G28),0))*3) -> 3060.487548 | P28: 134385.7278 | R28: 134385.7278
A29: =IF(INTRO!$E$43="Non endémique"," ", IF(COUNTRY_INFO!A29=0," ",COUNTRY_INFO!A29)) -> TOGO | B29: =IF(INTRO!$E$43="Non endémique"," ", IF(COUNTRY_INFO!B29=0," ",COUNTRY_INFO!B29)) -> MARITIME | C29: =IF(INTRO!$E$43="Non endémique"," ", IF(COUNTRY_INFO!C29=0," ",COUNTRY_INFO!C29)) -> ZIO | D29: =IF(INTRO!$E$43="Non endémique", "Non requis", COUNTRY_INFO!Y29) -> 2 | E29: =IF(OR(COUNTRY_INFO!R29="Inconnu",COUNTRY_INFO!R29="Surveillance",COUNTRY_INFO!R29="Non requis",COUNTRY_INFO!R29=0),0,IF($D29<>0, COUNTRY_INFO!R29,0)) -> 63435.33197 | F29: =IF(OR(COUNTRY_INFO!S29="Inconnu",COUNTRY_INFO!S29="Surveillance",COUNTRY_INFO!S29="Non requis",COUNTRY_INFO!S29=0),0,IF($D29<>0, COUNTRY_INFO!S29,0)) -> 118941.2474 | G29: =IF(OR(COUNTRY_INFO!T29="Inconnu",COUNTRY_INFO!T29="Surveillance",COUNTRY_INFO!T29="Non requis",COUNTRY_INFO!T29=0),0,IF($D29<>0, COUNTRY_INFO!T29,0)) -> 29773.7226 | H29: 212150.302 | I29: Oui | J29: 36350.07322 | K29: 2 | L29: EAS et Adultes | N29: =IF($I29<>"Oui",$F29*2,($F29+ROUND(J29*$F29/SUM(COUNTRY_INFO!$E29:$G29),0))*2) -> 255094.4949 | O29: =IF($I29<>"Oui",$G29*3,($G29+ROUND(J29*$G29/SUM(COUNTRY_INFO!$E29:$G29),0))*3) -> 95783.1678 | P29: 350877.6627 | R29: 350877.6627
A30: =IF(INTRO!$E$43="Non endémique"," ", IF(COUNTRY_INFO!A30=0," ",COUNTRY_INFO!A30)) -> TOGO | B30: =IF(INTRO!$E$43="Non endémique"," ", IF(COUNTRY_INFO!B30=0," ",COUNTRY_INFO!B30)) -> PLATEAUX | C30: =IF(INTRO!$E$43="Non endémique"," ", IF(COUNTRY_INFO!C30=0," ",COUNTRY_INFO!C30)) -> AGOU | D30: =IF(INTRO!$E$43="Non endémique", "Non requis", COUNTRY_INFO!Y30) -> 2 | E30: =IF(OR(COUNTRY_INFO!R30="Inconnu",COUNTRY_INFO!R30="Surveillance",COUNTRY_INFO!R30="Non requis",COUNTRY_INFO!R30=0),0,IF($D30<>0, COUNTRY_INFO!R30,0)) -> 11897.14646 | F30: =IF(OR(COUNTRY_INFO!S30="Inconnu",COUNTRY_INFO!S30="Surveillance",COUNTRY_INFO!S30="Non requis",COUNTRY_INFO!S30=0),0,IF($D30<>0, COUNTRY_INFO!S30,0)) -> 22307.14962 | G30: =IF(OR(COUNTRY_INFO!T30="Inconnu",COUNTRY_INFO!T30="Surveillance",COUNTRY_INFO!T30="Non requis",COUNTRY_INFO!T30=0),0,IF($D30<>0, COUNTRY_INFO!T30,0)) -> 10147.51775 | H30: 44351.81383 | I30: Oui | J30: 3549.2125 | K30: 2 | L30: EAS et Adultes | N30: =IF($I30<>"Oui",$F30*2,($F30+ROUND(J30*$F30/SUM(COUNTRY_INFO!$E30:$G30),0))*2) -> 46452.29924 | O30: =IF($I30<>"Oui",$G30*3,($G30+ROUND(J30*$G30/SUM(COUNTRY_INFO!$E30:$G30),0))*3) -> 31696.55324 | P30: 78148.85247 | R30: 78148.85247
A31: =IF(INTRO!$E$43="Non endémique"," ", IF(COUNTRY_INFO!A31=0," ",COUNTRY_INFO!A31)) -> TOGO | B31: =IF(INTRO!$E$43="Non endémique"," ", IF(COUNTRY_INFO!B31=0," ",COUNTRY_INFO!B31)) -> PLATEAUX | C31: =IF(INTRO!$E$43="Non endémique"," ", IF(COUNTRY_INFO!C31=0," ",COUNTRY_INFO!C31)) -> AKEBOU | D31: =IF(INTRO!$E$43="Non endémique", "Non requis", COUNTRY_INFO!Y31) -> 1 | E31: =IF(OR(COUNTRY_INFO!R31="Inconnu",COUNTRY_INFO!R31="Surveillance",COUNTRY_INFO!R31="Non requis",COUNTRY_INFO!R31=0),0,IF($D31<>0, COUNTRY_INFO!R31,0)) -> 10892.1433 | F31: =IF(OR(COUNTRY_INFO!S31="Inconnu",COUNTRY_INFO!S31="Surveillance",COUNTRY_INFO!S31="Non requis",COUNTRY_INFO!S31=0),0,IF($D31<>0, COUNTRY_INFO!S31,0)) -> 20422.76869 | G31: =IF(OR(COUNTRY_INFO!T31="Inconnu",COUNTRY_INFO!T31="Surveillance",COUNTRY_INFO!T31="Non requis",COUNTRY_INFO!T31=0),0,IF($D31<>0, COUNTRY_INFO!T31,0)) -> 12651.06746 | H31: 43965.97945 | N31: =IF($I31<>"Oui",$F31*2,($F31+ROUND(J31*$F31/SUM(COUNTRY_INFO!$E31:$G31),0))*2) -> 40845.53739 | O31: =IF($I31<>"Oui",$G31*3,($G31+ROUND(J31*$G31/SUM(COUNTRY_INFO!$E31:$G31),0))*3) -> 37953.20237 | P31: 78798.73976 | R31: 78798.73976
A32: =IF(INTRO!$E$43="Non endémique"," ", IF(COUNTRY_INFO!A32=0," ",COUNTRY_INFO!A32)) -> TOGO | B32: =IF(INTRO!$E$43="Non endémique"," ", IF(COUNTRY_INFO!B32=0," ",COUNTRY_INFO!B32)) -> PLATEAUX | C32: =IF(INTRO!$E$43="Non endémique"," ", IF(COUNTRY_INFO!C32=0," ",COUNTRY_INFO!C32)) -> AMOU | D32: =IF(INTRO!$E$43="Non endémique", "Non requis", COUNTRY_INFO!Y32) -> 2 | E32: =IF(OR(COUNTRY_INFO!R32="Inconnu",COUNTRY_INFO!R32="Surveillance",COUNTRY_INFO!R32="Non requis",COUNTRY_INFO!R32=0),0,IF($D32<>0, COUNTRY_INFO!R32,0)) -> 19538.71159 | F32: =IF(OR(COUNTRY_INFO!S32="Inconnu",COUNTRY_INFO!S32="Surveillance",COUNTRY_INFO!S32="Non requis",COUNTRY_INFO!S32=0),0,IF($D32<>0, COUNTRY_INFO!S32,0)) -> 36635.08424 | G32: =IF(OR(COUNTRY_INFO!T32="Inconnu",COUNTRY_INFO!T32="Surveillance",COUNTRY_INFO!T32="Non requis",COUNTRY_INFO!T32=0),0,IF($D32<>0, COUNTRY_INFO!T32,0)) -> 22549.86378 | H32: 78723.65962 | I32: Oui | J32: 8319.605014 | K32: 2 | L32: EAS et Adultes | N32: =IF($I32<>"Oui",$F32*2,($F32+ROUND(J32*$F32/SUM(COUNTRY_INFO!$E32:$G32),0))*2) -> 78584.16848 | O32: =IF($I32<>"Oui",$G32*3,($G32+ROUND(J32*$G32/SUM(COUNTRY_INFO!$E32:$G32),0))*3) -> 72557.59135 | P32: 151141.7598 | R32: 151141.7598
A33: =IF(INTRO!$E$43="Non endémique"," ", IF(COUNTRY_INFO!A33=0," ",COUNTRY_INFO!A33)) -> TOGO | B33: =IF(INTRO!$E$43="Non endémique"," ", IF(COUNTRY_INFO!B33=0," ",COUNTRY_INFO!B33)) -> PLATEAUX | C33: =IF(INTRO!$E$43="Non endémique"," ", IF(COUNTRY_INFO!C33=0," ",COUNTRY_INFO!C33)) -> ANIE | D33: =IF(INTRO!$E$43="Non endémique", "Non requis", COUNTRY_INFO!Y33) -> 1 | E33: =IF(OR(COUNTRY_INFO!R33="Inconnu",COUNTRY_INFO!R33="Surveillance",COUNTRY_INFO!R33="Non requis",COUNTRY_INFO!R33=0),0,IF($D33<>0, COUNTRY_INFO!R33,0)) -> 28044.81552 | F33: =IF(OR(COUNTRY_INFO!S33="Inconnu",COUNTRY_INFO!S33="Surveillance",COUNTRY_INFO!S33="Non requis",COUNTRY_INFO!S33=0),0,IF($D33<>0, COUNTRY_INFO!S33,0)) -> 52584.02909 | G33: =IF(OR(COUNTRY_INFO!T33="Inconnu",COUNTRY_INFO!T33="Surveillance",COUNTRY_INFO!T33="Non requis",COUNTRY_INFO!T33=0),0,IF($D33<>0, COUNTRY_INFO!T33,0)) -> 26646.91683 | H33: 107275.7614 | N33: =IF($I33<>"Oui",$F33*2,($F33+ROUND(J33*$F33/SUM(COUNTRY_INFO!$E33:$G33),0))*2) -> 105168.0582 | O33: =IF($I33<>"Oui",$G33*3,($G33+ROUND(J33*$G33/SUM(COUNTRY_INFO!$E33:$G33),0))*3) -> 79940.75048 | P33: 185108.8087 | R33: 185108.8087
A34: =IF(INTRO!$E$43="Non endémique"," ", IF(COUNTRY_INFO!A34=0," ",COUNTRY_INFO!A34)) -> TOGO | B34: =IF(INTRO!$E$43="Non endémique"," ", IF(COUNTRY_INFO!B34=0," ",COUNTRY_INFO!B34)) -> PLATEAUX | C34: =IF(INTRO!$E$43="Non endémique"," ", IF(COUNTRY_INFO!C34=0," ",COUNTRY_INFO!C34)) -> DANYI | D34: =IF(INTRO!$E$43="Non endémique", "Non requis", COUNTRY_INFO!Y34) -> 0 | E34: =IF(OR(COUNTRY_INFO!R34="Inconnu",COUNTRY_INFO!R34="Surveillance",COUNTRY_INFO!R34="Non requis",COUNTRY_INFO!R34=0),0,IF($D34<>0, COUNTRY_INFO!R34,0)) -> 0 | F34: =IF(OR(COUNTRY_INFO!S34="Inconnu",COUNTRY_INFO!S34="Surveillance",COUNTRY_INFO!S34="Non requis",COUNTRY_INFO!S34=0),0,IF($D34<>0, COUNTRY_INFO!S34,0)) -> 0 | G34: =IF(OR(COUNTRY_INFO!T34="Inconnu",COUNTRY_INFO!T34="Surveillance",COUNTRY_INFO!T34="Non requis",COUNTRY_INFO!T34=0),0,IF($D34<>0, COUNTRY_INFO!T34,0)) -> 0 | H34: 0 | N34: =IF($I34<>"Oui",$F34*2,($F34+ROUND(J34*$F34/SUM(COUNTRY_INFO!$E34:$G34),0))*2) -> 0 | O34: =IF($I34<>"Oui",$G34*3,($G34+ROUND(J34*$G34/SUM(COUNTRY_INFO!$E34:$G34),0))*3) -> 0 | P34: 0 | R34: 0
A35: =IF(INTRO!$E$43="Non endémique"," ", IF(COUNTRY_INFO!A35=0," ",COUNTRY_INFO!A35)) -> TOGO | B35: =IF(INTRO!$E$43="Non endémique"," ", IF(COUNTRY_INFO!B35=0," ",COUNTRY_INFO!B35)) -> PLATEAUX | C35: =IF(INTRO!$E$43="Non endémique"," ", IF(COUNTRY_INFO!C35=0," ",COUNTRY_INFO!C35)) -> EST-MONO | D35: =IF(INTRO!$E$43="Non endémique", "Non requis", COUNTRY_INFO!Y35) -> 1 | E35: =IF(OR(COUNTRY_INFO!R35="Inconnu",COUNTRY_INFO!R35="Surveillance",COUNTRY_INFO!R35="Non requis",COUNTRY_INFO!R35=0),0,IF($D35<>0, COUNTRY_INFO!R35,0)) -> 19957.74395 | F35: =IF(OR(COUNTRY_INFO!S35="Inconnu",COUNTRY_INFO!S35="Surveillance",COUNTRY_INFO!S35="Non requis",COUNTRY_INFO!S35=0),0,IF($D35<>0, COUNTRY_INFO!S35,0)) -> 35369.13437 | G35: =IF(OR(COUNTRY_INFO!T35="Inconnu",COUNTRY_INFO!T35="Surveillance",COUNTRY_INFO!T35="Non requis",COUNTRY_INFO!T35=0),0,IF($D35<>0, COUNTRY_INFO!T35,0)) -> 0 | H35: 55326.87832 | N35: =IF($I35<>"Oui",$F35*2,($F35+ROUND(J35*$F35/SUM(COUNTRY_INFO!$E35:$G35),0))*2) -> 70738.26874 | O35: =IF($I35<>"Oui",$G35*3,($G35+ROUND(J35*$G35/SUM(COUNTRY_INFO!$E35:$G35),0))*3) -> 0 | P35: 70738.26874 | R35: 70738.26874
A36: =IF(INTRO!$E$43="Non endémique"," ", IF(COUNTRY_INFO!A36=0," ",COUNTRY_INFO!A36)) -> TOGO | B36: =IF(INTRO!$E$43="Non endémique"," ", IF(COUNTRY_INFO!B36=0," ",COUNTRY_INFO!B36)) -> PLATEAUX | C36: =IF(INTRO!$E$43="Non endémique"," ", IF(COUNTRY_INFO!C36=0," ",COUNTRY_INFO!C36)) -> HAHO | D36: =IF(INTRO!$E$43="Non endémique", "Non requis", COUNTRY_INFO!Y36) -> 1 | E36: =IF(OR(COUNTRY_INFO!R36="Inconnu",COUNTRY_INFO!R36="Surveillance",COUNTRY_INFO!R36="Non requis",COUNTRY_INFO!R36=0),0,IF($D36<>0, COUNTRY_INFO!R36,0)) -> 44195.51982 | F36: =IF(OR(COUNTRY_INFO!S36="Inconnu",COUNTRY_INFO!S36="Surveillance",COUNTRY_INFO!S36="Non requis",COUNTRY_INFO!S36=0),0,IF($D36<>0, COUNTRY_INFO!S36,0)) -> 82866.59965 | G36: =IF(OR(COUNTRY_INFO!T36="Inconnu",COUNTRY_INFO!T36="Surveillance",COUNTRY_INFO!T36="Non requis",COUNTRY_INFO!T36=0),0,IF($D36<>0, COUNTRY_INFO!T36,0)) -> 56321.46364 | H36: 183383.5831 | N36: =IF($I36<>"Oui",$F36*2,($F36+ROUND(J36*$F36/SUM(COUNTRY_INFO!$E36:$G36),0))*2) -> 165733.1993 | O36: =IF($I36<>"Oui",$G36*3,($G36+ROUND(J36*$G36/SUM(COUNTRY_INFO!$E36:$G36),0))*3) -> 168964.3909 | P36: 334697.5902 | R36: 334697.5902
A37: =IF(INTRO!$E$43="Non endémique"," ", IF(COUNTRY_INFO!A37=0," ",COUNTRY_INFO!A37)) -> TOGO | B37: =IF(INTRO!$E$43="Non endémique"," ", IF(COUNTRY_INFO!B37=0," ",COUNTRY_INFO!B37)) -> PLATEAUX | C37: =IF(INTRO!$E$43="Non endémique"," ", IF(COUNTRY_INFO!C37=0," ",COUNTRY_INFO!C37)) -> KLOTO | D37: =IF(INTRO!$E$43="Non endémique", "Non requis", COUNTRY_INFO!Y37) -> 1 | E37: =IF(OR(COUNTRY_INFO!R37="Inconnu",COUNTRY_INFO!R37="Surveillance",COUNTRY_INFO!R37="Non requis",COUNTRY_INFO!R37=0),0,IF($D37<>0, COUNTRY_INFO!R37,0)) -> 21627.80289 | F37: =IF(OR(COUNTRY_INFO!S37="Inconnu",COUNTRY_INFO!S37="Surveillance",COUNTRY_INFO!S37="Non requis",COUNTRY_INFO!S37=0),0,IF($D37<>0, COUNTRY_INFO!S37,0)) -> 40552.13042 | G37: =IF(OR(COUNTRY_INFO!T37="Inconnu",COUNTRY_INFO!T37="Surveillance",COUNTRY_INFO!T37="Non requis",COUNTRY_INFO!T37=0),0,IF($D37<>0, COUNTRY_INFO!T37,0)) -> 1946.743604 | H37: 64126.67692 | N37: =IF($I37<>"Oui",$F37*2,($F37+ROUND(J37*$F37/SUM(COUNTRY_INFO!$E37:$G37),0))*2) -> 81104.26085 | O37: =IF($I37<>"Oui",$G37*3,($G37+ROUND(J37*$G37/SUM(COUNTRY_INFO!$E37:$G37),0))*3) -> 5840.230813 | P37: 86944.49166 | R37: 86944.49166
A38: =IF(INTRO!$E$43="Non endémique"," ", IF(COUNTRY_INFO!A38=0," ",COUNTRY_INFO!A38)) -> TOGO | B38: =IF(INTRO!$E$43="Non endémique"," ", IF(COUNTRY_INFO!B38=0," ",COUNTRY_INFO!B38)) -> PLATEAUX | C38: =IF(INTRO!$E$43="Non endémique"," ", IF(COUNTRY_INFO!C38=0," ",COUNTRY_INFO!C38)) -> KPELE | D38: =IF(INTRO!$E$43="Non endémique", "Non requis", COUNTRY_INFO!Y38) -> 2 | E38: =IF(OR(COUNTRY_INFO!R38="Inconnu",COUNTRY_INFO!R38="Surveillance",COUNTRY_INFO!R38="Non requis",COUNTRY_INFO!R38=0),0,IF($D38<>0, COUNTRY_INFO!R38,0)) -> 10644.60226 | F38: =IF(OR(COUNTRY_INFO!S38="Inconnu",COUNTRY_INFO!S38="Surveillance",COUNTRY_INFO!S38="Non requis",COUNTRY_INFO!S38=0),0,IF($D38<>0, COUNTRY_INFO!S38,0)) -> 19958.62923 | G38: =IF(OR(COUNTRY_INFO!T38="Inconnu",COUNTRY_INFO!T38="Surveillance",COUNTRY_INFO!T38="Non requis",COUNTRY_INFO!T38=0),0,IF($D38<>0, COUNTRY_INFO!T38,0)) -> 4599.238452 | H38: 35202.46994 | I38: Oui | J38: 8830.537829 | K38: 2 | L38: EAS et Adultes | N38: =IF($I38<>"Oui",$F38*2,($F38+ROUND(J38*$F38/SUM(COUNTRY_INFO!$E38:$G38),0))*2) -> 44251.25846 | O38: =IF($I38<>"Oui",$G38*3,($G38+ROUND(J38*$G38/SUM(COUNTRY_INFO!$E38:$G38),0))*3) -> 15294.71536 | P38: 59545.97382 | R38: 59545.97382
A39: =IF(INTRO!$E$43="Non endémique"," ", IF(COUNTRY_INFO!A39=0," ",COUNTRY_INFO!A39)) -> TOGO | B39: =IF(INTRO!$E$43="Non endémique"," ", IF(COUNTRY_INFO!B39=0," ",COUNTRY_INFO!B39)) -> PLATEAUX | C39: =IF(INTRO!$E$43="Non endémique"," ", IF(COUNTRY_INFO!C39=0," ",COUNTRY_INFO!C39)) -> MOYEN-MONO | D39: =IF(INTRO!$E$43="Non endémique", "Non requis", COUNTRY_INFO!Y39) -> 2 | E39: =IF(OR(COUNTRY_INFO!R39="Inconnu",COUNTRY_INFO!R39="Surveillance",COUNTRY_INFO!R39="Non requis",COUNTRY_INFO!R39=0),0,IF($D39<>0, COUNTRY_INFO!R39,0)) -> 17123.16289 | F39: =IF(OR(COUNTRY_INFO!S39="Inconnu",COUNTRY_INFO!S39="Surveillance",COUNTRY_INFO!S39="Non requis",COUNTRY_INFO!S39=0),0,IF($D39<>0, COUNTRY_INFO!S39,0)) -> 32105.93042 | G39: =IF(OR(COUNTRY_INFO!T39="Inconnu",COUNTRY_INFO!T39="Surveillance",COUNTRY_INFO!T39="Non requis",COUNTRY_INFO!T39=0),0,IF($D39<>0, COUNTRY_INFO!T39,0)) -> 18102.38755 | H39: 67331.48087 | I39: Oui | J39: 16126.25372 | K39: 2 | L39: EAS et Adultes | N39: =IF($I39<>"Oui",$F39*2,($F39+ROUND(J39*$F39/SUM(COUNTRY_INFO!$E39:$G39),0))*2) -> 75599.86085 | O39: =IF($I39<>"Oui",$G39*3,($G39+ROUND(J39*$G39/SUM(COUNTRY_INFO!$E39:$G39),0))*3) -> 63937.16266 | P39: 139537.0235 | R39: 139537.0235
A40: =IF(INTRO!$E$43="Non endémique"," ", IF(COUNTRY_INFO!A40=0," ",COUNTRY_INFO!A40)) -> TOGO | B40: =IF(INTRO!$E$43="Non endémique"," ", IF(COUNTRY_INFO!B40=0," ",COUNTRY_INFO!B40)) -> PLATEAUX | C40: =IF(INTRO!$E$43="Non endémique"," ", IF(COUNTRY_INFO!C40=0," ",COUNTRY_INFO!C40)) -> OGOU | D40: =IF(INTRO!$E$43="Non endémique", "Non requis", COUNTRY_INFO!Y40) -> 2 | E40: =IF(OR(COUNTRY_INFO!R40="Inconnu",COUNTRY_INFO!R40="Surveillance",COUNTRY_INFO!R40="Non requis",COUNTRY_INFO!R40=0),0,IF($D40<>0, COUNTRY_INFO!R40,0)) -> 38001.26041 | F40: =IF(OR(COUNTRY_INFO!S40="Inconnu",COUNTRY_INFO!S40="Surveillance",COUNTRY_INFO!S40="Non requis",COUNTRY_INFO!S40=0),0,IF($D40<>0, COUNTRY_INFO!S40,0)) -> 71252.36327 | G40: =IF(OR(COUNTRY_INFO!T40="Inconnu",COUNTRY_INFO!T40="Surveillance",COUNTRY_INFO!T40="Non requis",COUNTRY_INFO!T40=0),0,IF($D40<>0, COUNTRY_INFO!T40,0)) -> 75443.74075 | H40: 184697.3644 | I40: Oui | J40: 92925.02033 | K40: 2 | L40: EAS et Adultes | N40: =IF($I40<>"Oui",$F40*2,($F40+ROUND(J40*$F40/SUM(COUNTRY_INFO!$E40:$G40),0))*2) -> 194506.7265 | O40: =IF($I40<>"Oui",$G40*3,($G40+ROUND(J40*$G40/SUM(COUNTRY_INFO!$E40:$G40),0))*3) -> 308921.2222 | P40: 503427.9488 | R40: 503427.9488
A41: =IF(INTRO!$E$43="Non endémique"," ", IF(COUNTRY_INFO!A41=0," ",COUNTRY_INFO!A41)) -> TOGO | B41: =IF(INTRO!$E$43="Non endémique"," ", IF(COUNTRY_INFO!B41=0," ",COUNTRY_INFO!B41)) -> PLATEAUX | C41: =IF(INTRO!$E$43="Non endémique"," ", IF(COUNTRY_INFO!C41=0," ",COUNTRY_INFO!C41)) -> WAWA | D41: =IF(INTRO!$E$43="Non endémique", "Non requis", COUNTRY_INFO!Y41) -> 1 | E41: =IF(OR(COUNTRY_INFO!R41="Inconnu",COUNTRY_INFO!R41="Surveillance",COUNTRY_INFO!R41="Non requis",COUNTRY_INFO!R41=0),0,IF($D41<>0, COUNTRY_INFO!R41,0)) -> 14321.8009 | F41: =IF(OR(COUNTRY_INFO!S41="Inconnu",COUNTRY_INFO!S41="Surveillance",COUNTRY_INFO!S41="Non requis",COUNTRY_INFO!S41=0),0,IF($D41<>0, COUNTRY_INFO!S41,0)) -> 26853.37668 | G41: =IF(OR(COUNTRY_INFO!T41="Inconnu",COUNTRY_INFO!T41="Surveillance",COUNTRY_INFO!T41="Non requis",COUNTRY_INFO!T41=0),0,IF($D41<>0, COUNTRY_INFO!T41,0)) -> 10647.06839 | H41: 51822.24597 | N41: =IF($I41<>"Oui",$F41*2,($F41+ROUND(J41*$F41/SUM(COUNTRY_INFO!$E41:$G41),0))*2) -> 53706.75337 | O41: =IF($I41<>"Oui",$G41*3,($G41+ROUND(J41*$G41/SUM(COUNTRY_INFO!$E41:$G41),0))*3) -> 31941.20518 | P41: 85647.95854 | R41: 85647.95854
A42: =IF(INTRO!$E$43="Non endémique"," ", IF(COUNTRY_INFO!A42=0," ",COUNTRY_INFO!A42)) -> TOGO | B42: =IF(INTRO!$E$43="Non endémique"," ", IF(COUNTRY_INFO!B42=0," ",COUNTRY_INFO!B42)) -> SAVANES | C42: =IF(INTRO!$E$43="Non endémique"," ", IF(COUNTRY_INFO!C42=0," ",COUNTRY_INFO!C42)) -> CINKASSE | D42: =IF(INTRO!$E$43="Non endémique", "Non requis", COUNTRY_INFO!Y42) -> 1 | E42: =IF(OR(COUNTRY_INFO!R42="Inconnu",COUNTRY_INFO!R42="Surveillance",COUNTRY_INFO!R42="Non requis",COUNTRY_INFO!R42=0),0,IF($D42<>0, COUNTRY_INFO!R42,0)) -> 15953.78344 | F42: =IF(OR(COUNTRY_INFO!S42="Inconnu",COUNTRY_INFO!S42="Surveillance",COUNTRY_INFO!S42="Non requis",COUNTRY_INFO!S42=0),0,IF($D42<>0, COUNTRY_INFO!S42,0)) -> 29913.34394 | G42: =IF(OR(COUNTRY_INFO!T42="Inconnu",COUNTRY_INFO!T42="Surveillance",COUNTRY_INFO!T42="Non requis",COUNTRY_INFO!T42=0),0,IF($D42<>0, COUNTRY_INFO!T42,0)) -> 23698.31899 | H42: 69565.44637 | N42: =IF($I42<>"Oui",$F42*2,($F42+ROUND(J42*$F42/SUM(COUNTRY_INFO!$E42:$G42),0))*2) -> 59826.68789 | O42: =IF($I42<>"Oui",$G42*3,($G42+ROUND(J42*$G42/SUM(COUNTRY_INFO!$E42:$G42),0))*3) -> 71094.95698 | P42: 130921.6449 | R42: 130921.6449
A43: =IF(INTRO!$E$43="Non endémique"," ", IF(COUNTRY_INFO!A43=0," ",COUNTRY_INFO!A43)) -> TOGO | B43: =IF(INTRO!$E$43="Non endémique"," ", IF(COUNTRY_INFO!B43=0," ",COUNTRY_INFO!B43)) -> SAVANES | C43: =IF(INTRO!$E$43="Non endémique"," ", IF(COUNTRY_INFO!C43=0," ",COUNTRY_INFO!C43)) -> KPENDJAL | D43: =IF(INTRO!$E$43="Non endémique", "Non requis", COUNTRY_INFO!Y43) -> 0 | E43: =IF(OR(COUNTRY_INFO!R43="Inconnu",COUNTRY_INFO!R43="Surveillance",COUNTRY_INFO!R43="Non requis",COUNTRY_INFO!R43=0),0,IF($D43<>0, COUNTRY_INFO!R43,0)) -> 0 | F43: =IF(OR(COUNTRY_INFO!S43="Inconnu",COUNTRY_INFO!S43="Surveillance",COUNTRY_INFO!S43="Non requis",COUNTRY_INFO!S43=0),0,IF($D43<>0, COUNTRY_INFO!S43,0)) -> 0 | G43: =IF(OR(COUNTRY_INFO!T43="Inconnu",COUNTRY_INFO!T43="Surveillance",COUNTRY_INFO!T43="Non requis",COUNTRY_INFO!T43=0),0,IF($D43<>0, COUNTRY_INFO!T43,0)) -> 0 | H43: 0 | N43: =IF($I43<>"Oui",$F43*2,($F43+ROUND(J43*$F43/SUM(COUNTRY_INFO!$E43:$G43),0))*2) -> 0 | O43: =IF($I43<>"Oui",$G43*3,($G43+ROUND(J43*$G43/SUM(COUNTRY_INFO!$E43:$G43),0))*3) -> 0 | P43: 0 | R43: 0
A44: =IF(INTRO!$E$43="Non endémique"," ", IF(COUNTRY_INFO!A44=0," ",COUNTRY_INFO!A44)) -> TOGO | B44: =IF(INTRO!$E$43="Non endémique"," ", IF(COUNTRY_INFO!B44=0," ",COUNTRY_INFO!B44)) -> SAVANES | C44: =IF(INTRO!$E$43="Non endémique"," ", IF(COUNTRY_INFO!C44=0," ",COUNTRY_INFO!C44)) -> KPENDJAL-OUEST | D44: =IF(INTRO!$E$43="Non endémique", "Non requis", COUNTRY_INFO!Y44) -> 2 | E44: =IF(OR(COUNTRY_INFO!R44="Inconnu",COUNTRY_INFO!R44="Surveillance",COUNTRY_INFO!R44="Non requis",COUNTRY_INFO!R44=0),0,IF($D44<>0, COUNTRY_INFO!R44,0)) -> 21324.27845 | F44: =IF(OR(COUNTRY_INFO!S44="Inconnu",COUNTRY_INFO!S44="Surveillance",COUNTRY_INFO!S44="Non requis",COUNTRY_INFO!S44=0),0,IF($D44<>0, COUNTRY_INFO!S44,0)) -> 39983.02209 | G44: =IF(OR(COUNTRY_INFO!T44="Inconnu",COUNTRY_INFO!T44="Surveillance",COUNTRY_INFO!T44="Non requis",COUNTRY_INFO!T44=0),0,IF($D44<>0, COUNTRY_INFO!T44,0)) -> 8747.932808 | H44: 70055.23335 | I44: Oui | J44: 8241.700407 | K44: 2 | L44: EAS et Adultes | N44: =IF($I44<>"Oui",$F44*2,($F44+ROUND(J44*$F44/SUM(COUNTRY_INFO!$E44:$G44),0))*2) -> 85284.04418 | O44: =IF($I44<>"Oui",$G44*3,($G44+ROUND(J44*$G44/SUM(COUNTRY_INFO!$E44:$G44),0))*3) -> 27989.79842 | P44: 113273.8426 | R44: 113273.8426
A45: =IF(INTRO!$E$43="Non endémique"," ", IF(COUNTRY_INFO!A45=0," ",COUNTRY_INFO!A45)) -> TOGO | B45: =IF(INTRO!$E$43="Non endémique"," ", IF(COUNTRY_INFO!B45=0," ",COUNTRY_INFO!B45)) -> SAVANES | C45: =IF(INTRO!$E$43="Non endémique"," ", IF(COUNTRY_INFO!C45=0," ",COUNTRY_INFO!C45)) -> OTI | D45: =IF(INTRO!$E$43="Non endémique", "Non requis", COUNTRY_INFO!Y45) -> 1 | E45: =IF(OR(COUNTRY_INFO!R45="Inconnu",COUNTRY_INFO!R45="Surveillance",COUNTRY_INFO!R45="Non requis",COUNTRY_INFO!R45=0),0,IF($D45<>0, COUNTRY_INFO!R45,0)) -> 23606.61364 | F45: =IF(OR(COUNTRY_INFO!S45="Inconnu",COUNTRY_INFO!S45="Surveillance",COUNTRY_INFO!S45="Non requis",COUNTRY_INFO!S45=0),0,IF($D45<>0, COUNTRY_INFO!S45,0)) -> 44262.40058 | G45: =IF(OR(COUNTRY_INFO!T45="Inconnu",COUNTRY_INFO!T45="Surveillance",COUNTRY_INFO!T45="Non requis",COUNTRY_INFO!T45=0),0,IF($D45<>0, COUNTRY_INFO!T45,0)) -> 4145.005691 | H45: 72014.01992 | N45: =IF($I45<>"Oui",$F45*2,($F45+ROUND(J45*$F45/SUM(COUNTRY_INFO!$E45:$G45),0))*2) -> 88524.80117 | O45: =IF($I45<>"Oui",$G45*3,($G45+ROUND(J45*$G45/SUM(COUNTRY_INFO!$E45:$G45),0))*3) -> 12435.01707 | P45: 100959.8182 | R45: 100959.8182
A46: =IF(INTRO!$E$43="Non endémique"," ", IF(COUNTRY_INFO!A46=0," ",COUNTRY_INFO!A46)) -> TOGO | B46: =IF(INTRO!$E$43="Non endémique"," ", IF(COUNTRY_INFO!B46=0," ",COUNTRY_INFO!B46)) -> SAVANES | C46: =IF(INTRO!$E$43="Non endémique"," ", IF(COUNTRY_INFO!C46=0," ",COUNTRY_INFO!C46)) -> OTI-SUD | D46: =IF(INTRO!$E$43="Non endémique", "Non requis", COUNTRY_INFO!Y46) -> 1 | E46: =IF(OR(COUNTRY_INFO!R46="Inconnu",COUNTRY_INFO!R46="Surveillance",COUNTRY_INFO!R46="Non requis",COUNTRY_INFO!R46=0),0,IF($D46<>0, COUNTRY_INFO!R46,0)) -> 23212.20049 | F46: =IF(OR(COUNTRY_INFO!S46="Inconnu",COUNTRY_INFO!S46="Surveillance",COUNTRY_INFO!S46="Non requis",COUNTRY_INFO!S46=0),0,IF($D46<>0, COUNTRY_INFO!S46,0)) -> 43522.87592 | G46: =IF(OR(COUNTRY_INFO!T46="Inconnu",COUNTRY_INFO!T46="Surveillance",COUNTRY_INFO!T46="Non requis",COUNTRY_INFO!T46=0),0,IF($D46<>0, COUNTRY_INFO!T46,0)) -> 24908.98118 | H46: 91644.05759 | N46: =IF($I46<>"Oui",$F46*2,($F46+ROUND(J46*$F46/SUM(COUNTRY_INFO!$E46:$G46),0))*2) -> 87045.75184 | O46: =IF($I46<>"Oui",$G46*3,($G46+ROUND(J46*$G46/SUM(COUNTRY_INFO!$E46:$G46),0))*3) -> 74726.94353 | P46: 161772.6954 | R46: 161772.6954
A47: =IF(INTRO!$E$43="Non endémique"," ", IF(COUNTRY_INFO!A47=0," ",COUNTRY_INFO!A47)) -> TOGO | B47: =IF(INTRO!$E$43="Non endémique"," ", IF(COUNTRY_INFO!B47=0," ",COUNTRY_INFO!B47)) -> SAVANES | C47: =IF(INTRO!$E$43="Non endémique"," ", IF(COUNTRY_INFO!C47=0," ",COUNTRY_INFO!C47)) -> TANDJOUARE | D47: =IF(INTRO!$E$43="Non endémique", "Non requis", COUNTRY_INFO!Y47) -> 1 | E47: =IF(OR(COUNTRY_INFO!R47="Inconnu",COUNTRY_INFO!R47="Surveillance",COUNTRY_INFO!R47="Non requis",COUNTRY_INFO!R47=0),0,IF($D47<>0, COUNTRY_INFO!R47,0)) -> 25851.34553 | F47: =IF(OR(COUNTRY_INFO!S47="Inconnu",COUNTRY_INFO!S47="Surveillance",COUNTRY_INFO!S47="Non requis",COUNTRY_INFO!S47=0),0,IF($D47<>0, COUNTRY_INFO!S47,0)) -> 48471.27288 | G47: =IF(OR(COUNTRY_INFO!T47="Inconnu",COUNTRY_INFO!T47="Surveillance",COUNTRY_INFO!T47="Non requis",COUNTRY_INFO!T47=0),0,IF($D47<>0, COUNTRY_INFO!T47,0)) -> 0 | H47: 74322.61841 | N47: =IF($I47<>"Oui",$F47*2,($F47+ROUND(J47*$F47/SUM(COUNTRY_INFO!$E47:$G47),0))*2) -> 96942.54575 | O47: =IF($I47<>"Oui",$G47*3,($G47+ROUND(J47*$G47/SUM(COUNTRY_INFO!$E47:$G47),0))*3) -> 0 | P47: 96942.54575 | R47: 96942.54575
A48: =IF(INTRO!$E$43="Non endémique"," ", IF(COUNTRY_INFO!A48=0," ",COUNTRY_INFO!A48)) -> TOGO | B48: =IF(INTRO!$E$43="Non endémique"," ", IF(COUNTRY_INFO!B48=0," ",COUNTRY_INFO!B48)) -> SAVANES | C48: =IF(INTRO!$E$43="Non endémique"," ", IF(COUNTRY_INFO!C48=0," ",COUNTRY_INFO!C48)) -> TONE | D48: =IF(INTRO!$E$43="Non endémique", "Non requis", COUNTRY_INFO!Y48) -> 1 | E48: =IF(OR(COUNTRY_INFO!R48="Inconnu",COUNTRY_INFO!R48="Surveillance",COUNTRY_INFO!R48="Non requis",COUNTRY_INFO!R48=0),0,IF($D48<>0, COUNTRY_INFO!R48,0)) -> 53861.08711 | F48: =IF(OR(COUNTRY_INFO!S48="Inconnu",COUNTRY_INFO!S48="Surveillance",COUNTRY_INFO!S48="Non requis",COUNTRY_INFO!S48=0),0,IF($D48<>0, COUNTRY_INFO!S48,0)) -> 100989.5383 | G48: =IF(OR(COUNTRY_INFO!T48="Inconnu",COUNTRY_INFO!T48="Surveillance",COUNTRY_INFO!T48="Non requis",COUNTRY_INFO!T48=0),0,IF($D48<>0, COUNTRY_INFO!T48,0)) -> 14139.64197 | H48: 168990.2674 | N48: =IF($I48<>"Oui",$F48*2,($F48+ROUND(J48*$F48/SUM(COUNTRY_INFO!$E48:$G48),0))*2) -> 201979.0767 | O48: =IF($I48<>"Oui",$G48*3,($G48+ROUND(J48*$G48/SUM(COUNTRY_INFO!$E48:$G48),0))*3) -> 42418.9259 | P48: 244398.0026 | R48: 244398.0026

Sheet IVM
A1: Ivermectine (IVM)
A2: Structure administrative, population ciblée par groupe d'âge, plan de traitement et information sur les comprimés
A4: TOTAL | D4: =SUBTOTAL(9,D$10:D$1010) -> 4196811 | G4: =SUBTOTAL(9,G$10:G$1010) -> 0 | H4: 3441385 | I4: 0 | J4: 14396734.8 | K4: 0 | L4: 14396734.8 | M4: 0 | N4: 14396734.8
A6: Structure administrative du pays | D6: Population nécessitant un traitement avec IVM | E6: Plan de traitement | G6: Population cible | I6: Ivermectine (IVM)
A7: Pays | B7: Région/Département | C7: District | E7: FL | F7: Oncho | G7: FL | H7: Oncho | I7: FL uniquement | J7: Oncho uniquement | K7: FL+Oncho | L7: Total requis | M7: Reste en stock | N7: Comprimés devant être fournis
A10: =IF(INTRO!$E$39="Non endémique"," ",IF(COUNTRY_INFO!A10=0," ",COUNTRY_INFO!A10)) -> TOGO | B10: =IF(INTRO!$E$39="Non endémique"," ",IF(COUNTRY_INFO!B10=0," ",COUNTRY_INFO!B10)) -> CENTRALE | C10: =IF(INTRO!$E$39="Non endémique"," ",IF(COUNTRY_INFO!C10=0," ",COUNTRY_INFO!C10)) -> BLITTA | D10: 121713 | E10: =IF(AND(INTRO!$E$39="Non endémique",INTRO!$E$37="Non endémique"),"Non requis",IF(INTRO!$E$39="Non endémique","Traiter avec DEC",COUNTRY_INFO!V10)) -> 0 | F10: =IF(INTRO!$E$39<>"Non endémique",COUNTRY_INFO!W10,"Non requis") -> 1 | G10: =IF(COUNTRY_INFO!H10=1, IF($E10=1,$D10, 0),0) -> 0 | H10: 99805 | I10: =IF(G10<H10,0,IF($E10=1, (G10-H10)*2.8, 0)) -> 0 | J10: =IF($E10<$F10, H10*(F10-E10)*2.8, 0) -> 279454 | K10: =IF(AND($E10=1, $F10<>0), H10*2.8, 0) -> 0 | L10: =SUM(I10:K10) -> 279454 | N10: =IF($L10>$M10,$L10-$M10,0) -> 279454
A11: =IF(INTRO!$E$39="Non endémique"," ",IF(COUNTRY_INFO!A11=0," ",COUNTRY_INFO!A11)) -> TOGO | B11: =IF(INTRO!$E$39="Non endémique"," ",IF(COUNTRY_INFO!B11=0," ",COUNTRY_INFO!B11)) -> CENTRALE | C11: =IF(INTRO!$E$39="Non endémique"," ",IF(COUNTRY_INFO!C11=0," ",COUNTRY_INFO!C11)) -> MÔ | D11: 50222 | E11: =IF(AND(INTRO!$E$39="Non endémique",INTRO!$E$37="Non endémique"),"Non requis",IF(INTRO!$E$39="Non endémique","Traiter avec DEC",COUNTRY_INFO!V11)) -> 0 | F11: =IF(INTRO!$E$39<>"Non endémique",COUNTRY_INFO!W11,"Non requis") -> 2 | G11: =IF(COUNTRY_INFO!H11=1, IF($E11=1,$D11, 0),0) -> 0 | H11: 41182 | I11: 0 | J11: 230619.2 | K11: =IF(AND($E11=1, $F11<>0), H11*2.8, 0) -> 0 | L11: =SUM(I11:K11) -> 230619.2 | N11: 230619.2
A12: =IF(INTRO!$E$39="Non endémique"," ",IF(COUNTRY_INFO!A12=0," ",COUNTRY_INFO!A12)) -> TOGO | B12: =IF(INTRO!$E$39="Non endémique"," ",IF(COUNTRY_INFO!B12=0," ",COUNTRY_INFO!B12)) -> CENTRALE | C12: =IF(INTRO!$E$39="Non endémique"," ",IF(COUNTRY_INFO!C12=0," ",COUNTRY_INFO!C12)) -> SOTOUBOUA | D12: 75655 | E12: =IF(AND(INTRO!$E$39="Non endémique",INTRO!$E$37="Non endémique"),"Non requis",IF(INTRO!$E$39="Non endémique","Traiter avec DEC",COUNTRY_INFO!V12)) -> 0 | F12: =IF(INTRO!$E$39<>"Non endémique",COUNTRY_INFO!W12,"Non requis") -> 1 | G12: =IF(COUNTRY_INFO!H12=1, IF($E12=1,$D12, 0),0) -> 0 | H12: 62037 | I12: 0 | J12: 173703.6 | K12: 0 | L12: 173703.6 | N12: 173703.6
A13: =IF(INTRO!$E$39="Non endémique"," ",IF(COUNTRY_INFO!A13=0," ",COUNTRY_INFO!A13)) -> TOGO | B13: =IF(INTRO!$E$39="Non endémique"," ",IF(COUNTRY_INFO!B13=0," ",COUNTRY_INFO!B13)) -> CENTRALE | C13: =IF(INTRO!$E$39="Non endémique"," ",IF(COUNTRY_INFO!C13=0," ",COUNTRY_INFO!C13)) -> TCHAMBA | D13: 135776 | E13: =IF(AND(INTRO!$E$39="Non endémique",INTRO!$E$37="Non endémique"),"Non requis",IF(INTRO!$E$39="Non endémique","Traiter avec DEC",COUNTRY_INFO!V13)) -> 0 | F13: =IF(INTRO!$E$39<>"Non endémique",COUNTRY_INFO!W13,"Non requis") -> 1 | G13: =IF(COUNTRY_INFO!H13=1, IF($E13=1,$D13, 0),0) -> 0 | H13: 111336 | I13: 0 | J13: 311740.8 | K13: 0 | L13: 311740.8 | N13: 311740.8
A14: =IF(INTRO!$E$39="Non endémique"," ",IF(COUNTRY_INFO!A14=0," ",COUNTRY_INFO!A14)) -> TOGO | B14: =IF(INTRO!$E$39="Non endémique"," ",IF(COUNTRY_INFO!B14=0," ",COUNTRY_INFO!B14)) -> CENTRALE | C14: =IF(INTRO!$E$39="Non endémique"," ",IF(COUNTRY_INFO!C14=0," ",COUNTRY_INFO!C14)) -> TCHAOUDJO | D14: 129153 | E14: =IF(AND(INTRO!$E$39="Non endémique",INTRO!$E$37="Non endémique"),"Non requis",IF(INTRO!$E$39="Non endémique","Traiter avec DEC",COUNTRY_INFO!V14)) -> 0 | F14: =IF(INTRO!$E$39<>"Non endémique",COUNTRY_INFO!W14,"Non requis") -> 2 | G14: =IF(COUNTRY_INFO!H14=1, IF($E14=1,$D14, 0),0) -> 0 | H14: 105905 | I14: 0 | J14: 593068 | K14: 0 | L14: 593068 | N14: 593068
A15: =IF(INTRO!$E$39="Non endémique"," ",IF(COUNTRY_INFO!A15=0," ",COUNTRY_INFO!A15)) -> TOGO | B15: =IF(INTRO!$E$39="Non endémique"," ",IF(COUNTRY_INFO!B15=0," ",COUNTRY_INFO!B15)) -> GRAND LOME | C15: =IF(INTRO!$E$39="Non endémique"," ",IF(COUNTRY_INFO!C15=0," ",COUNTRY_INFO!C15)) -> AGOE-NYIVE | D15: 0 | E15: =IF(AND(INTRO!$E$39="Non endémique",INTRO!$E$37="Non endémique"),"Non requis",IF(INTRO!$E$39="Non endémique","Traiter avec DEC",COUNTRY_INFO!V15)) -> 0 | F15: =IF(INTRO!$E$39<>"Non endémique",COUNTRY_INFO!W15,"Non requis") -> 0 | G15: =IF(COUNTRY_INFO!H15=1, IF($E15=1,$D15, 0),0) -> 0 | H15: - | I15: 0 | J15: 0 | K15: 0 | L15: 0 | N15: 0
A16: =IF(INTRO!$E$39="Non endémique"," ",IF(COUNTRY_INFO!A16=0," ",COUNTRY_INFO!A16)) -> TOGO | B16: =IF(INTRO!$E$39="Non endémique"," ",IF(COUNTRY_INFO!B16=0," ",COUNTRY_INFO!B16)) -> GRAND LOME | C16: =IF(INTRO!$E$39="Non endémique"," ",IF(COUNTRY_INFO!C16=0," ",COUNTRY_INFO!C16)) -> GOLFE | D16: 0 | E16: =IF(AND(INTRO!$E$39="Non endémique",INTRO!$E$37="Non endémique"),"Non requis",IF(INTRO!$E$39="Non endémique","Traiter avec DEC",COUNTRY_INFO!V16)) -> 0 | F16: =IF(INTRO!$E$39<>"Non endémique",COUNTRY_INFO!W16,"Non requis") -> 0 | G16: =IF(COUNTRY_INFO!H16=1, IF($E16=1,$D16, 0),0) -> 0 | H16: - | I16: 0 | J16: 0 | K16: 0 | L16: 0 | N16: 0
A17: =IF(INTRO!$E$39="Non endémique"," ",IF(COUNTRY_INFO!A17=0," ",COUNTRY_INFO!A17)) -> TOGO | B17: =IF(INTRO!$E$39="Non endémique"," ",IF(COUNTRY_INFO!B17=0," ",COUNTRY_INFO!B17)) -> KARA | C17: =IF(INTRO!$E$39="Non endémique"," ",IF(COUNTRY_INFO!C17=0," ",COUNTRY_INFO!C17)) -> ASSOLI | D17: 49668 | E17: =IF(AND(INTRO!$E$39="Non endémique",INTRO!$E$37="Non endémique"),"Non requis",IF(INTRO!$E$39="Non endémique","Traiter avec DEC",COUNTRY_INFO!V17)) -> 0 | F17: =IF(INTRO!$E$39<>"Non endémique",COUNTRY_INFO!W17,"Non requis") -> 2 | G17: =IF(COUNTRY_INFO!H17=1, IF($E17=1,$D17, 0),0) -> 0 | H17: 40728 | I17: 0 | J17: 228076.8 | K17: 0 | L17: 228076.8 | N17: 228076.8
A18: =IF(INTRO!$E$39="Non endémique"," ",IF(COUNTRY_INFO!A18=0," ",COUNTRY_INFO!A18)) -> TOGO | B18: =IF(INTRO!$E$39="Non endémique"," ",IF(COUNTRY_INFO!B18=0," ",COUNTRY_INFO!B18)) -> KARA | C18: =IF(INTRO!$E$39="Non endémique"," ",IF(COUNTRY_INFO!C18=0," ",COUNTRY_INFO!C18)) -> BASSAR | D18: 115417 | E18: =IF(AND(INTRO!$E$39="Non endémique",INTRO!$E$37="Non endémique"),"Non requis",IF(INTRO!$E$39="Non endémique","Traiter avec DEC",COUNTRY_INFO!V18)) -> 0 | F18: =IF(INTRO!$E$39<>"Non endémique",COUNTRY_INFO!W18,"Non requis") -> 2 | G18: =IF(COUNTRY_INFO!H18=1, IF($E18=1,$D18, 0),0) -> 0 | H18: 94642 | I18: 0 | J18: 529995.2 | K18: 0 | L18: 529995.2 | N18: 529995.2
A19: =IF(INTRO!$E$39="Non endémique"," ",IF(COUNTRY_INFO!A19=0," ",COUNTRY_INFO!A19)) -> TOGO | B19: =IF(INTRO!$E$39="Non endémique"," ",IF(COUNTRY_INFO!B19=0," ",COUNTRY_INFO!B19)) -> KARA | C19: =IF(INTRO!$E$39="Non endémique"," ",IF(COUNTRY_INFO!C19=0," ",COUNTRY_INFO!C19)) -> BINAH | D19: 56160 | E19: =IF(AND(INTRO!$E$39="Non endémique",INTRO!$E$37="Non endémique"),"Non requis",IF(INTRO!$E$39="Non endémique","Traiter avec DEC",COUNTRY_INFO!V19)) -> 0 | F19: =IF(INTRO!$E$39<>"Non endémique",COUNTRY_INFO!W19,"Non requis") -> 2 | G19: =IF(COUNTRY_INFO!H19=1, IF($E19=1,$D19, 0),0) -> 0 | H19: 46051 | I19: 0 | J19: 257885.6 | K19: 0 | L19: 257885.6 | N19: 257885.6
A20: =IF(INTRO!$E$39="Non endémique"," ",IF(COUNTRY_INFO!A20=0," ",COUNTRY_INFO!A20)) -> TOGO | B20: =IF(INTRO!$E$39="Non endémique"," ",IF(COUNTRY_INFO!B20=0," ",COUNTRY_INFO!B20)) -> KARA | C20: =IF(INTRO!$E$39="Non endémique"," ",IF(COUNTRY_INFO!C20=0," ",COUNTRY_INFO!C20)) -> DANKPEN | D20: 167203 | E20: =IF(AND(INTRO!$E$39="Non endémique",INTRO!$E$37="Non endémique"),"Non requis",IF(INTRO!$E$39="Non endémique","Traiter avec DEC",COUNTRY_INFO!V20)) -> 0 | F20: =IF(INTRO!$E$39<>"Non endémique",COUNTRY_INFO!W20,"Non requis") -> 2 | G20: =IF(COUNTRY_INFO!H20=1, IF($E20=1,$D20, 0),0) -> 0 | H20: 137106 | I20: 0 | J20: 767793.6 | K20: 0 | L20: 767793.6 | N20: 767793.6
A21: =IF(INTRO!$E$39="Non endémique"," ",IF(COUNTRY_INFO!A21=0," ",COUNTRY_INFO!A21)) -> TOGO | B21: =IF(INTRO!$E$39="Non endémique"," ",IF(COUNTRY_INFO!B21=0," ",COUNTRY_INFO!B21)) -> KARA | C21: =IF(INTRO!$E$39="Non endémique"," ",IF(COUNTRY_INFO!C21=0," ",COUNTRY_INFO!C21)) -> DOUFELGOU | D21: 81793 | E21: =IF(AND(INTRO!$E$39="Non endémique",INTRO!$E$37="Non endémique"),"Non requis",IF(INTRO!$E$39="Non endémique","Traiter avec DEC",COUNTRY_INFO!V21)) -> 0 | F21: =IF(INTRO!$E$39<>"Non endémique",COUNTRY_INFO!W21,"Non requis") -> 2 | G21: =IF(COUNTRY_INFO!H21=1, IF($E21=1,$D21, 0),0) -> 0 | H21: 67070 | I21: 0 | J21: 375592 | K21: 0 | L21: 375592 | N21: 375592
A22: =IF(INTRO!$E$39="Non endémique"," ",IF(COUNTRY_INFO!A22=0," ",COUNTRY_INFO!A22)) -> TOGO | B22: =IF(INTRO!$E$39="Non endémique"," ",IF(COUNTRY_INFO!B22=0," ",COUNTRY_INFO!B22)) -> KARA | C22: =IF(INTRO!$E$39="Non endémique"," ",IF(COUNTRY_INFO!C22=0," ",COUNTRY_INFO!C22)) -> KERAN | D22: 126017 | E22: =IF(AND(INTRO!$E$39="Non endémique",INTRO!$E$37="Non endémique"),"Non requis",IF(INTRO!$E$39="Non endémique","Traiter avec DEC",COUNTRY_INFO!V22)) -> 0 | F22: =IF(INTRO!$E$39<>"Non endémique",COUNTRY_INFO!W22,"Non requis") -> 2 | G22: =IF(COUNTRY_INFO!H22=1, IF($E22=1,$D22, 0),0) -> 0 | H22: 103334 | I22: 0 | J22: 578670.4 | K22: 0 | L22: 578670.4 | N22: 578670.4
A23: =IF(INTRO!$E$39="Non endémique"," ",IF(COUNTRY_INFO!A23=0," ",COUNTRY_INFO!A23)) -> TOGO | B23: =IF(INTRO!$E$39="Non endémique"," ",IF(COUNTRY_INFO!B23=0," ",COUNTRY_INFO!B23)) -> KARA | C23: =IF(INTRO!$E$39="Non endémique"," ",IF(COUNTRY_INFO!C23=0," ",COUNTRY_INFO!C23)) -> KOZAH | D23: 174818 | E23: =IF(AND(INTRO!$E$39="Non endémique",INTRO!$E$37="Non endémique"),"Non requis",IF(INTRO!$E$39="Non endémique","Traiter avec DEC",COUNTRY_INFO!V23)) -> 0 | F23: =IF(INTRO!$E$39<>"Non endémique",COUNTRY_INFO!W23,"Non requis") -> 2 | G23: =IF(COUNTRY_INFO!H23=1, IF($E23=1,$D23, 0),0) -> 0 | H23: 143351 | I23: 0 | J23: 802765.6 | K23: 0 | L23: 802765.6 | N23: 802765.6
A24: =IF(INTRO!$E$39="Non endémique"," ",IF(COUNTRY_INFO!A24=0," ",COUNTRY_INFO!A24)) -> TOGO | B24: =IF(INTRO!$E$39="Non endémique"," ",IF(COUNTRY_INFO!B24=0," ",COUNTRY_INFO!B24)) -> MARITIME | C24: =IF(INTRO!$E$39="Non endémique"," ",IF(COUNTRY_INFO!C24=0," ",COUNTRY_INFO!C24)) -> AVE | D24: 106722 | E24: =IF(AND(INTRO!$E$39="Non endémique",INTRO!$E$37="Non endémique"),"Non requis",IF(INTRO!$E$39="Non endémique","Traiter avec DEC",COUNTRY_INFO!V24)) -> 0 | F24: =IF(INTRO!$E$39<>"Non endémique",COUNTRY_INFO!W24,"Non requis") -> 0 | G24: =IF(COUNTRY_INFO!H24=1, IF($E24=1,$D24, 0),0) -> 0 | H24: 87512 | I24: 0 | J24: 0 | K24: 0 | L24: 0 | N24: 0
A25: =IF(INTRO!$E$39="Non endémique"," ",IF(COUNTRY_INFO!A25=0," ",COUNTRY_INFO!A25)) -> TOGO | B25: =IF(INTRO!$E$39="Non endémique"," ",IF(COUNTRY_INFO!B25=0," ",COUNTRY_INFO!B25)) -> MARITIME | C25: =IF(INTRO!$E$39="Non endémique"," ",IF(COUNTRY_INFO!C25=0," ",COUNTRY_INFO!C25)) -> BAS MONO | D25: 31284 | E25: =IF(AND(INTRO!$E$39="Non endémique",INTRO!$E$37="Non endémique"),"Non requis",IF(INTRO!$E$39="Non endémique","Traiter avec DEC",COUNTRY_INFO!V25)) -> 0 | F25: =IF(INTRO!$E$39<>"Non endémique",COUNTRY_INFO!W25,"Non requis") -> 0 | G25: =IF(COUNTRY_INFO!H25=1, IF($E25=1,$D25, 0),0) -> 0 | H25: 25653 | I25: 0 | J25: 0 | K25: 0 | L25: 0 | N25: 0
A26: =IF(INTRO!$E$39="Non endémique"," ",IF(COUNTRY_INFO!A26=0," ",COUNTRY_INFO!A26)) -> TOGO | B26: =IF(INTRO!$E$39="Non endémique"," ",IF(COUNTRY_INFO!B26=0," ",COUNTRY_INFO!B26)) -> MARITIME | C26: =IF(INTRO!$E$39="Non endémique"," ",IF(COUNTRY_INFO!C26=0," ",COUNTRY_INFO!C26)) -> LACS | D26: 0 | E26: =IF(AND(INTRO!$E$39="Non endémique",INTRO!$E$37="Non endémique"),"Non requis",IF(INTRO!$E$39="Non endémique","Traiter avec DEC",COUNTRY_INFO!V26)) -> 0 | F26: =IF(INTRO!$E$39<>"Non endémique",COUNTRY_INFO!W26,"Non requis") -> 0 | G26: =IF(COUNTRY_INFO!H26=1, IF($E26=1,$D26, 0),0) -> 0 | H26: - | I26: 0 | J26: 0 | K26: 0 | L26: 0 | N26: 0
A27: =IF(INTRO!$E$39="Non endémique"," ",IF(COUNTRY_INFO!A27=0," ",COUNTRY_INFO!A27)) -> TOGO | B27: =IF(INTRO!$E$39="Non endémique"," ",IF(COUNTRY_INFO!B27=0," ",COUNTRY_INFO!B27)) -> MARITIME | C27: =IF(INTRO!$E$39="Non endémique"," ",IF(COUNTRY_INFO!C27=0," ",COUNTRY_INFO!C27)) -> VO | D27: 0 | E27: =IF(AND(INTRO!$E$39="Non endémique",INTRO!$E$37="Non endémique"),"Non requis",IF(INTRO!$E$39="Non endémique","Traiter avec DEC",COUNTRY_INFO!V27)) -> 0 | F27: =IF(INTRO!$E$39<>"Non endémique",COUNTRY_INFO!W27,"Non requis") -> 0 | G27: =IF(COUNTRY_INFO!H27=1, IF($E27=1,$D27, 0),0) -> 0 | H27: - | I27: 0 | J27: 0 | K27: 0 | L27: 0 | N27: 0
A28: =IF(INTRO!$E$39="Non endémique"," ",IF(COUNTRY_INFO!A28=0," ",COUNTRY_INFO!A28)) -> TOGO | B28: =IF(INTRO!$E$39="Non endémique"," ",IF(COUNTRY_INFO!B28=0," ",COUNTRY_INFO!B28)) -> MARITIME | C28: =IF(INTRO!$E$39="Non endémique"," ",IF(COUNTRY_INFO!C28=0," ",COUNTRY_INFO!C28)) -> YOTO | D28: 179780 | E28: =IF(AND(INTRO!$E$39="Non endémique",INTRO!$E$37="Non endémique"),"Non requis",IF(INTRO!$E$39="Non endémique","Traiter avec DEC",COUNTRY_INFO!V28)) -> 0 | F28: =IF(INTRO!$E$39<>"Non endémique",COUNTRY_INFO!W28,"Non requis") -> 1 | G28: =IF(COUNTRY_INFO!H28=1, IF($E28=1,$D28, 0),0) -> 0 | H28: 147420 | I28: 0 | J28: 412776 | K28: 0 | L28: 412776 | N28: 412776
A29: =IF(INTRO!$E$39="Non endémique"," ",IF(COUNTRY_INFO!A29=0," ",COUNTRY_INFO!A29)) -> TOGO | B29: =IF(INTRO!$E$39="Non endémique"," ",IF(COUNTRY_INFO!B29=0," ",COUNTRY_INFO!B29)) -> MARITIME | C29: =IF(INTRO!$E$39="Non endémique"," ",IF(COUNTRY_INFO!C29=0," ",COUNTRY_INFO!C29)) -> ZIO | D29: 294458 | E29: =IF(AND(INTRO!$E$39="Non endémique",INTRO!$E$37="Non endémique"),"Non requis",IF(INTRO!$E$39="Non endémique","Traiter avec DEC",COUNTRY_INFO!V29)) -> 0 | F29: =IF(INTRO!$E$39<>"Non endémique",COUNTRY_INFO!W29,"Non requis") -> 0 | G29: =IF(COUNTRY_INFO!H29=1, IF($E29=1,$D29, 0),0) -> 0 | H29: 241456 | I29: 0 | J29: 0 | K29: 0 | L29: 0 | N29: 0
A30: =IF(INTRO!$E$39="Non endémique"," ",IF(COUNTRY_INFO!A30=0," ",COUNTRY_INFO!A30)) -> TOGO | B30: =IF(INTRO!$E$39="Non endémique"," ",IF(COUNTRY_INFO!B30=0," ",COUNTRY_INFO!B30)) -> PLATEAUX | C30: =IF(INTRO!$E$39="Non endémique"," ",IF(COUNTRY_INFO!C30=0," ",COUNTRY_INFO!C30)) -> AGOU | D30: 88598 | E30: =IF(AND(INTRO!$E$39="Non endémique",INTRO!$E$37="Non endémique"),"Non requis",IF(INTRO!$E$39="Non endémique","Traiter avec DEC",COUNTRY_INFO!V30)) -> 0 | F30: =IF(INTRO!$E$39<>"Non endémique",COUNTRY_INFO!W30,"Non requis") -> 1 | G30: =IF(COUNTRY_INFO!H30=1, IF($E30=1,$D30, 0),0) -> 0 | H30: 72650 | I30: 0 | J30: 203420 | K30: 0 | L30: 203420 | N30: 203420
A31: =IF(INTRO!$E$39="Non endémique"," ",IF(COUNTRY_INFO!A31=0," ",COUNTRY_INFO!A31)) -> TOGO | B31: =IF(INTRO!$E$39="Non endémique"," ",IF(COUNTRY_INFO!B31=0," ",COUNTRY_INFO!B31)) -> PLATEAUX | C31: =IF(INTRO!$E$39="Non endémique"," ",IF(COUNTRY_INFO!C31=0," ",COUNTRY_INFO!C31)) -> AKEBOU | D31: 76043 | E31: =IF(AND(INTRO!$E$39="Non endémique",INTRO!$E$37="Non endémique"),"Non requis",IF(INTRO!$E$39="Non endémique","Traiter avec DEC",COUNTRY_INFO!V31)) -> 0 | F31: =IF(INTRO!$E$39<>"Non endémique",COUNTRY_INFO!W31,"Non requis") -> 1 | G31: =IF(COUNTRY_INFO!H31=1, IF($E31=1,$D31, 0),0) -> 0 | H31: 62355 | I31: 0 | J31: 174594 | K31: 0 | L31: 174594 | N31: 174594
A32: =IF(INTRO!$E$39="Non endémique"," ",IF(COUNTRY_INFO!A32=0," ",COUNTRY_INFO!A32)) -> TOGO | B32: =IF(INTRO!$E$39="Non endémique"," ",IF(COUNTRY_INFO!B32=0," ",COUNTRY_INFO!B32)) -> PLATEAUX | C32: =IF(INTRO!$E$39="Non endémique"," ",IF(COUNTRY_INFO!C32=0," ",COUNTRY_INFO!C32)) -> AMOU | D32: 132297 | E32: =IF(AND(INTRO!$E$39="Non endémique",INTRO!$E$37="Non endémique"),"Non requis",IF(INTRO!$E$39="Non endémique","Traiter avec DEC",COUNTRY_INFO!V32)) -> 0 | F32: =IF(INTRO!$E$39<>"Non endémique",COUNTRY_INFO!W32,"Non requis") -> 2 | G32: =IF(COUNTRY_INFO!H32=1, IF($E32=1,$D32, 0),0) -> 0 | H32: 108484 | I32: 0 | J32: 607510.4 | K32: 0 | L32: 607510.4 | N32: 607510.4
A33: =IF(INTRO!$E$39="Non endémique"," ",IF(COUNTRY_INFO!A33=0," ",COUNTRY_INFO!A33)) -> TOGO | B33: =IF(INTRO!$E$39="Non endémique"," ",IF(COUNTRY_INFO!B33=0," ",COUNTRY_INFO!B33)) -> PLATEAUX | C33: =IF(INTRO!$E$39="Non endémique"," ",IF(COUNTRY_INFO!C33=0," ",COUNTRY_INFO!C33)) -> ANIE | D33: 130239 | E33: =IF(AND(INTRO!$E$39="Non endémique",INTRO!$E$37="Non endémique"),"Non requis",IF(INTRO!$E$39="Non endémique","Traiter avec DEC",COUNTRY_INFO!V33)) -> 0 | F33: =IF(INTRO!$E$39<>"Non endémique",COUNTRY_INFO!W33,"Non requis") -> 1 | G33: =IF(COUNTRY_INFO!H33=1, IF($E33=1,$D33, 0),0) -> 0 | H33: 106796 | I33: 0 | J33: 299028.8 | K33: 0 | L33: 299028.8 | N33: 299028.8
A34: =IF(INTRO!$E$39="Non endémique"," ",IF(COUNTRY_INFO!A34=0," ",COUNTRY_INFO!A34)) -> TOGO | B34: =IF(INTRO!$E$39="Non endémique"," ",IF(COUNTRY_INFO!B34=0," ",COUNTRY_INFO!B34)) -> PLATEAUX | C34: =IF(INTRO!$E$39="Non endémique"," ",IF(COUNTRY_INFO!C34=0," ",COUNTRY_INFO!C34)) -> DANYI | D34: 40188 | E34: =IF(AND(INTRO!$E$39="Non endémique",INTRO!$E$37="Non endémique"),"Non requis",IF(INTRO!$E$39="Non endémique","Traiter avec DEC",COUNTRY_INFO!V34)) -> 0 | F34: =IF(INTRO!$E$39<>"Non endémique",COUNTRY_INFO!W34,"Non requis") -> 2 | G34: =IF(COUNTRY_INFO!H34=1, IF($E34=1,$D34, 0),0) -> 0 | H34: 32954 | I34: 0 | J34: 184542.4 | K34: 0 | L34: 184542.4 | N34: 184542.4
A35: =IF(INTRO!$E$39="Non endémique"," ",IF(COUNTRY_INFO!A35=0," ",COUNTRY_INFO!A35)) -> TOGO | B35: =IF(INTRO!$E$39="Non endémique"," ",IF(COUNTRY_INFO!B35=0," ",COUNTRY_INFO!B35)) -> PLATEAUX | C35: =IF(INTRO!$E$39="Non endémique"," ",IF(COUNTRY_INFO!C35=0," ",COUNTRY_INFO!C35)) -> EST-MONO | D35: 144393 | E35: =IF(AND(INTRO!$E$39="Non endémique",INTRO!$E$37="Non endémique"),"Non requis",IF(INTRO!$E$39="Non endémique","Traiter avec DEC",COUNTRY_INFO!V35)) -> 0 | F35: =IF(INTRO!$E$39<>"Non endémique",COUNTRY_INFO!W35,"Non requis") -> 1 | G35: =IF(COUNTRY_INFO!H35=1, IF($E35=1,$D35, 0),0) -> 0 | H35: 118402 | I35: 0 | J35: 331525.6 | K35: 0 | L35: 331525.6 | N35: 331525.6
A36: =IF(INTRO!$E$39="Non endémique"," ",IF(COUNTRY_INFO!A36=0," ",COUNTRY_INFO!A36)) -> TOGO | B36: =IF(INTRO!$E$39="Non endémique"," ",IF(COUNTRY_INFO!B36=0," ",COUNTRY_INFO!B36)) -> PLATEAUX | C36: =IF(INTRO!$E$39="Non endémique"," ",IF(COUNTRY_INFO!C36=0," ",COUNTRY_INFO!C36)) -> HAHO | D36: 259934 | E36: =IF(AND(INTRO!$E$39="Non endémique",INTRO!$E$37="Non endémique"),"Non requis",IF(INTRO!$E$39="Non endémique","Traiter avec DEC",COUNTRY_INFO!V36)) -> 0 | F36: =IF(INTRO!$E$39<>"Non endémique",COUNTRY_INFO!W36,"Non requis") -> 2 | G36: =IF(COUNTRY_INFO!H36=1, IF($E36=1,$D36, 0),0) -> 0 | H36: 213146 | I36: 0 | J36: 1193617.6 | K36: 0 | L36: 1193617.6 | N36: 1193617.6
A37: =IF(INTRO!$E$39="Non endémique"," ",IF(COUNTRY_INFO!A37=0," ",COUNTRY_INFO!A37)) -> TOGO | B37: =IF(INTRO!$E$39="Non endémique"," ",IF(COUNTRY_INFO!B37=0," ",COUNTRY_INFO!B37)) -> PLATEAUX | C37: =IF(INTRO!$E$39="Non endémique"," ",IF(COUNTRY_INFO!C37=0," ",COUNTRY_INFO!C37)) -> KLOTO | D37: 62911 | E37: =IF(AND(INTRO!$E$39="Non endémique",INTRO!$E$37="Non endémique"),"Non requis",IF(INTRO!$E$39="Non endémique","Traiter avec DEC",COUNTRY_INFO!V37)) -> 0 | F37: =IF(INTRO!$E$39<>"Non endémique",COUNTRY_INFO!W37,"Non requis") -> 1 | G37: =IF(COUNTRY_INFO!H37=1, IF($E37=1,$D37, 0),0) -> 0 | H37: 51587 | I37: 0 | J37: 144443.6 | K37: 0 | L37: 144443.6 | N37: 144443.6
A38: =IF(INTRO!$E$39="Non endémique"," ",IF(COUNTRY_INFO!A38=0," ",COUNTRY_INFO!A38)) -> TOGO | B38: =IF(INTRO!$E$39="Non endémique"," ",IF(COUNTRY_INFO!B38=0," ",COUNTRY_INFO!B38)) -> PLATEAUX | C38: =IF(INTRO!$E$39="Non endémique"," ",IF(COUNTRY_INFO!C38=0," ",COUNTRY_INFO!C38)) -> KPELE | D38: 70989 | E38: =IF(AND(INTRO!$E$39="Non endémique",INTRO!$E$37="Non endémique"),"Non requis",IF(INTRO!$E$39="Non endémique","Traiter avec DEC",COUNTRY_INFO!V38)) -> 0 | F38: =IF(INTRO!$E$39<>"Non endémique",COUNTRY_INFO!W38,"Non requis") -> 1 | G38: =IF(COUNTRY_INFO!H38=1, IF($E38=1,$D38, 0),0) -> 0 | H38: 58211 | I38: 0 | J38: 162990.8 | K38: 0 | L38: 162990.8 | N38: 162990.8
A39: =IF(INTRO!$E$39="Non endémique"," ",IF(COUNTRY_INFO!A39=0," ",COUNTRY_INFO!A39)) -> TOGO | B39: =IF(INTRO!$E$39="Non endémique"," ",IF(COUNTRY_INFO!B39=0," ",COUNTRY_INFO!B39)) -> PLATEAUX | C39: =IF(INTRO!$E$39="Non endémique"," ",IF(COUNTRY_INFO!C39=0," ",COUNTRY_INFO!C39)) -> MOYEN-MONO | D39: 63487 | E39: =IF(AND(INTRO!$E$39="Non endémique",INTRO!$E$37="Non endémique"),"Non requis",IF(INTRO!$E$39="Non endémique","Traiter avec DEC",COUNTRY_INFO!V39)) -> 0 | F39: =IF(INTRO!$E$39<>"Non endémique",COUNTRY_INFO!W39,"Non requis") -> 1 | G39: =IF(COUNTRY_INFO!H39=1, IF($E39=1,$D39, 0),0) -> 0 | H39: 52059 | I39: 0 | J39: 145765.2 | K39: 0 | L39: 145765.2 | N39: 145765.2
A40: =IF(INTRO!$E$39="Non endémique"," ",IF(COUNTRY_INFO!A40=0," ",COUNTRY_INFO!A40)) -> TOGO | B40: =IF(INTRO!$E$39="Non endémique"," ",IF(COUNTRY_INFO!B40=0," ",COUNTRY_INFO!B40)) -> PLATEAUX | C40: =IF(INTRO!$E$39="Non endémique"," ",IF(COUNTRY_INFO!C40=0," ",COUNTRY_INFO!C40)) -> OGOU | D40: 140103 | E40: =IF(AND(INTRO!$E$39="Non endémique",INTRO!$E$37="Non endémique"),"Non requis",IF(INTRO!$E$39="Non endémique","Traiter avec DEC",COUNTRY_INFO!V40)) -> 0 | F40: =IF(INTRO!$E$39<>"Non endémique",COUNTRY_INFO!W40,"Non requis") -> 2 | G40: =IF(COUNTRY_INFO!H40=1, IF($E40=1,$D40, 0),0) -> 0 | H40: 114884 | I40: 0 | J40: 643350.4 | K40: 0 | L40: 643350.4 | N40: 643350.4
A41: =IF(INTRO!$E$39="Non endémique"," ",IF(COUNTRY_INFO!A41=0," ",COUNTRY_INFO!A41)) -> TOGO | B41: =IF(INTRO!$E$39="Non endémique"," ",IF(COUNTRY_INFO!B41=0," ",COUNTRY_INFO!B41)) -> PLATEAUX | C41: =IF(INTRO!$E$39="Non endémique"," ",IF(COUNTRY_INFO!C41=0," ",COUNTRY_INFO!C41)) -> WAWA | D41: 108755 | E41: =IF(AND(INTRO!$E$39="Non endémique",INTRO!$E$37="Non endémique"),"Non requis",IF(INTRO!$E$39="Non endémique","Traiter avec DEC",COUNTRY_INFO!V41)) -> 0 | F41: =IF(INTRO!$E$39<>"Non endémique",COUNTRY_INFO!W41,"Non requis") -> 1 | G41: =IF(COUNTRY_INFO!H41=1, IF($E41=1,$D41, 0),0) -> 0 | H41: 89179 | I41: 0 | J41: 249701.2 | K41: 0 | L41: 249701.2 | N41: 249701.2
A42: =IF(INTRO!$E$39="Non endémique"," ",IF(COUNTRY_INFO!A42=0," ",COUNTRY_INFO!A42)) -> TOGO | B42: =IF(INTRO!$E$39="Non endémique"," ",IF(COUNTRY_INFO!B42=0," ",COUNTRY_INFO!B42)) -> SAVANES | C42: =IF(INTRO!$E$39="Non endémique"," ",IF(COUNTRY_INFO!C42=0," ",COUNTRY_INFO!C42)) -> CINKASSE | D42: 74611 | E42: =IF(AND(INTRO!$E$39="Non endémique",INTRO!$E$37="Non endémique"),"Non requis",IF(INTRO!$E$39="Non endémique","Traiter avec DEC",COUNTRY_INFO!V42)) -> 0 | F42: =IF(INTRO!$E$39<>"Non endémique",COUNTRY_INFO!W42,"Non requis") -> 2 | G42: =IF(COUNTRY_INFO!H42=1, IF($E42=1,$D42, 0),0) -> 0 | H42: 61181 | I42: 0 | J42: 342613.6 | K42: 0 | L42: 342613.6 | N42: 342613.6
A43: =IF(INTRO!$E$39="Non endémique"," ",IF(COUNTRY_INFO!A43=0," ",COUNTRY_INFO!A43)) -> TOGO | B43: =IF(INTRO!$E$39="Non endémique"," ",IF(COUNTRY_INFO!B43=0," ",COUNTRY_INFO!B43)) -> SAVANES | C43: =IF(INTRO!$E$39="Non endémique"," ",IF(COUNTRY_INFO!C43=0," ",COUNTRY_INFO!C43)) -> KPENDJAL | D43: 87256 | E43: =IF(AND(INTRO!$E$39="Non endémique",INTRO!$E$37="Non endémique"),"Non requis",IF(INTRO!$E$39="Non endémique","Traiter avec DEC",COUNTRY_INFO!V43)) -> 0 | F43: =IF(INTRO!$E$39<>"Non endémique",COUNTRY_INFO!W43,"Non requis") -> 2 | G43: =IF(COUNTRY_INFO!H43=1, IF($E43=1,$D43, 0),0) -> 0 | H43: 71550 | I43: 0 | J43: 400680 | K43: 0 | L43: 400680 | N43: 400680
A44: =IF(INTRO!$E$39="Non endémique"," ",IF(COUNTRY_INFO!A44=0," ",COUNTRY_INFO!A44)) -> TOGO | B44: =IF(INTRO!$E$39="Non endémique"," ",IF(COUNTRY_INFO!B44=0," ",COUNTRY_INFO!B44)) -> SAVANES | C44: =IF(INTRO!$E$39="Non endémique"," ",IF(COUNTRY_INFO!C44=0," ",COUNTRY_INFO!C44)) -> KPENDJAL-OUEST | D44: 133846 | E44: =IF(AND(INTRO!$E$39="Non endémique",INTRO!$E$37="Non endémique"),"Non requis",IF(INTRO!$E$39="Non endémique","Traiter avec DEC",COUNTRY_INFO!V44)) -> 0 | F44: =IF(INTRO!$E$39<>"Non endémique",COUNTRY_INFO!W44,"Non requis") -> 2 | G44: =IF(COUNTRY_INFO!H44=1, IF($E44=1,$D44, 0),0) -> 0 | H44: 109754 | I44: 0 | J44: 614622.4 | K44: 0 | L44: 614622.4 | N44: 614622.4
A45: =IF(INTRO!$E$39="Non endémique"," ",IF(COUNTRY_INFO!A45=0," ",COUNTRY_INFO!A45)) -> TOGO | B45: =IF(INTRO!$E$39="Non endémique"," ",IF(COUNTRY_INFO!B45=0," ",COUNTRY_INFO!B45)) -> SAVANES | C45: =IF(INTRO!$E$39="Non endémique"," ",IF(COUNTRY_INFO!C45=0," ",COUNTRY_INFO!C45)) -> OTI | D45: 85586 | E45: =IF(AND(INTRO!$E$39="Non endémique",INTRO!$E$37="Non endémique"),"Non requis",IF(INTRO!$E$39="Non endémique","Traiter avec DEC",COUNTRY_INFO!V45)) -> 0 | F45: =IF(INTRO!$E$39<>"Non endémique",COUNTRY_INFO!W45,"Non requis") -> 2 | G45: =IF(COUNTRY_INFO!H45=1, IF($E45=1,$D45, 0),0) -> 0 | H45: 70181 | I45: 0 | J45: 393013.6 | K45: 0 | L45: 393013.6 | N45: 393013.6
A46: =IF(INTRO!$E$39="Non endémique"," ",IF(COUNTRY_INFO!A46=0," ",COUNTRY_INFO!A46)) -> TOGO | B46: =IF(INTRO!$E$39="Non endémique"," ",IF(COUNTRY_INFO!B46=0," ",COUNTRY_INFO!B46)) -> SAVANES | C46: =IF(INTRO!$E$39="Non endémique"," ",IF(COUNTRY_INFO!C46=0," ",COUNTRY_INFO!C46)) -> OTI-SUD | D46: 128797 | E46: =IF(AND(INTRO!$E$39="Non endémique",INTRO!$E$37="Non endémique"),"Non requis",IF(INTRO!$E$39="Non endémique","Traiter avec DEC",COUNTRY_INFO!V46)) -> 0 | F46: =IF(INTRO!$E$39<>"Non endémique",COUNTRY_INFO!W46,"Non requis") -> 2 | G46: =IF(COUNTRY_INFO!H46=1, IF($E46=1,$D46, 0),0) -> 0 | H46: 105614 | I46: 0 | J46: 591438.4 | K46: 0 | L46: 591438.4 | N46: 591438.4
A47: =IF(INTRO!$E$39="Non endémique"," ",IF(COUNTRY_INFO!A47=0," ",COUNTRY_INFO!A47)) -> TOGO | B47: =IF(INTRO!$E$39="Non endémique"," ",IF(COUNTRY_INFO!B47=0," ",COUNTRY_INFO!B47)) -> SAVANES | C47: =IF(INTRO!$E$39="Non endémique"," ",IF(COUNTRY_INFO!C47=0," ",COUNTRY_INFO!C47)) -> TANDJOUARE | D47: 168188 | E47: =IF(AND(INTRO!$E$39="Non endémique",INTRO!$E$37="Non endémique"),"Non requis",IF(INTRO!$E$39="Non endémique","Traiter avec DEC",COUNTRY_INFO!V47)) -> 0 | F47: =IF(INTRO!$E$39<>"Non endémique",COUNTRY_INFO!W47,"Non requis") -> 2 | G47: =IF(COUNTRY_INFO!H47=1, IF($E47=1,$D47, 0),0) -> 0 | H47: 137914 | I47: 0 | J47: 772318.4 | K47: 0 | L47: 772318.4 | N47: 772318.4
A48: =IF(INTRO!$E$39="Non endémique"," ",IF(COUNTRY_INFO!A48=0," ",COUNTRY_INFO!A48)) -> TOGO | B48: =IF(INTRO!$E$39="Non endémique"," ",IF(COUNTRY_INFO!B48=0," ",COUNTRY_INFO!B48)) -> SAVANES | C48: =IF(INTRO!$E$39="Non endémique"," ",IF(COUNTRY_INFO!C48=0," ",COUNTRY_INFO!C48)) -> TONE | D48: 304751 | E48: =IF(AND(INTRO!$E$39="Non endémique",INTRO!$E$37="Non endémique"),"Non requis",IF(INTRO!$E$39="Non endémique","Traiter avec DEC",COUNTRY_INFO!V48)) -> 0 | F48: =IF(INTRO!$E$39<>"Non endémique",COUNTRY_INFO!W48,"Non requis") -> 2 | G48: =IF(COUNTRY_INFO!H48=1, IF($E48=1,$D48, 0),0) -> 0 | H48: 249896 | I48: 0 | J48: 1399417.6 | K48: 0 | L48: 1399417.6 | N48: 1399417.6

Sheet IVM+ (hidden)
A1: Ivermectine (IVM) pour IDA thérapie
A2: Structure administrative, population ciblée par groupe d'âge, plan de traitement et information sur les comprimés
A4: TOTAL | E4: =SUBTOTAL(9,E$10:E$1010) -> 0 | F4: 0 | G4: 0 | H4: 0
A6: Structure administrative du pays | D6: Plan de traitement | E6: Population nécessitant un traitement avec IVM (IDA thérapie) | F6: Ivermectine (IVM)
A7: Pays | B7: Région/Département | C7: District | D7: FL | F7: Total requis | G7: Reste en stock | H7: Comprimés devant être fournis
A10: =IF(AND(INTRO!$E$37="Endémique",INTRO!$E$39="Non endémique"),IF(COUNTRY_INFO!A10=0," ",COUNTRY_INFO!A10)," ") ->  | B10: =IF(AND(INTRO!$E$37="Endémique",INTRO!$E$39="Non endémique"),IF(COUNTRY_INFO!B10=0," ",COUNTRY_INFO!B10)," ") ->  | C10: =IF(AND(INTRO!$E$37="Endémique",INTRO!$E$39="Non endémique"),IF(COUNTRY_INFO!C10=0," ",COUNTRY_INFO!C10)," ") ->  | D10: =IF(COUNTRY_INFO!Z10<>"",COUNTRY_INFO!V10,0) -> 0 | E10: =IF(AND(COUNTRY_INFO!Z10<>"",COUNTRY_INFO!$H10=1),COUNTRY_INFO!F10+COUNTRY_INFO!G10,0) -> 0 | F10: =E10*2.8 -> 0 | H10: =IF($F10>$G10,$F10-$G10,0) -> 0
A11: =IF(AND(INTRO!$E$37="Endémique",INTRO!$E$39="Non endémique"),IF(COUNTRY_INFO!A11=0," ",COUNTRY_INFO!A11)," ") ->  | B11: =IF(AND(INTRO!$E$37="Endémique",INTRO!$E$39="Non endémique"),IF(COUNTRY_INFO!B11=0," ",COUNTRY_INFO!B11)," ") ->  | C11: =IF(AND(INTRO!$E$37="Endémique",INTRO!$E$39="Non endémique"),IF(COUNTRY_INFO!C11=0," ",COUNTRY_INFO!C11)," ") ->  | D11: =IF(COUNTRY_INFO!Z11<>"",COUNTRY_INFO!V11,0) -> 0 | E11: =IF(AND(COUNTRY_INFO!Z11<>"",COUNTRY_INFO!$H11=1),COUNTRY_INFO!F11+COUNTRY_INFO!G11,0) -> 0 | F11: =E11*2.8 -> 0 | H11: 0
A12: =IF(AND(INTRO!$E$37="Endémique",INTRO!$E$39="Non endémique"),IF(COUNTRY_INFO!A12=0," ",COUNTRY_INFO!A12)," ") ->  | B12: =IF(AND(INTRO!$E$37="Endémique",INTRO!$E$39="Non endémique"),IF(COUNTRY_INFO!B12=0," ",COUNTRY_INFO!B12)," ") ->  | C12: =IF(AND(INTRO!$E$37="Endémique",INTRO!$E$39="Non endémique"),IF(COUNTRY_INFO!C12=0," ",COUNTRY_INFO!C12)," ") ->  | D12: =IF(COUNTRY_INFO!Z12<>"",COUNTRY_INFO!V12,0) -> 0 | E12: =IF(AND(COUNTRY_INFO!Z12<>"",COUNTRY_INFO!$H12=1),COUNTRY_INFO!F12+COUNTRY_INFO!G12,0) -> 0 | F12: 0 | H12: 0
A13: =IF(AND(INTRO!$E$37="Endémique",INTRO!$E$39="Non endémique"),IF(COUNTRY_INFO!A13=0," ",COUNTRY_INFO!A13)," ") ->  | B13: =IF(AND(INTRO!$E$37="Endémique",INTRO!$E$39="Non endémique"),IF(COUNTRY_INFO!B13=0," ",COUNTRY_INFO!B13)," ") ->  | C13: =IF(AND(INTRO!$E$37="Endémique",INTRO!$E$39="Non endémique"),IF(COUNTRY_INFO!C13=0," ",COUNTRY_INFO!C13)," ") ->  | D13: =IF(COUNTRY_INFO!Z13<>"",COUNTRY_INFO!V13,0) -> 0 | E13: =IF(AND(COUNTRY_INFO!Z13<>"",COUNTRY_INFO!$H13=1),COUNTRY_INFO!F13+COUNTRY_INFO!G13,0) -> 0 | F13: 0 | H13: 0
A14: =IF(AND(INTRO!$E$37="Endémique",INTRO!$E$39="Non endémique"),IF(COUNTRY_INFO!A14=0," ",COUNTRY_INFO!A14)," ") ->  | B14: =IF(AND(INTRO!$E$37="Endémique",INTRO!$E$39="Non endémique"),IF(COUNTRY_INFO!B14=0," ",COUNTRY_INFO!B14)," ") ->  | C14: =IF(AND(INTRO!$E$37="Endémique",INTRO!$E$39="Non endémique"),IF(COUNTRY_INFO!C14=0," ",COUNTRY_INFO!C14)," ") ->  | D14: =IF(COUNTRY_INFO!Z14<>"",COUNTRY_INFO!V14,0) -> 0 | E14: =IF(AND(COUNTRY_INFO!Z14<>"",COUNTRY_INFO!$H14=1),COUNTRY_INFO!F14+COUNTRY_INFO!G14,0) -> 0 | F14: 0 | H14: 0
A15: =IF(AND(INTRO!$E$37="Endémique",INTRO!$E$39="Non endémique"),IF(COUNTRY_INFO!A15=0," ",COUNTRY_INFO!A15)," ") ->  | B15: =IF(AND(INTRO!$E$37="Endémique",INTRO!$E$39="Non endémique"),IF(COUNTRY_INFO!B15=0," ",COUNTRY_INFO!B15)," ") ->  | C15: =IF(AND(INTRO!$E$37="Endémique",INTRO!$E$39="Non endémique"),IF(COUNTRY_INFO!C15=0," ",COUNTRY_INFO!C15)," ") ->  | D15: =IF(COUNTRY_INFO!Z15<>"",COUNTRY_INFO!V15,0) -> 0 | E15: =IF(AND(COUNTRY_INFO!Z15<>"",COUNTRY_INFO!$H15=1),COUNTRY_INFO!F15+COUNTRY_INFO!G15,0) -> 0 | F15: 0 | H15: 0
A16: =IF(AND(INTRO!$E$37="Endémique",INTRO!$E$39="Non endémique"),IF(COUNTRY_INFO!A16=0," ",COUNTRY_INFO!A16)," ") ->  | B16: =IF(AND(INTRO!$E$37="Endémique",INTRO!$E$39="Non endémique"),IF(COUNTRY_INFO!B16=0," ",COUNTRY_INFO!B16)," ") ->  | C16: =IF(AND(INTRO!$E$37="Endémique",INTRO!$E$39="Non endémique"),IF(COUNTRY_INFO!C16=0," ",COUNTRY_INFO!C16)," ") ->  | D16: =IF(COUNTRY_INFO!Z16<>"",COUNTRY_INFO!V16,0) -> 0 | E16: =IF(AND(COUNTRY_INFO!Z16<>"",COUNTRY_INFO!$H16=1),COUNTRY_INFO!F16+COUNTRY_INFO!G16,0) -> 0 | F16: 0 | H16: 0
A17: =IF(AND(INTRO!$E$37="Endémique",INTRO!$E$39="Non endémique"),IF(COUNTRY_INFO!A17=0," ",COUNTRY_INFO!A17)," ") ->  | B17: =IF(AND(INTRO!$E$37="Endémique",INTRO!$E$39="Non endémique"),IF(COUNTRY_INFO!B17=0," ",COUNTRY_INFO!B17)," ") ->  | C17: =IF(AND(INTRO!$E$37="Endémique",INTRO!$E$39="Non endémique"),IF(COUNTRY_INFO!C17=0," ",COUNTRY_INFO!C17)," ") ->  | D17: =IF(COUNTRY_INFO!Z17<>"",COUNTRY_INFO!V17,0) -> 0 | E17: =IF(AND(COUNTRY_INFO!Z17<>"",COUNTRY_INFO!$H17=1),COUNTRY_INFO!F17+COUNTRY_INFO!G17,0) -> 0 | F17: 0 | H17: 0
A18: =IF(AND(INTRO!$E$37="Endémique",INTRO!$E$39="Non endémique"),IF(COUNTRY_INFO!A18=0," ",COUNTRY_INFO!A18)," ") ->  | B18: =IF(AND(INTRO!$E$37="Endémique",INTRO!$E$39="Non endémique"),IF(COUNTRY_INFO!B18=0," ",COUNTRY_INFO!B18)," ") ->  | C18: =IF(AND(INTRO!$E$37="Endémique",INTRO!$E$39="Non endémique"),IF(COUNTRY_INFO!C18=0," ",COUNTRY_INFO!C18)," ") ->  | D18: =IF(COUNTRY_INFO!Z18<>"",COUNTRY_INFO!V18,0) -> 0 | E18: =IF(AND(COUNTRY_INFO!Z18<>"",COUNTRY_INFO!$H18=1),COUNTRY_INFO!F18+COUNTRY_INFO!G18,0) -> 0 | F18: 0 | H18: 0
A19: =IF(AND(INTRO!$E$37="Endémique",INTRO!$E$39="Non endémique"),IF(COUNTRY_INFO!A19=0," ",COUNTRY_INFO!A19)," ") ->  | B19: =IF(AND(INTRO!$E$37="Endémique",INTRO!$E$39="Non endémique"),IF(COUNTRY_INFO!B19=0," ",COUNTRY_INFO!B19)," ") ->  | C19: =IF(AND(INTRO!$E$37="Endémique",INTRO!$E$39="Non endémique"),IF(COUNTRY_INFO!C19=0," ",COUNTRY_INFO!C19)," ") ->  | D19: =IF(COUNTRY_INFO!Z19<>"",COUNTRY_INFO!V19,0) -> 0 | E19: =IF(AND(COUNTRY_INFO!Z19<>"",COUNTRY_INFO!$H19=1),COUNTRY_INFO!F19+COUNTRY_INFO!G19,0) -> 0 | F19: 0 | H19: 0
A20: =IF(AND(INTRO!$E$37="Endémique",INTRO!$E$39="Non endémique"),IF(COUNTRY_INFO!A20=0," ",COUNTRY_INFO!A20)," ") ->  | B20: =IF(AND(INTRO!$E$37="Endémique",INTRO!$E$39="Non endémique"),IF(COUNTRY_INFO!B20=0," ",COUNTRY_INFO!B20)," ") ->  | C20: =IF(AND(INTRO!$E$37="Endémique",INTRO!$E$39="Non endémique"),IF(COUNTRY_INFO!C20=0," ",COUNTRY_INFO!C20)," ") ->  | D20: =IF(COUNTRY_INFO!Z20<>"",COUNTRY_INFO!V20,0) -> 0 | E20: =IF(AND(COUNTRY_INFO!Z20<>"",COUNTRY_INFO!$H20=1),COUNTRY_INFO!F20+COUNTRY_INFO!G20,0) -> 0 | F20: 0 | H20: 0
A21: =IF(AND(INTRO!$E$37="Endémique",INTRO!$E$39="Non endémique"),IF(COUNTRY_INFO!A21=0," ",COUNTRY_INFO!A21)," ") ->  | B21: =IF(AND(INTRO!$E$37="Endémique",INTRO!$E$39="Non endémique"),IF(COUNTRY_INFO!B21=0," ",COUNTRY_INFO!B21)," ") ->  | C21: =IF(AND(INTRO!$E$37="Endémique",INTRO!$E$39="Non endémique"),IF(COUNTRY_INFO!C21=0," ",COUNTRY_INFO!C21)," ") ->  | D21: =IF(COUNTRY_INFO!Z21<>"",COUNTRY_INFO!V21,0) -> 0 | E21: =IF(AND(COUNTRY_INFO!Z21<>"",COUNTRY_INFO!$H21=1),COUNTRY_INFO!F21+COUNTRY_INFO!G21,0) -> 0 | F21: 0 | H21: 0
A22: =IF(AND(INTRO!$E$37="Endémique",INTRO!$E$39="Non endémique"),IF(COUNTRY_INFO!A22=0," ",COUNTRY_INFO!A22)," ") ->  | B22: =IF(AND(INTRO!$E$37="Endémique",INTRO!$E$39="Non endémique"),IF(COUNTRY_INFO!B22=0," ",COUNTRY_INFO!B22)," ") ->  | C22: =IF(AND(INTRO!$E$37="Endémique",INTRO!$E$39="Non endémique"),IF(COUNTRY_INFO!C22=0," ",COUNTRY_INFO!C22)," ") ->  | D22: =IF(COUNTRY_INFO!Z22<>"",COUNTRY_INFO!V22,0) -> 0 | E22: =IF(AND(COUNTRY_INFO!Z22<>"",COUNTRY_INFO!$H22=1),COUNTRY_INFO!F22+COUNTRY_INFO!G22,0) -> 0 | F22: 0 | H22: 0
A23: =IF(AND(INTRO!$E$37="Endémique",INTRO!$E$39="Non endémique"),IF(COUNTRY_INFO!A23=0," ",COUNTRY_INFO!A23)," ") ->  | B23: =IF(AND(INTRO!$E$37="Endémique",INTRO!$E$39="Non endémique"),IF(COUNTRY_INFO!B23=0," ",COUNTRY_INFO!B23)," ") ->  | C23: =IF(AND(INTRO!$E$37="Endémique",INTRO!$E$39="Non endémique"),IF(COUNTRY_INFO!C23=0," ",COUNTRY_INFO!C23)," ") ->  | D23: =IF(COUNTRY_INFO!Z23<>"",COUNTRY_INFO!V23,0) -> 0 | E23: =IF(AND(COUNTRY_INFO!Z23<>"",COUNTRY_INFO!$H23=1),COUNTRY_INFO!F23+COUNTRY_INFO!G23,0) -> 0 | F23: 0 | H23: 0
A24: =IF(AND(INTRO!$E$37="Endémique",INTRO!$E$39="Non endémique"),IF(COUNTRY_INFO!A24=0," ",COUNTRY_INFO!A24)," ") ->  | B24: =IF(AND(INTRO!$E$37="Endémique",INTRO!$E$39="Non endémique"),IF(COUNTRY_INFO!B24=0," ",COUNTRY_INFO!B24)," ") ->  | C24: =IF(AND(INTRO!$E$37="Endémique",INTRO!$E$39="Non endémique"),IF(COUNTRY_INFO!C24=0," ",COUNTRY_INFO!C24)," ") ->  | D24: =IF(COUNTRY_INFO!Z24<>"",COUNTRY_INFO!V24,0) -> 0 | E24: =IF(AND(COUNTRY_INFO!Z24<>"",COUNTRY_INFO!$H24=1),COUNTRY_INFO!F24+COUNTRY_INFO!G24,0) -> 0 | F24: 0 | H24: 0
A25: =IF(AND(INTRO!$E$37="Endémique",INTRO!$E$39="Non endémique"),IF(COUNTRY_INFO!A25=0," ",COUNTRY_INFO!A25)," ") ->  | B25: =IF(AND(INTRO!$E$37="Endémique",INTRO!$E$39="Non endémique"),IF(COUNTRY_INFO!B25=0," ",COUNTRY_INFO!B25)," ") ->  | C25: =IF(AND(INTRO!$E$37="Endémique",INTRO!$E$39="Non endémique"),IF(COUNTRY_INFO!C25=0," ",COUNTRY_INFO!C25)," ") ->  | D25: =IF(COUNTRY_INFO!Z25<>"",COUNTRY_INFO!V25,0) -> 0 | E25: =IF(AND(COUNTRY_INFO!Z25<>"",COUNTRY_INFO!$H25=1),COUNTRY_INFO!F25+COUNTRY_INFO!G25,0) -> 0 | F25: 0 | H25: 0
A26: =IF(AND(INTRO!$E$37="Endémique",INTRO!$E$39="Non endémique"),IF(COUNTRY_INFO!A26=0," ",COUNTRY_INFO!A26)," ") ->  | B26: =IF(AND(INTRO!$E$37="Endémique",INTRO!$E$39="Non endémique"),IF(COUNTRY_INFO!B26=0," ",COUNTRY_INFO!B26)," ") ->  | C26: =IF(AND(INTRO!$E$37="Endémique",INTRO!$E$39="Non endémique"),IF(COUNTRY_INFO!C26=0," ",COUNTRY_INFO!C26)," ") ->  | D26: =IF(COUNTRY_INFO!Z26<>"",COUNTRY_INFO!V26,0) -> 0 | E26: =IF(AND(COUNTRY_INFO!Z26<>"",COUNTRY_INFO!$H26=1),COUNTRY_INFO!F26+COUNTRY_INFO!G26,0) -> 0 | F26: 0 | H26: 0
A27: =IF(AND(INTRO!$E$37="Endémique",INTRO!$E$39="Non endémique"),IF(COUNTRY_INFO!A27=0," ",COUNTRY_INFO!A27)," ") ->  | B27: =IF(AND(INTRO!$E$37="Endémique",INTRO!$E$39="Non endémique"),IF(COUNTRY_INFO!B27=0," ",COUNTRY_INFO!B27)," ") ->  | C27: =IF(AND(INTRO!$E$37="Endémique",INTRO!$E$39="Non endémique"),IF(COUNTRY_INFO!C27=0," ",COUNTRY_INFO!C27)," ") ->  | D27: =IF(COUNTRY_INFO!Z27<>"",COUNTRY_INFO!V27,0) -> 0 | E27: =IF(AND(COUNTRY_INFO!Z27<>"",COUNTRY_INFO!$H27=1),COUNTRY_INFO!F27+COUNTRY_INFO!G27,0) -> 0 | F27: 0 | H27: 0
A28: =IF(AND(INTRO!$E$37="Endémique",INTRO!$E$39="Non endémique"),IF(COUNTRY_INFO!A28=0," ",COUNTRY_INFO!A28)," ") ->  | B28: =IF(AND(INTRO!$E$37="Endémique",INTRO!$E$39="Non endémique"),IF(COUNTRY_INFO!B28=0," ",COUNTRY_INFO!B28)," ") ->  | C28: =IF(AND(INTRO!$E$37="Endémique",INTRO!$E$39="Non endémique"),IF(COUNTRY_INFO!C28=0," ",COUNTRY_INFO!C28)," ") ->  | D28: =IF(COUNTRY_INFO!Z28<>"",COUNTRY_INFO!V28,0) -> 0 | E28: =IF(AND(COUNTRY_INFO!Z28<>"",COUNTRY_INFO!$H28=1),COUNTRY_INFO!F28+COUNTRY_INFO!G28,0) -> 0 | F28: 0 | H28: 0
A29: =IF(AND(INTRO!$E$37="Endémique",INTRO!$E$39="Non endémique"),IF(COUNTRY_INFO!A29=0," ",COUNTRY_INFO!A29)," ") ->  | B29: =IF(AND(INTRO!$E$37="Endémique",INTRO!$E$39="Non endémique"),IF(COUNTRY_INFO!B29=0," ",COUNTRY_INFO!B29)," ") ->  | C29: =IF(AND(INTRO!$E$37="Endémique",INTRO!$E$39="Non endémique"),IF(COUNTRY_INFO!C29=0," ",COUNTRY_INFO!C29)," ") ->  | D29: =IF(COUNTRY_INFO!Z29<>"",COUNTRY_INFO!V29,0) -> 0 | E29: =IF(AND(COUNTRY_INFO!Z29<>"",COUNTRY_INFO!$H29=1),COUNTRY_INFO!F29+COUNTRY_INFO!G29,0) -> 0 | F29: 0 | H29: 0
A30: =IF(AND(INTRO!$E$37="Endémique",INTRO!$E$39="Non endémique"),IF(COUNTRY_INFO!A30=0," ",COUNTRY_INFO!A30)," ") ->  | B30: =IF(AND(INTRO!$E$37="Endémique",INTRO!$E$39="Non endémique"),IF(COUNTRY_INFO!B30=0," ",COUNTRY_INFO!B30)," ") ->  | C30: =IF(AND(INTRO!$E$37="Endémique",INTRO!$E$39="Non endémique"),IF(COUNTRY_INFO!C30=0," ",COUNTRY_INFO!C30)," ") ->  | D30: =IF(COUNTRY_INFO!Z30<>"",COUNTRY_INFO!V30,0) -> 0 | E30: =IF(AND(COUNTRY_INFO!Z30<>"",COUNTRY_INFO!$H30=1),COUNTRY_INFO!F30+COUNTRY_INFO!G30,0) -> 0 | F30: 0 | H30: 0
A31: =IF(AND(INTRO!$E$37="Endémique",INTRO!$E$39="Non endémique"),IF(COUNTRY_INFO!A31=0," ",COUNTRY_INFO!A31)," ") ->  | B31: =IF(AND(INTRO!$E$37="Endémique",INTRO!$E$39="Non endémique"),IF(COUNTRY_INFO!B31=0," ",COUNTRY_INFO!B31)," ") ->  | C31: =IF(AND(INTRO!$E$37="Endémique",INTRO!$E$39="Non endémique"),IF(COUNTRY_INFO!C31=0," ",COUNTRY_INFO!C31)," ") ->  | D31: =IF(COUNTRY_INFO!Z31<>"",COUNTRY_INFO!V31,0) -> 0 | E31: =IF(AND(COUNTRY_INFO!Z31<>"",COUNTRY_INFO!$H31=1),COUNTRY_INFO!F31+COUNTRY_INFO!G31,0) -> 0 | F31: 0 | H31: 0
A32: =IF(AND(INTRO!$E$37="Endémique",INTRO!$E$39="Non endémique"),IF(COUNTRY_INFO!A32=0," ",COUNTRY_INFO!A32)," ") ->  | B32: =IF(AND(INTRO!$E$37="Endémique",INTRO!$E$39="Non endémique"),IF(COUNTRY_INFO!B32=0," ",COUNTRY_INFO!B32)," ") ->  | C32: =IF(AND(INTRO!$E$37="Endémique",INTRO!$E$39="Non endémique"),IF(COUNTRY_INFO!C32=0," ",COUNTRY_INFO!C32)," ") ->  | D32: =IF(COUNTRY_INFO!Z32<>"",COUNTRY_INFO!V32,0) -> 0 | E32: =IF(AND(COUNTRY_INFO!Z32<>"",COUNTRY_INFO!$H32=1),COUNTRY_INFO!F32+COUNTRY_INFO!G32,0) -> 0 | F32: 0 | H32: 0
A33: =IF(AND(INTRO!$E$37="Endémique",INTRO!$E$39="Non endémique"),IF(COUNTRY_INFO!A33=0," ",COUNTRY_INFO!A33)," ") ->  | B33: =IF(AND(INTRO!$E$37="Endémique",INTRO!$E$39="Non endémique"),IF(COUNTRY_INFO!B33=0," ",COUNTRY_INFO!B33)," ") ->  | C33: =IF(AND(INTRO!$E$37="Endémique",INTRO!$E$39="Non endémique"),IF(COUNTRY_INFO!C33=0," ",COUNTRY_INFO!C33)," ") ->  | D33: =IF(COUNTRY_INFO!Z33<>"",COUNTRY_INFO!V33,0) -> 0 | E33: =IF(AND(COUNTRY_INFO!Z33<>"",COUNTRY_INFO!$H33=1),COUNTRY_INFO!F33+COUNTRY_INFO!G33,0) -> 0 | F33: 0 | H33: 0
A34: =IF(AND(INTRO!$E$37="Endémique",INTRO!$E$39="Non endémique"),IF(COUNTRY_INFO!A34=0," ",COUNTRY_INFO!A34)," ") ->  | B34: =IF(AND(INTRO!$E$37="Endémique",INTRO!$E$39="Non endémique"),IF(COUNTRY_INFO!B34=0," ",COUNTRY_INFO!B34)," ") ->  | C34: =IF(AND(INTRO!$E$37="Endémique",INTRO!$E$39="Non endémique"),IF(COUNTRY_INFO!C34=0," ",COUNTRY_INFO!C34)," ") ->  | D34: =IF(COUNTRY_INFO!Z34<>"",COUNTRY_INFO!V34,0) -> 0 | E34: =IF(AND(COUNTRY_INFO!Z34<>"",COUNTRY_INFO!$H34=1),COUNTRY_INFO!F34+COUNTRY_INFO!G34,0) -> 0 | F34: 0 | H34: 0
A35: =IF(AND(INTRO!$E$37="Endémique",INTRO!$E$39="Non endémique"),IF(COUNTRY_INFO!A35=0," ",COUNTRY_INFO!A35)," ") ->  | B35: =IF(AND(INTRO!$E$37="Endémique",INTRO!$E$39="Non endémique"),IF(COUNTRY_INFO!B35=0," ",COUNTRY_INFO!B35)," ") ->  | C35: =IF(AND(INTRO!$E$37="Endémique",INTRO!$E$39="Non endémique"),IF(COUNTRY_INFO!C35=0," ",COUNTRY_INFO!C35)," ") ->  | D35: =IF(COUNTRY_INFO!Z35<>"",COUNTRY_INFO!V35,0) -> 0 | E35: =IF(AND(COUNTRY_INFO!Z35<>"",COUNTRY_INFO!$H35=1),COUNTRY_INFO!F35+COUNTRY_INFO!G35,0) -> 0 | F35: 0 | H35: 0
A36: =IF(AND(INTRO!$E$37="Endémique",INTRO!$E$39="Non endémique"),IF(COUNTRY_INFO!A36=0," ",COUNTRY_INFO!A36)," ") ->  | B36: =IF(AND(INTRO!$E$37="Endémique",INTRO!$E$39="Non endémique"),IF(COUNTRY_INFO!B36=0," ",COUNTRY_INFO!B36)," ") ->  | C36: =IF(AND(INTRO!$E$37="Endémique",INTRO!$E$39="Non endémique"),IF(COUNTRY_INFO!C36=0," ",COUNTRY_INFO!C36)," ") ->  | D36: =IF(COUNTRY_INFO!Z36<>"",COUNTRY_INFO!V36,0) -> 0 | E36: =IF(AND(COUNTRY_INFO!Z36<>"",COUNTRY_INFO!$H36=1),COUNTRY_INFO!F36+COUNTRY_INFO!G36,0) -> 0 | F36: 0 | H36: 0
A37: =IF(AND(INTRO!$E$37="Endémique",INTRO!$E$39="Non endémique"),IF(COUNTRY_INFO!A37=0," ",COUNTRY_INFO!A37)," ") ->  | B37: =IF(AND(INTRO!$E$37="Endémique",INTRO!$E$39="Non endémique"),IF(COUNTRY_INFO!B37=0," ",COUNTRY_INFO!B37)," ") ->  | C37: =IF(AND(INTRO!$E$37="Endémique",INTRO!$E$39="Non endémique"),IF(COUNTRY_INFO!C37=0," ",COUNTRY_INFO!C37)," ") ->  | D37: =IF(COUNTRY_INFO!Z37<>"",COUNTRY_INFO!V37,0) -> 0 | E37: =IF(AND(COUNTRY_INFO!Z37<>"",COUNTRY_INFO!$H37=1),COUNTRY_INFO!F37+COUNTRY_INFO!G37,0) -> 0 | F37: 0 | H37: 0
A38: =IF(AND(INTRO!$E$37="Endémique",INTRO!$E$39="Non endémique"),IF(COUNTRY_INFO!A38=0," ",COUNTRY_INFO!A38)," ") ->  | B38: =IF(AND(INTRO!$E$37="Endémique",INTRO!$E$39="Non endémique"),IF(COUNTRY_INFO!B38=0," ",COUNTRY_INFO!B38)," ") ->  | C38: =IF(AND(INTRO!$E$37="Endémique",INTRO!$E$39="Non endémique"),IF(COUNTRY_INFO!C38=0," ",COUNTRY_INFO!C38)," ") ->  | D38: =IF(COUNTRY_INFO!Z38<>"",COUNTRY_INFO!V38,0) -> 0 | E38: =IF(AND(COUNTRY_INFO!Z38<>"",COUNTRY_INFO!$H38=1),COUNTRY_INFO!F38+COUNTRY_INFO!G38,0) -> 0 | F38: 0 | H38: 0
A39: =IF(AND(INTRO!$E$37="Endémique",INTRO!$E$39="Non endémique"),IF(COUNTRY_INFO!A39=0," ",COUNTRY_INFO!A39)," ") ->  | B39: =IF(AND(INTRO!$E$37="Endémique",INTRO!$E$39="Non endémique"),IF(COUNTRY_INFO!B39=0," ",COUNTRY_INFO!B39)," ") ->  | C39: =IF(AND(INTRO!$E$37="Endémique",INTRO!$E$39="Non endémique"),IF(COUNTRY_INFO!C39=0," ",COUNTRY_INFO!C39)," ") ->  | D39: =IF(COUNTRY_INFO!Z39<>"",COUNTRY_INFO!V39,0) -> 0 | E39: =IF(AND(COUNTRY_INFO!Z39<>"",COUNTRY_INFO!$H39=1),COUNTRY_INFO!F39+COUNTRY_INFO!G39,0) -> 0 | F39: 0 | H39: 0
A40: =IF(AND(INTRO!$E$37="Endémique",INTRO!$E$39="Non endémique"),IF(COUNTRY_INFO!A40=0," ",COUNTRY_INFO!A40)," ") ->  | B40: =IF(AND(INTRO!$E$37="Endémique",INTRO!$E$39="Non endémique"),IF(COUNTRY_INFO!B40=0," ",COUNTRY_INFO!B40)," ") ->  | C40: =IF(AND(INTRO!$E$37="Endémique",INTRO!$E$39="Non endémique"),IF(COUNTRY_INFO!C40=0," ",COUNTRY_INFO!C40)," ") ->  | D40: =IF(COUNTRY_INFO!Z40<>"",COUNTRY_INFO!V40,0) -> 0 | E40: =IF(AND(COUNTRY_INFO!Z40<>"",COUNTRY_INFO!$H40=1),COUNTRY_INFO!F40+COUNTRY_INFO!G40,0) -> 0 | F40: 0 | H40: 0
A41: =IF(AND(INTRO!$E$37="Endémique",INTRO!$E$39="Non endémique"),IF(COUNTRY_INFO!A41=0," ",COUNTRY_INFO!A41)," ") ->  | B41: =IF(AND(INTRO!$E$37="Endémique",INTRO!$E$39="Non endémique"),IF(COUNTRY_INFO!B41=0," ",COUNTRY_INFO!B41)," ") ->  | C41: =IF(AND(INTRO!$E$37="Endémique",INTRO!$E$39="Non endémique"),IF(COUNTRY_INFO!C41=0," ",COUNTRY_INFO!C41)," ") ->  | D41: =IF(COUNTRY_INFO!Z41<>"",COUNTRY_INFO!V41,0) -> 0 | E41: =IF(AND(COUNTRY_INFO!Z41<>"",COUNTRY_INFO!$H41=1),COUNTRY_INFO!F41+COUNTRY_INFO!G41,0) -> 0 | F41: 0 | H41: 0
A42: =IF(AND(INTRO!$E$37="Endémique",INTRO!$E$39="Non endémique"),IF(COUNTRY_INFO!A42=0," ",COUNTRY_INFO!A42)," ") ->  | B42: =IF(AND(INTRO!$E$37="Endémique",INTRO!$E$39="Non endémique"),IF(COUNTRY_INFO!B42=0," ",COUNTRY_INFO!B42)," ") ->  | C42: =IF(AND(INTRO!$E$37="Endémique",INTRO!$E$39="Non endémique"),IF(COUNTRY_INFO!C42=0," ",COUNTRY_INFO!C42)," ") ->  | D42: =IF(COUNTRY_INFO!Z42<>"",COUNTRY_INFO!V42,0) -> 0 | E42: =IF(AND(COUNTRY_INFO!Z42<>"",COUNTRY_INFO!$H42=1),COUNTRY_INFO!F42+COUNTRY_INFO!G42,0) -> 0 | F42: 0 | H42: 0
A43: =IF(AND(INTRO!$E$37="Endémique",INTRO!$E$39="Non endémique"),IF(COUNTRY_INFO!A43=0," ",COUNTRY_INFO!A43)," ") ->  | B43: =IF(AND(INTRO!$E$37="Endémique",INTRO!$E$39="Non endémique"),IF(COUNTRY_INFO!B43=0," ",COUNTRY_INFO!B43)," ") ->  | C43: =IF(AND(INTRO!$E$37="Endémique",INTRO!$E$39="Non endémique"),IF(COUNTRY_INFO!C43=0," ",COUNTRY_INFO!C43)," ") ->  | D43: =IF(COUNTRY_INFO!Z43<>"",COUNTRY_INFO!V43,0) -> 0 | E43: =IF(AND(COUNTRY_INFO!Z43<>"",COUNTRY_INFO!$H43=1),COUNTRY_INFO!F43+COUNTRY_INFO!G43,0) -> 0 | F43: 0 | H43: 0
A44: =IF(AND(INTRO!$E$37="Endémique",INTRO!$E$39="Non endémique"),IF(COUNTRY_INFO!A44=0," ",COUNTRY_INFO!A44)," ") ->  | B44: =IF(AND(INTRO!$E$37="Endémique",INTRO!$E$39="Non endémique"),IF(COUNTRY_INFO!B44=0," ",COUNTRY_INFO!B44)," ") ->  | C44: =IF(AND(INTRO!$E$37="Endémique",INTRO!$E$39="Non endémique"),IF(COUNTRY_INFO!C44=0," ",COUNTRY_INFO!C44)," ") ->  | D44: =IF(COUNTRY_INFO!Z44<>"",COUNTRY_INFO!V44,0) -> 0 | E44: =IF(AND(COUNTRY_INFO!Z44<>"",COUNTRY_INFO!$H44=1),COUNTRY_INFO!F44+COUNTRY_INFO!G44,0) -> 0 | F44: 0 | H44: 0
A45: =IF(AND(INTRO!$E$37="Endémique",INTRO!$E$39="Non endémique"),IF(COUNTRY_INFO!A45=0," ",COUNTRY_INFO!A45)," ") ->  | B45: =IF(AND(INTRO!$E$37="Endémique",INTRO!$E$39="Non endémique"),IF(COUNTRY_INFO!B45=0," ",COUNTRY_INFO!B45)," ") ->  | C45: =IF(AND(INTRO!$E$37="Endémique",INTRO!$E$39="Non endémique"),IF(COUNTRY_INFO!C45=0," ",COUNTRY_INFO!C45)," ") ->  | D45: =IF(COUNTRY_INFO!Z45<>"",COUNTRY_INFO!V45,0) -> 0 | E45: =IF(AND(COUNTRY_INFO!Z45<>"",COUNTRY_INFO!$H45=1),COUNTRY_INFO!F45+COUNTRY_INFO!G45,0) -> 0 | F45: 0 | H45: 0
A46: =IF(AND(INTRO!$E$37="Endémique",INTRO!$E$39="Non endémique"),IF(COUNTRY_INFO!A46=0," ",COUNTRY_INFO!A46)," ") ->  | B46: =IF(AND(INTRO!$E$37="Endémique",INTRO!$E$39="Non endémique"),IF(COUNTRY_INFO!B46=0," ",COUNTRY_INFO!B46)," ") ->  | C46: =IF(AND(INTRO!$E$37="Endémique",INTRO!$E$39="Non endémique"),IF(COUNTRY_INFO!C46=0," ",COUNTRY_INFO!C46)," ") ->  | D46: =IF(COUNTRY_INFO!Z46<>"",COUNTRY_INFO!V46,0) -> 0 | E46: =IF(AND(COUNTRY_INFO!Z46<>"",COUNTRY_INFO!$H46=1),COUNTRY_INFO!F46+COUNTRY_INFO!G46,0) -> 0 | F46: 0 | H46: 0
A47: =IF(AND(INTRO!$E$37="Endémique",INTRO!$E$39="Non endémique"),IF(COUNTRY_INFO!A47=0," ",COUNTRY_INFO!A47)," ") ->  | B47: =IF(AND(INTRO!$E$37="Endémique",INTRO!$E$39="Non endémique"),IF(COUNTRY_INFO!B47=0," ",COUNTRY_INFO!B47)," ") ->  | C47: =IF(AND(INTRO!$E$37="Endémique",INTRO!$E$39="Non endémique"),IF(COUNTRY_INFO!C47=0," ",COUNTRY_INFO!C47)," ") ->  | D47: =IF(COUNTRY_INFO!Z47<>"",COUNTRY_INFO!V47,0) -> 0 | E47: =IF(AND(COUNTRY_INFO!Z47<>"",COUNTRY_INFO!$H47=1),COUNTRY_INFO!F47+COUNTRY_INFO!G47,0) -> 0 | F47: 0 | H47: 0
A48: =IF(AND(INTRO!$E$37="Endémique",INTRO!$E$39="Non endémique"),IF(COUNTRY_INFO!A48=0," ",COUNTRY_INFO!A48)," ") ->  | B48: =IF(AND(INTRO!$E$37="Endémique",INTRO!$E$39="Non endémique"),IF(COUNTRY_INFO!B48=0," ",COUNTRY_INFO!B48)," ") ->  | C48: =IF(AND(INTRO!$E$37="Endémique",INTRO!$E$39="Non endémique"),IF(COUNTRY_INFO!C48=0," ",COUNTRY_INFO!C48)," ") ->  | D48: =IF(COUNTRY_INFO!Z48<>"",COUNTRY_INFO!V48,0) -> 0 | E48: =IF(AND(COUNTRY_INFO!Z48<>"",COUNTRY_INFO!$H48=1),COUNTRY_INFO!F48+COUNTRY_INFO!G48,0) -> 0 | F48: 0 | H48: 0

Sheet SUMMARY
B2: Formulaire de demande commune de médicaments pour CP v.4.1
B4: Ce formulaire constitue une demande officielle du Gouvernement à l'OMS pour l'approvisionnement des médicaments mentionnés ci-dessus. Pour garantir la livraison des médicaments à temps, la demande de médicaments CP doit être soumise au moins 9 mois avant la première date d'administration massive de médicaments prévue dans l'année civile de la demande.
B6: Pays | C6: =IF(INTRO!$E$33<>0,INTRO!$E$33," ") -> TOGO | G6: Année | H6: =IF(INTRO!$E$35<>0,INTRO!$E$35," ") -> 2024
B8: Information on PC medicines requested to WHO
B10: Le médicament | C10: Groupe ciblé | D10: Nombre de comprimés | H10: Préciser l’origine
D11: Requis | E11: En stock | F11: En cours de demande | G11: Demandés
B12: Diethylcarbamazine | C12: TOUTE | D12: 0 | E12: 0 | G12: =IF(D12>(E12+F12),D12-E12-F12, 0) -> 0
G13: 0
B14: Ivermectine | C14: TOUTE | D14: 14396734.8 | E14: 0 | G14: 14396734.8 | H14: MDP
B16: Albendazole pour FL | C16: TOUTE | D16: 0 | E16: 0 | G16: 0
G17: 0
B18: Albendazole pour STH | C18: EAPréS | D18: 1568492 | G18: 1568492 | H18: OMS
C19: EAS | D19: 2940924 | G19: 2940924 | H19: OMS
C20: Adultes | D20: 623346 | G20: 623346 | H20: OMS
B22: Mebendazole | C22: EAPréS | G22: 0
C23: EAS | G23: 0
C24: Adultes | G24: 0
B26: Praziquantel | C26: EAPréS | D26: 0 | G26: 0
C27: EAS | D27: 3851872.358 | G27: 3851872.358 | H27: OMS
C28: Adultes | D28: 2600097.616 | G28: =IF(D28>(E28+F28),D28-E28-F28, 0) -> 2600097.616 | H28: OMS
B30: Nombre de personnes devant être traitées avec le médicament donné
B32: La maladie | F32: 1er tour | G32: 2ème tour | H32: 3ème tour
B33: Filariose lymphatique | C33: Ces chiffres sont estimés uniquement pour les goupes d'âge ciblés pour le traitement avec les médicaments donnés, dans les régions où le traitement de maladies spécifiques est requis | F33: 0
B34: Onchocercose | F34: 3441385 | G34: 2054927
B35: Schistosomiase | F35: 2510220.384 | G35: 690984.5651
B36: Géohelminthiases | F36: 5318632 | G36: 943258 | H36: 0
B40: Informations sur les interventions CP planifiées
B42: Le médicament | C42: Veuillez sélectionner une date (mois et année) pour la 1ère tournée de CP | E42: Veuillez sélectionner une date (mois et année) pour la 2ème tournée de CP | G42: Date à laquelle les médicaments devraient atteindre l’entrepôt national
B43: Diethylcarbamazine
B44: Ivermectine | C44: Mai | D44: 2024 | E44: Novembre | F44: 2024 | G44: Février | H44: 2024
B45: Albendazole pour FL
B46: Albendazole pour STH | C46: Mai | D46: 2024 | E46: Novembre | F46: 2024 | G46: Février | H46: 2024
B47: Mebendazole
B48: Praziquantel | C48: Mai | D48: 2024 | E48: Novembre | F48: 2024 | G48: Février | H48: 2024
B50: Récapitulatif - Checklist
B51: Submission
B52: Que faut-il soumettre ?
B53: L'approvisionnement des médicaments demandés doit être basé sur des données épidémiologiques à jour, des plans d'utilisation des médicaments spécifiques et sur la capacité de mise en oeuvre. La liste suivante permet d'assurer que tous les formulaires et toutes les informations sont fournis à l'OMS (en format électronique).
B54: Formulaire de demande commune de médicaments pour chimioprévention
B55: Formulaire de rapport commun
B56: Déclaration des données épidémiologiques pour la CP
B58: Disponibilité de financement pour la mise en oeuvre de tournées pendant l’année pour laquelle les medicaments ont été demandés
B60: Maladies ciblées pour la mise en oeuvre | C60: # de traitements | D60: Financement assuré pour | E60: Origine | H60: Montant
B61: Filariose lymphatique | C61: =SUM(F33:H33) -> 0
B62: Onchocercose | C62: =SUM(F34:H34) -> 5496312 | D62: Tous | E62: USAID
B63: Schistosomiase | C63: =SUM(F35:H35) -> 3201204.949 | D63: Tous | E63: USAID
B64: Géohelminthiases | C64: =SUM(F36:H36) -> 6261890 | D64: Tous | E64: USAID
B66: Qui doit remplir le formulaire ?
B67: Le Coordonnateur national MTN doit compiler toutes les informations nécessaires pour compléter le formulaire de demande. En l'absence d'un coordonnateur, les gestionnaires de programmes spécifiques devraient coordonner leurs sections respectives. Une fois finalisée, chaque demande individuelle doit être approuvée par le Ministère de la Santé.
B69: Informations concernant la (les) personne(s) ayant rempli le formulaire
B71: Titre/fonction | C71: Nom | E71: Téléphone | G71: Email | H71: Date
B72: Coordonnateur MTN/CP | C72: Dr Piham GNOSSIKE | E72: (+228)90698617 | G72: jacquesgnoss@yahoo.fr | H72: 2023-04-23
B73: Gestionnaire de programme SCH | C73: M. IBARIN Morou | E73: (+228)90995654 | G73: ibarinmorou@yahoo.fr | H73: 2023-04-23
B79: L’OMS recommende que tous les effets secondaires graves suspectés d’être associés à l’ingestion de médicaments de CP soient rapportés en suivant les lignes directrices nationales de pharmacovigilance. En l’absence d’un système de pharmacovigilance national, contactez le département de Contrôle des Maladies Tropicales Négligées pour être conseillé.
B80: L’OMS s’est engagée à rendre possible la donation de médicaments en fournissant gratuitement: a) albendazole, mebendazole et praziquantel à l’entrepôt national du Ministère de la Santé et b) diethylcarbamazine au port d’entrée du pays receveur.
B81: L’institution soumettant la présente requête est responsable de: a) l’organisation du déchargement des médicaments du camion, du stockage dans l’entrepôt national et de l’expédition vers les centres où aura lieu la distribution finale; b) de l’enregistrement, si nécessaire, des médicaments donnés, auprès des autorités nationales en charge; et de c) de l’information de n’importe quels changements ayant trait à leurs campagnes de traitement (par exemple le report d’une date planifiée de distribution en masse de médicaments, le remplacement d’un coordonateur MTN, etc.).
C82: J’ai pris connaissance et accepté la politique de la communication de données de l’OMS
C83: Je confirme que toutes les informations fournies dans ce formulaire sont complètes et correctes
B84: Nom et signature du Coordonnateur MTN ou du Représentant du Ministère de la Santé | D84: Dr Piham GNOSSIKE
B85: Date | D85: 2023-06-22
B87: Si vous avez plus d'un destinataire final pour les médicaments de chimioprévention demandés, veuillez compléter les informations de la rubrique "Informations concernant l'envoi et le destinataire" dans la feuille de travail SHIPMENT.
B88: Veuillez envoyer le rapport national (signé et sous format électronique) au représentant de I'OMS du pays en mettant en copie:
B89: Siège de l'OMS | C89: PC_JointForms@who.int
B90: Bureau régional de l'OMS | C90: Conseiller régional MTN
B91: Mectizan donation programme | C91: Dr Yao Sodahlon, email: ysodahlon@taskforce.org
B93: Veuillez noter que votre demande sera examinée par un panel d'experts indépendants (Comité ad hoc d’évaluation conjointe). Les informations contenues dans ce formulaire, le rapport commun d'activités (ou rapport national d'activités) et le plan d'action annuel sont essentiels à l'OMS pour assurer un usage optimal des médicaments. Dans le cadre de ses activités courantes de suivi et d'évaluation, et afin d'honorer ses obligations contractuelles envers les bailleurs de fonds et autres partenaires, l'OMS et ses agents affiliés se réservent le droit d'inspecter, périodiquement, les stocks de médicaments au niveau national.

Sheet SHIPMENT
B2: Formulaire de demande commune de médicaments pour CP v.4.1
B4: Pays | C4: =IF(INTRO!$E$33<>0,INTRO!$E$33," ") -> TOGO | G4: Année | H4: =IF(INTRO!$E$35<>0,INTRO!$E$35," ") -> 2024
B6: Information on shipment and consignee
C8: Destinataire | F8: Destinataire final si différent du destinaire précédent
B9: Nom | C9: Dr Fatoumata Binta DIALLO | F9: Dr Piham GNOSSIKE
B10: Département/Unité | C10: Représentante OMS Togo | F10: Programme National MTN (PNMTN)
B11: Organisation | C11: OMS TOGO | F11: MSHPAUS/TOGO
B12: Téléphone | C12: (+228) 22 21 33 60 ou (+228)22 22 42 92 | F12: (+228) 90 69 86 17
B13: Fax | C13: 00228 22 21 78 32 | F13: -
B14: E-mail | C14: diallof@who.int | F14: jacquesgnoss@yahoo.fr
B15: Adresse postale | C15: 53 QAD, rue ADAME | F15: S/C SG_MSHPAUS BP 336 Lomé /Togo
C17: Destinataire | F17: Destinataire final si différent du destinaire précédent
B18: Nom
B19: Département/Unité
B20: Organisation
B21: Téléphone
B22: Fax
B23: E-mail
B24: Adresse postale
C26: Destinataire | F26: Destinataire final si différent du destinaire précédent
B27: Nom
B28: Département/Unité
B29: Organisation
B30: Téléphone
B31: Fax
B32: E-mail
B33: Adresse postale
B36: Information concernant les obligations légales d’importation
B38: Est le permis d'importation nécessaire? | H38: Oui
B39: Combien de temps cela prend-il pour obtenir le permis d’importation? | G39: 1 à 2 | H39: Semaines
B40: Avez vous besoin que certains documents soient remis en même temps que la demande de permis d’importation? | H40: Oui
B41: Documents nécessaires: Certificat d'analyse des lots de médicaments, Certificats de don, Lettre de transport (LTA/LTM), Packing list, Commercial Invoice
B42: Est-ce que le destinataire doit procéder au dédouanement avant que l’expédition puisse avoir lieu? | H42: Oui
B43: Y a-t-il des informations supplémentaires qui pourraient être utiles afin d’assurer un dédouanement et une livraison rapide des médicaments dans votre pays? | H43: Oui
B44: Attestation d'assurance, Document de Connaissement et le Bordéreau de suivi électronique de cargaison
B46: Remarques supplémentaires éventuelles liées à cette requête
B48: Le Guide de traitement SCH (endémicité des sous-districts) actualisé au niveau du pays (en pièce jointe, format Excel) a été utilisé pour déterminer les populations nécessitant le traitement SCH pour l'année 2024. Cette mise à jour a vu le nombre de HOTSPOTS chuter de 74 avant 2022 à 49 en 2023 après les évaluations de 2021/2022. Le fichier d'analyse par SOUS-DISTRICT doit être mis à jour avec l'appui technique de l'OMS. En 2021/2022 135 sous-districts ont reçu une évaluation d'impact dans 13 districts. Les sous-districts restants dans ces 13 districts et ceux des 26 districts restants seront évalués en 2023 et 2024. Le pays a décidé d'appliquer les nouvelles directives de l'OMS aux Sous-districts nouvellement évalués et progressivement à chaque sous-district évalué jusqu'en 2024. En outre pour ce JRSM 2024, les données démographiques ont été actualisées en utilisant les nouvelles données du RGPH-5/2022 avec taux d'accroissement de 2,30%.

Sheet DATA_POLICY (hidden)
B2: Formulaire de demande commune de médicaments pour CP v.4.1
B4: Pays | D4: =IF(INTRO!$E$33<>0,INTRO!$E$33," ") -> TOGO | G4: Année | H4: =IF(INTRO!$E$35<>0,INTRO!$E$35," ") -> 2024
B7: Déclaration de principe sur la communication de données par l’OMS
B9: Les données sont le fondement de toutes les mesures rationnelles de santé publique et les avantages de la communication de données, y compris pour la science et la santé publique, sont largement reconnus. L’OMS souhaite promouvoir autant que possible la communication de données sanitaires, y compris, mais pas uniquement, de données épidémiologiques et de surveillance.
B14: ="À cet égard, et sans préjudice des instruments juridiquement contraignants régissant la communication et la publication d’informations, le Ministère de la santé de " & D4 & ", en fournissant des données à l’OMS :" -> À cet égard, et sans préjudice des instruments juridiquement contraignants régissant la communication et la publication d’informations, le Ministère de la santé de TOGO, en fournissant des données à l’OMS :
B18: confirme que toutes les données à fournir à l’OMS, ont été collectées conformément à la législation nationale applicable, y compris aux lois de protection des données visant à préserver l’anonymat des personnes identifiables ;
B23: ="convient que l’OMS aura le droit, toujours sous réserve des mesures visant à garantir l’utilisation éthique et sécurisée des données et toujours sous réserve d’une reconnaissance appropriée de la part de "&D4&":" -> convient que l’OMS aura le droit, toujours sous réserve des mesures visant à garantir l’utilisation éthique et sécurisée des données et toujours sous réserve d’une reconnaissance appropriée de la part de TOGO:
C27: de publier les données, dépourvues de tout élément d’identification personnelle (ci-après dénommées « les données ») et de les mettre à la disposition de toute partie intéressée, sur demande (dans la mesure où elles n’ont pas, ou pas encore, été publiées par l’OMS), selon des modalités autorisant leur utilisation non commerciale et sans but lucratif à des fins de santé publique (pour autant que l’OMS garde la maîtrise de la publication des données) ; d’utiliser, de compiler, d’agréger, d’évaluer et d’analyser les données et de publier et de diffuser les résultats obtenus grâce à ces données en rapport avec des travaux de l’OMS et conformément aux politiques et pratiques de l’Organisation.
B39: =CONCATENATE("Sauf lorsque des instruments juridiquement contraignants (RSI, Règlement de Nomenclature de l’OMS, de 1967, etc.) disposent que les données doivent être communiquées et publiées, le Ministère de la santé de ", D4," peut, pour certaines données, décider de ne pas appliquer (tout ou partie des) (les) dispositions qui précèdent," & " en informant l’OMS par écrit à l’adresse suivante, à condition que cette notification précise clairement les données, " & "dont il s’agit et indique clairement lesquelles des dispositions qui précèdent ne seront pas appliquées, et pour quels motifs.") -> Sauf lorsque des instruments juridiquement contraignants (RSI, Règlement de Nomenclature de l’OMS, de 1967, etc.) disposent que les données doivent être communiquées et publiées, le Ministère de la santé de TOGO peut, pour certaines données, décider de ne pas appliquer (tout ou partie des) (les) dispositions qui précèdent, en informant l’OMS par écrit à l’adresse suivante, à condition que cette notification précise clairement les données, dont il s’agit et indique clairement lesquelles des dispositions qui précèdent ne seront pas appliquées, et pour quels motifs.
